{"text_format":"1","workbook":"xlsx","n_sheets":25,"sheets":["Front Page","Product Selector","Data","BOM","Accessories","SEPAM 20 BOM Cortec","SEPAM 40 BOM Cortec","SEPAM 80 BOM Cortec","ANSI_Meas_Appl","Order Codes","Literature","Drawings","Software","Spec","Spec_Alt","Spec20_Data","Spec40_Data","Spec80_Data","Selection Guide","Recommended SEPAM Model #","Substation Protection","Busbar Protection","Generator Protection","Motor Protection","Transformer Protection"],"not_rendered":{"charts":0,"images":15,"macros":1,"external_links":1,"defined_names":228,"comments":3,"pivot_tables":0},"unopened":[],"bounds":{"document_bytes":16777216,"sheet_cells":100000,"rows_first":2000,"rows_last":500,"rows_between":2000,"halvings":0,"cell_chars":16384,"cell_head_chars":4096},"cells_cut":0,"cells_raw":0,"read":"whole","date_system":"1900"}

{"sheet":"Front Page","index":0,"n_rows":15,"n_cols":12,"rows_kept":15,"cut":false,"hidden":false,"merged":[[14,1,14,3],[3,1,3,6],[4,11,4,14],[5,1,9,6],[5,7,9,10],[1,2,1,6],[10,1,11,3],[10,4,10,6],[12,1,13,3],[12,4,12,6]]}
[null,null,null,"USA"]
[null,2018,"SEPAM Product Selector "]
[null,"v1.4.8"]
[]
[null,"Schneider-Electric Protection Relays By Application",null,null,null,null,null,null,null,null,null,"Square-D offers a 10 year warranty on all new SEPAM Protective Relays"]
[null,"For interactive model selection and specification sheet generation use the appropriate Selector worksheet. While using the SEPAM Selector worksheets, use the dropdown menus to select the particular device and options you would like. When finished, you can also click the \"Generate Specification\" button in these selectors to create the configured SEPAM's specification sheet."]
[]
[]
[]
[]
[null,"USA Quotation Support:  ",null,null,"USUtilityQuotes@schneider-electric.com"]
[null,null,null,null,"1-615-280-4800"]
[null,"USA Technical Support:",null,null,"USEnergyTS@schneider-electric.com"]
[null,null,null,null,"1-615-287-3400 (option 3)"]
[null,"USA Training Support:",null,null,"1-615-287-3400 (option 3) request training"]

{"sheet":"Product Selector","index":1,"n_rows":144,"n_cols":31,"rows_kept":144,"cut":false,"hidden":false,"merged":[[44,1,53,12],[6,1,7,4],[10,1,11,5],[14,1,15,5],[18,1,19,5],[22,19,23,19],[1,15,1,16],[3,3,3,12],[4,14,5,14],[42,1,43,12],[8,14,9,15],[8,16,9,16],[26,1,27,7],[34,1,35,7],[38,1,39,11],[30,1,31,1],[22,1,23,7],[8,19,9,19],[0,43,3,54],[8,23,9,23],[8,24,9,24],[8,25,9,25],[10,23,11,23],[10,24,11,24],[10,25,11,25],[14,23,15,23],[14,24,15,24],[14,25,15,25],[0,1,3,1],[0,2,3,2],[12,23,13,23],[12,24,13,24],[18,23,19,23],[18,24,19,24],[18,25,19,25],[16,23,17,23],[16,24,17,24],[22,23,23,23],[22,24,23,24],[22,25,23,25],[20,23,21,23],[20,24,21,24],[26,23,27,23],[26,24,27,24],[26,25,27,25],[24,23,25,23],[24,24,25,24],[32,23,33,23],[32,24,33,24],[28,25,29,25],[30,23,31,23],[30,24,31,24],[30,25,31,25],[28,23,29,23],[28,24,29,24],[36,25,37,25],[38,25,39,25],[40,25,41,25],[32,25,33,25],[0,24,3,25],[34,24,35,24],[34,25,35,25],[24,25,25,25],[20,25,21,25],[16,25,17,25],[12,25,13,25]]}
[null,"SEPAM Relays","Order Code:"]
[]
[]
[null,null,null,"SQ1S40A1B1A0A0"]
[]
[]
[null," Application & Device Type",null,null,null,null,null,null,null,null,null,null,null,null,null,null,null,null,null,null,1]
[null,null,null,null,null,null,null,null,null,null,null,null,null,null,null,null,null,null,null,null,1]
[null,null,null,null,null,null,null,null,null,null,null,null,null,null,"ANSI Code",null,"Protection Function Description",null,null,"Metering Values",null,null,null,"Part #","Qty","Description",null,null,null,null,62.83]
[]
[null," Display Type Option",null,null,null,null,null,null,null,null,null,null,null,null,null,27,"Undervoltage (L-L)",null,null,"Current",null,null,null,{"$f":"D4","v":"SQ1S40A1B1A0A0"},1,{"$f":"B45","v":"Series 40 Substation Protection Relay (24-250Vdc & 120-240Vac, includes 4 digital outputs on the base), advanced display included in base unit, 1/5A CT inputs (3PH and GND/Residual or ZSCT), 10In/4Out Digital Module (110-125 Vdc, 110Vac), 1 x RS485 Modbus port 2 or 4 wire (12 or 24 VDC ext power req'd)."}]
[null,null,null,null,null,null,null,null,null,null,null,null,null,null,null,"27S ","Undervoltage (L-N)",null,null,"Voltage"]
[null," Digital I/O Option Voltage",null,null,null,null,null,null,null,null,null,null,null,null,null,30,"Annunciation",null,null,"Frequency"]
[null,null,null,null,null,null,null,null,null,null,null,null,null,null,null,46,"Negative sequence unbalance",null,null,"Power (P,Q)"]
[null," Current Option",null,null,null,null,null,null,null,null,null,null,null,null,null,47,"Negative sequence overvoltage",null,null,"Peak demand power",null,null,null,{"$f":"X9","v":"Part #"},{"$f":"Y9","v":"Qty"},"Description"]
[null,null,null,null,null,null,null,null,null,null,null,null,null,null,null,"50/51","Phase overcurrent",null,null,"Energy"]
[null,null,null,null,null,null,null,null,null,null,null,null,null,null,null,"50BF","Breaker failure",null,null,"Power factor"]
[null,null,null,null,null,null,null,null,null,null,null,null,null,null,null,"50G/51G","Sensitive ground fault"]
[null," Digital I/O Option Voltage",null,null,null,null,null,null,null,null,null,null,null,null,null,"50N/51N","Ground fault"]
[null,null,null,null,null,null,null,null,null,null,null,null,null,null,null,59,"Overvoltage (L-L or L-N)"]
[null,null,null,null,null,null,null,null,null,null,null,null,null,null,null,"59N","Neutral voltage displacement"]
[null,null,null,null,null,null,null,null,null,null,null,null,null,null,null,"60/60FL","CT/VT supervision"]
[null," Communications Options",null,null,null,null,null,null,null,null,null,null,null,null,null,"68Z","Zone Selective Interlock (ZSI)",null,null,"Built-in Applications"]
[null,null,null,null,null,null,null,null,null,null,null,null,null,null,null,"68L","Logic Discrimination"]
[null,null,null,null,null,null,null,null,null,null,null,null,null,null,null,79,"Recloser (4 cycles)",null,null,"Switchgear CB Control"]
[null,null,null,null,null,null,null,null,null,null,null,null,null,null,null,"81H","Overfrequency",null,null,"Zone Selective Interlocking"]
[null," RTD Options (N/A on substation or busbar models)",null,null,null,null,null,null,null,null,null,null,null,null,null,"81L","Underfrequency"]
[null,null,null,null,null,null,null,null,null,null,null,null,null,null,null,86,"CB Tripping & Lockout"]
[null,null,null,null,null,null,null,null,null,null,null,null,null,null,null,"94/69","CB_Control Logic"]
[]
[null," Analog Output Options"]
[]
[]
[]
[null," Ladder Logic Option (Series 80 only)"]
[]
[]
[]
[null," Sync Check Option (Series 80 only, N/A on motor and cap models)"]
[]
[]
[]
[null," Description:"]
[null,null,null,null,null,null,null,null,null,null,null,null,null,null,null,null,null,null,null,"Notes:"]
[null,"Series 40 Substation Protection Relay (24-250Vdc & 120-240Vac, includes 4 digital outputs on the base), advanced display included in base unit, 1/5A CT inputs (3PH and GND/Residual or ZSCT), 10In/4Out Digital Module (110-125 Vdc, 110Vac), 1 x RS485 Modbus port 2 or 4 wire (12 or 24 VDC ext power req'd).",null,null,null,null,null,null,null,null,null,null,null,null,null,null,null,null,null,"*  denotes a default component"]
[null,null,null,null,null,null,null,null,null,null,null,null,null,null,null,null,null,null,null,"** required option for function"]
[]
[]
[]
[]
[]
[]
[]
[]
[]
[]
[]
[]
[]
[]
[]
[]
[]
[]
[]
[]
[]
[]
[]
[]
[]
[]
[]
[]
[]
[]
[]
[]
[]
[]
[]
[]
[]
[]
[]
[]
[]
[]
[]
[]
[]
[]
[]
[]
[]
[]
[]
[]
[]
[]
[]
[]
[]
[]
[]
[]
[]
[]
[]
[]
[]
[]
[]
[]
[]
[]
[]
[]
[]
[]
[]
[]
[]
[]
[]
[]
[]
[]
[]
[]
[]
[]
[]
[]
[]
[]
[]
[]
[]
[]
[]
[]
[]
[null,null,"Discount Rate: "]

{"sheet":"Data","index":2,"n_rows":88,"n_cols":44,"rows_kept":88,"cut":false,"hidden":true,"merged":[[31,17,35,20],[0,26,0,27],[0,28,0,29],[0,30,0,31],[0,32,0,33],[0,34,0,35],[0,36,0,37],[0,38,0,39],[0,40,0,41],[0,42,0,43]]}
["SQ1","Relay Base Model","Current(10) - Display(20-80)","Gnd Fault(10) - Current(20-80)","Ctrl Voltage(10) - Digital I/O(20-80)","Coms","RTD's","Analog Out","Logipam","Synch Check",null,null,"Part","Description",null,null,null,null,null,null,null,null,"ANSI Codes","Description","Measurements","Applications","   Selected Type List\n   ID             Value",null,"  Selected Display List\n   ID             Value",null,"  Selected Current List\n   ID             Value",null,"    Selected I/O List\n   ID             Value",null,"  Selected Comm List\n   ID             Value",null,"   Selected RTD List\n   ID             Value",null,"  Selected Analog List\n   ID             Value",null," Selected Logipam List\n   ID             Value",null,"Selected Sync Chk List\n   ID             Value"]
[null,null,null,null,null,null,null,null,null,null,null,null,null,null,null,null,"SQ1S82P1J0A0B0",null,"Series:",40,null,null,"27","Undervoltage (L-L)","Current","Switchgear CB Control",null,null,"A","Advanced Display *",1,"1A/5A CT inputs *",0,"without",1,"1 x RS485 (24Vdc aux power req'd) *","A","without",0,"without *","A","without",0,"without *"]
[null,null,null,null,null,null,null,null,null,null,null,null,"Accessories","SEPAM relay accessories",null,null,null,null,"Model:","S40 - Substation Relay",null,null,"27S ","Undervoltage (L-N)","Voltage","Zone Selective Interlocking",null,null,"R","Remote Advanced Display",2,"Alt. 1A/5A CT inputs (requires CSH120, 200 or 30)","A","10In/4Out, 24-48Vdc/120-250Vac",2,"2 x RS485",null,null,1,"1 x Analog 0-1mA, 0-10mA, 0-20mA, 4-20mA output"]
[null,null,null,null,null,null,null,null,null,null,null,null,"Replacement Base Units","Replacement base units with display programmed with application",null,null,"SQ1S24A1B1A0A0",null,"Description Status:",false,null,null,"30","Annunciation","Frequency",null,null,null,null,null,3,"Low Power CT (LPCT)","B","10In/4Out, 110-125Vdc/110Vac *",3,"1 x RS485/ 1 x Fiber Optic"]
[null,"S24",null,null,null,null,null,null,null,null,"S24","SUBSTATION","S24 - Substation Relay","Series 20 Substation Protection Relay (24-250Vdc & 120-240Vac, includes 4 digital outputs on the base)","A,B",20,null,null,"BOM Line Number:",10,null,null,"46","Negative sequence unbalance","Power (P,Q)",null,null,null,null,null,null,null,"C","10In/4Out, 220-250Vdc/220-240Vac",5,"2 x Ethernet Ports (Copper, IEC61850/ModbusTCP)"]
[null,"S40",null,null,null,null,null,null,null,null,"S40","SUBSTATION","S40 - Substation Relay","Series 40 Substation Protection Relay (24-250Vdc & 120-240Vac, includes 4 digital outputs on the base)","A,B",40,null,null,"Spec Line Number",121,91,null,"47","Negative sequence overvoltage","Peak demand power",null,null,null,null,null,null,null,null,null,6,"2 x Ethernet Ports (Fiber, IEC61850/ModbusTCP)"]
[null,"S42",null,null,null,null,null,null,null,null,"S42","SUBSTATION","S42 - Substation Relay","Series 40 Substation (24-250Vdc & 120-240Vac, includes 4 digital outputs on the base)","A,B",40,null,null,"Application Type:","SUBSTATION",null,null,"50/51","Phase overcurrent","Energy"]
[null,"S43",null,null,null,null,null,null,null,null,"S43","SUBSTATION","S43 - Substation Relay","Series 40 Substation Protection Relay (24-250Vdc & 120-240Vac, includes 4 digital outputs on the base)","A,B",40,"Series 10 - 20,40,50,80",null,null,null,null,null,"50BF","Breaker failure","Power factor"]
[null,"S50",null,null,null,null,null,null,null,null,"S50","SUBSTATION","S50 - Substation Relay","Series 40 Substation Protection Relay (24-250Vdc & 120-240Vac, includes 4 digital outputs on the base)","A,B",40,"Order Code Description","Dropdown value",null,"SQ1","Description:","Part Type","50G/51G","Sensitive ground fault"]
[null,"S52",null,null,null,null,null,null,null,null,"S52","SUBSTATION","S52 - Substation Relay","Series 40 Substation Protection Relay (24-250Vdc & 120-240Vac, includes 4 digital outputs on the base)","A,B",40," Application & Device Type",2,null,"S40","Series 40 Substation Protection Relay (24-250Vdc & 120-240Vac, includes 4 digital outputs on the base)",null,"50N/51N","Ground fault"]
[null,"S53",null,null,null,null,null,null,null,null,"S53","SUBSTATION","S53 - Substation Relay","Series 40 Substation Protection Relay (24-250Vdc & 120-240Vac, includes 4 digital outputs on the base)","A,B",40,"Current(10) - Display(20-80)",1,null,"A","advanced display included in base unit",null,"59","Overvoltage (L-L or L-N)"]
[null,"S80",null,null,null,null,null,null,null,null,"S80","SUBSTATION","S80 - Substation Relay","Series 80 Substation Protection Relay (24-250Vdc, includes 5 digital outputs on the base)","A,B,P",80,"Gnd Fault(10) - Current(20-80)",1,null,1,"1/5A CT inputs (3PH and GND/Residual or ZSCT)",null,"59N","Neutral voltage displacement"]
[null,"S82",null,null,null,null,null,null,null,null,"S82","SUBSTATION","S82 - Substation Relay","Series 80 Substation Protection Relay (24-250Vdc, includes 5 digital outputs on the base)","A,B,P",80,"Ctrl Voltage(10) - Digital I/O(20-80)",3,null,"B","10In/4Out Digital Module (110-125 Vdc, 110Vac)",null,"60/60FL","CT/VT supervision"]
[null,"S84",null,null,null,null,null,null,null,null,"S84","SUBSTATION","S84 - Substation Relay","Series 80 Substation Protection Relay (24-250Vdc, includes 5 digital outputs on the base)","A,B,P",80,"Comms",1,null,1,"1 x RS485 Modbus port 2 or 4 wire (12 or 24 VDC ext power req'd)",null,"68Z","Zone Selective Interlock (ZSI)"]
[null,"B21",null,null,null,null,null,null,null,null,"B21","BUSBAR","B21 - Busbar Relay","Series 20 Busbar Protection Relay (24-250Vdc & 120-240Vac, includes 4 digital outputs on base)","A,B",20,"RTD",1,null,"A",null,null,"68L","Logic Discrimination"]
[null,"B22",null,null,null,null,null,null,null,null,"B22","BUSBAR","B22 - Busbar Relay","Series 20 Busbar Protection Relay (24-250Vdc & 120-240Vac, includes 4 digital outputs on base)","A,B",20,"Analog",1,null,0,null,null,"79","Recloser (4 cycles)"]
[null,"B80",null,null,null,null,null,null,null,null,"B80","BUSBAR","B80 - Busbar Relay","Series 80 Busbar Protection Relay (24-250Vdc, includes 5 digital outputs on base)","A,B,P",80,"Logipam",1,null,"A",null,null,"81H","Overfrequency"]
[null,"B83",null,null,null,null,null,null,null,null,"B83","BUSBAR","B83 - Busbar Relay","Series 80 Busbar Protection Relay (24-250Vdc, includes 5 digital outputs on base and two sets of VT inputs)","A,B,P",80,"Synchchk",1,null,0,null,null,"81L","Underfrequency"]
[null,"G40",null,null,null,null,null,null,null,null,"G40","GENERATOR","G40 - Generator Relay","Series40  Generator Protection relay (24-250Vdc & 120-240Vac, includes 4 digital outputs on base)","A,B",40,null,null,null,null,null,null,"86","CB Tripping & Lockout"]
[null,"G82",null,null,null,null,null,null,null,null,"G82","GENERATOR","G82 - Generator Relay","Series 80 Generator Protection Relay (24-250Vdc, includes 5 digital outputs on base)","A,B,P",80,null,null,null,null,null,null,"94/69","CB_Control Logic"]
[null,"G87",null,null,null,null,null,null,null,null,"G87","GENERATOR","G87 - Generator Relay","Series 80 Generator Protection Relay (24-250Vdc, includes 5 digital outputs on base)","A,B,P",80,null,"Model Number:",{"$f":"IF(LEN(T10)=3,T9&T10&T11&T12&T13&T14&T15&T16&T17&T18,T10)","v":"SQ1S40A1B1A0A0"}]
[null,"G88",null,null,null,null,null,null,null,null,"G88","GENERATOR","G88 - Generator Relay","Series 80 Generator Protection Relay (24-250Vdc, includes 5 digital outputs on base)","A,B,P",80]
[null,"M20",null,null,null,null,null,null,null,null,"M20","MOTOR","M20 - Motor Relay","Series 20 Motor Protection Relay (24-250Vdc & 120-240Vac, includes 4 digital outputs on base)","A,B",20]
[null,"M41",null,null,null,null,null,null,null,null,"M41","MOTOR","M41 - Motor Relay","Series 40 Motor Protection Relay (24-250Vdc & 120-240Vac, includes 4 digital outputs on base)","A,B",40]
[null,"M81",null,null,null,null,null,null,null,null,"M81","MOTOR","M81 - Motor Relay","Series 80 Motor Protection Relay (24-250Vdc, includes 5 digital outputs on base)","A,B,P",80]
[null,"M87",null,null,null,null,null,null,null,null,"M87","MOTOR","M87 - Motor Relay","Series 80 Motor Protection Relay (24-250Vdc, includes 5 digital outputs on base)","A,B,P",80]
[null,"M88",null,null,null,null,null,null,null,null,"M88","MOTOR","M88 - Motor Relay","Series 80 Motor Protection Relay (24-250Vdc, includes 5 digital outputs on base)","A,B,P",80]
[null,"T24",null,null,null,null,null,null,null,null,"T24","TRANSFORMER","T24 - Transformer Relay","Series 20 Transformer Relay (24-250Vdc & 120-240Vac, includes 4 digital outputs on base)","A,B",20]
[null,"T40",null,null,null,null,null,null,null,null,"T40","TRANSFORMER","T40 - Transformer Relay","Series 40 Transformer Protection relay (24-250Vdc & 120-240Vac, includes 4 digital outputs on base)","A,B",40]
[null,"T42",null,null,null,null,null,null,null,null,"T42","TRANSFORMER","T42 - Transformer Relay","Series 40 Transformer Protection relay (24-250Vdc & 120-240Vac, includes 4 digital outputs on base)","A,B",40]
[null,"T50",null,null,null,null,null,null,null,null,"T50","TRANSFORMER","T50 - Transformer Relay","Series 40 Transformer Protection Relay (24-250Vdc & 120-240Vac, includes 4 digital outputs on the base)","A,B",40,null,"Description:"]
[null,"T52",null,null,null,null,null,null,null,null,"T52","TRANSFORMER","T52 - Transformer Relay","Series 40 Transformer Protection Relay (24-250Vdc & 120-240Vac, includes 4 digital outputs on the base)","A,B",40,null,"Series 40 Substation Protection Relay (24-250Vdc & 120-240Vac, includes 4 digital outputs on the base), advanced display included in base unit, 1/5A CT inputs (3PH and GND/Residual or ZSCT), 10In/4Out Digital Module (110-125 Vdc, 110Vac), 1 x RS485 Modbus port 2 or 4 wire (12 or 24 VDC ext power req'd)."]
[null,"T81",null,null,null,null,null,null,null,null,"T81","TRANSFORMER","T81 - Transformer Relay","Series 80 Transformer Protection Relay (24-250Vdc, includes 5 digital outputs on base)","A,B,P",80]
[null,"T82",null,null,null,null,null,null,null,null,"T82","TRANSFORMER","T82 - Transformer Relay","Series 80 Transformer Protection Relay (24-250Vdc, includes 5 digital outputs on base)","A,B,P",80]
[null,"T87",null,null,null,null,null,null,null,null,"T87","TRANSFORMER","T87 - Transformer Relay","Series 80 Transformer Protection Relay (24-250Vdc, includes 5 digital outputs on base)","A,B,P",80]
[null,"C86",null,null,null,null,null,null,null,null,"C86","CAPACITOR","C86 - Capacitor Bank Relay","Series 80 Capacitor Relay (24-250Vdc, includes 5 digital outputs on base)","A,B,P",80]
[null,null,1,null,null,null,null,null,null,null,null,null,"1 gnd-fault input","1 gnd-fault input"]
[null,null,3,null,null,null,null,null,null,null,null,null,"2 phase current inputs + 1 ground-fault input","2 phase current inputs + 1 ground-fault input"]
[null,null,4,null,null,null,null,null,null,null,null,null,"3 phase current inputs + 1 ground-fault input","3 phase current inputs + 1 ground-fault input"]
[null,null,"B",null,null,null,null,null,null,null,null,null,"Basic-Display","basic display included in base unit"]
[null,null,"A",null,null,null,null,null,null,null,null,null,"Advanced Display *","advanced display included in base unit"]
[null,null,"R",null,null,null,null,null,null,null,"DSM303",null,"Remote Advanced Display","remote advanced display (includes 6.5' connection CAT5 cable and base mount kit, AMT840)"]
[null,null,"B",null,null,null,null,null,null,null,null,null,"Basic Display","basic display included in base unit"]
[null,null,"A",null,null,null,null,null,null,null,null,null,"Advanced Display","advanced display included in base unit"]
[null,null,"P",null,null,null,null,null,null,null,"MimicBus",null,"MimicBus Display *","mimicBus Graphical Display"]
[null,null,"C",null,null,null,null,null,null,null,"DSM303",null,"Remote Advanced Display","remote Advanced Display (includes 6.5' connection CAT5 cable and Base Mount kit, AMT880)"]
[null,null,null,1,null,null,null,null,null,null,null,null,"standard  (0.1Inr to 24Inr)","standard  (0.1Inr to 24Inr) ground fault sensitivity "]
[null,null,null,3,null,null,null,null,null,null,null,null,"very sensitive  (Gnd Current: 0.2 to 240A)","very sensitive  (Gnd Current: 0.2 to 240A) ground fault sensitivity (Note: Very Sensitive groundfault detection requires ordering a CSH120 or CSH200 ZSCT for 50G/51G protection)"]
[null,null,null,1,null,null,null,null,null,null,null,null,"standard  (0.1Inr to 24Inr)","standard  (0.1Inr to 24Inr) ground fault sensitivity "]
[null,null,null,2,null,null,null,null,null,null,null,null,"sensitive  (0.01Inr to 2.4Inr)","sensitive  (0.01Inr to 2.4Inr) ground fault sensitivity "]
[null,null,null,3,null,null,null,null,null,null,null,null,"very sensitive  (Gnd Current: 0.2 to 240A)","very sensitive  (Gnd Current: 0.2 to 240A) ground fault sensitivity (Note: Very Sensitive groundfault detection requires ordering a CSH120 or CSH200 ZSCT for 50G/51G protection)"]
[null,null,null,0,null,null,null,null,null,null,null,null,"Voltage Inputs only","voltage inputs only"]
[null,null,null,1,null,null,null,null,null,null,null,null,"1A/5A CT inputs *","1/5A CT inputs (3PH and GND/Residual or ZSCT)"]
[null,null,null,2,null,null,null,null,null,null,null,null,"Alt. 1A/5A CT inputs (requires CSH120, 200 or 30)","1/5A CT inputs (3PH) + (GND/Residual or ZSCT)  measurement by CSH120 or CSH200 Zero Sequence CT or , or CSH30 Interposing CT (CT's not included to be ordered separately)"]
[null,null,null,3,null,null,null,null,null,null,null,null,"Low Power CT (LPCT)","25/3150A LPCT inputs (3PH) + (GND/Residual or ZSCT) measurement by CSH120 or CSH200 Zero Sequence CT (Motor Starter Only)"]
[null,null,null,null,"A",null,null,null,null,null,null,null,"24 to 125Vdc or 100 to 120Vac","control voltage 24 to 125Vdc or 100 to 120Vac"]
[null,null,null,null,"E",null,null,null,null,null,null,null,"110 to 250Vdc or 100 to 240Vac","control voltage 110 to 250Vdc or 100 to 240Vac"]
[null,null,null,null,"F",null,null,null,null,null,null,null,"220 to 250Vdc (w/ high threshold logic inputs)","control voltage 220 to 250Vdc (w/ high threshold logic inputs)"]
[null,null,null,null,0,null,null,null,null,null,null,0,"without"]
[null,null,null,null,"A",null,null,null,null,null,"MES114",1,"10In/4Out, 24-250Vdc/120-250Vac","10In/4Out Digital Module (24-250Vdc and 120-250Vac, Capacitor Trip application)"]
[null,null,null,null,"B",null,null,null,null,null,"MES114E",1,"10In/4Out, 110-125Vdc/110Vac *","10In/4Out Digital Module (110-125 Vdc, 110Vac)"]
[null,null,null,null,"C",null,null,null,null,null,"MES114F",1,"10In/4Out, 220-250Vdc/220-240Vac","10In/4Out Digital Module (220-250Vdc, 220-240Vac)"]
[null,null,null,null,0,null,null,null,null,null,null,0,"without"]
[null,null,null,null,"D",null,null,null,null,null,"MES120",1,"14In/6Out, 24-250Vdc","1 x 14In/6Out Digital Module (24-250Vdc)"]
[null,null,null,null,"E",null,null,null,null,null,"2 x MES120",2,"28In/12Out, 24-250Vdc","2 x 14In/6Out Digital Modules (24-250Vdc)"]
[null,null,null,null,"F",null,null,null,null,null,"3 x MES120",3,"42In/18Out, 24-250Vdc","3 x 14In/6Out Digital Modules (24-250Vdc)"]
[null,null,null,null,"G",null,null,null,null,null,"MES120G",1,"14In/6Out, 220-250Vdc","1 x 14In/6Out Digital Module (220-250Vdc/hi p.u.)"]
[null,null,null,null,"H",null,null,null,null,null,"2 x MES120G",2,"28In/12Out, 220-250Vdc","2 x 14In/6Out Digital Modules (220-250Vdc/hi p.u.)"]
[null,null,null,null,"I",null,null,null,null,null,"3 x MES120G",3,"42In/18Out, 220-250Vdc","3 x 14In/6Out Digital Modules (220-250Vdc/hi p.u.)"]
[null,null,null,null,"J",null,null,null,null,null,"MES120H",1,"14In/6Out, 110-125Vdc *","1 x 14In/6Out Digital Module (110-125Vdc/mid p.u.)"]
[null,null,null,null,"K",null,null,null,null,null,"2 x MES120H",2,"28In/12Out, 110-125Vdc","2 x 14In/6Out Digital Modules (110-125Vdc/mid p.u.)"]
[null,null,null,null,"L",null,null,null,null,null,"3 x MES120H",3,"42In/18Out, 110-125Vdc","3 x 14In/6Out Digital Modules (110-125Vdc/mid p.u.)","Comms","Special for Series 40-80 comms range as ECI850MG is std"]
[null,null,null,null,null,0,null,null,null,null,null,0,"without",null,0,"Removed"]
[null,null,null,null,null,1,null,null,null,null,"ACE959",1,"1 x RS485 (24Vdc aux power req'd) *","1 x RS485 Modbus port 2 or 4 wire (12 or 24 VDC ext power req'd)",1,{"$f":"M74","v":"1 x RS485 (24Vdc aux power req'd) *"}]
[null,null,null,null,null,2,null,null,null,null,"ACE969TP2",1,"2 x RS485","2 x RS485 2wire ports (Port 1 = Modbus, Port 2 = Modbus, DNP3 or IEC 60870, requires 110-240VAC/ 24-250DC ext. power, includes CCA612 CAT5 cable)",2,{"$f":"M75","v":"2 x RS485"}]
[null,null,null,null,null,3,null,null,null,null,"ACE969FO2",1,"1 x RS485/ 1 x Fiber Optic","1 x RS485 2wire port, 1 x Fiber port (RS485 = Modbus, Fiber = Modbus, DNP3 or IEC 60870, requires 110-240VAC/ 24-250DC ext. power, includes CCA612 CAT5 cable)",3,{"$f":"M76","v":"1 x RS485/ 1 x Fiber Optic"}]
[null,null,null,null,null,4,null,null,null,null,"ECI850MG",1,"1 x Ethernet (IEC61850) & 1 x RS485 (ModbusRTU)","1 x Ethernet Port, 1 x RS485 Port (Protocol:  Modbus RTU to Level 1 IEC61850 ethernet)",5,{"$f":"M78","v":"2 x Ethernet Ports (Copper, IEC61850/ModbusTCP)"}]
[null,null,null,null,null,5,null,null,null,null,"ACE850TP",1,"2 x Ethernet Ports (Copper, IEC61850/ModbusTCP)","2 Ethernet 10/100 BaseT ports (Protocol: Modbus or IEC61850 for SEPAM 40/50/80, GOOSE/GSSE for SEPAM 80 only) does not require ACE Com Card",6,{"$f":"M79","v":"2 x Ethernet Ports (Fiber, IEC61850/ModbusTCP)"}]
[null,null,null,null,null,6,null,null,null,null,"ACE850FO",1,"2 x Ethernet Ports (Fiber, IEC61850/ModbusTCP)","2 Ethernet 100 Base FL ports (Protocol: Modbus or IEC61850 for SEPAM 40/50/80, GOOSE/GSSE for SEPAM 80 only) does not require ACE Com Card"]
[null,null,null,null,null,null,"A",null,null,null,null,0,"without"]
[null,null,null,null,null,null,"B",null,null,null,"MET1482",1,"8 Temp sensor inputs (One Module)","8 temperature sensor input module (PT_100, NI_100 & NI_120, includes 2' connection CAT5 cable)"]
[null,null,null,null,null,null,"C",null,null,null,"MET1482",2,"16 Temp sensor inputs  (Two Modules) ","2 x 8 temperature sensor input modules (PT_100, NI_100 & NI_120, Includes 2' connection CAT5 cable)"]
[null,null,null,null,null,null,null,0,null,null,null,0,"without *"]
[null,null,null,null,null,null,null,1,null,null,"MSA141",1,"1 x Analog 0-1mA, 0-10mA, 0-20mA, 4-20mA output","1 x Analog output (software selectable 0-1mA, 0-10mA, 0-20mA or 4-20mA, includes CCA77X cable)"]
[null,null,null,null,null,null,null,null,"A",null,null,0,"without"]
[null,null,null,null,null,null,null,null,"B",null,"SFT080",1,"Logipam Firmware *","logipam ladder logic firmware (PLC base)"]
[null,null,null,null,null,null,null,null,null,0,null,0,"without *"]
[null,null,null,null,null,null,null,null,null,1,"MCS025",1,"Sync-Check Module (required for ANSI-25)","sync-check Module (required for ANSI-25, includes ATM840 Surface Mount Plate)"]

{"sheet":"BOM","index":3,"n_rows":6,"n_cols":4,"rows_kept":6,"cut":false,"hidden":false,"merged":[[0,0,0,1]]}
["BOM for Order Code:",null,"SQ1S40A1B1A0A0"]
["Qty","Part #","Ref #","Description"]
[1,"S10MD",59604,"Base unit for use with advanced display"]
[1,"CCA634",59629,"1A/5A input standard on relays for current measurement, not included on voltage only relays"]
[1,"MES114E",59651,"10 Inputs + 4 Outputs Module, 110-125 Vdc, 110Vac"]
[1,"ACE959",59643,"1 RS 485 Modbus Port (12 or 24 VDC Power) included with all relays"]

{"sheet":"Accessories","index":4,"n_rows":116,"n_cols":4,"rows_kept":116,"cut":false,"hidden":true,"merged":[]}
[null,null,null,"Sepam Accessories and Spare Parts"]
["Part #","Ref #","Category","Description"]
["AMT840",59670,"Mounting","Mounting plate for series 20,40 or MCS025"]
["AMT880",59706,"Hardware","Mounting plate for series 80"]
["SFT2841KIT",59730,"¯¯¯¯¯¯¯¯¯¯","Sepam PC software (CD-ROM with connection cord)"]
["CCA784",59671,"Software","PC connection cord (Mini-USB to USB)"]
["CCA783",59664,"and Tools","PC connection cord (PS-2 ro RS232)"]
["SFT080",59711,"__________","Logipam option"]
["MES114",59646,null,"10 inputs + 4 outputs, 24-250 V DC for series 20,40"]
["MES114E",59651,"Input / ","10 inputs + 4 outputs, 110-125 V DC / V AC for series 20,40"]
["MES114F",59652,"output","10 inputs + 4 outputs, 220-250 V DC / V AC for series 20,40"]
["MES120",59715,"modules","14 inputs + 6 outputs, 24-250 V DC for series 80"]
["MES120G",59716,null,"14 inputs + 6 outputs, 220-250 V DC for series 80"]
["MES120H",59722,"__________","14 inputs + 6 outputs 110-125 V DC for series 80"]
["MET148-2",59641,null,"8 temperature sensor module"]
["MSA141",59647,null,"Analog output module"]
["DSM303",59608,"Remote","Remote advanced UMI module"]
["MCS025",59712,"modules","Synchro-check module (including connection cord CCA785)"]
["CCA770",59660,"and cords","Remote module connection cord L = 0.6 m (2 ft)"]
["CCA772",59661,null,"Remote module connection cord L = 2 m (6.6 ft)"]
["CCA774",59662,null,"Remote module connection cord L = 4 m (13.1 ft)"]
["CCA785",59665,"__________","Synchro-check module connection cord L = 2 m (6.6 ft)"]
["ACE949-2",59642,null,"2-wire RS 485 Modbus interface (without CCA612)"]
["ACE959",59643,null,"4-wire RS 485 Modbus interface (without CCA612)"]
["ACE937",59644,null,"Fiber optic Modbus interface (without CCA612)"]
["ACE969TP-2",59723,null,"RS 485 multi-protocol 2-wire interface (without CCA612)"]
["ACE969FO-2",59724,null,"Fiber optic multi-protocol interface (without CCA612)"]
["CCA612",59663,"Comm.","Connection cord, L = 3 m (9.8 ft)"]
["ACE850TP",59658,"Accessories","TCP/IP (61850 and Modbus TCP) 2 RJ45 interface (with CCA614)"]
["ACE850FO",59659,null,"TCP/IP (61850 and Modbus TCP) Fiber optic interface (with CCA614)"]
["CCA614",59751,null,"Connection cord, L = 3 m for TCP/IP(61850 and Modbus TCP) interfaces"]
["ACE919CA",59649,null,"RS 485 / RS 485 interface (AC)"]
["ACE919CC",59650,null,"RS 485 / RS 485 interface (DC)"]
["ECI850MG",59638,"__________","Sepam IEC 61850 server (with 1 ECI850 ref. 59653 and 2 surge arresters ref. 16595) "]
["CSH120",59635,null,"Core balance CT, Ø 120 mm"]
["CSH200",59636,"Core","Core balance CT, Ø 200 mm"]
["CSH30",59634,"balance","Interposing ring CT"]
["ACE990",59672,"CTs and","Core balance CT interface"]
["ACE917",59667,"LPCT parts","LPCT injection adapter"]
["CCA613",59666,"__________","Remote LPCT test plug"]
["CCA620",59668,null,"20-pin screw-type connector"]
["CCA622",59669,null,"20-pin ring lug connector"]
["CCA630",59630,"Spare","1 A / 5 A CT current connector"]
["CCA634",59629,"connectors","1A / 5A CT current + I/0 connector"]
["CCA670",59631,null,"LPCT lateral current connector"]
["CCA671",59702,null,"LPCT radial current connector"]
["CCT640",59632,"__________","VT voltage connector"]
["MMS020S80",60020,null,"Memory cartridge S80"]
["MMS020S82",60021,null,"Memory cartridge S82"]
["MMS020S84",60022,null,"Memory cartridge S84"]
["MMS020B80",60023,null,"Memory cartridge B80"]
["MMS020B83",60024,null,"Memory cartridge B83"]
["MMS020G82",60025,"Spare","Memory cartridge G82"]
["MMS020G87",60026,"Sepam","Memory cartridge G87"]
["MMS020G88",60027,"Series 80","Memory cartridge G88"]
["MMS020M81",60028,"Memory","Memory cartridge M81"]
["MMS020M87",60029,"Cartridges","Memory cartridge M87"]
["MMS020M88",60030,null,"Memory cartridge M88"]
["MMS020T81",60031,null,"Memory cartridge T81"]
["MMS020T82",60032,null,"Memory cartridge T82"]
["MMS020T87",60033,null,"Memory cartridge T87"]
["MMS020C86",60034,"__________","Memory cartridge C86"]
["3090RTM317",60001,null,"Ride through module for AC control voltage application (series 20,40,80)"]
["ECI850MG",60002,null,"Ethernet Gateway 1 Ethernet port  10/100 base T. Protocol: Modbus or Level 1 IEC 61850 (Requires ACE Com Card)"]
["ABL8RPS24030",60004,"Additional","Power Supply (upto 15 comm modules) Input 110-480VAC, Output 24VDC 3A"]
["ABL8RPS24050",60005,"Options","Power Supply (upto 25 comm modules)  Input 110-480VAC, Output 24VDC 5A"]
["SepamTraining",60006,null,"Sepam training daily rate (call tech support to arrange)"]
["EGX100","EGX100SD",null,"Ethernet Gateway (1 Modbus port) RS-485/RS232, 10/100 BASE TX Transparent ready"]
["EGX400","EGX400SD","__________","Ethernet Gateway (2 Modbus ports) RS-485/RS-232 serial port,10/100T Ethernet port, Webpage data interface for upto 64 devices, Modbus Protocol"]
["SQ1S24A",60100,null,{"$f":"\"Replacement \"&IF(RIGHT(A70,1)=\"A\",\"Advanced Display\",\"MimicBus Display\")&\" base unit programmed with \"&RIGHT(LEFT(A70,6),3)&\" application and including a current or voltage analog module\"","v":"Replacement Advanced Display base unit programmed with S24 application and including a current or voltage analog module"}]
["SQ1S40A",60101,null,{"$f":"\"Replacement \"&IF(RIGHT(A71,1)=\"A\",\"Advanced Display\",\"MimicBus Display\")&\" base unit programmed with \"&RIGHT(LEFT(A71,6),3)&\" application and including a current or voltage analog module\"","v":"Replacement Advanced Display base unit programmed with S40 application and including a current or voltage analog module"}]
["SQ1S42A",60102,null,"Replacement Advanced Display base unit programmed with S42 application and including a current or voltage analog module"]
["SQ1S43A",60103,null,"Replacement Advanced Display base unit programmed with S43 application and including a current or voltage analog module"]
["SQ1S50A",60104,null,"Replacement Advanced Display base unit programmed with S50 application and including a current or voltage analog module"]
["SQ1S52A",60105,null,"Replacement Advanced Display base unit programmed with S52 application and including a current or voltage analog module"]
["SQ1S53A",60106,null,"Replacement Advanced Display base unit programmed with S53 application and including a current or voltage analog module"]
["SQ1B21A",60107,null,"Replacement Advanced Display base unit programmed with B21 application and including a current or voltage analog module"]
["SQ1B22A",60108,null,"Replacement Advanced Display base unit programmed with B22 application and including a current or voltage analog module"]
["SQ1G40A",60109,null,"Replacement Advanced Display base unit programmed with G40 application and including a current or voltage analog module"]
["SQ1M20A",60110,null,"Replacement Advanced Display base unit programmed with M20 application and including a current or voltage analog module"]
["SQ1M41A",60111,null,"Replacement Advanced Display base unit programmed with M41 application and including a current or voltage analog module"]
["SQ1T24A",60112,null,"Replacement Advanced Display base unit programmed with T24 application and including a current or voltage analog module"]
["SQ1T40A",60113,null,"Replacement Advanced Display base unit programmed with T40 application and including a current or voltage analog module"]
["SQ1T42A",60114,null,"Replacement Advanced Display base unit programmed with T42 application and including a current or voltage analog module"]
["SQ1T50A",60115,null,"Replacement Advanced Display base unit programmed with T50 application and including a current or voltage analog module"]
["SQ1T52A",60116,null,"Replacement Advanced Display base unit programmed with T52 application and including a current or voltage analog module"]
["SQ1S80A",60117,null,"Replacement Advanced Display base unit programmed with S80 application and including a current or voltage analog module"]
["SQ1S80P",60118,null,"Replacement MimicBus Display base unit programmed with S80 application and including a current or voltage analog module"]
["SQ1S82A",60119,"Base Units","Replacement Advanced Display base unit programmed with S82 application and including a current or voltage analog module"]
["SQ1S82P",60120,null,"Replacement MimicBus Display base unit programmed with S82 application and including a current or voltage analog module"]
["SQ1S84A",60121,null,"Replacement Advanced Display base unit programmed with S84 application and including a current or voltage analog module"]
["SQ1S84P",60122,null,"Replacement MimicBus Display base unit programmed with S84 application and including a current or voltage analog module"]
["SQ1B80A",60123,null,"Replacement Advanced Display base unit programmed with B80 application and including a current or voltage analog module"]
["SQ1B80P",60124,null,"Replacement MimicBus Display base unit programmed with B80 application and including a current or voltage analog module"]
["SQ1B83A",60125,null,"Replacement Advanced Display base unit programmed with B83 application and including a current or voltage analog module"]
["SQ1B83P",60126,null,"Replacement MimicBus Display base unit programmed with B83 application and including a current or voltage analog module"]
["SQ1G82A",60127,null,"Replacement Advanced Display base unit programmed with G82 application and including a current or voltage analog module"]
["SQ1G82P",60128,null,"Replacement MimicBus Display base unit programmed with G82 application and including a current or voltage analog module"]
["SQ1G87A",60129,null,"Replacement Advanced Display base unit programmed with G87 application and including a current or voltage analog module"]
["SQ1G87P",60130,null,"Replacement MimicBus Display base unit programmed with G87 application and including a current or voltage analog module"]
["SQ1G88A",60131,null,"Replacement Advanced Display base unit programmed with G88 application and including a current or voltage analog module"]
["SQ1G88P",60132,null,"Replacement MimicBus Display base unit programmed with G88 application and including a current or voltage analog module"]
["SQ1M81A",60133,null,"Replacement Advanced Display base unit programmed with M81 application and including a current or voltage analog module"]
["SQ1M81P",60134,null,"Replacement MimicBus Display base unit programmed with M81 application and including a current or voltage analog module"]
["SQ1M87A",60135,null,"Replacement Advanced Display base unit programmed with M87 application and including a current or voltage analog module"]
["SQ1M87P",60136,null,"Replacement MimicBus Display base unit programmed with M87 application and including a current or voltage analog module"]
["SQ1M88A",60137,null,"Replacement Advanced Display base unit programmed with M88 application and including a current or voltage analog module"]
["SQ1M88P",60138,null,"Replacement MimicBus Display base unit programmed with M88 application and including a current or voltage analog module"]
["SQ1T81A",60139,null,"Replacement Advanced Display base unit programmed with T81 application and including a current or voltage analog module"]
["SQ1T81P",60140,null,"Replacement MimicBus Display base unit programmed with T81 application and including a current or voltage analog module"]
["SQ1T82A",60141,null,"Replacement Advanced Display base unit programmed with T82 application and including a current or voltage analog module"]
["SQ1T82P",60142,null,"Replacement MimicBus Display base unit programmed with T82 application and including a current or voltage analog module"]
["SQ1T87A",60143,null,"Replacement Advanced Display base unit programmed with T87 application and including a current or voltage analog module"]
["SQ1T87P",60144,null,"Replacement MimicBus Display base unit programmed with T87 application and including a current or voltage analog module"]
["SQ1C86A",60145,null,"Replacement Advanced Display base unit programmed with C86 application and including a current or voltage analog module"]
["SQ1C86P",60146,"__________","Replacement MimicBus Display base unit programmed with C86 application and including a current or voltage analog module"]

{"sheet":"SEPAM 20 BOM Cortec","index":5,"n_rows":25,"n_cols":15,"rows_kept":25,"cut":false,"hidden":true,"merged":[[1,1,24,1],[1,2,24,2],[1,0,26,0]]}
["SERIES","SQ1","RELAY TYPE","DISPLAY","CURRENT","I/O","COMMUNICATION","RTD's","ANALOG OUT",null,null,"QTY","COMPONENT PART NUMBER","INTERNAL REFERENCE NUMBER","DESCRIPTION"]
[20,"SQ1","B21,B22\nM20,S24\nT24","A",null,null,null,null,null,null,null,1,"S10UD",59607,"Base unit for use with advanced display"]
[null,null,null,"R",null,null,null,null,null,null,null,1,"S10UX",59603,"Base unit for use with remote display"]
[null,null,null,"R",null,null,null,null,null,null,null,1,"DSM303",59608,"Remote Display replaces inegral display (includes CAT5 connection cable and mounting plate)"]
[null,null,null,"R",null,null,null,null,null,null,null,1,"CCA772",59661,"Connection cord for remote display (2m/6.6ft)"]
[null,null,null,"R",null,null,null,null,null,null,null,1,"AMT840",59670,"Mounting plate"]
[null,null,null,null,"0",null,null,null,null,null,null,1,"CCT640",59632,"VT voltage connector"]
[null,null,null,null,"1",null,null,null,null,null,null,1,"CCA634",59629,"1A/5A input standard on relays for current measurement, not included on voltage only relays"]
[null,null,null,null,"2",null,null,null,null,null,null,1,"CCA630",59630,"1A/5A inputs (3PH) + (GND/Residual or ZSCT) measurement. Only for use with CSH120, 200 ground fault sensor, and CSH30"]
[null,null,null,null,"3",null,null,null,null,null,null,1,"CCA670",59631,"25/3150A LPCT lateral current connector"]
[null,null,null,null,null,"0",null,null,null,null,null,"-","-","-"]
[null,null,null,null,null,"A",null,null,null,null,null,1,"MES114",59646,"10 Inputs + 4 Outputs Module, 24-48Vdc and 120-250V ac Capacitor Trip application"]
[null,null,null,null,null,"B",null,null,null,null,null,1,"MES114E",59651,"10 Inputs + 4 Outputs Module, 110-125 Vdc, 110Vac"]
[null,null,null,null,null,"C",null,null,null,null,null,1,"MES114F",59652,"10 Inputs + 4 Outputs Module, 220-250Vdc, 220-240Vac"]
[null,null,null,null,null,null,"0",null,null,null,null,"-","-","-"]
[null,null,null,null,null,null,"1",null,null,null,null,1,"ACE959",59643,"1 RS 485 Modbus Port (12 or 24 VDC Power) included with all relays"]
[null,null,null,null,null,null,"2",null,null,null,null,1,"ACE969TP-2",59723,"2 RS485 2wire ports, Port 1 Modbus, Port 2 Modbus, DNP3 or IEC 60870 (requires 110-240VAC/ 24-250DC ext. power). Without CCA612 CAT5 cable."]
[null,null,null,null,null,null,"3",null,null,null,null,1,"ACE969FO-2",59724,"1 RS485 2wire Modbus + (1) Fiber Modbus, DNP3 or IEC 60870 (requires110-240VAC/ 24-250DC). Without CCA612 CAT5 cable."]
[null,null,null,null,null,null,"4",null,null,null,null,1,"ECI850MG",59638,"1 RS485 IEC 61850 protocol port"]
[null,null,null,null,null,null,"4",null,null,null,null,1,"ACE959",59643,"1 RS 485 Modbus Port (12 or 24 VDC Power) included with all relays"]
[null,null,null,null,null,null,null,"A",null,null,null,"-","-","-"]
[null,null,null,null,null,null,null,"B",null,null,null,1,"MET148-2",59641," 8 temperature sensor input module PT_100, NI_100 & NI_120, Includes 2' connection CAT5 cable. "]
[null,null,null,null,null,null,null,"C",null,null,null,2,"MET148-2",59641,"16 temperature sensor input module PT_100, NI_100 & NI_120, Includes 2' connection CAT5 cable."]
[null,null,null,null,null,null,null,null,"0",null,null,"-","-","-"]
[null,null,null,null,null,null,null,null,"1",null,null,1,"MSA141",59647,"1 Analog output module, software selectable 0/10mA, 0/20mA or 4/20mA (includes CCA77X cable)"]

{"sheet":"SEPAM 40 BOM Cortec","index":6,"n_rows":25,"n_cols":15,"rows_kept":25,"cut":false,"hidden":true,"merged":[[1,1,24,1],[1,2,24,2],[1,0,26,0]]}
["SERIES","SQ1","RELAY TYPE","DISPLAY","CURRENT","I/O","COMMUNICATION","RTD's","ANALOG OUT",null,null,"QTY","COMPONENT PART NUMBER","INTERNAL REFERENCE NUMBER","DESCRIPTION"]
["40\n50","SQ1","G40,M41,S40\nS42,S43,S50\nS52,S53,T40\nT42,T50,T52","A",null,null,null,null,null,null,null,1,"S10MD",59604,"Base unit for use with advanced display"]
[null,null,null,"R",null,null,null,null,null,null,null,1,"S10MX",59600,"Base unit for use with remote display"]
[null,null,null,"R",null,null,null,null,null,null,null,1,"DSM303",59608,"Remote Display replaces inegral display (includes CAT5 connection cable and mounting plate)"]
[null,null,null,"R",null,null,null,null,null,null,null,1,"CCA772",59661,"Connection cord for remote display (2m/6.6ft)"]
[null,null,null,"R",null,null,null,null,null,null,null,1,"AMT840",59670,"Mounting plate"]
[null,null,null,null,"0",null,null,null,null,null,null,"-","-","-","-"]
[null,null,null,null,"1",null,null,null,null,null,null,1,"CCA634",59629,"1A/5A input standard on relays for current measurement, not included on voltage only relays"]
[null,null,null,null,"2",null,null,null,null,null,null,1,"CCA630",59630,"1A/5A inputs (3PH) + (GND/Residual or ZSCT) measurement. Only for use with CSH120, 200 ground fault sensor, and CSH30"]
[null,null,null,null,"3",null,null,null,null,null,null,1,"CCA670",59631,"25/3150A LPCT lateral current connector"]
[null,null,null,null,null,"0",null,null,null,null,null,"-","-","-"]
[null,null,null,null,null,"A",null,null,null,null,null,1,"MES114",59646,"10 Inputs + 4 Outputs Module, 24-48Vdc and 120-250V ac Capacitor Trip application"]
[null,null,null,null,null,"B",null,null,null,null,null,1,"MES114E",59651,"10 Inputs + 4 Outputs Module, 110-125 Vdc, 110Vac"]
[null,null,null,null,null,"C",null,null,null,null,null,1,"MES114F",59652,"10 Inputs + 4 Outputs Module, 220-250Vdc, 220-240Vac"]
[null,null,null,null,null,null,"0",null,null,null,null,"-","-","-"]
[null,null,null,null,null,null,"1",null,null,null,null,1,"ACE959",59643,"1 RS 485 Modbus Port (12 or 24 VDC Power) included with all relays"]
[null,null,null,null,null,null,"2",null,null,null,null,1,"ACE969TP-2",59723,"2 RS485 2wire ports, Port 1 Modbus, Port 2 Modbus, DNP3 or IEC 60870 (requires 110-240VAC/ 24-250DC ext. power). Without CCA612 CAT5 cable."]
[null,null,null,null,null,null,"3",null,null,null,null,1,"ACE969FO-2",59724,"1 RS485 2wire Modbus + (1) Fiber Modbus, DNP3 or IEC 60870 (requires110-240VAC/ 24-250DC). Without CCA612 CAT5 cable."]
[null,null,null,null,null,null,"5",null,null,null,null,1,"ACE850TP",59658,"2 Ethernet 10/100 BaseT ports (Protocol: Modbus or IEC61850 for SEPAM 40/50/80, GOOSE/GSSE for SEPAM 80 only) does not require ACE Com Card"]
[null,null,null,null,null,null,"6",null,null,null,null,1,"ACE850FO",59659,"2 Ethernet 100 Base FL ports (Protocol: Modbus or IEC61850 for SEPAM 40/50/80, GOOSE/GSSE for SEPAM 80 only) does not require ACE Com Card"]
[null,null,null,null,null,null,null,"A",null,null,null,"-","-","-"]
[null,null,null,null,null,null,null,"B",null,null,null,1,"MET148-2",59641,"8 temperature sensor input module PT_100, NI_100 & NI_120, Includes 2' connection CAT5 cable. "]
[null,null,null,null,null,null,null,"C",null,null,null,2,"MET148-2",59641,"16 temperature sensor input module PT_100, NI_100 & NI_120, Includes 2' connection CAT5 cable."]
[null,null,null,null,null,null,null,null,"0",null,null,"-","-","-"]
[null,null,null,null,null,null,null,null,"1",null,null,1,"MSA141",59647,"1 Analog output module, software selectable 0/10mA, 0/20mA or 4/20mA (includes CCA77X cable)"]

{"sheet":"SEPAM 80 BOM Cortec","index":7,"n_rows":48,"n_cols":15,"rows_kept":48,"cut":false,"hidden":true,"merged":[[1,0,49,0],[1,1,47,1],[1,2,6,2],[7,2,10,2],[11,2,14,2],[15,2,21,2],[22,2,47,2]]}
["SERIES","SQ1","RELAY TYPE","DISPLAY","CURRENT","I/O","COMMUNICATION","RTD's","ANALOG OUT","LOGIPAM","SYNC CHECK","QTY","COMPONENT PART NUMBER","INTERNAL REFERENCE NUMBER","DESCRIPTION"]
[80,"SQ1","B80,B83,C86\nG82,G87,G88\nM81,M87,M88\nS80,S82,S84\nT81,T82,T87","A",null,null,null,null,null,null,null,1,"SEP383",59704,"Base unit for use with advanced display"]
[null,null,null,"C",null,null,null,null,null,null,null,1,"SEP080",59703,"Baseunit for use with remote display"]
[null,null,null,"C",null,null,null,null,null,null,null,1,"DSM303",59608,"Remote Display includes 6.5' connection CAT5 cable and Base Mount kit which replaces integrated display)"]
[null,null,null,"C",null,null,null,null,null,null,null,1,"CCA772",59706,"Connection cord for remote display (2m/6.6ft)"]
[null,null,null,"C",null,null,null,null,null,null,null,1,"AMT880",59661,"Mounting plate"]
[null,null,null,"P",null,null,null,null,null,null,null,1,"SEP888",59705,"Base unit for use with the MimicBus display"]
[null,null,"B80,G82,M81\nS80,S82,S84\nT81,T82",null,"0",null,null,null,null,null,null,"-","-","-"]
[null,null,null,null,"1",null,null,null,null,null,null,1,"CCA634",59629,"1A/5A input standard on relays for current measurement, not included on voltage only relays"]
[null,null,null,null,"2",null,null,null,null,null,null,1,"CCA630",59630,"1A/5A inputs (3PH) + (GND/Residual or ZSCT) measurement, only for use with CSH120, 200 ground fault sensor, and CSH30"]
[null,null,null,null,"3",null,null,null,null,null,null,1,"CCA671",59702,"25/3150A LPCT radial current connector (Except C86). Note: Used with Motorpact or other medium voltage starter, includes CSH30"]
[null,null,"C86,G87,G88\nM87,M88,T87",null,"0",null,null,null,null,null,null,"-","-","-"]
[null,null,null,null,"1",null,null,null,null,null,null,2,"CCA634",59629,"1A/5A input standard on relays for current measurement, not included on voltage only relays"]
[null,null,null,null,"2",null,null,null,null,null,null,2,"CCA630",59630,"1A/5A inputs (3PH) + (GND/Residual or ZSCT) measurement, only for use with CSH120, 200 ground fault sensor, and CSH30"]
[null,null,null,null,"3",null,null,null,null,null,null,2,"CCA671",59702,"25/3150A LPCT Connector for All SEPAM Series (Except C86). Note: Used with Motorpact or other medium voltage starter, includes CSH30"]
[null,null,"B83",null,"0",null,null,null,null,null,null,1,"-","-","-"]
[null,null,null,null,"1",null,null,null,null,null,null,1,"CCA634",59629,"1A/5A input standard on relays for current measurement, not included on voltage only relays"]
[null,null,null,null,"1",null,null,null,null,null,null,1,"CCT640",59632,"Voltage input module for 4 additional voltages."]
[null,null,null,null,"2",null,null,null,null,null,null,1,"CCA630",59630,"1A/5A inputs (3PH) + (GND/Residual or ZSCT) measurement, only for use with CSH120, 200 ground fault sensor, and CSH30"]
[null,null,null,null,"2",null,null,null,null,null,null,1,"CCT640",59632,"Voltage input module for 4 additional voltages."]
[null,null,null,null,"3",null,null,null,null,null,null,1,"CCA671",59702,"25/3150A LPCT Connector for All SEPAM Series (Except C86). Note: Used with Motorpact or other medium voltage starter, includes CSH30"]
[null,null,null,null,"3",null,null,null,null,null,null,1,"CCT640",59632,"Voltage input module for 4 additional voltages."]
[null,null,"B80,B83,C86\nG82,G87,G88\nM81,M87,M88\nS80,S82,S84\nT81,T82,T87",null,null,"0",null,null,null,null,null,"-","-","-"]
[null,null,null,null,null,"D",null,null,null,null,null,1,"MES120",59715,"14 Inputs + 6 Outputs Module,  24-48Vdc"]
[null,null,null,null,null,"E",null,null,null,null,null,2,"MES120",59715,"14 Inputs + 6 Outputs Module,  24-48Vdc"]
[null,null,null,null,null,"F",null,null,null,null,null,3,"MES120",59715,"14 Inputs + 6 Outputs Module,  24-48Vdc"]
[null,null,null,null,null,"G",null,null,null,null,null,1,"MES120G",59716,"14 inputs + 6 outputs,  220-250Vdc/hi p.u."]
[null,null,null,null,null,"H",null,null,null,null,null,2,"MES120G",59716,"15 inputs + 6 outputs,  220-250Vdc/hi p.u."]
[null,null,null,null,null,"I",null,null,null,null,null,3,"MES120G",59716,"16 inputs + 6 outputs,  220-250Vdc/hi p.u."]
[null,null,null,null,null,"J",null,null,null,null,null,1,"MES120H",59722,"42 inputs + 18 outputs, 110-125Vdc/mid p.u."]
[null,null,null,null,null,"K",null,null,null,null,null,2,"MES120H",59722,"42 inputs + 18 outputs, 110-125Vdc/mid p.u."]
[null,null,null,null,null,"L",null,null,null,null,null,3,"MES120H",59722,"42 inputs + 18 outputs, 110-125Vdc/mid p.u."]
[null,null,null,null,null,null,"0",null,null,null,null,"-","-","-"]
[null,null,null,null,null,null,"1",null,null,null,null,1,"ACE959",59643,"1 RS 485 Modbus Port (12 or 24 VDC Power) included with all relays"]
[null,null,null,null,null,null,"2",null,null,null,null,1,"ACE969TP-2",59723,"2 RS485 2wire ports, Port 1 Modbus, Port 2 Modbus, DNP3 or IEC 60870 (requires 110-240VAC/ 24-250DC ext. power). Without CCA612 CAT5 cable."]
[null,null,null,null,null,null,"3",null,null,null,null,1,"ACE969FO-2",59724,"1 RS485 2wire Modbus + (1) Fiber Modbus, DNP3 or IEC 60870 (requires110-240VAC/ 24-250DC). Without CCA612 CAT5 cable."]
[null,null,null,null,null,null,"5",null,null,null,null,1,"ACE850TP",59658,"2 Ethernet 10/100 BaseT ports (Protocol: Modbus or IEC61850 for SEPAM 40/50/80, GOOSE/GSSE for SEPAM 80 only) does not require ACE Com Card"]
[null,null,null,null,null,null,"6",null,null,null,null,1,"ACE850FO",59659,"2 Ethernet 100 Base FL ports (Protocol: Modbus or IEC61850 for SEPAM 40/50/80, GOOSE/GSSE for SEPAM 80 only) does not require ACE Com Card"]
[null,null,null,null,null,null,null,"A",null,null,null,"-","-","-"]
[null,null,null,null,null,null,null,"B",null,null,null,1,"MET148-2",59641,"8 temperature sensor input module PT_100, NI_100 & NI_120, Includes 2' connection CAT5 cable. "]
[null,null,null,null,null,null,null,"C",null,null,null,2,"MET148-2",59641,"16 temperature sensor input module PT_100, NI_100 & NI_120, Includes 2' connection CAT5 cable."]
[null,null,null,null,null,null,null,null,"0",null,null,"-","-","-"]
[null,null,null,null,null,null,null,null,"1",null,null,1,"MSA141",59647,"1 Analog output module, software selectable 0/10mA, 0/20mA or 4/20mA (includes CCA77X cable)"]
[null,null,null,null,null,null,null,null,null,"A",null,"-","-","-"]
[null,null,null,null,null,null,null,null,null,"B",null,1,"SFT080",59711,"Logipam firmware for ladder logic programming (PLC base) "]
[null,null,null,null,null,null,null,null,null,null,"0","-","-","-"]
[null,null,null,null,null,null,null,null,null,null,"1",1,"MCS025",59712,"Synchro-check module ANSI-25 (including connection cord CCA785)"]
[null,null,null,null,null,null,null,null,null,null,"1",1,"AMT840",59670,"Mounting plate"]

{"sheet":"ANSI_Meas_Appl","index":8,"n_rows":82,"n_cols":34,"rows_kept":82,"cut":false,"hidden":true,"merged":[]}
["ANSI codes",null,"S24","S40","S42","S43","S50","S52","S53","S80","S82","S84","B21","B22","B80","B83","G40","G82","G87","G88","M20","M41","M81","M87","M88","T24","T40","T42","T50","T52","T81","T82","T87","C86"]
["12","Overspeed",null,null,null,null,null,null,null,null,null,null,null,null,null,null,null,"x","x","x",null,null,"x","x","x"]
["14","Underspeed",null,null,null,null,null,null,null,null,null,null,null,null,null,null,null,"x","x","x","x","x","x","x","x"]
["21B","Underimpedance",null,null,null,null,null,null,null,null,null,null,null,null,null,null,null,"x","x","x"]
["24","Flux control (V/Hz)",null,null,null,null,null,null,null,null,null,null,null,null,null,null,null,"x","x","x",null,null,null,null,null,null,null,null,null,null,null,null,"x"]
["25 **","Sync Check( ** Sync Check option)",null,null,null,null,null,null,null,"x","x","x",null,null,"x","x",null,"x","x","x",null,null,null,null,null,null,null,null,null,null,"x","x","x"]
["26/63","Thermostat/Buchholtz",null,null,null,null,null,null,null,null,null,null,null,null,null,null,null,"x",null,"x",null,null,"x",null,"x","x","x","x",null,null,"x","x","x"]
["27","Undervoltage (L-L)",null,"x","x",null,"x","x",null,"x","x","x","x","x","x","x","x","x","x","x",null,"x","x","x","x",null,"x","x","x","x","x","x","x","x"]
["27D","Positive sequence undervoltage",null,null,null,null,null,null,null,"x","x","x","x","x","x","x",null,"x","x","x",null,"x","x","x","x",null,null,null,null,null,"x","x","x","x"]
["27R","Remanent undervoltage",null,null,null,null,null,null,null,"x","x","x","x","x","x","x",null,"x","x","x",null,"x","x","x","x",null,null,null,null,null,"x","x","x","x"]
["27S ","Undervoltage (L-N)",null,"x","x",null,"x","x",null,null,"x","x","x","x","x","x","x","x","x","x",null,"x","x","x","x",null,"x","x","x","x","x","x","x"]
["27TN/64G2","Third harmonic undervoltage",null,null,null,null,null,null,null,null,null,null,null,null,null,null,null,"x","x","x"]
["30","Annunciation","x","x","x","x","x","x","x","x","x","x","x","x","x","x","x","x","x","x","x","x","x","x","x","x","x","x","x","x","x","x","x","x"]
["32P","Directional active overpower",null,null,"x","x",null,"x","x",null,"x","x",null,null,null,null,"x","x","x","x",null,"x","x","x","x",null,null,null,null,null,"x","x","x"]
["32Q","Directional reactive overpower",null,null,null,null,null,null,null,null,null,null,null,null,null,null,null,"x","x","x",null,null,"x","x","x"]
["32Q/40/55","Directional reactive overpower",null,null,null,null,null,null,null,null,null,null,null,null,null,null,"x",null,null,null,null,"x"]
["37","Phase undercurrent",null,null,null,null,null,null,null,null,null,null,null,null,null,null,null,null,null,null,"x","x","x","x","x"]
["37P","Directional active underpower",null,null,null,null,null,null,null,null,null,"x",null,null,null,null,null,"x"]
["38/49T **","Temperature( ** RTD option)",null,null,null,null,null,null,null,null,null,null,null,null,null,null,"x","x","x","x","x","x","x","x","x","x","x","x","x","x","x","x","x","x"]
["40","Field loss underimpedance",null,null,null,null,null,null,null,null,null,null,null,null,null,null,null,"x","x","x",null,null,"x","x","x"]
["46","Negative sequence unbalance","x","x","x","x","x","x","x","x","x","x",null,null,"x","x","x","x","x","x","x","x","x","x","x","x","x","x","x","x","x","x","x","x"]
["46 BC","Broken Conductor",null,null,null,null,"x","x","x",null,null,null,null,null,null,null,null,null,null,null,null,null,null,null,null,null,null,null,"x","x"]
["47","Negative sequence overvoltage",null,"x","x",null,"x","x",null,"x","x","x","x","x","x","x","x","x","x","x",null,"x","x","x","x",null,"x","x","x","x","x","x","x","x"]
["48","Excessive starting time",null,null,null,null,null,null,null,null,null,null,null,null,null,null,null,null,null,null,"x","x","x","x","x"]
["49RMS","Thermal overload",null,null,null,null,null,null,null,null,"x","x",null,null,null,null,"x","x","x","x","x","x","x","x","x","x","x","x","x","x","x","x","x","x"]
["50/27","Inadvertant energization",null,null,null,null,null,null,null,null,null,null,null,null,null,null,null,"x","x","x"]
["50/51","Phase overcurrent","x","x","x","x","x","x","x","x","x","x",null,null,"x","x","x","x","x","x","x","x","x","x","x","x","x","x","x","x","x","x","x","x"]
["50/51CL","CLPU (Cold Load Pick-Up)","x",null,null,null,"x","x","x",null,null,null,null,null,null,null,null,null,null,null,null,null,null,null,null,"x",null,null,"x","x"]
["50BF","Breaker failure","x","x","x","x","x","x","x","x","x","x",null,null,"x","x","x","x","x","x",null,"x","x","x","x","x","x","x","x","x","x","x","x","x"]
["50G/51G","Sensitive ground fault","x","x","x","x","x","x","x","x","x","x",null,null,"x","x","x","x","x","x","x","x","x","x","x","x","x","x","x","x","x","x","x","x"]
["50N/51N","Ground fault","x","x","x","x","x","x","x","x","x","x",null,null,"x","x","x","x","x","x","x","x","x","x","x","x","x","x","x","x","x","x","x","x"]
["50N/51NCL","CLPU (Cold Load Pick-Up)","x",null,null,null,"x","x","x",null,null,null,null,null,null,null,null,null,null,null,null,null,null,null,null,"x",null,null,"x","x"]
["50V/51V","Voltage restrained phase overcurrent",null,null,null,null,null,null,null,null,null,null,null,null,null,null,"x","x","x","x"]
["51C","Maximum unbalance current",null,null,null,null,null,null,null,null,null,null,null,null,null,null,null,null,null,null,null,null,null,null,null,null,null,null,null,null,null,null,null,"x"]
["51LR","Locked rotor",null,null,null,null,null,null,null,null,null,null,null,null,null,null,null,null,null,null,"x","x","x","x","x"]
["59","Overvoltage (L-L or L-N)",null,"x","x",null,"x","x",null,"x","x","x","x","x","x","x","x","x","x","x",null,"x","x","x","x",null,"x","x","x","x","x","x","x","x"]
["59N","Neutral voltage displacement",null,"x","x",null,"x","x",null,"x","x","x","x","x","x","x","x","x","x","x",null,"x","x","x","x",null,"x","x","x","x","x","x","x","x"]
["60/60FL","CT/VT supervision",null,"x","x","x","x","x","x","x","x","x",null,null,"x","x","x","x","x","x",null,"x","x","x","x",null,"x","x","x","x","x","x","x","x"]
["64G","100% stator ground fault",null,null,null,null,null,null,null,null,null,null,null,null,null,null,null,"x","x","x"]
["64REF","Restricted ground fault",null,null,null,null,null,null,null,null,null,null,null,null,null,null,null,"x",null,"x",null,null,null,null,null,null,null,null,null,null,"x","x","x"]
["66","Starts per hour",null,null,null,null,null,null,null,null,null,null,null,null,null,null,null,null,null,null,"x","x","x","x","x"]
["67","Directional phase overcurrent",null,null,"x",null,null,"x",null,null,"x","x",null,null,null,null,null,"x","x","x",null,null,null,null,null,null,null,"x",null,"x",null,"x","x"]
["67N/67NC","Directional ground fault",null,null,"x","x",null,"x","x",null,"x","x",null,null,null,null,null,"x","x","x",null,"x","x","x","x",null,null,"x",null,"x","x","x","x"]
["68Z","Zone Selective Interlock (ZSI)","x","x","x","x","x","x","x","x","x","x",null,null,"x","x","x","x","x","x","x","x","x","x","x","x","x","x","x","x","x","x","x","x"]
["68L","Logic Discrimination","x","x","x","x","x","x","x","x","x","x",null,null,"x","x","x","x","x","x","x","x","x","x","x","x","x","x","x","x","x","x","x","x"]
["74","Trip circuit supervision",null,null,null,null,null,null,null,"x","x","x",null,null,null,null,null,null,null,"x",null,null,"x","x","x",null,null,null,null,null,null,"x","x","x"]
["78PS","Pole slip",null,null,null,null,null,null,null,null,null,null,null,null,null,null,null,"x","x","x",null,null,"x","x","x"]
["79","Recloser (4 cycles)","x","x","x","x","x","x","x","x","x","x"]
["81H","Overfrequency",null,"x","x",null,"x","x",null,"x","x","x","x","x","x","x","x","x","x","x",null,"x","x","x","x",null,"x","x","x","x","x","x","x","x"]
["81L","Underfrequency",null,"x","x",null,"x","x",null,"x","x","x","x","x","x","x","x","x","x","x",null,"x","x","x","x",null,"x","x","x","x","x","x","x","x"]
["81R","Rate of change of frequency (df/dt)",null,null,null,null,null,null,null,null,null,"x",null,"x"]
["86","CB Tripping & Lockout","x","x","x","x","x","x","x","x","x","x","x","x","x","x","x","x","x","x","x","x","x","x","x","x","x","x","x","x","x","x","x","x"]
["87M","Machine differential",null,null,null,null,null,null,null,null,null,null,null,null,null,null,null,null,"x",null,null,null,null,"x"]
["87T","Transformer differential",null,null,null,null,null,null,null,null,null,null,null,null,null,null,null,null,null,"x",null,null,null,null,"x",null,null,null,null,null,null,null,"x"]
["94/69","CB_Control Logic","x","x","x","x","x","x","x","x","x","x","x","x","x","x","x","x","x","x","x","x","x","x","x","x","x","x","x","x","x","x","x","x"]
["Measurement",null,"S24","S40","S42","S43","S50","S52","S53","S80","S82","S84","B21","B22","B80","B83","G40","G82","G87","G88","M20","M41","M81","M87","M88","T23","T40","T42","T50","T52","T81","T82","T87","C86"]
["Current",null,"x","x","x","x","x","x","x","x","x","x",null,null,"x","x","x","x","x","x","x","x","x","x","x","x","x","x","x","x","x","x","x","x"]
["Voltage",null,null,"x","x","x","x","x","x","x","x","x","x","x","x",null,"x","x","x","x",null,"x","x","x","x",null,"x","x","x","x","x","x","x","x"]
["Voltage (x2) Two sets of VTs",null,null,null,null,null,null,null,null,null,null,null,null,null,null,"x"]
["Frequency",null,null,"x","x","x","x","x","x","x","x","x","x","x","x","x","x","x","x","x",null,"x","x","x","x",null,"x","x","x","x","x","x","x","x"]
["Power (P,Q)",null,null,"x","x","x","x","x","x","x","x","x",null,null,"x","x","x","x","x","x",null,"x","x","x","x",null,"x","x","x","x","x","x","x","x"]
["Peak demand power",null,null,"x","x","x","x","x","x","x","x","x",null,null,"x","x","x","x","x","x",null,"x","x","x","x",null,"x","x","x","x","x","x","x","x"]
["Energy",null,null,"x","x","x","x","x","x","x","x","x",null,null,"x","x","x","x","x","x",null,"x","x","x","x",null,"x","x","x","x","x","x","x","x"]
["Power factor",null,null,"x","x","x","x","x","x","x","x","x",null,null,"x","x","x","x","x","x",null,"x","x","x","x",null,"x","x","x","x","x","x","x","x"]
["Temperature( ** RTD option)",null,null,null,null,null,null,null,null,null,null,null,null,null,null,null,"x","x","x","x","x","x","x","x","x","x","x","x","x","x","x","x","x","x"]
["Rotation speed",null,null,null,null,null,null,null,null,null,null,null,null,null,null,null,null,"x","x","x",null,null,"x","x","x"]
["Harmonic distorsion (I THD & V THD)",null,null,null,null,null,null,null,null,"x","x","x",null,null,null,null,null,"x","x","x",null,null,"x","x","x",null,null,null,null,null,"x","x","x","x"]
["Applications",null,"S24","S40","S42","S43","S50","S52","S53","S80","S82","S84","B21","B22","B80","B83","G40","G82","G87","G88","M20","M41","M81","M87","M88","T23","T40","T42","T50","T52","T81","T82","T87","C86"]
["Switchgear CB Control",null,"x","x","x","x","x","x","x","x","x","x","x","x","x","x","x","x","x","x","x","x","x","x","x","x","x","x","x","x","x","x","x","x"]
["Zone Selective Interlocking",null,"x","x","x","x","x","x","x","x","x","x",null,null,"x","x","x","x","x","x","x","x","x","x","x","x","x","x","x","x","x","x","x","x"]
["Automatic Transfer Schemes",null,null,null,null,null,null,null,null,"x","x","x",null,null,"x","x",null,"x","x","x",null,null,null,null,null,null,null,null,null,null,"x","x","x"]
["Capacitor Step Control",null,null,null,null,null,null,null,null,null,null,null,null,null,null,null,null,null,null,null,null,null,null,null,null,null,null,null,null,null,null,null,null,"x"]
["Restart",null,null,null,null,null,null,null,null,null,null,null,null,null,null,null,null,null,null,null,null,null,"x","x","x"]
["Load Shedding",null,null,null,null,null,null,null,null,null,null,null,null,null,null,null,null,null,null,null,null,null,"x","x","x"]
["De-excitation",null,null,null,null,null,null,null,null,null,null,null,null,null,null,null,null,"x","x","x"]
["Genset Shutdown",null,null,null,null,null,null,null,null,null,null,null,null,null,null,null,null,"x","x","x"]
["Latching/Acknowledgement"]
["TC/Switchgear Position Discrepancy"]
["Disturbance-Recording Trigger"]
["Switching Groups of Settings"]
["Motor Auto-Restart"]
["Generator Shutdown & Tripping"]

{"sheet":"Order Codes","index":9,"n_rows":237719,"n_cols":1,"rows_kept":4500,"cut":true,"hidden":true,"merged":[],"bounds":{"rows_first":2000,"rows_last":500,"rows_between":2000,"halvings":0}}
["Order Code"]
["S10MX"]
["S10UX"]
["S10MD"]
["S10UD"]
["DSM303"]
["CCA634"]
["CCA630"]
["CCA670"]
["CCT640"]
["CSH30"]
["CSH120"]
["CSH200"]
["ECI850MG"]
["MET148-2"]
["ACE949-2"]
["ACE959"]
["ACE937"]
["MES114"]
["MSA141"]
["ACE919CA"]
["ACE919CC"]
["MES114E"]
["MES114F"]
["ACE850TP"]
["ACE850FO"]
["CCA770"]
["CCA772"]
["CCA774"]
["CCA612"]
["CCA783"]
["CCA785"]
["CCA613"]
["ACE917"]
["CCA620"]
["CCA622"]
["AMT840"]
["CCA784"]
["ACE990"]
["CCA671"]
["SEP080"]
["SEP383"]
["SEP888"]
["AMT880"]
["SFT080"]
["MCS025"]
["MES120"]
["MES120G"]
["MES120H"]
["ACE969TP-2"]
["ACE969FO-2"]
["SFT2841KIT"]
["CCA614"]
["3090RTM317"]
["ECI850MG"]
["ABL8RPS24030"]
["ABL8RPS24050"]
["SepamTraining"]
["MMS020S80"]
["MMS020S82"]
["MMS020S84"]
["MMS020B80"]
["MMS020B83"]
["MMS020G82"]
["MMS020G87"]
["MMS020G88"]
["MMS020M81"]
["MMS020M87"]
["MMS020M88"]
["MMS020T81"]
["MMS020T82"]
["MMS020T87"]
["MMS020C86"]
["EGX100"]
["EGX400"]
["SQ1S10N11A"]
["SQ1S10N11E"]
["SQ1S10N13A"]
["SQ1S10N13E"]
["SQ1S10B31A"]
["SQ1S10B31E"]
["SQ1S10B41A"]
["SQ1S10B41E"]
["SQ1S10B42A"]
["SQ1S10B42E"]
["SQ1S10B43A"]
["SQ1S10B43E"]
["SQ1S10A41A"]
["SQ1S10A41E"]
["SQ1S10A41F"]
["SQ1S10A42A"]
["SQ1S10A42E"]
["SQ1S10A42F"]
["SQ1S10A43A"]
["SQ1S10A43E"]
["SQ1S10A43F"]
["SQ1S24A"]
["SQ1S24R"]
["SQ1S40A"]
["SQ1S40R"]
["SQ1S42A"]
["SQ1S42R"]
["SQ1S43A"]
["SQ1S43R"]
["SQ1S50A"]
["SQ1S50R"]
["SQ1S52A"]
["SQ1S52R"]
["SQ1S53A"]
["SQ1S53R"]
["SQ1B21A"]
["SQ1B21R"]
["SQ1B22A"]
["SQ1B22R"]
["SQ1G40A"]
["SQ1G40R"]
["SQ1M20A"]
["SQ1M20R"]
["SQ1M41A"]
["SQ1M41R"]
["SQ1T24A"]
["SQ1T24R"]
["SQ1T40A"]
["SQ1T40R"]
["SQ1T42A"]
["SQ1T42R"]
["SQ1T50A"]
["SQ1T50R"]
["SQ1T52A"]
["SQ1T52R"]
["SQ1S80A"]
["SQ1S80C"]
["SQ1S80P"]
["SQ1S82A"]
["SQ1S82C"]
["SQ1S82P"]
["SQ1S84A"]
["SQ1S84C"]
["SQ1S84P"]
["SQ1B80A"]
["SQ1B80C"]
["SQ1B80P"]
["SQ1B83A"]
["SQ1B83C"]
["SQ1B83P"]
["SQ1G82A"]
["SQ1G82C"]
["SQ1G82P"]
["SQ1G87A"]
["SQ1G87C"]
["SQ1G87P"]
["SQ1G88A"]
["SQ1G88C"]
["SQ1G88P"]
["SQ1M81A"]
["SQ1M81C"]
["SQ1M81P"]
["SQ1M87A"]
["SQ1M87C"]
["SQ1M87P"]
["SQ1M88A"]
["SQ1M88C"]
["SQ1M88P"]
["SQ1T81A"]
["SQ1T81C"]
["SQ1T81P"]
["SQ1T82A"]
["SQ1T82C"]
["SQ1T82P"]
["SQ1T87A"]
["SQ1T87C"]
["SQ1T87P"]
["SQ1C86A"]
["SQ1C86C"]
["SQ1C86P"]
["SQ1S24A100A0A0"]
["SQ1S24A100A1A0"]
["SQ1S24A100B0A0"]
["SQ1S24A100B1A0"]
["SQ1S24A100C0A0"]
["SQ1S24A100C1A0"]
["SQ1S24A101A0A0"]
["SQ1S24A101A1A0"]
["SQ1S24A101B0A0"]
["SQ1S24A101B1A0"]
["SQ1S24A101C0A0"]
["SQ1S24A101C1A0"]
["SQ1S24A102A0A0"]
["SQ1S24A102A1A0"]
["SQ1S24A102B0A0"]
["SQ1S24A102B1A0"]
["SQ1S24A102C0A0"]
["SQ1S24A102C1A0"]
["SQ1S24A103A0A0"]
["SQ1S24A103A1A0"]
["SQ1S24A103B0A0"]
["SQ1S24A103B1A0"]
["SQ1S24A103C0A0"]
["SQ1S24A103C1A0"]
["SQ1S24A104A0A0"]
["SQ1S24A104A1A0"]
["SQ1S24A104B0A0"]
["SQ1S24A104B1A0"]
["SQ1S24A104C0A0"]
["SQ1S24A104C1A0"]
["SQ1S24A105A0A0"]
["SQ1S24A105A1A0"]
["SQ1S24A105B0A0"]
["SQ1S24A105B1A0"]
["SQ1S24A105C0A0"]
["SQ1S24A105C1A0"]
["SQ1S24A106A0A0"]
["SQ1S24A106A1A0"]
["SQ1S24A106B0A0"]
["SQ1S24A106B1A0"]
["SQ1S24A106C0A0"]
["SQ1S24A106C1A0"]
["SQ1S24A1A0A0A0"]
["SQ1S24A1A0A1A0"]
["SQ1S24A1A0B0A0"]
["SQ1S24A1A0B1A0"]
["SQ1S24A1A0C0A0"]
["SQ1S24A1A0C1A0"]
["SQ1S24A1A1A0A0"]
["SQ1S24A1A1A1A0"]
["SQ1S24A1A1B0A0"]
["SQ1S24A1A1B1A0"]
["SQ1S24A1A1C0A0"]
["SQ1S24A1A1C1A0"]
["SQ1S24A1A2A0A0"]
["SQ1S24A1A2A1A0"]
["SQ1S24A1A2B0A0"]
["SQ1S24A1A2B1A0"]
["SQ1S24A1A2C0A0"]
["SQ1S24A1A2C1A0"]
["SQ1S24A1A3A0A0"]
["SQ1S24A1A3A1A0"]
["SQ1S24A1A3B0A0"]
["SQ1S24A1A3B1A0"]
["SQ1S24A1A3C0A0"]
["SQ1S24A1A3C1A0"]
["SQ1S24A1A4A0A0"]
["SQ1S24A1A4A1A0"]
["SQ1S24A1A4B0A0"]
["SQ1S24A1A4B1A0"]
["SQ1S24A1A4C0A0"]
["SQ1S24A1A4C1A0"]
["SQ1S24A1A5A0A0"]
["SQ1S24A1A5A1A0"]
["SQ1S24A1A5B0A0"]
["SQ1S24A1A5B1A0"]
["SQ1S24A1A5C0A0"]
["SQ1S24A1A5C1A0"]
["SQ1S24A1A6A0A0"]
["SQ1S24A1A6A1A0"]
["SQ1S24A1A6B0A0"]
["SQ1S24A1A6B1A0"]
["SQ1S24A1A6C0A0"]
["SQ1S24A1A6C1A0"]
["SQ1S24A1B0A0A0"]
["SQ1S24A1B0A1A0"]
["SQ1S24A1B0B0A0"]
["SQ1S24A1B0B1A0"]
["SQ1S24A1B0C0A0"]
["SQ1S24A1B0C1A0"]
["SQ1S24A1B1A0A0"]
["SQ1S24A1B1A1A0"]
["SQ1S24A1B1B0A0"]
["SQ1S24A1B1B1A0"]
["SQ1S24A1B1C0A0"]
["SQ1S24A1B1C1A0"]
["SQ1S24A1B2A0A0"]
["SQ1S24A1B2A1A0"]
["SQ1S24A1B2B0A0"]
["SQ1S24A1B2B1A0"]
["SQ1S24A1B2C0A0"]
["SQ1S24A1B2C1A0"]
["SQ1S24A1B3A0A0"]
["SQ1S24A1B3A1A0"]
["SQ1S24A1B3B0A0"]
["SQ1S24A1B3B1A0"]
["SQ1S24A1B3C0A0"]
["SQ1S24A1B3C1A0"]
["SQ1S24A1B4A0A0"]
["SQ1S24A1B4A1A0"]
["SQ1S24A1B4B0A0"]
["SQ1S24A1B4B1A0"]
["SQ1S24A1B4C0A0"]
["SQ1S24A1B4C1A0"]
["SQ1S24A1B5A0A0"]
["SQ1S24A1B5A1A0"]
["SQ1S24A1B5B0A0"]
["SQ1S24A1B5B1A0"]
["SQ1S24A1B5C0A0"]
["SQ1S24A1B5C1A0"]
["SQ1S24A1B6A0A0"]
["SQ1S24A1B6A1A0"]
["SQ1S24A1B6B0A0"]
["SQ1S24A1B6B1A0"]
["SQ1S24A1B6C0A0"]
["SQ1S24A1B6C1A0"]
["SQ1S24A1C0A0A0"]
["SQ1S24A1C0A1A0"]
["SQ1S24A1C0B0A0"]
["SQ1S24A1C0B1A0"]
["SQ1S24A1C0C0A0"]
["SQ1S24A1C0C1A0"]
["SQ1S24A1C1A0A0"]
["SQ1S24A1C1A1A0"]
["SQ1S24A1C1B0A0"]
["SQ1S24A1C1B1A0"]
["SQ1S24A1C1C0A0"]
["SQ1S24A1C1C1A0"]
["SQ1S24A1C2A0A0"]
["SQ1S24A1C2A1A0"]
["SQ1S24A1C2B0A0"]
["SQ1S24A1C2B1A0"]
["SQ1S24A1C2C0A0"]
["SQ1S24A1C2C1A0"]
["SQ1S24A1C3A0A0"]
["SQ1S24A1C3A1A0"]
["SQ1S24A1C3B0A0"]
["SQ1S24A1C3B1A0"]
["SQ1S24A1C3C0A0"]
["SQ1S24A1C3C1A0"]
["SQ1S24A1C4A0A0"]
["SQ1S24A1C4A1A0"]
["SQ1S24A1C4B0A0"]
["SQ1S24A1C4B1A0"]
["SQ1S24A1C4C0A0"]
["SQ1S24A1C4C1A0"]
["SQ1S24A1C5A0A0"]
["SQ1S24A1C5A1A0"]
["SQ1S24A1C5B0A0"]
["SQ1S24A1C5B1A0"]
["SQ1S24A1C5C0A0"]
["SQ1S24A1C5C1A0"]
["SQ1S24A1C6A0A0"]
["SQ1S24A1C6A1A0"]
["SQ1S24A1C6B0A0"]
["SQ1S24A1C6B1A0"]
["SQ1S24A1C6C0A0"]
["SQ1S24A1C6C1A0"]
["SQ1S24A200A0A0"]
["SQ1S24A200A1A0"]
["SQ1S24A200B0A0"]
["SQ1S24A200B1A0"]
["SQ1S24A200C0A0"]
["SQ1S24A200C1A0"]
["SQ1S24A201A0A0"]
["SQ1S24A201A1A0"]
["SQ1S24A201B0A0"]
["SQ1S24A201B1A0"]
["SQ1S24A201C0A0"]
["SQ1S24A201C1A0"]
["SQ1S24A202A0A0"]
["SQ1S24A202A1A0"]
["SQ1S24A202B0A0"]
["SQ1S24A202B1A0"]
["SQ1S24A202C0A0"]
["SQ1S24A202C1A0"]
["SQ1S24A203A0A0"]
["SQ1S24A203A1A0"]
["SQ1S24A203B0A0"]
["SQ1S24A203B1A0"]
["SQ1S24A203C0A0"]
["SQ1S24A203C1A0"]
["SQ1S24A204A0A0"]
["SQ1S24A204A1A0"]
["SQ1S24A204B0A0"]
["SQ1S24A204B1A0"]
["SQ1S24A204C0A0"]
["SQ1S24A204C1A0"]
["SQ1S24A205A0A0"]
["SQ1S24A205A1A0"]
["SQ1S24A205B0A0"]
["SQ1S24A205B1A0"]
["SQ1S24A205C0A0"]
["SQ1S24A205C1A0"]
["SQ1S24A206A0A0"]
["SQ1S24A206A1A0"]
["SQ1S24A206B0A0"]
["SQ1S24A206B1A0"]
["SQ1S24A206C0A0"]
["SQ1S24A206C1A0"]
["SQ1S24A2A0A0A0"]
["SQ1S24A2A0A1A0"]
["SQ1S24A2A0B0A0"]
["SQ1S24A2A0B1A0"]
["SQ1S24A2A0C0A0"]
["SQ1S24A2A0C1A0"]
["SQ1S24A2A1A0A0"]
["SQ1S24A2A1A1A0"]
["SQ1S24A2A1B0A0"]
["SQ1S24A2A1B1A0"]
["SQ1S24A2A1C0A0"]
["SQ1S24A2A1C1A0"]
["SQ1S24A2A2A0A0"]
["SQ1S24A2A2A1A0"]
["SQ1S24A2A2B0A0"]
["SQ1S24A2A2B1A0"]
["SQ1S24A2A2C0A0"]
["SQ1S24A2A2C1A0"]
["SQ1S24A2A3A0A0"]
["SQ1S24A2A3A1A0"]
["SQ1S24A2A3B0A0"]
["SQ1S24A2A3B1A0"]
["SQ1S24A2A3C0A0"]
["SQ1S24A2A3C1A0"]
["SQ1S24A2A4A0A0"]
["SQ1S24A2A4A1A0"]
["SQ1S24A2A4B0A0"]
["SQ1S24A2A4B1A0"]
["SQ1S24A2A4C0A0"]
["SQ1S24A2A4C1A0"]
["SQ1S24A2A5A0A0"]
["SQ1S24A2A5A1A0"]
["SQ1S24A2A5B0A0"]
["SQ1S24A2A5B1A0"]
["SQ1S24A2A5C0A0"]
["SQ1S24A2A5C1A0"]
["SQ1S24A2A6A0A0"]
["SQ1S24A2A6A1A0"]
["SQ1S24A2A6B0A0"]
["SQ1S24A2A6B1A0"]
["SQ1S24A2A6C0A0"]
["SQ1S24A2A6C1A0"]
["SQ1S24A2B0A0A0"]
["SQ1S24A2B0A1A0"]
["SQ1S24A2B0B0A0"]
["SQ1S24A2B0B1A0"]
["SQ1S24A2B0C0A0"]
["SQ1S24A2B0C1A0"]
["SQ1S24A2B1A0A0"]
["SQ1S24A2B1A1A0"]
["SQ1S24A2B1B0A0"]
["SQ1S24A2B1B1A0"]
["SQ1S24A2B1C0A0"]
["SQ1S24A2B1C1A0"]
["SQ1S24A2B2A0A0"]
["SQ1S24A2B2A1A0"]
["SQ1S24A2B2B0A0"]
["SQ1S24A2B2B1A0"]
["SQ1S24A2B2C0A0"]
["SQ1S24A2B2C1A0"]
["SQ1S24A2B3A0A0"]
["SQ1S24A2B3A1A0"]
["SQ1S24A2B3B0A0"]
["SQ1S24A2B3B1A0"]
["SQ1S24A2B3C0A0"]
["SQ1S24A2B3C1A0"]
["SQ1S24A2B4A0A0"]
["SQ1S24A2B4A1A0"]
["SQ1S24A2B4B0A0"]
["SQ1S24A2B4B1A0"]
["SQ1S24A2B4C0A0"]
["SQ1S24A2B4C1A0"]
["SQ1S24A2B5A0A0"]
["SQ1S24A2B5A1A0"]
["SQ1S24A2B5B0A0"]
["SQ1S24A2B5B1A0"]
["SQ1S24A2B5C0A0"]
["SQ1S24A2B5C1A0"]
["SQ1S24A2B6A0A0"]
["SQ1S24A2B6A1A0"]
["SQ1S24A2B6B0A0"]
["SQ1S24A2B6B1A0"]
["SQ1S24A2B6C0A0"]
["SQ1S24A2B6C1A0"]
["SQ1S24A2C0A0A0"]
["SQ1S24A2C0A1A0"]
["SQ1S24A2C0B0A0"]
["SQ1S24A2C0B1A0"]
["SQ1S24A2C0C0A0"]
["SQ1S24A2C0C1A0"]
["SQ1S24A2C1A0A0"]
["SQ1S24A2C1A1A0"]
["SQ1S24A2C1B0A0"]
["SQ1S24A2C1B1A0"]
["SQ1S24A2C1C0A0"]
["SQ1S24A2C1C1A0"]
["SQ1S24A2C2A0A0"]
["SQ1S24A2C2A1A0"]
["SQ1S24A2C2B0A0"]
["SQ1S24A2C2B1A0"]
["SQ1S24A2C2C0A0"]
["SQ1S24A2C2C1A0"]
["SQ1S24A2C3A0A0"]
["SQ1S24A2C3A1A0"]
["SQ1S24A2C3B0A0"]
["SQ1S24A2C3B1A0"]
["SQ1S24A2C3C0A0"]
["SQ1S24A2C3C1A0"]
["SQ1S24A2C4A0A0"]
["SQ1S24A2C4A1A0"]
["SQ1S24A2C4B0A0"]
["SQ1S24A2C4B1A0"]
["SQ1S24A2C4C0A0"]
["SQ1S24A2C4C1A0"]
["SQ1S24A2C5A0A0"]
["SQ1S24A2C5A1A0"]
["SQ1S24A2C5B0A0"]
["SQ1S24A2C5B1A0"]
["SQ1S24A2C5C0A0"]
["SQ1S24A2C5C1A0"]
["SQ1S24A2C6A0A0"]
["SQ1S24A2C6A1A0"]
["SQ1S24A2C6B0A0"]
["SQ1S24A2C6B1A0"]
["SQ1S24A2C6C0A0"]
["SQ1S24A2C6C1A0"]
["SQ1S24A300A0A0"]
["SQ1S24A300A1A0"]
["SQ1S24A300B0A0"]
["SQ1S24A300B1A0"]
["SQ1S24A300C0A0"]
["SQ1S24A300C1A0"]
["SQ1S24A301A0A0"]
["SQ1S24A301A1A0"]
["SQ1S24A301B0A0"]
["SQ1S24A301B1A0"]
["SQ1S24A301C0A0"]
["SQ1S24A301C1A0"]
["SQ1S24A302A0A0"]
["SQ1S24A302A1A0"]
["SQ1S24A302B0A0"]
["SQ1S24A302B1A0"]
["SQ1S24A302C0A0"]
["SQ1S24A302C1A0"]
["SQ1S24A303A0A0"]
["SQ1S24A303A1A0"]
["SQ1S24A303B0A0"]
["SQ1S24A303B1A0"]
["SQ1S24A303C0A0"]
["SQ1S24A303C1A0"]
["SQ1S24A304A0A0"]
["SQ1S24A304A1A0"]
["SQ1S24A304B0A0"]
["SQ1S24A304B1A0"]
["SQ1S24A304C0A0"]
["SQ1S24A304C1A0"]
["SQ1S24A305A0A0"]
["SQ1S24A305A1A0"]
["SQ1S24A305B0A0"]
["SQ1S24A305B1A0"]
["SQ1S24A305C0A0"]
["SQ1S24A305C1A0"]
["SQ1S24A306A0A0"]
["SQ1S24A306A1A0"]
["SQ1S24A306B0A0"]
["SQ1S24A306B1A0"]
["SQ1S24A306C0A0"]
["SQ1S24A306C1A0"]
["SQ1S24A3A0A0A0"]
["SQ1S24A3A0A1A0"]
["SQ1S24A3A0B0A0"]
["SQ1S24A3A0B1A0"]
["SQ1S24A3A0C0A0"]
["SQ1S24A3A0C1A0"]
["SQ1S24A3A1A0A0"]
["SQ1S24A3A1A1A0"]
["SQ1S24A3A1B0A0"]
["SQ1S24A3A1B1A0"]
["SQ1S24A3A1C0A0"]
["SQ1S24A3A1C1A0"]
["SQ1S24A3A2A0A0"]
["SQ1S24A3A2A1A0"]
["SQ1S24A3A2B0A0"]
["SQ1S24A3A2B1A0"]
["SQ1S24A3A2C0A0"]
["SQ1S24A3A2C1A0"]
["SQ1S24A3A3A0A0"]
["SQ1S24A3A3A1A0"]
["SQ1S24A3A3B0A0"]
["SQ1S24A3A3B1A0"]
["SQ1S24A3A3C0A0"]
["SQ1S24A3A3C1A0"]
["SQ1S24A3A4A0A0"]
["SQ1S24A3A4A1A0"]
["SQ1S24A3A4B0A0"]
["SQ1S24A3A4B1A0"]
["SQ1S24A3A4C0A0"]
["SQ1S24A3A4C1A0"]
["SQ1S24A3A5A0A0"]
["SQ1S24A3A5A1A0"]
["SQ1S24A3A5B0A0"]
["SQ1S24A3A5B1A0"]
["SQ1S24A3A5C0A0"]
["SQ1S24A3A5C1A0"]
["SQ1S24A3A6A0A0"]
["SQ1S24A3A6A1A0"]
["SQ1S24A3A6B0A0"]
["SQ1S24A3A6B1A0"]
["SQ1S24A3A6C0A0"]
["SQ1S24A3A6C1A0"]
["SQ1S24A3B0A0A0"]
["SQ1S24A3B0A1A0"]
["SQ1S24A3B0B0A0"]
["SQ1S24A3B0B1A0"]
["SQ1S24A3B0C0A0"]
["SQ1S24A3B0C1A0"]
["SQ1S24A3B1A0A0"]
["SQ1S24A3B1A1A0"]
["SQ1S24A3B1B0A0"]
["SQ1S24A3B1B1A0"]
["SQ1S24A3B1C0A0"]
["SQ1S24A3B1C1A0"]
["SQ1S24A3B2A0A0"]
["SQ1S24A3B2A1A0"]
["SQ1S24A3B2B0A0"]
["SQ1S24A3B2B1A0"]
["SQ1S24A3B2C0A0"]
["SQ1S24A3B2C1A0"]
["SQ1S24A3B3A0A0"]
["SQ1S24A3B3A1A0"]
["SQ1S24A3B3B0A0"]
["SQ1S24A3B3B1A0"]
["SQ1S24A3B3C0A0"]
["SQ1S24A3B3C1A0"]
["SQ1S24A3B4A0A0"]
["SQ1S24A3B4A1A0"]
["SQ1S24A3B4B0A0"]
["SQ1S24A3B4B1A0"]
["SQ1S24A3B4C0A0"]
["SQ1S24A3B4C1A0"]
["SQ1S24A3B5A0A0"]
["SQ1S24A3B5A1A0"]
["SQ1S24A3B5B0A0"]
["SQ1S24A3B5B1A0"]
["SQ1S24A3B5C0A0"]
["SQ1S24A3B5C1A0"]
["SQ1S24A3B6A0A0"]
["SQ1S24A3B6A1A0"]
["SQ1S24A3B6B0A0"]
["SQ1S24A3B6B1A0"]
["SQ1S24A3B6C0A0"]
["SQ1S24A3B6C1A0"]
["SQ1S24A3C0A0A0"]
["SQ1S24A3C0A1A0"]
["SQ1S24A3C0B0A0"]
["SQ1S24A3C0B1A0"]
["SQ1S24A3C0C0A0"]
["SQ1S24A3C0C1A0"]
["SQ1S24A3C1A0A0"]
["SQ1S24A3C1A1A0"]
["SQ1S24A3C1B0A0"]
["SQ1S24A3C1B1A0"]
["SQ1S24A3C1C0A0"]
["SQ1S24A3C1C1A0"]
["SQ1S24A3C2A0A0"]
["SQ1S24A3C2A1A0"]
["SQ1S24A3C2B0A0"]
["SQ1S24A3C2B1A0"]
["SQ1S24A3C2C0A0"]
["SQ1S24A3C2C1A0"]
["SQ1S24A3C3A0A0"]
["SQ1S24A3C3A1A0"]
["SQ1S24A3C3B0A0"]
["SQ1S24A3C3B1A0"]
["SQ1S24A3C3C0A0"]
["SQ1S24A3C3C1A0"]
["SQ1S24A3C4A0A0"]
["SQ1S24A3C4A1A0"]
["SQ1S24A3C4B0A0"]
["SQ1S24A3C4B1A0"]
["SQ1S24A3C4C0A0"]
["SQ1S24A3C4C1A0"]
["SQ1S24A3C5A0A0"]
["SQ1S24A3C5A1A0"]
["SQ1S24A3C5B0A0"]
["SQ1S24A3C5B1A0"]
["SQ1S24A3C5C0A0"]
["SQ1S24A3C5C1A0"]
["SQ1S24A3C6A0A0"]
["SQ1S24A3C6A1A0"]
["SQ1S24A3C6B0A0"]
["SQ1S24A3C6B1A0"]
["SQ1S24A3C6C0A0"]
["SQ1S24A3C6C1A0"]
["SQ1S24R100A0A0"]
["SQ1S24R100A1A0"]
["SQ1S24R100B0A0"]
["SQ1S24R100B1A0"]
["SQ1S24R100C0A0"]
["SQ1S24R100C1A0"]
["SQ1S24R101A0A0"]
["SQ1S24R101A1A0"]
["SQ1S24R101B0A0"]
["SQ1S24R101B1A0"]
["SQ1S24R101C0A0"]
["SQ1S24R101C1A0"]
["SQ1S24R102A0A0"]
["SQ1S24R102A1A0"]
["SQ1S24R102B0A0"]
["SQ1S24R102B1A0"]
["SQ1S24R102C0A0"]
["SQ1S24R102C1A0"]
["SQ1S24R103A0A0"]
["SQ1S24R103A1A0"]
["SQ1S24R103B0A0"]
["SQ1S24R103B1A0"]
["SQ1S24R103C0A0"]
["SQ1S24R103C1A0"]
["SQ1S24R104A0A0"]
["SQ1S24R104A1A0"]
["SQ1S24R104B0A0"]
["SQ1S24R104B1A0"]
["SQ1S24R104C0A0"]
["SQ1S24R104C1A0"]
["SQ1S24R105A0A0"]
["SQ1S24R105A1A0"]
["SQ1S24R105B0A0"]
["SQ1S24R105B1A0"]
["SQ1S24R105C0A0"]
["SQ1S24R105C1A0"]
["SQ1S24R106A0A0"]
["SQ1S24R106A1A0"]
["SQ1S24R106B0A0"]
["SQ1S24R106B1A0"]
["SQ1S24R106C0A0"]
["SQ1S24R106C1A0"]
["SQ1S24R1A0A0A0"]
["SQ1S24R1A0A1A0"]
["SQ1S24R1A0B0A0"]
["SQ1S24R1A0B1A0"]
["SQ1S24R1A0C0A0"]
["SQ1S24R1A0C1A0"]
["SQ1S24R1A1A0A0"]
["SQ1S24R1A1A1A0"]
["SQ1S24R1A1B0A0"]
["SQ1S24R1A1B1A0"]
["SQ1S24R1A1C0A0"]
["SQ1S24R1A1C1A0"]
["SQ1S24R1A2A0A0"]
["SQ1S24R1A2A1A0"]
["SQ1S24R1A2B0A0"]
["SQ1S24R1A2B1A0"]
["SQ1S24R1A2C0A0"]
["SQ1S24R1A2C1A0"]
["SQ1S24R1A3A0A0"]
["SQ1S24R1A3A1A0"]
["SQ1S24R1A3B0A0"]
["SQ1S24R1A3B1A0"]
["SQ1S24R1A3C0A0"]
["SQ1S24R1A3C1A0"]
["SQ1S24R1A4A0A0"]
["SQ1S24R1A4A1A0"]
["SQ1S24R1A4B0A0"]
["SQ1S24R1A4B1A0"]
["SQ1S24R1A4C0A0"]
["SQ1S24R1A4C1A0"]
["SQ1S24R1A5A0A0"]
["SQ1S24R1A5A1A0"]
["SQ1S24R1A5B0A0"]
["SQ1S24R1A5B1A0"]
["SQ1S24R1A5C0A0"]
["SQ1S24R1A5C1A0"]
["SQ1S24R1A6A0A0"]
["SQ1S24R1A6A1A0"]
["SQ1S24R1A6B0A0"]
["SQ1S24R1A6B1A0"]
["SQ1S24R1A6C0A0"]
["SQ1S24R1A6C1A0"]
["SQ1S24R1B0A0A0"]
["SQ1S24R1B0A1A0"]
["SQ1S24R1B0B0A0"]
["SQ1S24R1B0B1A0"]
["SQ1S24R1B0C0A0"]
["SQ1S24R1B0C1A0"]
["SQ1S24R1B1A0A0"]
["SQ1S24R1B1A1A0"]
["SQ1S24R1B1B0A0"]
["SQ1S24R1B1B1A0"]
["SQ1S24R1B1C0A0"]
["SQ1S24R1B1C1A0"]
["SQ1S24R1B2A0A0"]
["SQ1S24R1B2A1A0"]
["SQ1S24R1B2B0A0"]
["SQ1S24R1B2B1A0"]
["SQ1S24R1B2C0A0"]
["SQ1S24R1B2C1A0"]
["SQ1S24R1B3A0A0"]
["SQ1S24R1B3A1A0"]
["SQ1S24R1B3B0A0"]
["SQ1S24R1B3B1A0"]
["SQ1S24R1B3C0A0"]
["SQ1S24R1B3C1A0"]
["SQ1S24R1B4A0A0"]
["SQ1S24R1B4A1A0"]
["SQ1S24R1B4B0A0"]
["SQ1S24R1B4B1A0"]
["SQ1S24R1B4C0A0"]
["SQ1S24R1B4C1A0"]
["SQ1S24R1B5A0A0"]
["SQ1S24R1B5A1A0"]
["SQ1S24R1B5B0A0"]
["SQ1S24R1B5B1A0"]
["SQ1S24R1B5C0A0"]
["SQ1S24R1B5C1A0"]
["SQ1S24R1B6A0A0"]
["SQ1S24R1B6A1A0"]
["SQ1S24R1B6B0A0"]
["SQ1S24R1B6B1A0"]
["SQ1S24R1B6C0A0"]
["SQ1S24R1B6C1A0"]
["SQ1S24R1C0A0A0"]
["SQ1S24R1C0A1A0"]
["SQ1S24R1C0B0A0"]
["SQ1S24R1C0B1A0"]
["SQ1S24R1C0C0A0"]
["SQ1S24R1C0C1A0"]
["SQ1S24R1C1A0A0"]
["SQ1S24R1C1A1A0"]
["SQ1S24R1C1B0A0"]
["SQ1S24R1C1B1A0"]
["SQ1S24R1C1C0A0"]
["SQ1S24R1C1C1A0"]
["SQ1S24R1C2A0A0"]
["SQ1S24R1C2A1A0"]
["SQ1S24R1C2B0A0"]
["SQ1S24R1C2B1A0"]
["SQ1S24R1C2C0A0"]
["SQ1S24R1C2C1A0"]
["SQ1S24R1C3A0A0"]
["SQ1S24R1C3A1A0"]
["SQ1S24R1C3B0A0"]
["SQ1S24R1C3B1A0"]
["SQ1S24R1C3C0A0"]
["SQ1S24R1C3C1A0"]
["SQ1S24R1C4A0A0"]
["SQ1S24R1C4A1A0"]
["SQ1S24R1C4B0A0"]
["SQ1S24R1C4B1A0"]
["SQ1S24R1C4C0A0"]
["SQ1S24R1C4C1A0"]
["SQ1S24R1C5A0A0"]
["SQ1S24R1C5A1A0"]
["SQ1S24R1C5B0A0"]
["SQ1S24R1C5B1A0"]
["SQ1S24R1C5C0A0"]
["SQ1S24R1C5C1A0"]
["SQ1S24R1C6A0A0"]
["SQ1S24R1C6A1A0"]
["SQ1S24R1C6B0A0"]
["SQ1S24R1C6B1A0"]
["SQ1S24R1C6C0A0"]
["SQ1S24R1C6C1A0"]
["SQ1S24R200A0A0"]
["SQ1S24R200A1A0"]
["SQ1S24R200B0A0"]
["SQ1S24R200B1A0"]
["SQ1S24R200C0A0"]
["SQ1S24R200C1A0"]
["SQ1S24R201A0A0"]
["SQ1S24R201A1A0"]
["SQ1S24R201B0A0"]
["SQ1S24R201B1A0"]
["SQ1S24R201C0A0"]
["SQ1S24R201C1A0"]
["SQ1S24R202A0A0"]
["SQ1S24R202A1A0"]
["SQ1S24R202B0A0"]
["SQ1S24R202B1A0"]
["SQ1S24R202C0A0"]
["SQ1S24R202C1A0"]
["SQ1S24R203A0A0"]
["SQ1S24R203A1A0"]
["SQ1S24R203B0A0"]
["SQ1S24R203B1A0"]
["SQ1S24R203C0A0"]
["SQ1S24R203C1A0"]
["SQ1S24R204A0A0"]
["SQ1S24R204A1A0"]
["SQ1S24R204B0A0"]
["SQ1S24R204B1A0"]
["SQ1S24R204C0A0"]
["SQ1S24R204C1A0"]
["SQ1S24R205A0A0"]
["SQ1S24R205A1A0"]
["SQ1S24R205B0A0"]
["SQ1S24R205B1A0"]
["SQ1S24R205C0A0"]
["SQ1S24R205C1A0"]
["SQ1S24R206A0A0"]
["SQ1S24R206A1A0"]
["SQ1S24R206B0A0"]
["SQ1S24R206B1A0"]
["SQ1S24R206C0A0"]
["SQ1S24R206C1A0"]
["SQ1S24R2A0A0A0"]
["SQ1S24R2A0A1A0"]
["SQ1S24R2A0B0A0"]
["SQ1S24R2A0B1A0"]
["SQ1S24R2A0C0A0"]
["SQ1S24R2A0C1A0"]
["SQ1S24R2A1A0A0"]
["SQ1S24R2A1A1A0"]
["SQ1S24R2A1B0A0"]
["SQ1S24R2A1B1A0"]
["SQ1S24R2A1C0A0"]
["SQ1S24R2A1C1A0"]
["SQ1S24R2A2A0A0"]
["SQ1S24R2A2A1A0"]
["SQ1S24R2A2B0A0"]
["SQ1S24R2A2B1A0"]
["SQ1S24R2A2C0A0"]
["SQ1S24R2A2C1A0"]
["SQ1S24R2A3A0A0"]
["SQ1S24R2A3A1A0"]
["SQ1S24R2A3B0A0"]
["SQ1S24R2A3B1A0"]
["SQ1S24R2A3C0A0"]
["SQ1S24R2A3C1A0"]
["SQ1S24R2A4A0A0"]
["SQ1S24R2A4A1A0"]
["SQ1S24R2A4B0A0"]
["SQ1S24R2A4B1A0"]
["SQ1S24R2A4C0A0"]
["SQ1S24R2A4C1A0"]
["SQ1S24R2A5A0A0"]
["SQ1S24R2A5A1A0"]
["SQ1S24R2A5B0A0"]
["SQ1S24R2A5B1A0"]
["SQ1S24R2A5C0A0"]
["SQ1S24R2A5C1A0"]
["SQ1S24R2A6A0A0"]
["SQ1S24R2A6A1A0"]
["SQ1S24R2A6B0A0"]
["SQ1S24R2A6B1A0"]
["SQ1S24R2A6C0A0"]
["SQ1S24R2A6C1A0"]
["SQ1S24R2B0A0A0"]
["SQ1S24R2B0A1A0"]
["SQ1S24R2B0B0A0"]
["SQ1S24R2B0B1A0"]
["SQ1S24R2B0C0A0"]
["SQ1S24R2B0C1A0"]
["SQ1S24R2B1A0A0"]
["SQ1S24R2B1A1A0"]
["SQ1S24R2B1B0A0"]
["SQ1S24R2B1B1A0"]
["SQ1S24R2B1C0A0"]
["SQ1S24R2B1C1A0"]
["SQ1S24R2B2A0A0"]
["SQ1S24R2B2A1A0"]
["SQ1S24R2B2B0A0"]
["SQ1S24R2B2B1A0"]
["SQ1S24R2B2C0A0"]
["SQ1S24R2B2C1A0"]
["SQ1S24R2B3A0A0"]
["SQ1S24R2B3A1A0"]
["SQ1S24R2B3B0A0"]
["SQ1S24R2B3B1A0"]
["SQ1S24R2B3C0A0"]
["SQ1S24R2B3C1A0"]
["SQ1S24R2B4A0A0"]
["SQ1S24R2B4A1A0"]
["SQ1S24R2B4B0A0"]
["SQ1S24R2B4B1A0"]
["SQ1S24R2B4C0A0"]
["SQ1S24R2B4C1A0"]
["SQ1S24R2B5A0A0"]
["SQ1S24R2B5A1A0"]
["SQ1S24R2B5B0A0"]
["SQ1S24R2B5B1A0"]
["SQ1S24R2B5C0A0"]
["SQ1S24R2B5C1A0"]
["SQ1S24R2B6A0A0"]
["SQ1S24R2B6A1A0"]
["SQ1S24R2B6B0A0"]
["SQ1S24R2B6B1A0"]
["SQ1S24R2B6C0A0"]
["SQ1S24R2B6C1A0"]
["SQ1S24R2C0A0A0"]
["SQ1S24R2C0A1A0"]
["SQ1S24R2C0B0A0"]
["SQ1S24R2C0B1A0"]
["SQ1S24R2C0C0A0"]
["SQ1S24R2C0C1A0"]
["SQ1S24R2C1A0A0"]
["SQ1S24R2C1A1A0"]
["SQ1S24R2C1B0A0"]
["SQ1S24R2C1B1A0"]
["SQ1S24R2C1C0A0"]
["SQ1S24R2C1C1A0"]
["SQ1S24R2C2A0A0"]
["SQ1S24R2C2A1A0"]
["SQ1S24R2C2B0A0"]
["SQ1S24R2C2B1A0"]
["SQ1S24R2C2C0A0"]
["SQ1S24R2C2C1A0"]
["SQ1S24R2C3A0A0"]
["SQ1S24R2C3A1A0"]
["SQ1S24R2C3B0A0"]
["SQ1S24R2C3B1A0"]
["SQ1S24R2C3C0A0"]
["SQ1S24R2C3C1A0"]
["SQ1S24R2C4A0A0"]
["SQ1S24R2C4A1A0"]
["SQ1S24R2C4B0A0"]
["SQ1S24R2C4B1A0"]
["SQ1S24R2C4C0A0"]
["SQ1S24R2C4C1A0"]
["SQ1S24R2C5A0A0"]
["SQ1S24R2C5A1A0"]
["SQ1S24R2C5B0A0"]
["SQ1S24R2C5B1A0"]
["SQ1S24R2C5C0A0"]
["SQ1S24R2C5C1A0"]
["SQ1S24R2C6A0A0"]
["SQ1S24R2C6A1A0"]
["SQ1S24R2C6B0A0"]
["SQ1S24R2C6B1A0"]
["SQ1S24R2C6C0A0"]
["SQ1S24R2C6C1A0"]
["SQ1S24R300A0A0"]
["SQ1S24R300A1A0"]
["SQ1S24R300B0A0"]
["SQ1S24R300B1A0"]
["SQ1S24R300C0A0"]
["SQ1S24R300C1A0"]
["SQ1S24R301A0A0"]
["SQ1S24R301A1A0"]
["SQ1S24R301B0A0"]
["SQ1S24R301B1A0"]
["SQ1S24R301C0A0"]
["SQ1S24R301C1A0"]
["SQ1S24R302A0A0"]
["SQ1S24R302A1A0"]
["SQ1S24R302B0A0"]
["SQ1S24R302B1A0"]
["SQ1S24R302C0A0"]
["SQ1S24R302C1A0"]
["SQ1S24R303A0A0"]
["SQ1S24R303A1A0"]
["SQ1S24R303B0A0"]
["SQ1S24R303B1A0"]
["SQ1S24R303C0A0"]
["SQ1S24R303C1A0"]
["SQ1S24R304A0A0"]
["SQ1S24R304A1A0"]
["SQ1S24R304B0A0"]
["SQ1S24R304B1A0"]
["SQ1S24R304C0A0"]
["SQ1S24R304C1A0"]
["SQ1S24R305A0A0"]
["SQ1S24R305A1A0"]
["SQ1S24R305B0A0"]
["SQ1S24R305B1A0"]
["SQ1S24R305C0A0"]
["SQ1S24R305C1A0"]
["SQ1S24R306A0A0"]
["SQ1S24R306A1A0"]
["SQ1S24R306B0A0"]
["SQ1S24R306B1A0"]
["SQ1S24R306C0A0"]
["SQ1S24R306C1A0"]
["SQ1S24R3A0A0A0"]
["SQ1S24R3A0A1A0"]
["SQ1S24R3A0B0A0"]
["SQ1S24R3A0B1A0"]
["SQ1S24R3A0C0A0"]
["SQ1S24R3A0C1A0"]
["SQ1S24R3A1A0A0"]
["SQ1S24R3A1A1A0"]
["SQ1S24R3A1B0A0"]
["SQ1S24R3A1B1A0"]
["SQ1S24R3A1C0A0"]
["SQ1S24R3A1C1A0"]
["SQ1S24R3A2A0A0"]
["SQ1S24R3A2A1A0"]
["SQ1S24R3A2B0A0"]
["SQ1S24R3A2B1A0"]
["SQ1S24R3A2C0A0"]
["SQ1S24R3A2C1A0"]
["SQ1S24R3A3A0A0"]
["SQ1S24R3A3A1A0"]
["SQ1S24R3A3B0A0"]
["SQ1S24R3A3B1A0"]
["SQ1S24R3A3C0A0"]
["SQ1S24R3A3C1A0"]
["SQ1S24R3A4A0A0"]
["SQ1S24R3A4A1A0"]
["SQ1S24R3A4B0A0"]
["SQ1S24R3A4B1A0"]
["SQ1S24R3A4C0A0"]
["SQ1S24R3A4C1A0"]
["SQ1S24R3A5A0A0"]
["SQ1S24R3A5A1A0"]
["SQ1S24R3A5B0A0"]
["SQ1S24R3A5B1A0"]
["SQ1S24R3A5C0A0"]
["SQ1S24R3A5C1A0"]
["SQ1S24R3A6A0A0"]
["SQ1S24R3A6A1A0"]
["SQ1S24R3A6B0A0"]
["SQ1S24R3A6B1A0"]
["SQ1S24R3A6C0A0"]
["SQ1S24R3A6C1A0"]
["SQ1S24R3B0A0A0"]
["SQ1S24R3B0A1A0"]
["SQ1S24R3B0B0A0"]
["SQ1S24R3B0B1A0"]
["SQ1S24R3B0C0A0"]
["SQ1S24R3B0C1A0"]
["SQ1S24R3B1A0A0"]
["SQ1S24R3B1A1A0"]
["SQ1S24R3B1B0A0"]
["SQ1S24R3B1B1A0"]
["SQ1S24R3B1C0A0"]
["SQ1S24R3B1C1A0"]
["SQ1S24R3B2A0A0"]
["SQ1S24R3B2A1A0"]
["SQ1S24R3B2B0A0"]
["SQ1S24R3B2B1A0"]
["SQ1S24R3B2C0A0"]
["SQ1S24R3B2C1A0"]
["SQ1S24R3B3A0A0"]
["SQ1S24R3B3A1A0"]
["SQ1S24R3B3B0A0"]
["SQ1S24R3B3B1A0"]
["SQ1S24R3B3C0A0"]
["SQ1S24R3B3C1A0"]
["SQ1S24R3B4A0A0"]
["SQ1S24R3B4A1A0"]
["SQ1S24R3B4B0A0"]
["SQ1S24R3B4B1A0"]
["SQ1S24R3B4C0A0"]
["SQ1S24R3B4C1A0"]
["SQ1S24R3B5A0A0"]
["SQ1S24R3B5A1A0"]
["SQ1S24R3B5B0A0"]
["SQ1S24R3B5B1A0"]
["SQ1S24R3B5C0A0"]
["SQ1S24R3B5C1A0"]
["SQ1S24R3B6A0A0"]
["SQ1S24R3B6A1A0"]
["SQ1S24R3B6B0A0"]
["SQ1S24R3B6B1A0"]
["SQ1S24R3B6C0A0"]
["SQ1S24R3B6C1A0"]
["SQ1S24R3C0A0A0"]
["SQ1S24R3C0A1A0"]
["SQ1S24R3C0B0A0"]
["SQ1S24R3C0B1A0"]
["SQ1S24R3C0C0A0"]
["SQ1S24R3C0C1A0"]
["SQ1S24R3C1A0A0"]
["SQ1S24R3C1A1A0"]
["SQ1S24R3C1B0A0"]
["SQ1S24R3C1B1A0"]
["SQ1S24R3C1C0A0"]
["SQ1S24R3C1C1A0"]
["SQ1S24R3C2A0A0"]
["SQ1S24R3C2A1A0"]
["SQ1S24R3C2B0A0"]
["SQ1S24R3C2B1A0"]
["SQ1S24R3C2C0A0"]
["SQ1S24R3C2C1A0"]
["SQ1S24R3C3A0A0"]
["SQ1S24R3C3A1A0"]
["SQ1S24R3C3B0A0"]
["SQ1S24R3C3B1A0"]
["SQ1S24R3C3C0A0"]
["SQ1S24R3C3C1A0"]
["SQ1S24R3C4A0A0"]
["SQ1S24R3C4A1A0"]
["SQ1S24R3C4B0A0"]
["SQ1S24R3C4B1A0"]
["SQ1S24R3C4C0A0"]
["SQ1S24R3C4C1A0"]
["SQ1S24R3C5A0A0"]
["SQ1S24R3C5A1A0"]
["SQ1S24R3C5B0A0"]
["SQ1S24R3C5B1A0"]
["SQ1S24R3C5C0A0"]
["SQ1S24R3C5C1A0"]
["SQ1S24R3C6A0A0"]
["SQ1S24R3C6A1A0"]
["SQ1S24R3C6B0A0"]
["SQ1S24R3C6B1A0"]
["SQ1S24R3C6C0A0"]
["SQ1S24R3C6C1A0"]
["SQ1S40A100A0A0"]
["SQ1S40A100A1A0"]
["SQ1S40A100B0A0"]
["SQ1S40A100B1A0"]
["SQ1S40A100C0A0"]
["SQ1S40A100C1A0"]
["SQ1S40A101A0A0"]
["SQ1S40A101A1A0"]
["SQ1S40A101B0A0"]
["SQ1S40A101B1A0"]
["SQ1S40A101C0A0"]
["SQ1S40A101C1A0"]
["SQ1S40A102A0A0"]
["SQ1S40A102A1A0"]
["SQ1S40A102B0A0"]
["SQ1S40A102B1A0"]
["SQ1S40A102C0A0"]
["SQ1S40A102C1A0"]
["SQ1S40A103A0A0"]
["SQ1S40A103A1A0"]
["SQ1S40A103B0A0"]
["SQ1S40A103B1A0"]
["SQ1S40A103C0A0"]
["SQ1S40A103C1A0"]
["SQ1S40A104A0A0"]
["SQ1S40A104A1A0"]
["SQ1S40A104B0A0"]
["SQ1S40A104B1A0"]
["SQ1S40A104C0A0"]
["SQ1S40A104C1A0"]
["SQ1S40A105A0A0"]
["SQ1S40A105A1A0"]
["SQ1S40A105B0A0"]
["SQ1S40A105B1A0"]
["SQ1S40A105C0A0"]
["SQ1S40A105C1A0"]
["SQ1S40A106A0A0"]
["SQ1S40A106A1A0"]
["SQ1S40A106B0A0"]
["SQ1S40A106B1A0"]
["SQ1S40A106C0A0"]
["SQ1S40A106C1A0"]
["SQ1S40A1A0A0A0"]
["SQ1S40A1A0A1A0"]
["SQ1S40A1A0B0A0"]
["SQ1S40A1A0B1A0"]
["SQ1S40A1A0C0A0"]
["SQ1S40A1A0C1A0"]
["SQ1S40A1A1A0A0"]
["SQ1S40A1A1A1A0"]
["SQ1S40A1A1B0A0"]
["SQ1S40A1A1B1A0"]
["SQ1S40A1A1C0A0"]
["SQ1S40A1A1C1A0"]
["SQ1S40A1A2A0A0"]
["SQ1S40A1A2A1A0"]
["SQ1S40A1A2B0A0"]
["SQ1S40A1A2B1A0"]
["SQ1S40A1A2C0A0"]
["SQ1S40A1A2C1A0"]
["SQ1S40A1A3A0A0"]
["SQ1S40A1A3A1A0"]
["SQ1S40A1A3B0A0"]
["SQ1S40A1A3B1A0"]
["SQ1S40A1A3C0A0"]
["SQ1S40A1A3C1A0"]
["SQ1S40A1A4A0A0"]
["SQ1S40A1A4A1A0"]
["SQ1S40A1A4B0A0"]
["SQ1S40A1A4B1A0"]
["SQ1S40A1A4C0A0"]
["SQ1S40A1A4C1A0"]
["SQ1S40A1A5A0A0"]
["SQ1S40A1A5A1A0"]
["SQ1S40A1A5B0A0"]
["SQ1S40A1A5B1A0"]
["SQ1S40A1A5C0A0"]
["SQ1S40A1A5C1A0"]
["SQ1S40A1A6A0A0"]
["SQ1S40A1A6A1A0"]
["SQ1S40A1A6B0A0"]
["SQ1S40A1A6B1A0"]
["SQ1S40A1A6C0A0"]
["SQ1S40A1A6C1A0"]
["SQ1S40A1B0A0A0"]
["SQ1S40A1B0A1A0"]
["SQ1S40A1B0B0A0"]
["SQ1S40A1B0B1A0"]
["SQ1S40A1B0C0A0"]
["SQ1S40A1B0C1A0"]
["SQ1S40A1B1A0A0"]
["SQ1S40A1B1A1A0"]
["SQ1S40A1B1B0A0"]
["SQ1S40A1B1B1A0"]
["SQ1S40A1B1C0A0"]
["SQ1S40A1B1C1A0"]
["SQ1S40A1B2A0A0"]
["SQ1S40A1B2A1A0"]
["SQ1S40A1B2B0A0"]
["SQ1S40A1B2B1A0"]
["SQ1S40A1B2C0A0"]
["SQ1S40A1B2C1A0"]
["SQ1S40A1B3A0A0"]
["SQ1S40A1B3A1A0"]
["SQ1S40A1B3B0A0"]
["SQ1S40A1B3B1A0"]
["SQ1S40A1B3C0A0"]
["SQ1S40A1B3C1A0"]
["SQ1S40A1B4A0A0"]
["SQ1S40A1B4A1A0"]
["SQ1S40A1B4B0A0"]
["SQ1S40A1B4B1A0"]
["SQ1S40A1B4C0A0"]
["SQ1S40A1B4C1A0"]
["SQ1S40A1B5A0A0"]
["SQ1S40A1B5A1A0"]
["SQ1S40A1B5B0A0"]
["SQ1S40A1B5B1A0"]
["SQ1S40A1B5C0A0"]
["SQ1S40A1B5C1A0"]
["SQ1S40A1B6A0A0"]
["SQ1S40A1B6A1A0"]
["SQ1S40A1B6B0A0"]
["SQ1S40A1B6B1A0"]
["SQ1S40A1B6C0A0"]
["SQ1S40A1B6C1A0"]
["SQ1S40A1C0A0A0"]
["SQ1S40A1C0A1A0"]
["SQ1S40A1C0B0A0"]
["SQ1S40A1C0B1A0"]
["SQ1S40A1C0C0A0"]
["SQ1S40A1C0C1A0"]
["SQ1S40A1C1A0A0"]
["SQ1S40A1C1A1A0"]
["SQ1S40A1C1B0A0"]
["SQ1S40A1C1B1A0"]
["SQ1S40A1C1C0A0"]
["SQ1S40A1C1C1A0"]
["SQ1S40A1C2A0A0"]
["SQ1S40A1C2A1A0"]
["SQ1S40A1C2B0A0"]
["SQ1S40A1C2B1A0"]
["SQ1S40A1C2C0A0"]
["SQ1S40A1C2C1A0"]
["SQ1S40A1C3A0A0"]
["SQ1S40A1C3A1A0"]
["SQ1S40A1C3B0A0"]
["SQ1S40A1C3B1A0"]
["SQ1S40A1C3C0A0"]
["SQ1S40A1C3C1A0"]
["SQ1S40A1C4A0A0"]
["SQ1S40A1C4A1A0"]
["SQ1S40A1C4B0A0"]
["SQ1S40A1C4B1A0"]
["SQ1S40A1C4C0A0"]
["SQ1S40A1C4C1A0"]
["SQ1S40A1C5A0A0"]
["SQ1S40A1C5A1A0"]
["SQ1S40A1C5B0A0"]
["SQ1S40A1C5B1A0"]
["SQ1S40A1C5C0A0"]
["SQ1S40A1C5C1A0"]
["SQ1S40A1C6A0A0"]
["SQ1S40A1C6A1A0"]
["SQ1S40A1C6B0A0"]
["SQ1S40A1C6B1A0"]
["SQ1S40A1C6C0A0"]
["SQ1S40A1C6C1A0"]
["SQ1S40A200A0A0"]
["SQ1S40A200A1A0"]
["SQ1S40A200B0A0"]
["SQ1S40A200B1A0"]
["SQ1S40A200C0A0"]
["SQ1S40A200C1A0"]
["SQ1S40A201A0A0"]
["SQ1S40A201A1A0"]
["SQ1S40A201B0A0"]
["SQ1S40A201B1A0"]
["SQ1S40A201C0A0"]
["SQ1S40A201C1A0"]
["SQ1S40A202A0A0"]
["SQ1S40A202A1A0"]
["SQ1S40A202B0A0"]
["SQ1S40A202B1A0"]
["SQ1S40A202C0A0"]
["SQ1S40A202C1A0"]
["SQ1S40A203A0A0"]
["SQ1S40A203A1A0"]
["SQ1S40A203B0A0"]
["SQ1S40A203B1A0"]
["SQ1S40A203C0A0"]
["SQ1S40A203C1A0"]
["SQ1S40A204A0A0"]
["SQ1S40A204A1A0"]
["SQ1S40A204B0A0"]
["SQ1S40A204B1A0"]
["SQ1S40A204C0A0"]
["SQ1S40A204C1A0"]
["SQ1S40A205A0A0"]
["SQ1S40A205A1A0"]
["SQ1S40A205B0A0"]
["SQ1S40A205B1A0"]
["SQ1S40A205C0A0"]
["SQ1S40A205C1A0"]
["SQ1S40A206A0A0"]
["SQ1S40A206A1A0"]
["SQ1S40A206B0A0"]
["SQ1S40A206B1A0"]
["SQ1S40A206C0A0"]
["SQ1S40A206C1A0"]
["SQ1S40A2A0A0A0"]
["SQ1S40A2A0A1A0"]
["SQ1S40A2A0B0A0"]
["SQ1S40A2A0B1A0"]
["SQ1S40A2A0C0A0"]
["SQ1S40A2A0C1A0"]
["SQ1S40A2A1A0A0"]
["SQ1S40A2A1A1A0"]
["SQ1S40A2A1B0A0"]
["SQ1S40A2A1B1A0"]
["SQ1S40A2A1C0A0"]
["SQ1S40A2A1C1A0"]
["SQ1S40A2A2A0A0"]
["SQ1S40A2A2A1A0"]
["SQ1S40A2A2B0A0"]
["SQ1S40A2A2B1A0"]
["SQ1S40A2A2C0A0"]
["SQ1S40A2A2C1A0"]
["SQ1S40A2A3A0A0"]
["SQ1S40A2A3A1A0"]
["SQ1S40A2A3B0A0"]
["SQ1S40A2A3B1A0"]
["SQ1S40A2A3C0A0"]
["SQ1S40A2A3C1A0"]
["SQ1S40A2A4A0A0"]
["SQ1S40A2A4A1A0"]
["SQ1S40A2A4B0A0"]
["SQ1S40A2A4B1A0"]
["SQ1S40A2A4C0A0"]
["SQ1S40A2A4C1A0"]
["SQ1S40A2A5A0A0"]
["SQ1S40A2A5A1A0"]
["SQ1S40A2A5B0A0"]
["SQ1S40A2A5B1A0"]
["SQ1S40A2A5C0A0"]
["SQ1S40A2A5C1A0"]
["SQ1S40A2A6A0A0"]
["SQ1S40A2A6A1A0"]
["SQ1S40A2A6B0A0"]
["SQ1S40A2A6B1A0"]
["SQ1S40A2A6C0A0"]
["SQ1S40A2A6C1A0"]
["SQ1S40A2B0A0A0"]
["SQ1S40A2B0A1A0"]
["SQ1S40A2B0B0A0"]
["SQ1S40A2B0B1A0"]
["SQ1S40A2B0C0A0"]
["SQ1S40A2B0C1A0"]
["SQ1S40A2B1A0A0"]
["SQ1S40A2B1A1A0"]
["SQ1S40A2B1B0A0"]
["SQ1S40A2B1B1A0"]
["SQ1S40A2B1C0A0"]
["SQ1S40A2B1C1A0"]
["SQ1S40A2B2A0A0"]
["SQ1S40A2B2A1A0"]
["SQ1S40A2B2B0A0"]
["SQ1S40A2B2B1A0"]
["SQ1S40A2B2C0A0"]
["SQ1S40A2B2C1A0"]
["SQ1S40A2B3A0A0"]
["SQ1S40A2B3A1A0"]
["SQ1S40A2B3B0A0"]
["SQ1S40A2B3B1A0"]
["SQ1S40A2B3C0A0"]
["SQ1S40A2B3C1A0"]
["SQ1S40A2B4A0A0"]
["SQ1S40A2B4A1A0"]
["SQ1S40A2B4B0A0"]
["SQ1S40A2B4B1A0"]
["SQ1S40A2B4C0A0"]
["SQ1S40A2B4C1A0"]
["SQ1S40A2B5A0A0"]
["SQ1S40A2B5A1A0"]
["SQ1S40A2B5B0A0"]
["SQ1S40A2B5B1A0"]
["SQ1S40A2B5C0A0"]
["SQ1S40A2B5C1A0"]
["SQ1S40A2B6A0A0"]
["SQ1S40A2B6A1A0"]
["SQ1S40A2B6B0A0"]
["SQ1S40A2B6B1A0"]
["SQ1S40A2B6C0A0"]
["SQ1S40A2B6C1A0"]
["SQ1S40A2C0A0A0"]
["SQ1S40A2C0A1A0"]
["SQ1S40A2C0B0A0"]
["SQ1S40A2C0B1A0"]
["SQ1S40A2C0C0A0"]
["SQ1S40A2C0C1A0"]
["SQ1S40A2C1A0A0"]
["SQ1S40A2C1A1A0"]
["SQ1S40A2C1B0A0"]
["SQ1S40A2C1B1A0"]
["SQ1S40A2C1C0A0"]
["SQ1S40A2C1C1A0"]
["SQ1S40A2C2A0A0"]
["SQ1S40A2C2A1A0"]
["SQ1S40A2C2B0A0"]
["SQ1S40A2C2B1A0"]
["SQ1S40A2C2C0A0"]
["SQ1S40A2C2C1A0"]
["SQ1S40A2C3A0A0"]
["SQ1S40A2C3A1A0"]
["SQ1S40A2C3B0A0"]
["SQ1S40A2C3B1A0"]
["SQ1S40A2C3C0A0"]
["SQ1S40A2C3C1A0"]
["SQ1S40A2C4A0A0"]
["SQ1S40A2C4A1A0"]
["SQ1S40A2C4B0A0"]
["SQ1S40A2C4B1A0"]
["SQ1S40A2C4C0A0"]
["SQ1S40A2C4C1A0"]
["SQ1S40A2C5A0A0"]
["SQ1S40A2C5A1A0"]
["SQ1S40A2C5B0A0"]
["SQ1S40A2C5B1A0"]
["SQ1S40A2C5C0A0"]
["SQ1S40A2C5C1A0"]
["SQ1S40A2C6A0A0"]
["SQ1S40A2C6A1A0"]
["SQ1S40A2C6B0A0"]
["SQ1S40A2C6B1A0"]
["SQ1S40A2C6C0A0"]
["SQ1S40A2C6C1A0"]
["SQ1S40A300A0A0"]
["SQ1S40A300A1A0"]
["SQ1S40A300B0A0"]
["SQ1S40A300B1A0"]
["SQ1S40A300C0A0"]
["SQ1S40A300C1A0"]
["SQ1S40A301A0A0"]
["SQ1S40A301A1A0"]
["SQ1S40A301B0A0"]
["SQ1S40A301B1A0"]
["SQ1S40A301C0A0"]
["SQ1S40A301C1A0"]
["SQ1S40A302A0A0"]
["SQ1S40A302A1A0"]
["SQ1S40A302B0A0"]
["SQ1S40A302B1A0"]
["SQ1S40A302C0A0"]
["SQ1S40A302C1A0"]
["SQ1S40A303A0A0"]
["SQ1S40A303A1A0"]
["SQ1S40A303B0A0"]
["SQ1S40A303B1A0"]
["SQ1S40A303C0A0"]
["SQ1S40A303C1A0"]
["SQ1S40A304A0A0"]
["SQ1S40A304A1A0"]
["SQ1S40A304B0A0"]
["SQ1S40A304B1A0"]
["SQ1S40A304C0A0"]
["SQ1S40A304C1A0"]
["SQ1S40A305A0A0"]
["SQ1S40A305A1A0"]
["SQ1S40A305B0A0"]
["SQ1S40A305B1A0"]
["SQ1S40A305C0A0"]
["SQ1S40A305C1A0"]
["SQ1S40A306A0A0"]
["SQ1S40A306A1A0"]
["SQ1S40A306B0A0"]
["SQ1S40A306B1A0"]
["SQ1S40A306C0A0"]
["SQ1S40A306C1A0"]
["SQ1S40A3A0A0A0"]
["SQ1S40A3A0A1A0"]
["SQ1S40A3A0B0A0"]
["SQ1S40A3A0B1A0"]
["SQ1S40A3A0C0A0"]
["SQ1S40A3A0C1A0"]
["SQ1S40A3A1A0A0"]
["SQ1S40A3A1A1A0"]
["SQ1S40A3A1B0A0"]
["SQ1S40A3A1B1A0"]
["SQ1S40A3A1C0A0"]
["SQ1S40A3A1C1A0"]
["SQ1S40A3A2A0A0"]
["SQ1S40A3A2A1A0"]
["SQ1S40A3A2B0A0"]
["SQ1S40A3A2B1A0"]
["SQ1S40A3A2C0A0"]
["SQ1S40A3A2C1A0"]
["SQ1S40A3A3A0A0"]
["SQ1S40A3A3A1A0"]
["SQ1S40A3A3B0A0"]
["SQ1S40A3A3B1A0"]
["SQ1S40A3A3C0A0"]
["SQ1S40A3A3C1A0"]
["SQ1S40A3A4A0A0"]
["SQ1S40A3A4A1A0"]
["SQ1S40A3A4B0A0"]
["SQ1S40A3A4B1A0"]
["SQ1S40A3A4C0A0"]
["SQ1S40A3A4C1A0"]
["SQ1S40A3A5A0A0"]
["SQ1S40A3A5A1A0"]
["SQ1S40A3A5B0A0"]
["SQ1S40A3A5B1A0"]
["SQ1S40A3A5C0A0"]
["SQ1S40A3A5C1A0"]
["SQ1S40A3A6A0A0"]
["SQ1S40A3A6A1A0"]
["SQ1S40A3A6B0A0"]
["SQ1S40A3A6B1A0"]
["SQ1S40A3A6C0A0"]
["SQ1S40A3A6C1A0"]
["SQ1S40A3B0A0A0"]
["SQ1S40A3B0A1A0"]
["SQ1S40A3B0B0A0"]
["SQ1S40A3B0B1A0"]
["SQ1S40A3B0C0A0"]
["SQ1S40A3B0C1A0"]
["SQ1S40A3B1A0A0"]
["SQ1S40A3B1A1A0"]
["SQ1S40A3B1B0A0"]
["SQ1S40A3B1B1A0"]
["SQ1S40A3B1C0A0"]
["SQ1S40A3B1C1A0"]
["SQ1S40A3B2A0A0"]
["SQ1S40A3B2A1A0"]
["SQ1S40A3B2B0A0"]
["SQ1S40A3B2B1A0"]
["SQ1S40A3B2C0A0"]
["SQ1S40A3B2C1A0"]
["SQ1S40A3B3A0A0"]
["SQ1S40A3B3A1A0"]
["SQ1S40A3B3B0A0"]
["SQ1S40A3B3B1A0"]
["SQ1S40A3B3C0A0"]
["SQ1S40A3B3C1A0"]
["SQ1S40A3B4A0A0"]
["SQ1S40A3B4A1A0"]
["SQ1S40A3B4B0A0"]
["SQ1S40A3B4B1A0"]
["SQ1S40A3B4C0A0"]
["SQ1S40A3B4C1A0"]
["SQ1S40A3B5A0A0"]
["SQ1S40A3B5A1A0"]
["SQ1S40A3B5B0A0"]
["SQ1S40A3B5B1A0"]
["SQ1S40A3B5C0A0"]
["SQ1S40A3B5C1A0"]
["SQ1S40A3B6A0A0"]
["SQ1S40A3B6A1A0"]
["SQ1S40A3B6B0A0"]
["SQ1S40A3B6B1A0"]
["SQ1S40A3B6C0A0"]
["SQ1S40A3B6C1A0"]
["SQ1S40A3C0A0A0"]
["SQ1S40A3C0A1A0"]
["SQ1S40A3C0B0A0"]
["SQ1S40A3C0B1A0"]
["SQ1S40A3C0C0A0"]
["SQ1S40A3C0C1A0"]
["SQ1S40A3C1A0A0"]
["SQ1S40A3C1A1A0"]
["SQ1S40A3C1B0A0"]
["SQ1S40A3C1B1A0"]
["SQ1S40A3C1C0A0"]
["SQ1S40A3C1C1A0"]
["SQ1S40A3C2A0A0"]
["SQ1S40A3C2A1A0"]
["SQ1S40A3C2B0A0"]
["SQ1S40A3C2B1A0"]
["SQ1S40A3C2C0A0"]
["SQ1S40A3C2C1A0"]
["SQ1S40A3C3A0A0"]
["SQ1S40A3C3A1A0"]
["SQ1S40A3C3B0A0"]
["SQ1S40A3C3B1A0"]
["SQ1S40A3C3C0A0"]
["SQ1S40A3C3C1A0"]
["SQ1S40A3C4A0A0"]
["SQ1S40A3C4A1A0"]
["SQ1S40A3C4B0A0"]
["SQ1S40A3C4B1A0"]
["SQ1S40A3C4C0A0"]
["SQ1S40A3C4C1A0"]
["SQ1S40A3C5A0A0"]
["SQ1S40A3C5A1A0"]
["SQ1S40A3C5B0A0"]
["SQ1S40A3C5B1A0"]
["SQ1S40A3C5C0A0"]
["SQ1S40A3C5C1A0"]
["SQ1S40A3C6A0A0"]
["SQ1S40A3C6A1A0"]
["SQ1S40A3C6B0A0"]
["SQ1S40A3C6B1A0"]
["SQ1S40A3C6C0A0"]
["SQ1S40A3C6C1A0"]
["SQ1S40R100A0A0"]
["SQ1S40R100A1A0"]
["SQ1S40R100B0A0"]
["SQ1S40R100B1A0"]
["SQ1S40R100C0A0"]
["SQ1S40R100C1A0"]
["SQ1S40R101A0A0"]
["SQ1S40R101A1A0"]
["SQ1S40R101B0A0"]
["SQ1S40R101B1A0"]
["SQ1S40R101C0A0"]
["SQ1S40R101C1A0"]
["SQ1S40R102A0A0"]
["SQ1S40R102A1A0"]
["SQ1S40R102B0A0"]
["SQ1S40R102B1A0"]
["SQ1S40R102C0A0"]
["SQ1S40R102C1A0"]
["SQ1S40R103A0A0"]
["SQ1S40R103A1A0"]
["SQ1S40R103B0A0"]
["SQ1S40R103B1A0"]
["SQ1S40R103C0A0"]
["SQ1S40R103C1A0"]
["SQ1S40R104A0A0"]
["SQ1S40R104A1A0"]
["SQ1S40R104B0A0"]
["SQ1S40R104B1A0"]
["SQ1S40R104C0A0"]
["SQ1S40R104C1A0"]
["SQ1S40R105A0A0"]
["SQ1S40R105A1A0"]
["SQ1S40R105B0A0"]
["SQ1S40R105B1A0"]
["SQ1S40R105C0A0"]
["SQ1S40R105C1A0"]
["SQ1S40R106A0A0"]
["SQ1S40R106A1A0"]
["SQ1S40R106B0A0"]
["SQ1S40R106B1A0"]
["SQ1S40R106C0A0"]
["SQ1S40R106C1A0"]
["SQ1S40R1A0A0A0"]
["SQ1S40R1A0A1A0"]
["SQ1S40R1A0B0A0"]
["SQ1S40R1A0B1A0"]
["SQ1S40R1A0C0A0"]
["SQ1S40R1A0C1A0"]
["SQ1S40R1A1A0A0"]
["SQ1S40R1A1A1A0"]
["SQ1S40R1A1B0A0"]
["SQ1S40R1A1B1A0"]
["SQ1S40R1A1C0A0"]
["SQ1S40R1A1C1A0"]
["SQ1S40R1A2A0A0"]
["SQ1S40R1A2A1A0"]
["SQ1S40R1A2B0A0"]
["SQ1S40R1A2B1A0"]
["SQ1S40R1A2C0A0"]
["SQ1S40R1A2C1A0"]
["SQ1S40R1A3A0A0"]
["SQ1S40R1A3A1A0"]
["SQ1S40R1A3B0A0"]
["SQ1S40R1A3B1A0"]
["SQ1S40R1A3C0A0"]
["SQ1S40R1A3C1A0"]
["SQ1S40R1A4A0A0"]
["SQ1S40R1A4A1A0"]
["SQ1S40R1A4B0A0"]
["SQ1S40R1A4B1A0"]
["SQ1S40R1A4C0A0"]
["SQ1S40R1A4C1A0"]
["SQ1S40R1A5A0A0"]
["SQ1S40R1A5A1A0"]
["SQ1S40R1A5B0A0"]
["SQ1S40R1A5B1A0"]
["SQ1S40R1A5C0A0"]
["SQ1S40R1A5C1A0"]
["SQ1S40R1A6A0A0"]
["SQ1S40R1A6A1A0"]
["SQ1S40R1A6B0A0"]
["SQ1S40R1A6B1A0"]
["SQ1S40R1A6C0A0"]
["SQ1S40R1A6C1A0"]
["SQ1S40R1B0A0A0"]
["SQ1S40R1B0A1A0"]
["SQ1S40R1B0B0A0"]
["SQ1S40R1B0B1A0"]
["SQ1S40R1B0C0A0"]
["SQ1S40R1B0C1A0"]
["SQ1S40R1B1A0A0"]
["SQ1S40R1B1A1A0"]
["SQ1S40R1B1B0A0"]
["SQ1S40R1B1B1A0"]
["SQ1S40R1B1C0A0"]
["SQ1S40R1B1C1A0"]
["SQ1S40R1B2A0A0"]
["SQ1S40R1B2A1A0"]
["SQ1S40R1B2B0A0"]
["SQ1S40R1B2B1A0"]
["SQ1S40R1B2C0A0"]
["SQ1S40R1B2C1A0"]
["SQ1S40R1B3A0A0"]
["SQ1S40R1B3A1A0"]
["SQ1S40R1B3B0A0"]
["SQ1S40R1B3B1A0"]
["SQ1S40R1B3C0A0"]
["SQ1S40R1B3C1A0"]
["SQ1S40R1B4A0A0"]
["SQ1S40R1B4A1A0"]
["SQ1S40R1B4B0A0"]
["SQ1S40R1B4B1A0"]
["SQ1S40R1B4C0A0"]
["SQ1S40R1B4C1A0"]
["SQ1S40R1B5A0A0"]
["SQ1S40R1B5A1A0"]
["SQ1S40R1B5B0A0"]
["SQ1S40R1B5B1A0"]
["SQ1S40R1B5C0A0"]
["SQ1S40R1B5C1A0"]
["SQ1S40R1B6A0A0"]
["SQ1S40R1B6A1A0"]
["SQ1S40R1B6B0A0"]
["SQ1S40R1B6B1A0"]
["SQ1S40R1B6C0A0"]
["SQ1S40R1B6C1A0"]
["SQ1S40R1C0A0A0"]
["SQ1S40R1C0A1A0"]
["SQ1S40R1C0B0A0"]
["SQ1S40R1C0B1A0"]
["SQ1S40R1C0C0A0"]
["SQ1S40R1C0C1A0"]
["SQ1S40R1C1A0A0"]
["SQ1S40R1C1A1A0"]
["SQ1S40R1C1B0A0"]
["SQ1S40R1C1B1A0"]
["SQ1S40R1C1C0A0"]
["SQ1S40R1C1C1A0"]
["SQ1S40R1C2A0A0"]
["SQ1S40R1C2A1A0"]
["SQ1S40R1C2B0A0"]
["SQ1S40R1C2B1A0"]
["SQ1S40R1C2C0A0"]
["SQ1S40R1C2C1A0"]
["SQ1S40R1C3A0A0"]
["SQ1S40R1C3A1A0"]
["SQ1S40R1C3B0A0"]
["SQ1S40R1C3B1A0"]
["SQ1S40R1C3C0A0"]
["SQ1S40R1C3C1A0"]
["SQ1S40R1C4A0A0"]
["SQ1S40R1C4A1A0"]
["SQ1S40R1C4B0A0"]
["SQ1S40R1C4B1A0"]
["SQ1S40R1C4C0A0"]
["SQ1S40R1C4C1A0"]
["SQ1S40R1C5A0A0"]
["SQ1S40R1C5A1A0"]
["SQ1S40R1C5B0A0"]
["SQ1S40R1C5B1A0"]
["SQ1S40R1C5C0A0"]
["SQ1S40R1C5C1A0"]
["SQ1S40R1C6A0A0"]
["SQ1S40R1C6A1A0"]
["SQ1S40R1C6B0A0"]
["SQ1S40R1C6B1A0"]
["SQ1S40R1C6C0A0"]
["SQ1S40R1C6C1A0"]
["SQ1S40R200A0A0"]
["SQ1S40R200A1A0"]
["SQ1S40R200B0A0"]
["SQ1S40R200B1A0"]
["SQ1S40R200C0A0"]
["SQ1S40R200C1A0"]
["SQ1S40R201A0A0"]
["SQ1S40R201A1A0"]
["SQ1S40R201B0A0"]
["SQ1S40R201B1A0"]
["SQ1S40R201C0A0"]
["SQ1S40R201C1A0"]
["SQ1S40R202A0A0"]
["SQ1S40R202A1A0"]
["SQ1S40R202B0A0"]
["SQ1S40R202B1A0"]
["SQ1S40R202C0A0"]
["SQ1S40R202C1A0"]
["SQ1S40R203A0A0"]
["SQ1S40R203A1A0"]
["SQ1S40R203B0A0"]
["SQ1S40R203B1A0"]
["SQ1S40R203C0A0"]
["SQ1S40R203C1A0"]
["SQ1S40R204A0A0"]
["SQ1S40R204A1A0"]
["SQ1S40R204B0A0"]
["SQ1S40R204B1A0"]
["SQ1S40R204C0A0"]
["SQ1S40R204C1A0"]
["SQ1S40R205A0A0"]
["SQ1S40R205A1A0"]
["SQ1S40R205B0A0"]
["SQ1S40R205B1A0"]
["SQ1S40R205C0A0"]
["SQ1S40R205C1A0"]
["SQ1S40R206A0A0"]
["SQ1S40R206A1A0"]
["SQ1S40R206B0A0"]
["SQ1S40R206B1A0"]
["SQ1S40R206C0A0"]
["SQ1S40R206C1A0"]
["SQ1S40R2A0A0A0"]
["SQ1S40R2A0A1A0"]
["SQ1S40R2A0B0A0"]
["SQ1S40R2A0B1A0"]
["SQ1S40R2A0C0A0"]
["SQ1S40R2A0C1A0"]
["SQ1S40R2A1A0A0"]
["SQ1S40R2A1A1A0"]
["SQ1S40R2A1B0A0"]
["SQ1S40R2A1B1A0"]
["SQ1S40R2A1C0A0"]
["SQ1S40R2A1C1A0"]
["SQ1S40R2A2A0A0"]
["SQ1S40R2A2A1A0"]
["SQ1S40R2A2B0A0"]
["SQ1S40R2A2B1A0"]
["SQ1S40R2A2C0A0"]
["SQ1S40R2A2C1A0"]
["SQ1S40R2A3A0A0"]
["SQ1S40R2A3A1A0"]
["SQ1S40R2A3B0A0"]
["SQ1S40R2A3B1A0"]
["SQ1S40R2A3C0A0"]
["SQ1S40R2A3C1A0"]
["SQ1S40R2A4A0A0"]
["SQ1S40R2A4A1A0"]
["SQ1S40R2A4B0A0"]
["SQ1S40R2A4B1A0"]
["SQ1S40R2A4C0A0"]
["SQ1S40R2A4C1A0"]
["SQ1S40R2A5A0A0"]
["SQ1S40R2A5A1A0"]
["SQ1S40R2A5B0A0"]
["SQ1S40R2A5B1A0"]
["SQ1S40R2A5C0A0"]
["SQ1S40R2A5C1A0"]
["SQ1S40R2A6A0A0"]
["SQ1S40R2A6A1A0"]
["SQ1S40R2A6B0A0"]
["SQ1S40R2A6B1A0"]
["SQ1S40R2A6C0A0"]
["SQ1S40R2A6C1A0"]
["SQ1S40R2B0A0A0"]
["SQ1S40R2B0A1A0"]
["SQ1S40R2B0B0A0"]
["SQ1S40R2B0B1A0"]
["SQ1S40R2B0C0A0"]
["SQ1S40R2B0C1A0"]
["SQ1S40R2B1A0A0"]
["SQ1S40R2B1A1A0"]
["SQ1S40R2B1B0A0"]
["SQ1S40R2B1B1A0"]
["SQ1S40R2B1C0A0"]
["SQ1S40R2B1C1A0"]
["SQ1S40R2B2A0A0"]
["SQ1S40R2B2A1A0"]
["SQ1S40R2B2B0A0"]
["SQ1S40R2B2B1A0"]
["SQ1S40R2B2C0A0"]
["SQ1S40R2B2C1A0"]
["SQ1S40R2B3A0A0"]
["SQ1S40R2B3A1A0"]
["SQ1S40R2B3B0A0"]
["SQ1S40R2B3B1A0"]
["SQ1S40R2B3C0A0"]
["SQ1S40R2B3C1A0"]
["SQ1S40R2B4A0A0"]
["SQ1S40R2B4A1A0"]
["SQ1S40R2B4B0A0"]
["SQ1S40R2B4B1A0"]
["SQ1S40R2B4C0A0"]
["SQ1S40R2B4C1A0"]
["SQ1S40R2B5A0A0"]
["SQ1S40R2B5A1A0"]
["SQ1S40R2B5B0A0"]
["SQ1S40R2B5B1A0"]
["SQ1S40R2B5C0A0"]
["SQ1S40R2B5C1A0"]
["SQ1S40R2B6A0A0"]
["SQ1S40R2B6A1A0"]
["SQ1S40R2B6B0A0"]
["SQ1S40R2B6B1A0"]
["SQ1S40R2B6C0A0"]
["SQ1S40R2B6C1A0"]
["SQ1S40R2C0A0A0"]
["SQ1S40R2C0A1A0"]
["SQ1S40R2C0B0A0"]
["SQ1S40R2C0B1A0"]
["SQ1S40R2C0C0A0"]
["SQ1S40R2C0C1A0"]
["SQ1S40R2C1A0A0"]
["SQ1S40R2C1A1A0"]
["SQ1S40R2C1B0A0"]
["SQ1S40R2C1B1A0"]
["SQ1S40R2C1C0A0"]
["SQ1S40R2C1C1A0"]
["SQ1S40R2C2A0A0"]
["SQ1S40R2C2A1A0"]
["SQ1S40R2C2B0A0"]
["SQ1S40R2C2B1A0"]
["SQ1S40R2C2C0A0"]
["SQ1S40R2C2C1A0"]
["SQ1S40R2C3A0A0"]
["SQ1S40R306A1A0"]
["SQ1S42A106A0A0"]
["SQ1S42A1B5A0A0"]
["SQ1S42A2A4A1A0"]
["SQ1S42A2B4C0A0"]
["SQ1S42A3C1B1A0"]
["SQ1S42R1B1B1A0"]
["SQ1S42R2A0B0A0"]
["SQ1S42R2B6C0A0"]
["SQ1S42R3B5C1A0"]
["SQ1S43A1A3C1A0"]
["SQ1S43A1C4A0A0"]
["SQ1S43A2C2C0A0"]
["SQ1S43A303B1A0"]
["SQ1S43R101B0A0"]
["SQ1S43R1C6A1A0"]
["SQ1S43R206B1A0"]
["SQ1S43R3A5A0A0"]
["SQ1S43R3A6A0A0"]
["SQ1S50A1A3C1A0"]
["SQ1S50A2B1B1A0"]
["SQ1S50A2B2A0A0"]
["SQ1S50A3B1A1A0"]
["SQ1S50A3C6B1A0"]
["SQ1S50R1B6B0A0"]
["SQ1S50R2A5B0A0"]
["SQ1S50R3B4B1A0"]
["SQ1S50R3C3C0A0"]
["SQ1S52A1B1C1A0"]
["SQ1S52A2C0B1A0"]
["SQ1S52A300C0A0"]
["SQ1S52R100A0A0"]
["SQ1S52R1C4C1A0"]
["SQ1S52R204A1A0"]
["SQ1S52R304B0A0"]
["SQ1S52R3B3A0A0"]
["SQ1S53A1A2B1A0"]
["SQ1S53A2A0B0A0"]
["SQ1S53A2B6B1A0"]
["SQ1S53A3A6C1A0"]
["SQ1S53R105B0A0"]
["SQ1S53R1B5A0A0"]
["SQ1S53R2B2C1A0"]
["SQ1S53R3A1C1A0"]
["SQ1S53R3C2B0A0"]
["SQ1B21A0C0A1A0"]
["SQ1B21R0A5B0A0"]
["SQ1B21R0C6C0A0"]
["SQ1B22A0C4A1A0"]
["SQ1B22R004C1A0"]
["SQ1G40A102C0A0"]
["SQ1G40A200C0A0"]
["SQ1G40A2A2A1A0"]
["SQ1G40A3A6B1A0"]
["SQ1G40R106A0A0"]
["SQ1G40R1A5A1A0"]
["SQ1G40R2B3A0A0"]
["SQ1G40R3A3B0A0"]
["SQ1M20A101C1A0"]
["SQ1M20A1B1B1A0"]
["SQ1M20A2B0C0A0"]
["SQ1M20A305B0A0"]
["SQ1M20A3B5C1A0"]
["SQ1M20R1B3C0A0"]
["SQ1M20R2A1C1A0"]
["SQ1M20R2C3A1A0"]
["SQ1M20R302A1A0"]
["SQ1M41A101B0A0"]
["SQ1M41A200B1A0"]
["SQ1M41A205C0A0"]
["SQ1M41A305C0A0"]
["SQ1M41A3B4B1A0"]
["SQ1M41R1A3C1A0"]
["SQ1M41R2A3A0A0"]
["SQ1M41R2C1A0A0"]
["SQ1M41R3B1A1A0"]
["SQ1T24A106C1A0"]
["SQ1T24A2A5A0A0"]
["SQ1T24A2B5B1A0"]
["SQ1T24A3A3B0A0"]
["SQ1T24A3C3C0A0"]
["SQ1T24R1B5B1A0"]
["SQ1T24R2C0B1A0"]
["SQ1T24R301A0A0"]
["SQ1T24R3C5C0A0"]
["SQ1T40A1C4C1A0"]
["SQ1T40A205B0A0"]
["SQ1T40A302A1A0"]
["SQ1T40R102A1A0"]
["SQ1T40R1A4B0A0"]
["SQ1T40R2A0B0A0"]
["SQ1T40R306B1A0"]
["SQ1T40R3B4B1A0"]
["SQ1T42A1A4C0A0"]
["SQ1T42A1C6C0A0"]
["SQ1T42A2B2C1A0"]
["SQ1T42A3B2A0A0"]
["SQ1T42R106C1A0"]
["SQ1T42R1C0A1A0"]
["SQ1T42R2B2A0A0"]
["SQ1T42R2C5B0A0"]
["SQ1T42R3C4B1A0"]
["SQ1T50A1B5B1A0"]
["SQ1T50A202C0A0"]
["SQ1T50A304B0A0"]
["SQ1T50A3C6B1A0"]
["SQ1T50R1A0A0A0"]
["SQ1T50R2A0C1A0"]
["SQ1T50R303C1A0"]
["SQ1T50R3A4B0A0"]
["SQ1T52A1B1A0A0"]
["SQ1T52A1B2B1A0"]
["SQ1T52A2C3A1A0"]
["SQ1T52A3A6B0A0"]
["SQ1T52A3B6C1A0"]
["SQ1T52R1C6C0A0"]
["SQ1T52R2B3C0A0"]
["SQ1T52R3A5B1A0"]
["SQ1T52R3C1C1A0"]
["SQ1S80A105B1A0"]
["SQ1S80A106A0B1"]
["SQ1S80A1D6C0B1"]
["SQ1S80A1E2B0A0"]
["SQ1S80A1F1B0B0"]
["SQ1S80A1G0C1A1"]
["SQ1S80A1G3A1A1"]
["SQ1S80A1H2A1A0"]
["SQ1S80A1I1C1B1"]
["SQ1S80A1I4A0B0"]
["SQ1S80A1J3A1B0"]
["SQ1S80A1K0A1B1"]
["SQ1S80A1K4B1A1"]
["SQ1S80A1L4B0A0"]
["SQ1S80A201A1A0"]
["SQ1S80A205B1B1"]
["SQ1S80A2D4B0A1"]
["SQ1S80A2E5A1A0"]
["SQ1S80A2E6C0A1"]
["SQ1S80A2F5A1B0"]
["SQ1S80A2G5C1B0"]
["SQ1S80A2H1B0B1"]
["SQ1S80A2I0B1A1"]
["SQ1S80A2I2A0B0"]
["SQ1S80A2J2B0A0"]
["SQ1S80A2K1A1B1"]
["SQ1S80A2K5B1A1"]
["SQ1S80A2L2C1B0"]
["SQ1S80A302B0A1"]
["SQ1S80A306B0B0"]
["SQ1S80A3D4A0A0"]
["SQ1S80A3E3B0B1"]
["SQ1S80A3F0A1B1"]
["SQ1S80A3F4C0B0"]
["SQ1S80A3G3B1A0"]
["SQ1S80A3G6B0A1"]
["SQ1S80A3H5C1A0"]
["SQ1S80A3I4B0A1"]
["SQ1S80A3J0B0B1"]
["SQ1S80A3K0B1B0"]
["SQ1S80A3K1C0B0"]
["SQ1S80A3L1A1A1"]
["SQ1S80C101B0B1"]
["SQ1S80C102C1A0"]
["SQ1S80C106C0B1"]
["SQ1S80C1E2A0A1"]
["SQ1S80C1E3B1B0"]
["SQ1S80C1F0C0A0"]
["SQ1S80C1G3A0B1"]
["SQ1S80C1G4C0A0"]
["SQ1S80C1H1B1A1"]
["SQ1S80C1H6A1B1"]
["SQ1S80C1I4C0B0"]
["SQ1S80C1J5B1A0"]
["SQ1S80C1K0A0A1"]
["SQ1S80C1K5B1B1"]
["SQ1S80C1L6B1B0"]
["SQ1S80C201C1A0"]
["SQ1S80C2D0C1A1"]
["SQ1S80C2E0C0A0"]
["SQ1S80C2E2C0A1"]
["SQ1S80C2F1C1B1"]
["SQ1S80C2F5C1B0"]
["SQ1S80C2G3A1B0"]
["SQ1S80C2H3A0A1"]
["SQ1S80C2H6C0B1"]
["SQ1S80C2I4B0A0"]
["SQ1S80C2J3A0A0"]
["SQ1S80C2J5B1B1"]
["SQ1S80C2K5B0B0"]
["SQ1S80C2L3C1A1"]
["SQ1S80C2L6C0A1"]
["SQ1S80C306B1A0"]
["SQ1S80C3D4C0B0"]
["SQ1S80C3E0C0B1"]
["SQ1S80C3F0C1B1"]
["SQ1S80C3G0A0A0"]
["SQ1S80C3G1C1A1"]
["SQ1S80C3H1C1A0"]
["SQ1S80C3I1A0B0"]
["SQ1S80C3I5A0A1"]
["SQ1S80C3J2B0A1"]
["SQ1S80C3J4A1B0"]
["SQ1S80C3K5C1B0"]
["SQ1S80C3L3B0B1"]
["SQ1S80P101A1A1"]
["SQ1S80P104C0B0"]
["SQ1S80P1D4B1A1"]
["SQ1S80P1E3A0A0"]
["SQ1S80P1E5C1A0"]
["SQ1S80P1F5A1B1"]
["SQ1S80P1G0A0B1"]
["SQ1S80P1G6C1B0"]
["SQ1S80P1H6A1A0"]
["SQ1S80P1I1A1A1"]
["SQ1S80P1J1A0A0"]
["SQ1S80P1J3A0B0"]
["SQ1S80P1K2A1B1"]
["SQ1S80P1L3A1B0"]
["SQ1S80P1L3B1B0"]
["SQ1S80P203B0A1"]
["SQ1S80P2D0A1A0"]
["SQ1S80P2D4C0A0"]
["SQ1S80P2E2B0B1"]
["SQ1S80P2F3C1A1"]
["SQ1S80P2F5C0B0"]
["SQ1S80P2G3B0A0"]
["SQ1S80P2H4C1B1"]
["SQ1S80P2H6B1A1"]
["SQ1S80P2I6A1B0"]
["SQ1S80P2J6A0A1"]
["SQ1S80P2K0B0B0"]
["SQ1S80P2L0B0A0"]
["SQ1S80P2L2A1A1"]
["SQ1S80P301A1B1"]
["SQ1S80P3D1B0B0"]
["SQ1S80P3D4B1A0"]
["SQ1S80P3E2C0A1"]
["SQ1S80P3F2B1A0"]
["SQ1S80P3F5B0A1"]
["SQ1S80P3G3C0B1"]
["SQ1S80P3H1B1B0"]
["SQ1S80P3H5A0B0"]
["SQ1S80P3I4C1A1"]
["SQ1S80P3J2B0B1"]
["SQ1S80P3J6A1A0"]
["SQ1S80P3K5C0A0"]
["SQ1S80P3L0C0B1"]
["SQ1S82A100A1B0"]
["SQ1S82A106B1A1"]
["SQ1S82A1D1B1A1"]
["SQ1S82A1E2C0B0"]
["SQ1S82A1F1A0B0"]
["SQ1S82A1F2B1B1"]
["SQ1S82A1G3B1B1"]
["SQ1S82A1H1C1A0"]
["SQ1S82A1H3C0A1"]
["SQ1S82A1I4B1A0"]
["SQ1S82A1J2C1B0"]
["SQ1S82A1K0C0A1"]
["SQ1S82A1K4B1A1"]
["SQ1S82A1L4A0A0"]
["SQ1S82A201B1B0"]
["SQ1S82A205A1B1"]
["SQ1S82A206C1B0"]
["SQ1S82A2D6C1B0"]
["SQ1S82A2E6B0A1"]
["SQ1S82A2F0C0B1"]
["SQ1S82A2G1A0A0"]
["SQ1S82A2G4A0A0"]
["SQ1S82A2H2A1B1"]
["SQ1S82A2I1C0B0"]
["SQ1S82A2I4C1A1"]
["SQ1S82A2J3B0A1"]
["SQ1S82A2K2C1A0"]
["SQ1S82A2K5C0B0"]
["SQ1S82A2L4A0B1"]
["SQ1S82A301C1B1"]
["SQ1S82A305C0B0"]
["SQ1S82A3D5A1A1"]
["SQ1S82A3E2C1A0"]
["SQ1S82A3E6C1A0"]
["SQ1S82A3F6A0A1"]
["SQ1S82A3G6A0A1"]
["SQ1S82A3H0B1B0"]
["SQ1S82A3H6C1B0"]
["SQ1S82A3J0A0B1"]
["SQ1S82A3J3A0B1"]
["SQ1S82A3K1B0B0"]
["SQ1S82A3L0C1A1"]
["SQ1S82A3L4A0A0"]
["SQ1S82C102B1A0"]
["SQ1S82C1D0A1A1"]
["SQ1S82C1D3C0B1"]
["SQ1S82C1E3B1B0"]
["SQ1S82C1F1A0B0"]
["SQ1S82C1F4C1A1"]
["SQ1S82C1G4B0A0"]
["SQ1S82C1H1C1B1"]
["SQ1S82C1H5C1B1"]
["SQ1S82C1I5A1A0"]
["SQ1S82C1J0A1B0"]
["SQ1S82C1K0A0A1"]
["SQ1S82C1K6A0A1"]
["SQ1S82C1L1B0A0"]
["SQ1S82C202A1B0"]
["SQ1S82C202B1B1"]
["SQ1S82C2D2B0B0"]
["SQ1S82C2E3A0B1"]
["SQ1S82C2E3C0A1"]
["SQ1S82C2F1B0B1"]
["SQ1S82C2G2C1B0"]
["SQ1S82C2G4C0B1"]
["SQ1S82C2H2B0A0"]
["SQ1S82C2I4A0A0"]
["SQ1S82C2J2B1A0"]
["SQ1S82C2J5A1B1"]
["SQ1S82C2K5A0B0"]
["SQ1S82C2K6B0B0"]
["SQ1S82C2L6B0A1"]
["SQ1S82C301A1B0"]
["SQ1S82C3D0A1B1"]
["SQ1S82C3E0B0B1"]
["SQ1S82C3E2B1B0"]
["SQ1S82C3F1C0B0"]
["SQ1S82C3G1B1A1"]
["SQ1S82C3G4B0A1"]
["SQ1S82C3H2C1A0"]
["SQ1S82C3H6C0A0"]
["SQ1S82C3I4A0B1"]
["SQ1S82C3J3C1B0"]
["SQ1S82C3K1B0B1"]
["SQ1S82C3K5A1A1"]
["SQ1S82C3L3C0B0"]
["SQ1S82P104B0B0"]
["SQ1S82P106A1B1"]
["SQ1S82P1D4B1B1"]
["SQ1S82P1E0B1B0"]
["SQ1S82P1F0B0A1"]
["SQ1S82P1F6B0B0"]
["SQ1S82P1G1C0A0"]
["SQ1S82P1H1C0A1"]
["SQ1S82P1I0C1A1"]
["SQ1S82P1I2C0B0"]
["SQ1S82P1J3B1A0"]
["SQ1S82P1K1C1B1"]
["SQ1S82P1K5C0B1"]
["SQ1S82P1L3A1B0"]
["SQ1S82P203A0A1"]
["SQ1S82P206C0A0"]
["SQ1S82P2D4B0A0"]
["SQ1S82P2E2C1A1"]
["SQ1S82P2E5B1B1"]
["SQ1S82P2F5B0B0"]
["SQ1S82P2G3C0B0"]
["SQ1S82P2G6C0A1"]
["SQ1S82P2H6C1B1"]
["SQ1S82P2I1B0A0"]
["SQ1S82P2J0C0B1"]
["SQ1S82P2K0C1A0"]
["SQ1S82P2K2A0B0"]
["SQ1S82P2L1C1A1"]
["SQ1S82P301C0A1"]
["SQ1S82P303A1A0"]
["SQ1S82P3D0A0A1"]
["SQ1S82P3E2B0A1"]
["SQ1S82P3E4A1B0"]
["SQ1S82P3F0C1B0"]
["SQ1S82P3F5B1A1"]
["SQ1S82P3G4A0B1"]
["SQ1S82P3H5A0B0"]
["SQ1S82P3H6B1B1"]
["SQ1S82P3I5A0A0"]
["SQ1S82P3J5C1A0"]
["SQ1S82P3K1A1A1"]
["SQ1S82P3L0B0B1"]
["SQ1S82P3L6C1B0"]
["SQ1S84A102A0B0"]
["SQ1S84A1D1A1A1"]
["SQ1S84A1E1A0A0"]
["SQ1S84A1E2C1B1"]
["SQ1S84A1F2A1B1"]
["SQ1S84A1F6A1A0"]
["SQ1S84A1G3C1B0"]
["SQ1S84A1H3B0A1"]
["SQ1S84A1I0A0A1"]
["SQ1S84A1I4C0A0"]
["SQ1S84A1J3A1B0"]
["SQ1S84A1J6A1B1"]
["SQ1S84A1K5C0B0"]
["SQ1S84A1L4A0B1"]
["SQ1S84A200B0A1"]
["SQ1S84A2D0B0A0"]
["SQ1S84A2D6B1B0"]
["SQ1S84A2E1A0B1"]
["SQ1S84A2F1A1A1"]
["SQ1S84A2F2C0B0"]
["SQ1S84A2G4B0B0"]
["SQ1S84A2H1C1B1"]
["SQ1S84A2H3B1A0"]
["SQ1S84A2I5A1B1"]
["SQ1S84A2J3A0A1"]
["SQ1S84A2J4B1B0"]
["SQ1S84A2K6A1A0"]
["SQ1S84A2L4A0B1"]
["SQ1S84A302B0A1"]
["SQ1S84A305B0B0"]
["SQ1S84A3D4C1A1"]
["SQ1S84A3E3A1B0"]
["SQ1S84A3E6B1A0"]
["SQ1S84A3F1B1B0"]
["SQ1S84A3G0C0B1"]
["SQ1S84A3H0B1B0"]
["SQ1S84A3H2B0B1"]
["SQ1S84A3I1C1A1"]
["SQ1S84A3I5C0A0"]
["SQ1S84A3J3A1A0"]
["SQ1S84A3K2C1B1"]
["SQ1S84A3K6B1A1"]
["SQ1S84A3L4A1B0"]
["SQ1S84C102C0B0"]
["SQ1S84C1D3B0B1"]
["SQ1S84C1D5B0A0"]
["SQ1S84C1E3B1B1"]
["SQ1S84C1F4B1A1"]
["SQ1S84C1F6B0B0"]
["SQ1S84C1G4B1A0"]
["SQ1S84C1H0C0A1"]
["SQ1S84C1I0C0A1"]
["SQ1S84C1I6C1B0"]
["SQ1S84C1J1C0B1"]
["SQ1S84C1K1B1B0"]
["SQ1S84C1L1A0A0"]
["SQ1S84C1L4C0B1"]
["SQ1S84C202A1B1"]
["SQ1S84C2D2A0B0"]
["SQ1S84C2D5C0A0"]
["SQ1S84C2E3B0A1"]
["SQ1S84C2F0C1B1"]
["SQ1S84C2F4C0A0"]
["SQ1S84C2G4B0B1"]
["SQ1S84C2H2C0B0"]
["SQ1S84C2H5C0B0"]
["SQ1S84C2I5B1A1"]
["SQ1S84C2J3B1B1"]
["SQ1S84C2J6C1A0"]
["SQ1S84C2K5C1B0"]
["SQ1S84C2L1A0B1"]
["SQ1S84C300C1B0"]
["SQ1S84C3D0C0A1"]
["SQ1S84C3D2A1A1"]
["SQ1S84C3E3A0A0"]
["SQ1S84C3F1B0B0"]
["SQ1S84C3F3A1B1"]
["SQ1S84C3F6C1B0"]
["SQ1S84C3H2B1A0"]
["SQ1S84C3I0A0B0"]
["SQ1S84C3I3C0B1"]
["SQ1S84C3I5C0A0"]
["SQ1S84C3K0C1B1"]
["SQ1S84C3K4C1A1"]
["SQ1S84C3K6A1B1"]
["SQ1S84C3L6A1A0"]
["SQ1S84P105C1B1"]
["SQ1S84P1D0A1A0"]
["SQ1S84P1E0A1B0"]
["SQ1S84P1F0A0A1"]
["SQ1S84P1F1A0A1"]
["SQ1S84P1G1B0A0"]
["SQ1S84P1G4A1B0"]
["SQ1S84P1H2B1B1"]
["SQ1S84P1I2B0B0"]
["SQ1S84P1I5A0B1"]
["SQ1S84P1J3C0A1"]
["SQ1S84P1K1B0A0"]
["SQ1S84P1K5A0A0"]
["SQ1S84P1L4C0B1"]
["SQ1S84P202A1A1"]
["SQ1S84P206A0B0"]
["SQ1S84P2D5B0B0"]
["SQ1S84P2E5B1B1"]
["SQ1S84P2F0A1A0"]
["SQ1S84P2F6A1B1"]
["SQ1S84P2G6B0A1"]
["SQ1S84P2H2B1A0"]
["SQ1S84P2I1A0A0"]
["SQ1S84P2J0B0B1"]
["SQ1S84P2J3B0A1"]
["SQ1S84P2K1C0B0"]
["SQ1S84P2K3B1B1"]
["SQ1S84P2L4A1B0"]
["SQ1S84P302C1A0"]
["SQ1S84P3D0B0B1"]
["SQ1S84P3D4B0B1"]
["SQ1S84P3E3C1B0"]
["SQ1S84P3F1B0A0"]
["SQ1S84P3F5A1A1"]
["SQ1S84P3G4B1A1"]
["SQ1S84P3G6C1A0"]
["SQ1S84P3H6A1B1"]
["SQ1S84P3I5B0B0"]
["SQ1S84P3J0C1B0"]
["SQ1S84P3K1B1B1"]
["SQ1S84P3K2A1A1"]
["SQ1S84P3L1C0A0"]
["SQ1B80A102B1A0"]
["SQ1B80A103A1B1"]
["SQ1B80A1D2C0B0"]
["SQ1B80A1E3B0A1"]
["SQ1B80A1E4A0A1"]
["SQ1B80A1F1C0A1"]
["SQ1B80A1G3B1B0"]
["SQ1B80A1G5A0B1"]
["SQ1B80A1H2B1B0"]
["SQ1B80A1I4C0A0"]
["SQ1B80A1I5C0B1"]
["SQ1B80A1J5C1B1"]
["SQ1B80A1K5B0B0"]
["SQ1B80A1K6C0A0"]
["SQ1B80A200A0A1"]
["SQ1B80A202C1A1"]
["SQ1B80A2D1B0A0"]
["SQ1B80A2E0C0B1"]
["SQ1B80A2E3C0B0"]
["SQ1B80A2F2B0B0"]
["SQ1B80A2F6C1B1"]
["SQ1B80A2G3C0A1"]
["SQ1B80A2H3B1A0"]
["SQ1B80A2I0C1A0"]
["SQ1B80A2I4C0B1"]
["SQ1B80A2J4A1B0"]
["SQ1B80A2K1C0A1"]
["SQ1B80A2K5C1A1"]
["SQ1B80A2L4C1B0"]
["SQ1B80A300A1A0"]
["SQ1B80A306C1B1"]
["SQ1B80A3D5C0B1"]
["SQ1B80A3E1A1B0"]
["SQ1B80A3F2A0A0"]
["SQ1B80A3G0B0B1"]
["SQ1B80A3G2B0A0"]
["SQ1B80A3H2C1A1"]
["SQ1B80A3I1B1A1"]
["SQ1B80A3I6A0B0"]
["SQ1B80A3J2C1A0"]
["SQ1B80A3K2B1B1"]
["SQ1B80A3K6C1B1"]
["SQ1B80A3L3C1B0"]
["SQ1B80A3L5C0B1"]
["SQ1B80C1D0C1A0"]
["SQ1B80C1D5A0A0"]
["SQ1B80C1E4A0A1"]
["SQ1B80C1E6A1B1"]
["SQ1B80C1F6A0B0"]
["SQ1B80C1G0A0A1"]
["SQ1B80C1H0B0A1"]
["SQ1B80C1I0A1A1"]
["SQ1B80C1I1C0A0"]
["SQ1B80C1J1B0B1"]
["SQ1B80C1J4A0B1"]
["SQ1B80C1K2C0B0"]
["SQ1B80C1K6B0B0"]
["SQ1B80C201C1B1"]
["SQ1B80C203C1A0"]
["SQ1B80C2D1A1A1"]
["SQ1B80C2D5A0B1"]
["SQ1B80C2E3B1A0"]
["SQ1B80C2F4B0A0"]
["SQ1B80C2F6A1A1"]
["SQ1B80C2G4B0A1"]
["SQ1B80C2H5B0B0"]
["SQ1B80C2I0A1B1"]
["SQ1B80C2I6A1A0"]
["SQ1B80C2J6B1A0"]
["SQ1B80C2K1B0B1"]
["SQ1B80C2L0C0B1"]
["SQ1B80C300B1B0"]
["SQ1B80C303A1B0"]
["SQ1B80C3D1C1A1"]
["SQ1B80C3D5B1A1"]
["SQ1B80C3E3A1A0"]
["SQ1B80C3F2C1B1"]
["SQ1B80C3F6B0B0"]
["SQ1B80C3G4A1B0"]
["SQ1B80C3H2B1B1"]
["SQ1B80C3H5B1A1"]
["SQ1B80C3I5B0A0"]
["SQ1B80C3J3B1A0"]
["SQ1B80C3J6B1B1"]
["SQ1B80C3K6C0A1"]
["SQ1B80C3L6A1A0"]
["SQ1B80P100C0A1"]
["SQ1B80P1D0B1B0"]
["SQ1B80P1D6C1B0"]
["SQ1B80P1E1C0B1"]
["SQ1B80P1F1B0B1"]
["SQ1B80P1F3A0B0"]
["SQ1B80P1G4C0A0"]
["SQ1B80P1H2A1B1"]
["SQ1B80P1H4A1A0"]
["SQ1B80P1I5B1A1"]
["SQ1B80P1J3B0A1"]
["SQ1B80P1K1C0B0"]
["SQ1B80P1K5A0A0"]
["SQ1B80P1L4B0B1"]
["SQ1B80P202B1B1"]
["SQ1B80P205C0B0"]
["SQ1B80P2D0C1B1"]
["SQ1B80P2E0B0A1"]
["SQ1B80P2E6C1A0"]
["SQ1B80P2F1C1A0"]
["SQ1B80P2G1B0B1"]
["SQ1B80P2H0C1B0"]
["SQ1B80P2H2C0A1"]
["SQ1B80P2I2A1A1"]
["SQ1B80P2I5C1B0"]
["SQ1B80P2J3C1A0"]
["SQ1B80P2K3A1B1"]
["SQ1B80P2K6C0B1"]
["SQ1B80P2L4B1B0"]
["SQ1B80P303A0A0"]
["SQ1B80P3D4A0B1"]
["SQ1B80P3D5C0A0"]
["SQ1B80P3E3C1A1"]
["SQ1B80P3F0A1B1"]
["SQ1B80P3G0A0B0"]
["SQ1B80P3G6B1A0"]
["SQ1B80P3H1A0A1"]
["SQ1B80P3I0C1B1"]
["SQ1B80P3J0B1B0"]
["SQ1B80P3J4A1A0"]
["SQ1B80P3K1C1A1"]
["SQ1B80P3L1B0A0"]
["SQ1B80P3L5A0A1"]
["SQ1B83A102C1B1"]
["SQ1B83A1D2B0B0"]
["SQ1B83A1D5C1B0"]
["SQ1B83A1E4A0A1"]
["SQ1B83A1F2A0B1"]
["SQ1B83A1F5B0A0"]
["SQ1B83A1G4C0B1"]
["SQ1B83A1H3A0A0"]
["SQ1B83A1H6B0B0"]
["SQ1B83A1I6A1A1"]
["SQ1B83A1J0C0A1"]
["SQ1B83A1K0B1A0"]
["SQ1B83A1L0A0B0"]
["SQ1B83A1L1C0B1"]
["SQ1B83A203A1B1"]
["SQ1B83A2D1A0A0"]
["SQ1B83A2D2C1A1"]
["SQ1B83A2D6A1B1"]
["SQ1B83A2E4A1A0"]
["SQ1B83A2F3B1B1"]
["SQ1B83A2G0A1A0"]
["SQ1B83A2G5A1B0"]
["SQ1B83A2H3B0A1"]
["SQ1B83A2I4B0B1"]
["SQ1B83A2I6B0A0"]
["SQ1B83A2J4A1B0"]
["SQ1B83A2K5B1A1"]
["SQ1B83A2L0B0B1"]
["SQ1B83A2L6C1A0"]
["SQ1B83A306B1B1"]
["SQ1B83A3D1B0A0"]
["SQ1B83A3E0C1B0"]
["SQ1B83A3E4B1A1"]
["SQ1B83A3F2A1A1"]
["SQ1B83A3G2A0A0"]
["SQ1B83A3G5B0B0"]
["SQ1B83A3H3A1B1"]
["SQ1B83A3I0C0A1"]
["SQ1B83A3I4B1B0"]
["SQ1B83A3J4B0A1"]
["SQ1B83A3K2B1A0"]
["SQ1B83A3K5C0A0"]
["SQ1B83A3L5B0B1"]
["SQ1B83C103B0A1"]
["SQ1B83C106C0B0"]
["SQ1B83C1D5C0A0"]
["SQ1B83C1E5C1B1"]
["SQ1B83C1F0C1A0"]
["SQ1B83C1G0B0B1"]
["SQ1B83C1G2A0B1"]
["SQ1B83C1H2C0B0"]
["SQ1B83C1I1B0A0"]
["SQ1B83C1I3A1A1"]
["SQ1B83C1J4B1A1"]
["SQ1B83C1K2B0B0"]
["SQ1B83C1K6C1A0"]
["SQ1B83C1L3C0A1"]
["SQ1B83C203B1A0"]
["SQ1B83C2D0C0A1"]
["SQ1B83C2D4C0B1"]
["SQ1B83C2E3C1B0"]
["SQ1B83C2E6A0B0"]
["SQ1B83C2F5C1A1"]
["SQ1B83C2G4C0B1"]
["SQ1B83C2H0A1A0"]
["SQ1B83C2H6C1B1"]
["SQ1B83C2I5C0A0"]
["SQ1B83C2J1A1B0"]
["SQ1B83C2K1C1A1"]
["SQ1B83C2K2B1A1"]
["SQ1B83C2L2B0A0"]
["SQ1B83C302C0B0"]
["SQ1B83C303B1B1"]
["SQ1B83C3D1A0B0"]
["SQ1B83C3E2C1A0"]
["SQ1B83C3E4C0A1"]
["SQ1B83C3F1C1B1"]
["SQ1B83C3G3C1B0"]
["SQ1B83C3G5A1A0"]
["SQ1B83C3H5B1A1"]
["SQ1B83C3I0A0B0"]
["SQ1B83C3I6A0A1"]
["SQ1B83C3J6A1B1"]
["SQ1B83C3K1A1A0"]
["SQ1B83C3K6C1B0"]
["SQ1B83P100B0A1"]
["SQ1B83P103A0B1"]
["SQ1B83P1D1C0A0"]
["SQ1B83P1E1B0B1"]
["SQ1B83P1E4A0A0"]
["SQ1B83P1F2C0B0"]
["SQ1B83P1G0A1A1"]
["SQ1B83P1G4B0A1"]
["SQ1B83P1H3C1A0"]
["SQ1B83P1I1A0B0"]
["SQ1B83P1I5A0B1"]
["SQ1B83P1J4A1B1"]
["SQ1B83P1J6C0B0"]
["SQ1B83P1K6A1A1"]
["SQ1B83P1L5A1A0"]
["SQ1B83P200C1A0"]
["SQ1B83P2D1B0A1"]
["SQ1B83P2E0A0A1"]
["SQ1B83P2E1B1B0"]
["SQ1B83P2F2A1B0"]
["SQ1B83P2G1A0B1"]
["SQ1B83P2G2C0A0"]
["SQ1B83P2H3A0B1"]
["SQ1B83P2I1C1A1"]
["SQ1B83P2I6B0A0"]
["SQ1B83P2J3B1A0"]
["SQ1B83P2J5A0A1"]
["SQ1B83P2L0A1A1"]
["SQ1B83P2L4B1B0"]
["SQ1B83P303B0B0"]
["SQ1B83P305C1A1"]
["SQ1B83P3D5B0A0"]
["SQ1B83P3D6B0B0"]
["SQ1B83P3E6C1B1"]
["SQ1B83P3F2B1B1"]
["SQ1B83P3G1A1B0"]
["SQ1B83P3H0C0A1"]
["SQ1B83P3H3B1A0"]
["SQ1B83P3I2B0A0"]
["SQ1B83P3J1C0B1"]
["SQ1B83P3J4B0A1"]
["SQ1B83P3K3B0B0"]
["SQ1B83P3L0B1B0"]
["SQ1B83P3L4C0A1"]
["SQ1G82A104A1A0"]
["SQ1G82A1D1B0B1"]
["SQ1G82A1D5C0B1"]
["SQ1G82A1E4C0A0"]
["SQ1G82A1F5A0A0"]
["SQ1G82A1F6C1A1"]
["SQ1G82A1G5B1A1"]
["SQ1G82A1H6A0B0"]
["SQ1G82A1I1C0B0"]
["SQ1G82A1J0B0A1"]
["SQ1G82A1J2A1B0"]
["SQ1G82A1K2B1B1"]
["SQ1G82A1L1B0B1"]
["SQ1G82A1L5C1A0"]
["SQ1G82A202C0B0"]
["SQ1G82A2D2B1A1"]
["SQ1G82A2D6C0A1"]
["SQ1G82A2E3C1A0"]
["SQ1G82A2F3B1B1"]
["SQ1G82A2G0B1B0"]
["SQ1G82A2G4C1B0"]
["SQ1G82A2H3C0B1"]
["SQ1G82A2H6A1A1"]
["SQ1G82A2I6A0A0"]
["SQ1G82A2J4C0A0"]
["SQ1G82A2K0A1B1"]
["SQ1G82A2K6C1B1"]
["SQ1G82A2L1B1B0"]
["SQ1G82A301B0A1"]
["SQ1G82A3D1C0B0"]
["SQ1G82A3D2C0A0"]
["SQ1G82A3E4A0A1"]
["SQ1G82A3F1C1A1"]
["SQ1G82A3F3C0B0"]
["SQ1G82A3G0C1B1"]
["SQ1G82A3H2C1B1"]
["SQ1G82A3I1A0B1"]
["SQ1G82A3I4A1B0"]
["SQ1G82A3J4A0A1"]
["SQ1G82A3K2A0A0"]
["SQ1G82A3K5B0A0"]
["SQ1G82A3L0A1A1"]
["SQ1G82A3L5C1B0"]
["SQ1G82C106B0B0"]
["SQ1G82C1D1A1A1"]
["SQ1G82C1E0C0A1"]
["SQ1G82C1F0B1A0"]
["SQ1G82C1F3A0A0"]
["SQ1G82C1G1C0B1"]
["SQ1G82C1G5A1B1"]
["SQ1G82C1H3A0B0"]
["SQ1G82C1I2C1A1"]
["SQ1G82C1I6A1A0"]
["SQ1G82C1J4A1A0"]
["SQ1G82C1K2B0A1"]
["SQ1G82C1L3B0A1"]
["SQ1G82C1L5A1B0"]
["SQ1G82C203A1B0"]
["SQ1G82C206B1A1"]
["SQ1G82C2D6B0A0"]
["SQ1G82C2E4A0B1"]
["SQ1G82C2F0B1B1"]
["SQ1G82C2G0B0A0"]
["SQ1G82C2G6C1A0"]
["SQ1G82C2H1C0A1"]
["SQ1G82C2I1A1A1"]
["SQ1G82C2J0C1B0"]
["SQ1G82C2J4B0B0"]
["SQ1G82C2K2A1A1"]
["SQ1G82C2L2A0A0"]
["SQ1G82C2L5A1B1"]
["SQ1G82C303A1B1"]
["SQ1G82C3D1B1A0"]
["SQ1G82C3D4C1B0"]
["SQ1G82C3E4B0A1"]
["SQ1G82C3F2B0A1"]
["SQ1G82C3F5C0A0"]
["SQ1G82C3G5B1B0"]
["SQ1G82C3H0A1B1"]
["SQ1G82C3H6C0B0"]
["SQ1G82C3I6B0B1"]
["SQ1G82C3J1B0A1"]
["SQ1G82C3K0C1A0"]
["SQ1G82C3L0B0A0"]
["SQ1G82C3L2A0B1"]
["SQ1G82C3L5C0A0"]
["SQ1G82P103C0B0"]
["SQ1G82P1D3A1A1"]
["SQ1G82P1D6B1A1"]
["SQ1G82P1E4B1A0"]
["SQ1G82P1F2C0B0"]
["SQ1G82P1G4A0A1"]
["SQ1G82P1G5B1B0"]
["SQ1G82P1H3B1B1"]
["SQ1G82P1I5A0B1"]
["SQ1G82P1I6C1A0"]
["SQ1G82P1J6B0B0"]
["SQ1G82P1K5C1A1"]
["SQ1G82P1L0C0A1"]
["SQ1G82P200B1A0"]
["SQ1G82P203C1B0"]
["SQ1G82P2D1C0B1"]
["SQ1G82P2E1A1B0"]
["SQ1G82P2E4C0B1"]
["SQ1G82P2F2C1A1"]
["SQ1G82P2G2B0A0"]
["SQ1G82P2G5C0A0"]
["SQ1G82P2H3C1B1"]
["SQ1G82P2I1C1A1"]
["SQ1G82P2I5A1B0"]
["SQ1G82P2J4C0A1"]
["SQ1G82P2K2C0B0"]
["SQ1G82P2K6B0A0"]
["SQ1G82P2L5C1B1"]
["SQ1G82P305B1A1"]
["SQ1G82P3D0B0B0"]
["SQ1G82P3D6C1A0"]
["SQ1G82P3E1C0A1"]
["SQ1G82P3F3A0A1"]
["SQ1G82P3G0C1B0"]
["SQ1G82P3G2C0B1"]
["SQ1G82P3H3C1B0"]
["SQ1G82P3I2A0A0"]
["SQ1G82P3I3B1A1"]
["SQ1G82P3J4C0B1"]
["SQ1G82P3K3A0B0"]
["SQ1G82P3L1A0A0"]
["SQ1G82P3L4B0A1"]
["SQ1G87A104A1A0"]
["SQ1G87A1D1C1A1"]
["SQ1G87A1D5B0B1"]
["SQ1G87A1E0A1A1"]
["SQ1G87A1E6C0B0"]
["SQ1G87A1F6B1A1"]
["SQ1G87A1G1A0B0"]
["SQ1G87A1H0C1A0"]
["SQ1G87A1H4A1B1"]
["SQ1G87A1I2A0B1"]
["SQ1G87A1J1C1B0"]
["SQ1G87A1J5A1A0"]
["SQ1G87A1K3A1A1"]
["SQ1G87A1L0B0B1"]
["SQ1G87A202B0B0"]
["SQ1G87A204A1B1"]
["SQ1G87A2D2A1B0"]
["SQ1G87A2E3B1A0"]
["SQ1G87A2E5B0A1"]
["SQ1G87A2F3A0B1"]
["SQ1G87A2F6C0A0"]
["SQ1G87A2G5B0B0"]
["SQ1G87A2H5C1A1"]
["SQ1G87A2I0C0B0"]
["SQ1G87A2J0A1A1"]
["SQ1G87A2J6C1B1"]
["SQ1G87A2K2B1A0"]
["SQ1G87A2L1A1B0"]
["SQ1G87A301A0A1"]
["SQ1G87A304A1B1"]
["SQ1G87A3D2B0A0"]
["SQ1G87A3D6B1B0"]
["SQ1G87A3E3B1B1"]
["SQ1G87A3F3B0B0"]
["SQ1G87A3G0B0B1"]
["SQ1G87A3G4C0A1"]
["SQ1G87A3H4B1A0"]
["SQ1G87A3I2A1B0"]
["SQ1G87A3I5C0B1"]
["SQ1G87A3J4B1A1"]
["SQ1G87A3K0A0B0"]
["SQ1G87A3K6C1A1"]
["SQ1G87A3L5B0B0"]
["SQ1G87C101A1A0"]
["SQ1G87C1D1B1B1"]
["SQ1G87C1E0B0A1"]
["SQ1G87C1E2A1B0"]
["SQ1G87C1F2B1A0"]
["SQ1G87C1G1B0B1"]
["SQ1G87C1G5C0A1"]
["SQ1G87C1H2C0B0"]
["SQ1G87C1H4B1B1"]
["SQ1G87C1I6B1B0"]
["SQ1G87C1J3C1A0"]
["SQ1G87C1K2C0B1"]
["SQ1G87C1K5B0B1"]
["SQ1G87C1L4C1B0"]
["SQ1G87C1L5C0B1"]
["SQ1G87C206A1A1"]
["SQ1G87C2D6A0A0"]
["SQ1G87C2D6C0A0"]
["SQ1G87C2F0A1B1"]
["SQ1G87C2F2C1A1"]
["SQ1G87C2G1B1B0"]
["SQ1G87C2H1B0A1"]
["SQ1G87C2H3C0B0"]
["SQ1G87C2I2C0A0"]
["SQ1G87C2I6C1B1"]
["SQ1G87C2J4A1B1"]
["SQ1G87C2K3C0B0"]
["SQ1G87C2L0C1A0"]
["SQ1G87C2L5A0A1"]
["SQ1G87C304A0A1"]
["SQ1G87C3D4B1B0"]
["SQ1G87C3D6A0B1"]
["SQ1G87C3E4C1B0"]
["SQ1G87C3F5C0A0"]
["SQ1G87C3G1A0B1"]
["SQ1G87C3G6C1B1"]
["SQ1G87C3H1B1A0"]
["SQ1G87C3I2A0A0"]
["SQ1G87C3J1A0A1"]
["SQ1G87C3J2B1B0"]
["SQ1G87C3K2C1A1"]
["SQ1G87C3L1C0B1"]
["SQ1G87C3L6A0B0"]
["SQ1G87P103B0B0"]
["SQ1G87P1D2C1A1"]
["SQ1G87P1D6C1B1"]
["SQ1G87P1E4B1A0"]
["SQ1G87P1F3A1A0"]
["SQ1G87P1F5C0B1"]
["SQ1G87P1G5A1B0"]
["SQ1G87P1H4A0A1"]
["SQ1G87P1H6C1A1"]
["SQ1G87P1J0A1B0"]
["SQ1G87P1J1A1A0"]
["SQ1G87P1K0B1B1"]
["SQ1G87P1L1A0B1"]
["SQ1G87P1L2A1B0"]
["SQ1G87P201C0A1"]
["SQ1G87P2D2A0A0"]
["SQ1G87P2D3B0A0"]
["SQ1G87P2E0B0A0"]
["SQ1G87P2F2B1A1"]
["SQ1G87P2F4A0B0"]
["SQ1G87P2G1A1A1"]
["SQ1G87P2G5C0A1"]
["SQ1G87P2H4B0B0"]
["SQ1G87P2I4C1B0"]
["SQ1G87P2I6C0B1"]
["SQ1G87P2J5A1B1"]
["SQ1G87P2K6A0A0"]
["SQ1G87P2L1B1A0"]
["SQ1G87P300A1B1"]
["SQ1G87P3D0A0B0"]
["SQ1G87P3D2B0A1"]
["SQ1G87P3E1B0A1"]
["SQ1G87P3E5B1B0"]
["SQ1G87P3F2C0A0"]
["SQ1G87P3G2B0B1"]
["SQ1G87P3G6B0B1"]
["SQ1G87P3H3C0B0"]
["SQ1G87P3I3B1A1"]
["SQ1G87P3J0B0A0"]
["SQ1G87P3J4C1A0"]
["SQ1G87P3K3B1A1"]
["SQ1G87P3K6A0B1"]
["SQ1G87P3L5C1B0"]
["SQ1G88A104B0B0"]
["SQ1G88A1D0A1A1"]
["SQ1G88A1D6C0A1"]
["SQ1G88A1E6B0B0"]
["SQ1G88A1F1A1B1"]
["SQ1G88A1G1B1A0"]
["SQ1G88A1H0B1A0"]
["SQ1G88A1H3C0B1"]
["SQ1G88A1I1C0B1"]
["SQ1G88A1I3C0A0"]
["SQ1G88A1J5B1B0"]
["SQ1G88A1K2C1A1"]
["SQ1G88A1K4C0B0"]
["SQ1G88A1L6B0B1"]
["SQ1G88A203C1B1"]
["SQ1G88A2D1C0B0"]
["SQ1G88A2D5A1B0"]
["SQ1G88A2E5A0A1"]
["SQ1G88A2F3B1A1"]
["SQ1G88A2F6B0A0"]
["SQ1G88A2G5C1A0"]
["SQ1G88A2H0B1B1"]
["SQ1G88A2I0B0B0"]
["SQ1G88A2I2C0B0"]
["SQ1G88A2J1C0A1"]
["SQ1G88A2J5A0A1"]
["SQ1G88A2K3A0A0"]
["SQ1G88A2L2C0B1"]
["SQ1G88A2L5C1B0"]
["SQ1G88A304A0B0"]
["SQ1G88A3D2A0B1"]
["SQ1G88A3E3A1B1"]
["SQ1G88A3E5A1A0"]
["SQ1G88A3F3A0A0"]
["SQ1G88A3G4B0A1"]
["SQ1G88A3G6A1B0"]
["SQ1G88A3H3C1A1"]
["SQ1G88A3I5B0B1"]
["SQ1G88A3J0A0B0"]
["SQ1G88A3J6C0B0"]
["SQ1G88A3K1B1B1"]
["SQ1G88A3L0C1B1"]
["SQ1G88C100C1A0"]
["SQ1G88C104A1A0"]
["SQ1G88C1D2A0B1"]
["SQ1G88C1E1C1B0"]
["SQ1G88C1E5A0A1"]
["SQ1G88C1F3A1A1"]
["SQ1G88C1G1A1B0"]
["SQ1G88C1G4C1A0"]
["SQ1G88C1H4A1B1"]
["SQ1G88C1I2A0B1"]
["SQ1G88C1I5B1B0"]
["SQ1G88C1J5B0A0"]
["SQ1G88C1K0A1A1"]
["SQ1G88C1K6C0A0"]
["SQ1G88C1L6A1A1"]
["SQ1G88C201A1B1"]
["SQ1G88C2D0C0B0"]
["SQ1G88C2E0A0B0"]
["SQ1G88C2E2A0A1"]
["SQ1G88C2F3A1B1"]
["SQ1G88C2G1B1B0"]
["SQ1G88C2G3A0B1"]
["SQ1G88C2H4A1A0"]
["SQ1G88C2I2B0A0"]
["SQ1G88C2J0B0A1"]
["SQ1G88C2J3C1B1"]
["SQ1G88C2K3B0B0"]
["SQ1G88C2L1A1B0"]
["SQ1G88C2L5A0A1"]
["SQ1G88C2L6B1B0"]
["SQ1G88C306B0A0"]
["SQ1G88C3D5C0B1"]
["SQ1G88C3E0B0B1"]
["SQ1G88C3F0B0B0"]
["SQ1G88C3F6C1A1"]
["SQ1G88C3G1B0A0"]
["SQ1G88C3H1A1A0"]
["SQ1G88C3H4B1A1"]
["SQ1G88C3I2C0B1"]
["SQ1G88C3J2A1B0"]
["SQ1G88C3J5B0B0"]
["SQ1G88C3K3C1A1"]
["SQ1G88C3L1B1B1"]
["SQ1G88C3L5A1A0"]
["SQ1G88P104B1B1"]
["SQ1G88P1D2B1A0"]
["SQ1G88P1D6A1B0"]
["SQ1G88P1E5C0A1"]
["SQ1G88P1F5B0B1"]
["SQ1G88P1G0B0A0"]
["SQ1G88P1G6B1B0"]
["SQ1G88P1H6B1A1"]
["SQ1G88P1I2C0B1"]
["SQ1G88P1J0C1A0"]
["SQ1G88P1K0B1B1"]
["SQ1G88P1K3C0A0"]
["SQ1G88P1L1C1B0"]
["SQ1G88P201B0A1"]
["SQ1G88P204B1A1"]
["SQ1G88P2D3A0A0"]
["SQ1G88P2E0C0B0"]
["SQ1G88P2E4A1B1"]
["SQ1G88P2F4A0B0"]
["SQ1G88P2G1B1B1"]
["SQ1G88P2G5B0A1"]
["SQ1G88P2H4C1A0"]
["SQ1G88P2H6C0A0"]
["SQ1G88P2I6B0B1"]
["SQ1G88P2J5C0A1"]
["SQ1G88P2K0C0B0"]
["SQ1G88P2L1C1B0"]
["SQ1G88P2L6C1B1"]
["SQ1G88P301C1A0"]
["SQ1G88P3D2C0B1"]
["SQ1G88P3D3A0B1"]
["SQ1G88P3E2C1B0"]
["SQ1G88P3E5C0B1"]
["SQ1G88P3F4A1A1"]
["SQ1G88P3G2A0A0"]
["SQ1G88P3H3B0B0"]
["SQ1G88P3H5A1B1"]
["SQ1G88P3I2C1A1"]
["SQ1G88P3J4B1A0"]
["SQ1G88P3J5A1A0"]
["SQ1G88P3K5C0B1"]
["SQ1G88P3L5B1B0"]
["SQ1G88P3L6C1B1"]
["SQ1M81A106C1A1"]
["SQ1M81A1D2A1B0"]
["SQ1M81A1E1A1A0"]
["SQ1M81A1F0C1B1"]
["SQ1M81A1F4A0A1"]
["SQ1M81A1G2A1B0"]
["SQ1M81A1G6B0A0"]
["SQ1M81A1H3B1A1"]
["SQ1M81A1I3B0A0"]
["SQ1M81A1J0A1A1"]
["SQ1M81A1J4B1B1"]
["SQ1M81A1K4B0B0"]
["SQ1M81A1L2A0A0"]
["SQ1M81A1L5C0A1"]
["SQ1M81A204A1B1"]
["SQ1M81A2D4C1B0"]
["SQ1M81A2D6C0B1"]
["SQ1M81A2E5A1A0"]
["SQ1M81A2F1A0B0"]
["SQ1M81A2G1B0A1"]
["SQ1M81A2H0A1B1"]
["SQ1M81A2H2A1A0"]
["SQ1M81A2I2A1B0"]
["SQ1M81A2J1B0A1"]
["SQ1M81A2J5B0B1"]
["SQ1M81A2K2C0A0"]
["SQ1M81A2L2B0B1"]
["SQ1M81A2L6B0A0"]
["SQ1M81A303C0B0"]
["SQ1M81A3D2B1A1"]
["SQ1M81A3D5B0A1"]
["SQ1M81A3E4C1A0"]
["SQ1M81A3F3B0B0"]
["SQ1M81A3F6A0B1"]
["SQ1M81A3G5C1B0"]
["SQ1M81A3H4A1B1"]
["SQ1M81A3I0A1A1"]
["SQ1M81A3J0B1A0"]
["SQ1M81A3J1B1A0"]
["SQ1M81A3K1A1B1"]
["SQ1M81A3L1B0A1"]
["SQ1M81A3L2B1B0"]
["SQ1M81A3L6C0A1"]
["SQ1M81C1D2A0B1"]
["SQ1M81C1D3C0A0"]
["SQ1M81C1E0B1B0"]
["SQ1M81C1F2C1A1"]
["SQ1M81C1F3C0B1"]
["SQ1M81C1G4B1A0"]
["SQ1M81C1G6A0A1"]
["SQ1M81C1H4C0A0"]
["SQ1M81C1I5B1B0"]
["SQ1M81C1J0A0B1"]
["SQ1M81C1J5B1A1"]
["SQ1M81C1K6B0A0"]
["SQ1M81C1L1C0B0"]
["SQ1M81C200C1B1"]
["SQ1M81C2D0B0B0"]
["SQ1M81C2D2B1B1"]
["SQ1M81C2E1C0A1"]
["SQ1M81C2E5C1A0"]
["SQ1M81C2F3B0A0"]
["SQ1M81C2G2C0B1"]
["SQ1M81C2G6C0A1"]
["SQ1M81C2H4B0B0"]
["SQ1M81C2I2C1B0"]
["SQ1M81C2I5C0A1"]
["SQ1M81C2J5A1A0"]
["SQ1M81C2K3C0B1"]
["SQ1M81C2K6C0B1"]
["SQ1M81C300A0A0"]
["SQ1M81C306A0A0"]
["SQ1M81C3D0C1A1"]
["SQ1M81C3E0C1A1"]
["SQ1M81C3F0A0B0"]
["SQ1M81C3F1B1B1"]
["SQ1M81C3G1C0B0"]
["SQ1M81C3G3A1B0"]
["SQ1M81C3H4C1B1"]
["SQ1M81C3I2B0B1"]
["SQ1M81C3I4A0A0"]
["SQ1M81C3J5C1A0"]
["SQ1M81C3K3B1A1"]
["SQ1M81C3L2A0A1"]
["SQ1M81C3L4C1A0"]
["SQ1M81P104B1B1"]
["SQ1M81P1D2C1B0"]
["SQ1M81P1D5C1B0"]
["SQ1M81P1E1A1B0"]
["SQ1M81P1F0A1A1"]
["SQ1M81P1G0A0A0"]
["SQ1M81P1G2A0B1"]
["SQ1M81P1H1A1B1"]
["SQ1M81P1H5B0A0"]
["SQ1M81P1I2B1B0"]
["SQ1M81P1J2B0A1"]
["SQ1M81P1J6A1A1"]
["SQ1M81P1K3C0A0"]
["SQ1M81P1L3B0B1"]
["SQ1M81P200A0B0"]
["SQ1M81P204C0B0"]
["SQ1M81P2D3A1B1"]
["SQ1M81P2E3C1B1"]
["SQ1M81P2E5C1A0"]
["SQ1M81P2F4A1A0"]
["SQ1M81P2G5A0A1"]
["SQ1M81P2G6B0B1"]
["SQ1M81P2H6B0A0"]
["SQ1M81P2I1A1A1"]
["SQ1M81P2J1A1B0"]
["SQ1M81P2K0B0B0"]
["SQ1M81P2K3B1A1"]
["SQ1M81P2L1C0A1"]
["SQ1M81P301B1A0"]
["SQ1M81P305B0A0"]
["SQ1M81P3D2C0B1"]
["SQ1M81P3E2B1B0"]
["SQ1M81P3E6A1A1"]
["SQ1M81P3F3C1A1"]
["SQ1M81P3G1B1A0"]
["SQ1M81P3G5A1A0"]
["SQ1M81P3H4C1B1"]
["SQ1M81P3I3A1B1"]
["SQ1M81P3I6A1B0"]
["SQ1M81P3J5B1B0"]
["SQ1M81P3K0B1A1"]
["SQ1M81P3L0B0A0"]
["SQ1M87A100B0A1"]
["SQ1M87A101B1B1"]
["SQ1M87A1D2C0A0"]
["SQ1M87A1E0C1A0"]
["SQ1M87A1E2C0A1"]
["SQ1M87A1F3B1A1"]
["SQ1M87A1G1C1B0"]
["SQ1M87A1G6C0B0"]
["SQ1M87A1H3A1A1"]
["SQ1M87A1I3A0A0"]
["SQ1M87A1J0B1B1"]
["SQ1M87A1J4A1B1"]
["SQ1M87A1J6A1A0"]
["SQ1M87A1L1B1A0"]
["SQ1M87A1L5B0A1"]
["SQ1M87A1L6C1A0"]
["SQ1M87A206C0A0"]
["SQ1M87A2D6B0B1"]
["SQ1M87A2E0C0A1"]
["SQ1M87A2F0C0B0"]
["SQ1M87A2F3C1B0"]
["SQ1M87A2G2A0A1"]
["SQ1M87A2H1C1A0"]
["SQ1M87A2H4C0B1"]
["SQ1M87A2I3A0B1"]
["SQ1M87A2J1A0A0"]
["SQ1M87A2J4C0B0"]
["SQ1M87A2K4A1A1"]
["SQ1M87A2L1C1A1"]
["SQ1M87A2L5B1A0"]
["SQ1M87A305A1B1"]
["SQ1M87A3D2C0B0"]
["SQ1M87A3D6B1B0"]
["SQ1M87A3E5C1B1"]
["SQ1M87A3F6A0B1"]
["SQ1M87A3G0C0A0"]
["SQ1M87A3G6C1A0"]
["SQ1M87A3H6C1A1"]
["SQ1M87A3I3A0A1"]
["SQ1M87A3J1B1A0"]
["SQ1M87A3J3A0A1"]
["SQ1M87A3K3C1B0"]
["SQ1M87A3L2A1B0"]
["SQ1M87C100A0B1"]
["SQ1M87C103C1A1"]
["SQ1M87C1D3B0A0"]
["SQ1M87C1E1A0A0"]
["SQ1M87C1E4C1B1"]
["SQ1M87C1F4A1A1"]
["SQ1M87C1F6A1B0"]
["SQ1M87C1G5C0A1"]
["SQ1M87C1H5A0B0"]
["SQ1M87C1I0B0A0"]
["SQ1M87C1I6C0B1"]
["SQ1M87C1J5C1B1"]
["SQ1M87C1K1A0B0"]
["SQ1M87C1L2A1A0"]
["SQ1M87C1L2C0A1"]
["SQ1M87C202A1A0"]
["SQ1M87C205A1A0"]
["SQ1M87C2D3C0B1"]
["SQ1M87C2E1B0A1"]
["SQ1M87C2F3A0A0"]
["SQ1M87C2F4B1A1"]
["SQ1M87C2G2A1B0"]
["SQ1M87C2H4A0B0"]
["SQ1M87C2H5B0B1"]
["SQ1M87C2I5B0A1"]
["SQ1M87C2J0A1B0"]
["SQ1M87C2J6B0A0"]
["SQ1M87C2K6B0B1"]
["SQ1M87C2L2B1A1"]
["SQ1M87C300C0B0"]
["SQ1M87C3D0B1A1"]
["SQ1M87C3D3B0B0"]
["SQ1M87C3E1C1A0"]
["SQ1M87C3F1A1B1"]
["SQ1M87C3F4A1B1"]
["SQ1M87C3G2C1B0"]
["SQ1M87C3H0B1A0"]
["SQ1M87C3H4A1A1"]
["SQ1M87C3I4A0A0"]
["SQ1M87C3J1B0A1"]
["SQ1M87C3J5A1B1"]
["SQ1M87C3K4B1B0"]
["SQ1M87C3K6B1B0"]
["SQ1M87C3L6B0A1"]
["SQ1M87P105B0B1"]
["SQ1M87P1D0C0A0"]
["SQ1M87P1E1C0A0"]
["SQ1M87P1E6C1A1"]
["SQ1M87P1F1C0B0"]
["SQ1M87P1G2B1A1"]
["SQ1M87P1H0C1B1"]
["SQ1M87P1H2C1A0"]
["SQ1M87P1I3B0B0"]
["SQ1M87P1J2A0A1"]
["SQ1M87P1J6B1B1"]
["SQ1M87P1K3B0A0"]
["SQ1M87P1K5A1A1"]
["SQ1M87P200B1A0"]
["SQ1M87P204B0B0"]
["SQ1M87P2D2C0B1"]
["SQ1M87P2D5C0A1"]
["SQ1M87P2E5B1A0"]
["SQ1M87P2E6C0A1"]
["SQ1M87P2F6C0B1"]
["SQ1M87P2G6C1A1"]
["SQ1M87P2H1A0B0"]
["SQ1M87P2I0C1A1"]
["SQ1M87P2I3C0B1"]
["SQ1M87P2J2A1A0"]
["SQ1M87P2J6A0B0"]
["SQ1M87P2L1B0A1"]
["SQ1M87P2L3A1B0"]
["SQ1M87P2L6C1B1"]
["SQ1M87P304B1A1"]
["SQ1M87P3D4B0A0"]
["SQ1M87P3E1C0B0"]
["SQ1M87P3E5B1B1"]
["SQ1M87P3F4A0A1"]
["SQ1M87P3G4C1A0"]
["SQ1M87P3G6C0A1"]
["SQ1M87P3H4C1B0"]
["SQ1M87P3I5C1B0"]
["SQ1M87P3J1A0B1"]
["SQ1M87P3K0A1A1"]
["SQ1M87P3L0A0A0"]
["SQ1M87P3L2A0A0"]
["SQ1M88A101A1B1"]
["SQ1M88A105A1A1"]
["SQ1M88A1D2B1B0"]
["SQ1M88A1E2B0A1"]
["SQ1M88A1E6A0B0"]
["SQ1M88A1F3C0A0"]
["SQ1M88A1G3B0B1"]
["SQ1M88A1G6C1B1"]
["SQ1M88A1H4C0B0"]
["SQ1M88A1I3A1A0"]
["SQ1M88A1I6A0A1"]
["SQ1M88A1J5C1A0"]
["SQ1M88A1K4A0A1"]
["SQ1M88A1L0A0B1"]
["SQ1M88A200A1B0"]
["SQ1M88A206B0A0"]
["SQ1M88A2D1A1A1"]
["SQ1M88A2E1A0B1"]
["SQ1M88A2E2B1A0"]
["SQ1M88A2F4B0A0"]
["SQ1M88A2G2A0A1"]
["SQ1M88A2G3B1B0"]
["SQ1M88A2H5A1A1"]
["SQ1M88A2I2C0B1"]
["SQ1M88A2J1B0B0"]
["SQ1M88A2J4B0B0"]
["SQ1M88A2K3C1A1"]
["SQ1M88A2L2A1B1"]
["SQ1M88A2L5B1A0"]
["SQ1M88A304C1B1"]
["SQ1M88A305A1B1"]
["SQ1M88A3D6A1B0"]
["SQ1M88A3E1B1A0"]
["SQ1M88A3F0C1A1"]
["SQ1M88A3G0B0A0"]
["SQ1M88A3G2B0A1"]
["SQ1M88A3H1B1B1"]
["SQ1M88A3H5B1B0"]
["SQ1M88A3I3A1B0"]
["SQ1M88A3J2C0A1"]
["SQ1M88A3J6B0B1"]
["SQ1M88A3K4B0A0"]
["SQ1M88A3L2C0A0"]
["SQ1M88C103B1A1"]
["SQ1M88C105A0B0"]
["SQ1M88C1D3B1A1"]
["SQ1M88C1D6C0A1"]
["SQ1M88C1E6C0B0"]
["SQ1M88C1F5C1B0"]
["SQ1M88C1G0C0B1"]
["SQ1M88C1H0B1B1"]
["SQ1M88C1I0A0A0"]
["SQ1M88C1I1B1A1"]
["SQ1M88C1J1B1A0"]
["SQ1M88C1K1A0B0"]
["SQ1M88C1K4C0A1"]
["SQ1M88C1L2B0A1"]
["SQ1M88C201C1A0"]
["SQ1M88C205B1B0"]
["SQ1M88C2D3B0B1"]
["SQ1M88C2E1C0B1"]
["SQ1M88C2E4C0B0"]
["SQ1M88C2F4B1A1"]
["SQ1M88C2G2C0A0"]
["SQ1M88C2G5C1A0"]
["SQ1M88C2H5C1A1"]
["SQ1M88C2I0A0B1"]
["SQ1M88C2I6C1B0"]
["SQ1M88C2J6C0B0"]
["SQ1M88C2K1A1A1"]
["SQ1M88C2L0C0A0"]
["SQ1M88C300B1B1"]
["SQ1M88C302A1B1"]
["SQ1M88C305C1B1"]
["SQ1M88C3E1B1A0"]
["SQ1M88C3E3B0A1"]
["SQ1M88C3E6C1A0"]
["SQ1M88C3F4C0A0"]
["SQ1M88C3G3A0A1"]
["SQ1M88C3H3C1A1"]
["SQ1M88C3H5C0B0"]
["SQ1M88C3I3C1B0"]
["SQ1M88C3J4C1B1"]
["SQ1M88C3J6A1A1"]
["SQ1M88C3K6A1B0"]
["SQ1M88C3L6A0A1"]
["SQ1M88P101A0A0"]
["SQ1M88P1D0B0A0"]
["SQ1M88P1D3A1B1"]
["SQ1M88P1E1B1B1"]
["SQ1M88P1F1B0B0"]
["SQ1M88P1F5A0B0"]
["SQ1M88P1G2C0A1"]
["SQ1M88P1H2B1A0"]
["SQ1M88P1H5C1B1"]
["SQ1M88P1I3C0B1"]
["SQ1M88P1J1A1B0"]
["SQ1M88P1J5A0B0"]
["SQ1M88P1K4C1A1"]
["SQ1M88P1L3A0A1"]
["SQ1M88P1L6A1A0"]
["SQ1M88P205B0A0"]
["SQ1M88P2D5B0A1"]
["SQ1M88P2E0A1B0"]
["SQ1M88P2F0A0B1"]
["SQ1M88P2F6B0B1"]
["SQ1M88P2G2B0B0"]
["SQ1M88P2H0C0B0"]
["SQ1M88P2H2B1B1"]
["SQ1M88P2I3A1B1"]
["SQ1M88P2J1C1A0"]
["SQ1M88P2J3C0A1"]
["SQ1M88P2K5A0B0"]
["SQ1M88P2L2C1B0"]
["SQ1M88P300B0A1"]
["SQ1M88P304A1A1"]
["SQ1M88P3D4A0A0"]
["SQ1M88P3E1A1B0"]
["SQ1M88P3E5A1B1"]
["SQ1M88P3F4B0B1"]
["SQ1M88P3F6B1B0"]
["SQ1M88P3G6B0A1"]
["SQ1M88P3H5B0A0"]
["SQ1M88P3I0C0A0"]
["SQ1M88P3J1B1A1"]
["SQ1M88P3J1C1B1"]
["SQ1M88P3K1C0B0"]
["SQ1M88P3K4B1A1"]
["SQ1M88P3L3A0A1"]
["SQ1T81A100C0B0"]
["SQ1T81A1D2B1B0"]
["SQ1T81A1D4A0B1"]
["SQ1T81A1E1B1B1"]
["SQ1T81A1F3B0A0"]
["SQ1T81A1F5A1A1"]
["SQ1T81A1G2B1A0"]
["SQ1T81A1H4B0B0"]
["SQ1T81A1H5C0A1"]
["SQ1T81A1I6A0A1"]
["SQ1T81A1J0B1B0"]
["SQ1T81A1J6B1B0"]
["SQ1T81A1K6C0B1"]
["SQ1T81A1L2C0B1"]
["SQ1T81A201B0B0"]
["SQ1T81A2D0C1A1"]
["SQ1T81A2D3C0A0"]
["SQ1T81A2E2A1A0"]
["SQ1T81A2E6C1A1"]
["SQ1T81A2F3C0B1"]
["SQ1T81A2G3A1B0"]
["SQ1T81A2H0C0B0"]
["SQ1T81A2H4C1A1"]
["SQ1T81A2I3C1B1"]
["SQ1T81A2I6A1A0"]
["SQ1T81A2J5B1B1"]
["SQ1T81A2K4C1A0"]
["SQ1T81A2L0A1B0"]
["SQ1T81A2L6C0A1"]
["SQ1T81A305C0A1"]
["SQ1T81A3D1A0A0"]
["SQ1T81A3E1C1B0"]
["SQ1T81A3F0B1A1"]
["SQ1T81A3F2A0B0"]
["SQ1T81A3G2C0B1"]
["SQ1T81A3H1B1B1"]
["SQ1T81A3H6A0A0"]
["SQ1T81A3I2C1B0"]
["SQ1T81A3J2B0A1"]
["SQ1T81A3J6C1A1"]
["SQ1T81A3K4A0A0"]
["SQ1T81A3L3A0B0"]
["SQ1T81A3L5A1B1"]
["SQ1T81C105A0B0"]
["SQ1T81C106A0B0"]
["SQ1T81C1D6B0A1"]
["SQ1T81C1E5C1A0"]
["SQ1T81C1E6C1B1"]
["SQ1T81C1G0B0B1"]
["SQ1T81C1G3A1A0"]
["SQ1T81C1H1C0B0"]
["SQ1T81C1I1A1A1"]
["SQ1T81C1I4A0A1"]
["SQ1T81C1J2C1A0"]
["SQ1T81C1K0A1B0"]
["SQ1T81C1K4A0B1"]
["SQ1T81C1L3C1B0"]
["SQ1T81C201A0B1"]
["SQ1T81C205A1A1"]
["SQ1T81C2D4B0A0"]
["SQ1T81C2E4B0B0"]
["SQ1T81C2E6A1B1"]
["SQ1T81C2F5A1A1"]
["SQ1T81C2G5B1A0"]
["SQ1T81C2H0B1A0"]
["SQ1T81C2H6C0B1"]
["SQ1T81C2I6B1B0"]
["SQ1T81C2J2A1B1"]
["SQ1T81C2K0C1A1"]
["SQ1T81C2K2C0B0"]
["SQ1T81C2L3A1A0"]
["SQ1T81C301C1B1"]
["SQ1T81C306B0A1"]
["SQ1T81C3D3A1B0"]
["SQ1T81C3E3A0A1"]
["SQ1T81C3F0A1B0"]
["SQ1T81C3F4B0A0"]
["SQ1T81C3G2B1A1"]
["SQ1T81C3G5B1B1"]
["SQ1T81C3H5B0B0"]
["SQ1T81C3I4B0A0"]
["SQ1T81C3I6C0A1"]
["SQ1T81C3J6B1B1"]
["SQ1T81C3K5C1B0"]
["SQ1T81C3L0C0B1"]
["SQ1T81P101B0B0"]
["SQ1T81P102A0B0"]
["SQ1T81P1D3C0A1"]
["SQ1T81P1E1A1B1"]
["SQ1T81P1E3A1A0"]
["SQ1T81P1F4B1B0"]
["SQ1T81P1G2B0A1"]
["SQ1T81P1G4A1B0"]
["SQ1T81P1H1B1A0"]
["SQ1T81P1I3B0B1"]
["SQ1T81P1J1C0A0"]
["SQ1T81P1J4C0B0"]
["SQ1T81P1K4B1A1"]
["SQ1T81P1K4C0A0"]
["SQ1T81P1L5C1A0"]
["SQ1T81P200C1A1"]
["SQ1T81P2D0A0B1"]
["SQ1T81P2D6C1B0"]
["SQ1T81P2E1C0B0"]
["SQ1T81P2F1A1A1"]
["SQ1T81P2F4C1B1"]
["SQ1T81P2G2B1A0"]
["SQ1T81P2H2A1B1"]
["SQ1T81P2H5C1A0"]
["SQ1T81P2I3B1B0"]
["SQ1T81P2J3B0A1"]
["SQ1T81P2J6C0A1"]
["SQ1T81P2K4C0A0"]
["SQ1T81P2L2C1B0"]
["SQ1T81P2L5C1B1"]
["SQ1T81P305C0B0"]
["SQ1T81P3D3C0B1"]
["SQ1T81P3E0A0A1"]
["SQ1T81P3F0A0A0"]
["SQ1T81P3F6A1B0"]
["SQ1T81P3G1A0B1"]
["SQ1T81P3H0C1A1"]
["SQ1T81P3I0B0A0"]
["SQ1T81P3I4A0B0"]
["SQ1T81P3J1C1B1"]
["SQ1T81P3K1B0B0"]
["SQ1T81P3K4C1B1"]
["SQ1T81P3L2C0A1"]
["SQ1T82A101A1A0"]
["SQ1T82A104B0A0"]
["SQ1T82A1D3C0B1"]
["SQ1T82A1E2A0A1"]
["SQ1T82A1E5B0B0"]
["SQ1T82A1F4C1A1"]
["SQ1T82A1G2C1B0"]
["SQ1T82A1G6A1A0"]
["SQ1T82A1H6A0B1"]
["SQ1T82A1I0C0B1"]
["SQ1T82A1J0A1B0"]
["SQ1T82A1K0A0A0"]
["SQ1T82A1K1B1A1"]
["SQ1T82A1K5B0A0"]
["SQ1T82A1L3A1A0"]
["SQ1T82A202B1B1"]
["SQ1T82A206A1A1"]
["SQ1T82A2D4A1B0"]
["SQ1T82A2E2B0B0"]
["SQ1T82A2F3B0B1"]
["SQ1T82A2F5A0A0"]
["SQ1T82A2G3A1B1"]
["SQ1T82A2H4B1A1"]
["SQ1T82A2H6A0B0"]
["SQ1T82A2I4A1A0"]
["SQ1T82A2J5B1B1"]
["SQ1T82A2K0B0A1"]
["SQ1T82A2K6C1B0"]
["SQ1T82A2L6B0A1"]
["SQ1T82A301A1B0"]
["SQ1T82A3D1A0A0"]
["SQ1T82A3D4B0B1"]
["SQ1T82A3E2A1B1"]
["SQ1T82A3F1C0B0"]
["SQ1T82A3F5B0A0"]
["SQ1T82A3G3B0A1"]
["SQ1T82A3H1B1A1"]
["SQ1T82A3H4C0A0"]
["SQ1T82A3I4B0B1"]
["SQ1T82A3J2B0B0"]
["SQ1T82A3J5C0B0"]
["SQ1T82A3K5B1B1"]
["SQ1T82A3L4C1B1"]
["SQ1T82A3L6C1A0"]
["SQ1T82C106B1A0"]
["SQ1T82C1D1A0B1"]
["SQ1T82C1E0B1B0"]
["SQ1T82C1F0B0A1"]
["SQ1T82C1F2A1A1"]
["SQ1T82C1G3B1B0"]
["SQ1T82C1H1B0B0"]
["SQ1T82C1H3A1B1"]
["SQ1T82C1I4B0B1"]
["SQ1T82C1J2B1A0"]
["SQ1T82C1K0C0A0"]
["SQ1T82C1K3C0B1"]
["SQ1T82C1L3B1B0"]
["SQ1T82C201B1A1"]
["SQ1T82C204C1A1"]
["SQ1T82C2D3C1A0"]
["SQ1T82C2D6A1A0"]
["SQ1T82C2E5C1B1"]
["SQ1T82C2F0C0B0"]
["SQ1T82C2G0A1B0"]
["SQ1T82C2H0C1B0"]
["SQ1T82C2H1B1A1"]
["SQ1T82C2I1B0A0"]
["SQ1T82C2I4C1A0"]
["SQ1T82C2J2B1B1"]
["SQ1T82C2K2B0B0"]
["SQ1T82C2K5C0A1"]
["SQ1T82C2L3C0A1"]
["SQ1T82C301A0A0"]
["SQ1T82C3D2C1B0"]
["SQ1T82C3D4C0B1"]
["SQ1T82C3E2C0B1"]
["SQ1T82C3E6A0B0"]
["SQ1T82C3F5A0B0"]
["SQ1T82C3G5A1B1"]
["SQ1T82C3H0A1A0"]
["SQ1T82C3H6C1A1"]
["SQ1T82C3I6B0A1"]
["SQ1T82C3J2A1A0"]
["SQ1T82C3K0C0A0"]
["SQ1T82C3L0B0B1"]
["SQ1T82C3L3A0A1"]
["SQ1T82P101C0B0"]
["SQ1T82P1D1B1A1"]
["SQ1T82P1D4C1A0"]
["SQ1T82P1E2C1A0"]
["SQ1T82P1F0A0B1"]
["SQ1T82P1F4A0B1"]
["SQ1T82P1G3C1B0"]
["SQ1T82P1H1A0A0"]
["SQ1T82P1H5A1A1"]
["SQ1T82P1I4A1A1"]
["SQ1T82P1I6B1A0"]
["SQ1T82P1J6A1B1"]
["SQ1T82P1K5A0B0"]
["SQ1T82P1L0B1B0"]
["SQ1T82P201A1B1"]
["SQ1T82P206C0B1"]
["SQ1T82P2D1C0A0"]
["SQ1T82P2E2A1A0"]
["SQ1T82P2F0C1A1"]
["SQ1T82P2F5B0A1"]
["SQ1T82P2G2B1A0"]
["SQ1T82P2G4A0A1"]
["SQ1T82P2H6A1B0"]
["SQ1T82P2I3A1B0"]
["SQ1T82P2I5A0B1"]
["SQ1T82P2K0A0B1"]
["SQ1T82P2K4B0A0"]
["SQ1T82P2K5B0B1"]
["SQ1T82P2L5C1B1"]
["SQ1T82P305B0B0"]
["SQ1T82P306B0A0"]
["SQ1T82P3D6C0A1"]
["SQ1T82P3E2B1A1"]
["SQ1T82P3F1B0A0"]
["SQ1T82P3G0C0B1"]
["SQ1T82P3G3B0B0"]
["SQ1T82P3H2A0B0"]
["SQ1T82P3H6B1B1"]
["SQ1T82P3I3C0A1"]
["SQ1T82P3J3A1A0"]
["SQ1T82P3K0B1A0"]
["SQ1T82P3K4C0B1"]
["SQ1T82P3L4A1B0"]
["SQ1T87A101B0A1"]
["SQ1T87A105B1A1"]
["SQ1T87A1D4B1B0"]
["SQ1T87A1E5A0B0"]
["SQ1T87A1E6B1B1"]
["SQ1T87A1F5B0B1"]
["SQ1T87A1G5C1A0"]
["SQ1T87A1H1C0A0"]
["SQ1T87A1I0B0B1"]
["SQ1T87A1I2A0A0"]
["SQ1T87A1J2B1A1"]
["SQ1T87A1K1B1A1"]
["SQ1T87A1K5C0B0"]
["SQ1T87A1L2C1A0"]
["SQ1T87A202A1B1"]
["SQ1T87A206B1B1"]
["SQ1T87A2D3C1B0"]
["SQ1T87A2E2C1A0"]
["SQ1T87A2E5A1A1"]
["SQ1T87A2F5A0A0"]
["SQ1T87A2G3C0A1"]
["SQ1T87A2G6A1B1"]
["SQ1T87A2H5C0B0"]
["SQ1T87A2I4B1B0"]
["SQ1T87A2J0B0A1"]
["SQ1T87A2K0C0B1"]
["SQ1T87A2K1C0A0"]
["SQ1T87A2L1A0B1"]
["SQ1T87A301C0A0"]
["SQ1T87A302C0B0"]
["SQ1T87A3D0A0A0"]
["SQ1T87A3E1C1B1"]
["SQ1T87A3E3C1A0"]
["SQ1T87A3F0C1A1"]
["SQ1T87A3G3A0A1"]
["SQ1T87A3G4A0B0"]
["SQ1T87A3H4B0A0"]
["SQ1T87A3H6A1A1"]
["SQ1T87A3I4C1B1"]
["SQ1T87A3J5B0B0"]
["SQ1T87A3K0A1B0"]
["SQ1T87A3K6C0A1"]
["SQ1T87A3L6B1A0"]
["SQ1T87C102A0A1"]
["SQ1T87C1D0C0B1"]
["SQ1T87C1E0B1B0"]
["SQ1T87C1E2C1B0"]
["SQ1T87C1F1C1A1"]
["SQ1T87C1F6A0B1"]
["SQ1T87C1G3A1A0"]
["SQ1T87C1H2C1B1"]
["SQ1T87C1I0A0A0"]
["SQ1T87C1I4A1B0"]
["SQ1T87C1J2A1B1"]
["SQ1T87C1J5B1A1"]
["SQ1T87C1K5B0A0"]
["SQ1T87C1L4A0B0"]
["SQ1T87C1L6B1B1"]
["SQ1T87C206B0A1"]
["SQ1T87C2D5C1A0"]
["SQ1T87C2E0C0A1"]
["SQ1T87C2F1A1A0"]
["SQ1T87C2F6C1B0"]
["SQ1T87C2G1C0B1"]
["SQ1T87C2H2A0A1"]
["SQ1T87C2I1A0A0"]
["SQ1T87C2I4B0A0"]
["SQ1T87C2J2A1B1"]
["SQ1T87C2J4A1A0"]
["SQ1T87C2K6A0B1"]
["SQ1T87C2L3B0A1"]
["SQ1T87C301B0B0"]
["SQ1T87C304C0A0"]
["SQ1T87C3D4B0B1"]
["SQ1T87C3E2A1B1"]
["SQ1T87C3E5C0B0"]
["SQ1T87C3F5B1A0"]
["SQ1T87C3G0A0A1"]
["SQ1T87C3G6C1A0"]
["SQ1T87C3H6B0A1"]
["SQ1T87C3I1A0B1"]
["SQ1T87C3I4C0A1"]
["SQ1T87C3K0B0A0"]
["SQ1T87C3K2A1A1"]
["SQ1T87C3K5B1B0"]
["SQ1T87C3L3B1A0"]
["SQ1T87P103A1B1"]
["SQ1T87P106B0B1"]
["SQ1T87P1D4B1B0"]
["SQ1T87P1E2C0A0"]
["SQ1T87P1F3C0B1"]
["SQ1T87P1F5C0A0"]
["SQ1T87P1G3B1A1"]
["SQ1T87P1H4C1A1"]
["SQ1T87P1H6C0B0"]
["SQ1T87P1I6A1A0"]
["SQ1T87P1J5C1B1"]
["SQ1T87P1K0B1B1"]
["SQ1T87P1L0A1B0"]
["SQ1T87P1L3C1A0"]
["SQ1T87P201C1A1"]
["SQ1T87P2D1B0A0"]
["SQ1T87P2D4C0A1"]
["SQ1T87P2E2B1B1"]
["SQ1T87P2F2B0B0"]
["SQ1T87P2F5B1B0"]
["SQ1T87P2G3C0A1"]
["SQ1T87P2H1C0B1"]
["SQ1T87P2H5B0A0"]
["SQ1T87P2I4C0B1"]
["SQ1T87P2J2C0A0"]
["SQ1T87P2J6A0B0"]
["SQ1T87P2K5C1A1"]
["SQ1T87P2L0C0A1"]
["SQ1T87P300A1A0"]
["SQ1T87P306C0B0"]
["SQ1T87P3D1B0B1"]
["SQ1T87P3E2C1B1"]
["SQ1T87P3F1A0A0"]
["SQ1T87P3F2B1A1"]
["SQ1T87P3G3C1A0"]
["SQ1T87P3H2A0B0"]
["SQ1T87P3I0A0A1"]
["SQ1T87P3I3B0A1"]
["SQ1T87P3J2C1A0"]
["SQ1T87P3K0C1B0"]
["SQ1T87P3K4B0B1"]
["SQ1T87P3L3C1B0"]
["SQ1C86A101C0B1"]
["SQ1C86A105B1A1"]
["SQ1C86A1D0A0B1"]
["SQ1C86A1D6C1A0"]
["SQ1C86A1E6A1B1"]
["SQ1C86A1F1A0A0"]
["SQ1C86A1G0C1B0"]
["SQ1C86A1G4A1A1"]
["SQ1C86A1H2A1A1"]
["SQ1C86A1I1C0A0"]
["SQ1C86A1I5A0B0"]
["SQ1C86A1J3A1B1"]
["SQ1C86A1K1A1B1"]
["SQ1C86A1L2B1A0"]
["SQ1C86A1L4B0A1"]
["SQ1C86A202A1A0"]
["SQ1C86A205C0A0"]
["SQ1C86A2D5B0A1"]
["SQ1C86A2E4C1A1"]
["SQ1C86A2E6C0B0"]
["SQ1C86A2F6A1B0"]
["SQ1C86A2G5C1B1"]
["SQ1C86A2H0B1A0"]
["SQ1C86A2I0A0B1"]
["SQ1C86A2J0A0A1"]
["SQ1C86A2J3B0A0"]
["SQ1C86A2K1B0A0"]
["SQ1C86A2L1A0B1"]
["SQ1C86A2L4A1A1"]
["SQ1C86C102B0B0"]
["SQ1C86C1D0B0B0"]
["SQ1C86C1D3C0A1"]
["SQ1C86C1E3B1A0"]
["SQ1C86C1F1A1B1"]
["SQ1C86C1F4C0B1"]
["SQ1C86C1G3B1B0"]
["SQ1C86C1G6A0B0"]
["SQ1C86C1H5C1A1"]
["SQ1C86C1I5B0A1"]
["SQ1C86C1J0A1A0"]
["SQ1C86C1J6C1B1"]
["SQ1C86C1K6A1B0"]
["SQ1C86C1L1A1B0"]
["SQ1C86C202B0B1"]
["SQ1C86C2D0B0B1"]
["SQ1C86C2D2B0A0"]
["SQ1C86C2D5B0B1"]
["SQ1C86C2E3B1B1"]
["SQ1C86C2F5B1B1"]
["SQ1C86C2G2C1A0"]
["SQ1C86C2G4C0A1"]
["SQ1C86C2H2B1A1"]
["SQ1C86C2I3C1B0"]
["SQ1C86C2I4C1A0"]
["SQ1C86C2J5A1A1"]
["SQ1C86C2K5A0A0"]
["SQ1C86C2K6B1B1"]
["SQ1C86C2L6A1B1"]
["SQ1C86P101C1B0"]
["SQ1C86P1D0B1B0"]
["SQ1C86P1E0B0A1"]
["SQ1C86P1E2C0B1"]
["SQ1C86P1F1C0A0"]
["SQ1C86P1G1B0B1"]
["SQ1C86P1G4B1B0"]
["SQ1C86P1H2C0B0"]
["SQ1C86P1H6C1A1"]
["SQ1C86P1I4A0A1"]
["SQ1C86P1J3C1A0"]
["SQ1C86P1K0C0B0"]
["SQ1C86P1K5A0B1"]
["SQ1C86P1L3C1B1"]
["SQ1C86P204B0A0"]
["SQ1C86P206A1A1"]
["SQ1C86P2D4C1A0"]
["SQ1C86P2E0B1A0"]
["SQ1C86P2F1A0A1"]
["SQ1C86P2F6C0A1"]
["SQ1C86P2G1B1B0"]
["SQ1C86P2H1C1B0"]
["SQ1C86P2I0C0B1"]
["SQ1C86P2I2C0A0"]
["SQ1C86P2I6C1A0"]
["SQ1C86P2I6C1A1"]
["SQ1C86P2I6C1B0"]
["SQ1C86P2I6C1B1"]
["SQ1C86P2J0A0A0"]
["SQ1C86P2J0A0A1"]
["SQ1C86P2J0A0B0"]
["SQ1C86P2J0A0B1"]
["SQ1C86P2J0A1A0"]
["SQ1C86P2J0A1A1"]
["SQ1C86P2J0A1B0"]
["SQ1C86P2J0A1B1"]
["SQ1C86P2J0B0A0"]
["SQ1C86P2J0B0A1"]
["SQ1C86P2J0B0B0"]
["SQ1C86P2J0B0B1"]
["SQ1C86P2J0B1A0"]
["SQ1C86P2J0B1A1"]
["SQ1C86P2J0B1B0"]
["SQ1C86P2J0B1B1"]
["SQ1C86P2J0C0A0"]
["SQ1C86P2J0C0A1"]
["SQ1C86P2J0C0B0"]
["SQ1C86P2J0C0B1"]
["SQ1C86P2J0C1A0"]
["SQ1C86P2J0C1A1"]
["SQ1C86P2J0C1B0"]
["SQ1C86P2J0C1B1"]
["SQ1C86P2J1A0A0"]
["SQ1C86P2J1A0A1"]
["SQ1C86P2J1A0B0"]
["SQ1C86P2J1A0B1"]
["SQ1C86P2J1A1A0"]
["SQ1C86P2J1A1A1"]
["SQ1C86P2J1A1B0"]
["SQ1C86P2J1A1B1"]
["SQ1C86P2J1B0A0"]
["SQ1C86P2J1B0A1"]
["SQ1C86P2J1B0B0"]
["SQ1C86P2J1B0B1"]
["SQ1C86P2J1B1A0"]
["SQ1C86P2J1B1A1"]
["SQ1C86P2J1B1B0"]
["SQ1C86P2J1B1B1"]
["SQ1C86P2J1C0A0"]
["SQ1C86P2J1C0A1"]
["SQ1C86P2J1C0B0"]
["SQ1C86P2J1C0B1"]
["SQ1C86P2J1C1A0"]
["SQ1C86P2J1C1A1"]
["SQ1C86P2J1C1B0"]
["SQ1C86P2J1C1B1"]
["SQ1C86P2J2A0A0"]
["SQ1C86P2J2A0A1"]
["SQ1C86P2J2A0B0"]
["SQ1C86P2J2A0B1"]
["SQ1C86P2J2A1A0"]
["SQ1C86P2J2A1A1"]
["SQ1C86P2J2A1B0"]
["SQ1C86P2J2A1B1"]
["SQ1C86P2J2B0A0"]
["SQ1C86P2J2B0A1"]
["SQ1C86P2J2B0B0"]
["SQ1C86P2J2B0B1"]
["SQ1C86P2J2B1A0"]
["SQ1C86P2J2B1A1"]
["SQ1C86P2J2B1B0"]
["SQ1C86P2J2B1B1"]
["SQ1C86P2J2C0A0"]
["SQ1C86P2J2C0A1"]
["SQ1C86P2J2C0B0"]
["SQ1C86P2J2C0B1"]
["SQ1C86P2J2C1A0"]
["SQ1C86P2J2C1A1"]
["SQ1C86P2J2C1B0"]
["SQ1C86P2J2C1B1"]
["SQ1C86P2J3A0A0"]
["SQ1C86P2J3A0A1"]
["SQ1C86P2J3A0B0"]
["SQ1C86P2J3A0B1"]
["SQ1C86P2J3A1A0"]
["SQ1C86P2J3A1A1"]
["SQ1C86P2J3A1B0"]
["SQ1C86P2J3A1B1"]
["SQ1C86P2J3B0A0"]
["SQ1C86P2J3B0A1"]
["SQ1C86P2J3B0B0"]
["SQ1C86P2J3B0B1"]
["SQ1C86P2J3B1A0"]
["SQ1C86P2J3B1A1"]
["SQ1C86P2J3B1B0"]
["SQ1C86P2J3B1B1"]
["SQ1C86P2J3C0A0"]
["SQ1C86P2J3C0A1"]
["SQ1C86P2J3C0B0"]
["SQ1C86P2J3C0B1"]
["SQ1C86P2J3C1A0"]
["SQ1C86P2J3C1A1"]
["SQ1C86P2J3C1B0"]
["SQ1C86P2J3C1B1"]
["SQ1C86P2J4A0A0"]
["SQ1C86P2J4A0A1"]
["SQ1C86P2J4A0B0"]
["SQ1C86P2J4A0B1"]
["SQ1C86P2J4A1A0"]
["SQ1C86P2J4A1A1"]
["SQ1C86P2J4A1B0"]
["SQ1C86P2J4A1B1"]
["SQ1C86P2J4B0A0"]
["SQ1C86P2J4B0A1"]
["SQ1C86P2J4B0B0"]
["SQ1C86P2J4B0B1"]
["SQ1C86P2J4B1A0"]
["SQ1C86P2J4B1A1"]
["SQ1C86P2J4B1B0"]
["SQ1C86P2J4B1B1"]
["SQ1C86P2J4C0A0"]
["SQ1C86P2J4C0A1"]
["SQ1C86P2J4C0B0"]
["SQ1C86P2J4C0B1"]
["SQ1C86P2J4C1A0"]
["SQ1C86P2J4C1A1"]
["SQ1C86P2J4C1B0"]
["SQ1C86P2J4C1B1"]
["SQ1C86P2J5A0A0"]
["SQ1C86P2J5A0A1"]
["SQ1C86P2J5A0B0"]
["SQ1C86P2J5A0B1"]
["SQ1C86P2J5A1A0"]
["SQ1C86P2J5A1A1"]
["SQ1C86P2J5A1B0"]
["SQ1C86P2J5A1B1"]
["SQ1C86P2J5B0A0"]
["SQ1C86P2J5B0A1"]
["SQ1C86P2J5B0B0"]
["SQ1C86P2J5B0B1"]
["SQ1C86P2J5B1A0"]
["SQ1C86P2J5B1A1"]
["SQ1C86P2J5B1B0"]
["SQ1C86P2J5B1B1"]
["SQ1C86P2J5C0A0"]
["SQ1C86P2J5C0A1"]
["SQ1C86P2J5C0B0"]
["SQ1C86P2J5C0B1"]
["SQ1C86P2J5C1A0"]
["SQ1C86P2J5C1A1"]
["SQ1C86P2J5C1B0"]
["SQ1C86P2J5C1B1"]
["SQ1C86P2J6A0A0"]
["SQ1C86P2J6A0A1"]
["SQ1C86P2J6A0B0"]
["SQ1C86P2J6A0B1"]
["SQ1C86P2J6A1A0"]
["SQ1C86P2J6A1A1"]
["SQ1C86P2J6A1B0"]
["SQ1C86P2J6A1B1"]
["SQ1C86P2J6B0A0"]
["SQ1C86P2J6B0A1"]
["SQ1C86P2J6B0B0"]
["SQ1C86P2J6B0B1"]
["SQ1C86P2J6B1A0"]
["SQ1C86P2J6B1A1"]
["SQ1C86P2J6B1B0"]
["SQ1C86P2J6B1B1"]
["SQ1C86P2J6C0A0"]
["SQ1C86P2J6C0A1"]
["SQ1C86P2J6C0B0"]
["SQ1C86P2J6C0B1"]
["SQ1C86P2J6C1A0"]
["SQ1C86P2J6C1A1"]
["SQ1C86P2J6C1B0"]
["SQ1C86P2J6C1B1"]
["SQ1C86P2K0A0A0"]
["SQ1C86P2K0A0A1"]
["SQ1C86P2K0A0B0"]
["SQ1C86P2K0A0B1"]
["SQ1C86P2K0A1A0"]
["SQ1C86P2K0A1A1"]
["SQ1C86P2K0A1B0"]
["SQ1C86P2K0A1B1"]
["SQ1C86P2K0B0A0"]
["SQ1C86P2K0B0A1"]
["SQ1C86P2K0B0B0"]
["SQ1C86P2K0B0B1"]
["SQ1C86P2K0B1A0"]
["SQ1C86P2K0B1A1"]
["SQ1C86P2K0B1B0"]
["SQ1C86P2K0B1B1"]
["SQ1C86P2K0C0A0"]
["SQ1C86P2K0C0A1"]
["SQ1C86P2K0C0B0"]
["SQ1C86P2K0C0B1"]
["SQ1C86P2K0C1A0"]
["SQ1C86P2K0C1A1"]
["SQ1C86P2K0C1B0"]
["SQ1C86P2K0C1B1"]
["SQ1C86P2K1A0A0"]
["SQ1C86P2K1A0A1"]
["SQ1C86P2K1A0B0"]
["SQ1C86P2K1A0B1"]
["SQ1C86P2K1A1A0"]
["SQ1C86P2K1A1A1"]
["SQ1C86P2K1A1B0"]
["SQ1C86P2K1A1B1"]
["SQ1C86P2K1B0A0"]
["SQ1C86P2K1B0A1"]
["SQ1C86P2K1B0B0"]
["SQ1C86P2K1B0B1"]
["SQ1C86P2K1B1A0"]
["SQ1C86P2K1B1A1"]
["SQ1C86P2K1B1B0"]
["SQ1C86P2K1B1B1"]
["SQ1C86P2K1C0A0"]
["SQ1C86P2K1C0A1"]
["SQ1C86P2K1C0B0"]
["SQ1C86P2K1C0B1"]
["SQ1C86P2K1C1A0"]
["SQ1C86P2K1C1A1"]
["SQ1C86P2K1C1B0"]
["SQ1C86P2K1C1B1"]
["SQ1C86P2K2A0A0"]
["SQ1C86P2K2A0A1"]
["SQ1C86P2K2A0B0"]
["SQ1C86P2K2A0B1"]
["SQ1C86P2K2A1A0"]
["SQ1C86P2K2A1A1"]
["SQ1C86P2K2A1B0"]
["SQ1C86P2K2A1B1"]
["SQ1C86P2K2B0A0"]
["SQ1C86P2K2B0A1"]
["SQ1C86P2K2B0B0"]
["SQ1C86P2K2B0B1"]
["SQ1C86P2K2B1A0"]
["SQ1C86P2K2B1A1"]
["SQ1C86P2K2B1B0"]
["SQ1C86P2K2B1B1"]
["SQ1C86P2K2C0A0"]
["SQ1C86P2K2C0A1"]
["SQ1C86P2K2C0B0"]
["SQ1C86P2K2C0B1"]
["SQ1C86P2K2C1A0"]
["SQ1C86P2K2C1A1"]
["SQ1C86P2K2C1B0"]
["SQ1C86P2K2C1B1"]
["SQ1C86P2K3A0A0"]
["SQ1C86P2K3A0A1"]
["SQ1C86P2K3A0B0"]
["SQ1C86P2K3A0B1"]
["SQ1C86P2K3A1A0"]
["SQ1C86P2K3A1A1"]
["SQ1C86P2K3A1B0"]
["SQ1C86P2K3A1B1"]
["SQ1C86P2K3B0A0"]
["SQ1C86P2K3B0A1"]
["SQ1C86P2K3B0B0"]
["SQ1C86P2K3B0B1"]
["SQ1C86P2K3B1A0"]
["SQ1C86P2K3B1A1"]
["SQ1C86P2K3B1B0"]
["SQ1C86P2K3B1B1"]
["SQ1C86P2K3C0A0"]
["SQ1C86P2K3C0A1"]
["SQ1C86P2K3C0B0"]
["SQ1C86P2K3C0B1"]
["SQ1C86P2K3C1A0"]
["SQ1C86P2K3C1A1"]
["SQ1C86P2K3C1B0"]
["SQ1C86P2K3C1B1"]
["SQ1C86P2K4A0A0"]
["SQ1C86P2K4A0A1"]
["SQ1C86P2K4A0B0"]
["SQ1C86P2K4A0B1"]
["SQ1C86P2K4A1A0"]
["SQ1C86P2K4A1A1"]
["SQ1C86P2K4A1B0"]
["SQ1C86P2K4A1B1"]
["SQ1C86P2K4B0A0"]
["SQ1C86P2K4B0A1"]
["SQ1C86P2K4B0B0"]
["SQ1C86P2K4B0B1"]
["SQ1C86P2K4B1A0"]
["SQ1C86P2K4B1A1"]
["SQ1C86P2K4B1B0"]
["SQ1C86P2K4B1B1"]
["SQ1C86P2K4C0A0"]
["SQ1C86P2K4C0A1"]
["SQ1C86P2K4C0B0"]
["SQ1C86P2K4C0B1"]
["SQ1C86P2K4C1A0"]
["SQ1C86P2K4C1A1"]
["SQ1C86P2K4C1B0"]
["SQ1C86P2K4C1B1"]
["SQ1C86P2K5A0A0"]
["SQ1C86P2K5A0A1"]
["SQ1C86P2K5A0B0"]
["SQ1C86P2K5A0B1"]
["SQ1C86P2K5A1A0"]
["SQ1C86P2K5A1A1"]
["SQ1C86P2K5A1B0"]
["SQ1C86P2K5A1B1"]
["SQ1C86P2K5B0A0"]
["SQ1C86P2K5B0A1"]
["SQ1C86P2K5B0B0"]
["SQ1C86P2K5B0B1"]
["SQ1C86P2K5B1A0"]
["SQ1C86P2K5B1A1"]
["SQ1C86P2K5B1B0"]
["SQ1C86P2K5B1B1"]
["SQ1C86P2K5C0A0"]
["SQ1C86P2K5C0A1"]
["SQ1C86P2K5C0B0"]
["SQ1C86P2K5C0B1"]
["SQ1C86P2K5C1A0"]
["SQ1C86P2K5C1A1"]
["SQ1C86P2K5C1B0"]
["SQ1C86P2K5C1B1"]
["SQ1C86P2K6A0A0"]
["SQ1C86P2K6A0A1"]
["SQ1C86P2K6A0B0"]
["SQ1C86P2K6A0B1"]
["SQ1C86P2K6A1A0"]
["SQ1C86P2K6A1A1"]
["SQ1C86P2K6A1B0"]
["SQ1C86P2K6A1B1"]
["SQ1C86P2K6B0A0"]
["SQ1C86P2K6B0A1"]
["SQ1C86P2K6B0B0"]
["SQ1C86P2K6B0B1"]
["SQ1C86P2K6B1A0"]
["SQ1C86P2K6B1A1"]
["SQ1C86P2K6B1B0"]
["SQ1C86P2K6B1B1"]
["SQ1C86P2K6C0A0"]
["SQ1C86P2K6C0A1"]
["SQ1C86P2K6C0B0"]
["SQ1C86P2K6C0B1"]
["SQ1C86P2K6C1A0"]
["SQ1C86P2K6C1A1"]
["SQ1C86P2K6C1B0"]
["SQ1C86P2K6C1B1"]
["SQ1C86P2L0A0A0"]
["SQ1C86P2L0A0A1"]
["SQ1C86P2L0A0B0"]
["SQ1C86P2L0A0B1"]
["SQ1C86P2L0A1A0"]
["SQ1C86P2L0A1A1"]
["SQ1C86P2L0A1B0"]
["SQ1C86P2L0A1B1"]
["SQ1C86P2L0B0A0"]
["SQ1C86P2L0B0A1"]
["SQ1C86P2L0B0B0"]
["SQ1C86P2L0B0B1"]
["SQ1C86P2L0B1A0"]
["SQ1C86P2L0B1A1"]
["SQ1C86P2L0B1B0"]
["SQ1C86P2L0B1B1"]
["SQ1C86P2L0C0A0"]
["SQ1C86P2L0C0A1"]
["SQ1C86P2L0C0B0"]
["SQ1C86P2L0C0B1"]
["SQ1C86P2L0C1A0"]
["SQ1C86P2L0C1A1"]
["SQ1C86P2L0C1B0"]
["SQ1C86P2L0C1B1"]
["SQ1C86P2L1A0A0"]
["SQ1C86P2L1A0A1"]
["SQ1C86P2L1A0B0"]
["SQ1C86P2L1A0B1"]
["SQ1C86P2L1A1A0"]
["SQ1C86P2L1A1A1"]
["SQ1C86P2L1A1B0"]
["SQ1C86P2L1A1B1"]
["SQ1C86P2L1B0A0"]
["SQ1C86P2L1B0A1"]
["SQ1C86P2L1B0B0"]
["SQ1C86P2L1B0B1"]
["SQ1C86P2L1B1A0"]
["SQ1C86P2L1B1A1"]
["SQ1C86P2L1B1B0"]
["SQ1C86P2L1B1B1"]
["SQ1C86P2L1C0A0"]
["SQ1C86P2L1C0A1"]
["SQ1C86P2L1C0B0"]
["SQ1C86P2L1C0B1"]
["SQ1C86P2L1C1A0"]
["SQ1C86P2L1C1A1"]
["SQ1C86P2L1C1B0"]
["SQ1C86P2L1C1B1"]
["SQ1C86P2L2A0A0"]
["SQ1C86P2L2A0A1"]
["SQ1C86P2L2A0B0"]
["SQ1C86P2L2A0B1"]
["SQ1C86P2L2A1A0"]
["SQ1C86P2L2A1A1"]
["SQ1C86P2L2A1B0"]
["SQ1C86P2L2A1B1"]
["SQ1C86P2L2B0A0"]
["SQ1C86P2L2B0A1"]
["SQ1C86P2L2B0B0"]
["SQ1C86P2L2B0B1"]
["SQ1C86P2L2B1A0"]
["SQ1C86P2L2B1A1"]
["SQ1C86P2L2B1B0"]
["SQ1C86P2L2B1B1"]
["SQ1C86P2L2C0A0"]
["SQ1C86P2L2C0A1"]
["SQ1C86P2L2C0B0"]
["SQ1C86P2L2C0B1"]
["SQ1C86P2L2C1A0"]
["SQ1C86P2L2C1A1"]
["SQ1C86P2L2C1B0"]
["SQ1C86P2L2C1B1"]
["SQ1C86P2L3A0A0"]
["SQ1C86P2L3A0A1"]
["SQ1C86P2L3A0B0"]
["SQ1C86P2L3A0B1"]
["SQ1C86P2L3A1A0"]
["SQ1C86P2L3A1A1"]
["SQ1C86P2L3A1B0"]
["SQ1C86P2L3A1B1"]
["SQ1C86P2L3B0A0"]
["SQ1C86P2L3B0A1"]
["SQ1C86P2L3B0B0"]
["SQ1C86P2L3B0B1"]
["SQ1C86P2L3B1A0"]
["SQ1C86P2L3B1A1"]
["SQ1C86P2L3B1B0"]
["SQ1C86P2L3B1B1"]
["SQ1C86P2L3C0A0"]
["SQ1C86P2L3C0A1"]
["SQ1C86P2L3C0B0"]
["SQ1C86P2L3C0B1"]
["SQ1C86P2L3C1A0"]
["SQ1C86P2L3C1A1"]
["SQ1C86P2L3C1B0"]
["SQ1C86P2L3C1B1"]
["SQ1C86P2L4A0A0"]
["SQ1C86P2L4A0A1"]
["SQ1C86P2L4A0B0"]
["SQ1C86P2L4A0B1"]
["SQ1C86P2L4A1A0"]
["SQ1C86P2L4A1A1"]
["SQ1C86P2L4A1B0"]
["SQ1C86P2L4A1B1"]
["SQ1C86P2L4B0A0"]
["SQ1C86P2L4B0A1"]
["SQ1C86P2L4B0B0"]
["SQ1C86P2L4B0B1"]
["SQ1C86P2L4B1A0"]
["SQ1C86P2L4B1A1"]
["SQ1C86P2L4B1B0"]
["SQ1C86P2L4B1B1"]
["SQ1C86P2L4C0A0"]
["SQ1C86P2L4C0A1"]
["SQ1C86P2L4C0B0"]
["SQ1C86P2L4C0B1"]
["SQ1C86P2L4C1A0"]
["SQ1C86P2L4C1A1"]
["SQ1C86P2L4C1B0"]
["SQ1C86P2L4C1B1"]
["SQ1C86P2L5A0A0"]
["SQ1C86P2L5A0A1"]
["SQ1C86P2L5A0B0"]
["SQ1C86P2L5A0B1"]
["SQ1C86P2L5A1A0"]
["SQ1C86P2L5A1A1"]
["SQ1C86P2L5A1B0"]
["SQ1C86P2L5A1B1"]
["SQ1C86P2L5B0A0"]
["SQ1C86P2L5B0A1"]
["SQ1C86P2L5B0B0"]
["SQ1C86P2L5B0B1"]
["SQ1C86P2L5B1A0"]
["SQ1C86P2L5B1A1"]
["SQ1C86P2L5B1B0"]
["SQ1C86P2L5B1B1"]
["SQ1C86P2L5C0A0"]
["SQ1C86P2L5C0A1"]
["SQ1C86P2L5C0B0"]
["SQ1C86P2L5C0B1"]
["SQ1C86P2L5C1A0"]
["SQ1C86P2L5C1A1"]
["SQ1C86P2L5C1B0"]
["SQ1C86P2L5C1B1"]
["SQ1C86P2L6A0A0"]
["SQ1C86P2L6A0A1"]
["SQ1C86P2L6A0B0"]
["SQ1C86P2L6A0B1"]
["SQ1C86P2L6A1A0"]
["SQ1C86P2L6A1A1"]
["SQ1C86P2L6A1B0"]
["SQ1C86P2L6A1B1"]
["SQ1C86P2L6B0A0"]
["SQ1C86P2L6B0A1"]
["SQ1C86P2L6B0B0"]
["SQ1C86P2L6B0B1"]
["SQ1C86P2L6B1A0"]
["SQ1C86P2L6B1A1"]
["SQ1C86P2L6B1B0"]
["SQ1C86P2L6B1B1"]

{"sheet":"Literature","index":10,"n_rows":17,"n_cols":4,"rows_kept":17,"cut":false,"hidden":false,"merged":[]}
[null,"SEPAM Literature Links"]
[]
[null,"Type","Description","Link"]
[]
[null,"User's Manual","SEPAM Series 20","https://www.schneider-electric.com/en/download/document/PCRED301005EN/"]
[null,"User's Manual","SEPAM Series 40","https://www.schneider-electric.com/en/download/document/PCRED301006EN/"]
[null,"User's Manual","SEPAM Series 80","https://www.schneider-electric.com/en/download/document/SEPED303003EN/"]
[null,"User's Manual","SFT2841 setting software","https://www.schneider-electric.us/en/faqs/FA328590/"]
[null,"User's Manual","SFT2885 Logipam software","https://www.schneider-electric.com/en/download/document/SEPED303004EN/"]
[null,"User's Manual","CET850 IEC 61850 configuration software","https://www.schneider-electric.com/en/download/document/SEPED306025EN/"]
[]
[null,"Quick Start Guide","SEPAM Series 20/40","http://download.schneider-electric.com/files?p_Doc_Ref=03146790FE"]
[null,"Quick Start Guide","SEPAM Series 80","https://www.schneider-electric.com/en/download/document/51247480FE/"]
[]
[]
[]
[null,"Application Guide","Reducing Arc Flash in Low Voltage","https://www.schneider-electric.us/en/faqs/FA179158/"]

{"sheet":"Drawings","index":11,"n_rows":15,"n_cols":4,"rows_kept":15,"cut":false,"hidden":false,"merged":[]}
[null,"SEPAM Drawing Links"]
[]
[null,"Type","Description","Link"]
[]
[null,"Wiring Diagram","SEPAM Series 20","https://www.schneider-electric.us/en/faqs/FA328717/"]
[null,"Wiring Diagram","SEPAM Series 40","https://www.schneider-electric.us/en/faqs/FA328718/"]
[null,"Wiring Diagram","SEPAM Series 80","https://www.schneider-electric.us/en/faqs/FA328719/"]
[]
[null,"Cutout Diagram","SEPAM Series 20","https://www.schneider-electric.us/en/faqs/FA328721/"]
[null,"Cutout Diagram","SEPAM Series 40","https://www.schneider-electric.us/en/faqs/FA328722/"]
[null,"Cutout Diagram","SEPAM Series 80","https://www.schneider-electric.us/en/faqs/FA328723/"]
[]
[null,"CAD","SEPAM Series 20","https://www.schneider-electric.com/en/download/range/933-Sepam%20series%2020/?docType=1555859-CAD"]
[null,"CAD","SEPAM Series 40","https://www.schneider-electric.com/en/download/range/934-Sepam%20series%2040/?docTypeGroup=3541962-CAD+files"]
[null,"CAD","SEPAM Series 80","https://www.schneider-electric.com/en/download/range/935-Sepam%20Series%2080/?docTypeGroup=3541962-CAD+files"]

{"sheet":"Software","index":12,"n_rows":11,"n_cols":4,"rows_kept":11,"cut":false,"hidden":false,"merged":[]}
[null,"SEPAM Software Links"]
[]
[null,"Type","Description","Link"]
[]
[null,"Software","SFT2841 setting software","https://www.schneider-electric.com/en/download/document/Setup_Software_SFT2841/"]
[null,"Software","SFT2885 Logipam software","https://www.schneider-electric.us/en/faqs/FA317122/"]
[null,"Software","CET850 IEC 61850 configuration software","https://www.schneider-electric.com/en/download/document/CET850+IEC850+configuration+tool/"]
[]
[null,"User's Manual","SFT2841 setting software","https://www.schneider-electric.us/en/faqs/FA328590/"]
[null,"User's Manual","SFT2885 Logipam software","https://www.schneider-electric.com/en/download/document/SEPED303004EN/"]
[null,"User's Manual","CET850 IEC 61850 configuration software","https://www.schneider-electric.com/en/download/document/SEPED306025EN/"]

{"sheet":"Spec","index":13,"n_rows":118,"n_cols":2,"rows_kept":118,"cut":false,"hidden":true,"merged":[]}
["SUBSTATION CURRENT RELAY"]
[]
["1.01 GENERAL"]
[]
["A","The protective relay shall include an LCD display unit for User Machine Interface (UMI) that indicates: measurement values, operating messages, and device maintenance messages.  The display indication shall be visible from at least six feet distance. The display unit shall have, as a minimum, 4 lines for clear annunciation of alarm conditions."]
[]
["B","Current inputs to the relay is 1A / 5A."]
[]
["C","The protective relay shall include a keypad to select the following operations:  display of metering and operating data, alarm messages, clearing of alarms and resetting, acknowledgement, and access to protection and other relay settings."]
[]
["D","Access to protection setting mode shall be protected by a personal customized password of at least 4 characters; access to parameter setting mode by a second password of 4 characters."]
[]
["E","The protective relay should be compact - reduced depth (<4 inches)."]
[]
["F","The unit shall have screw terminals for connection of wires using ring terminal lugs for all CT (or VT) inputs, control power input, and trip outputs."]
[]
["G","Appropriate software (using standard Windows 95/98/2000/NT/XP operating system) shall allow the collection of:"]
[1,"All metering and operating data, alarm messages."]
[2,"Fault recording: single or multi-curve display, 2 pointers for differential measurement, zooming, printing."]
[3,"Breaker diagnostics data (cumulative tripping current, operations counter…)."]
[4,"Protection and parameter settings."]
[5,"Logic status of inputs, outputs, and signal LEDs (download to/from the relay)."]
[]
["H","The protective relay shall have at least four logic outputs.  Expansion of the number of logic inputs and outputs shall be possible up to 10 inputs and 8 outputs."]
[]
["I","The protective relay shall meet the applicable IEEE/IEC design standards."]
[]
["J","The operating temperature range shall be at least -25*C to 70*C."]
[]
["K","The protective relay range shall be designed to accommodate a wide range of control power supply voltages: 24, 48, 125, 250 Vdc, and 110, 240Vac without regard to catalog number or recourse to jumpering."]
[]
["L","The protective relay shall be UL Recognized (UL) in U.S. and Canada."]
[]
["M","The design and manufacturing process shall be ISO 9001 certified."]
[]
["N","The output relays shall be capable of withstanding steady state current of 8A at the rated control voltage.  ANSI C37.90 rated for 30A < 200ms."]
[]
[null,"Warranty"]
[6,"The protective relay shall have a manufacturers warranty of no less than 10 years."]
[]
["O","The relay shall be Square D Sepam series model SQ1S24A1B1A0A0 protective relay or equivalent."]
[]
["1.02 PROTECTION"]
[]
["A","The Protection and Control Unit shall contain all the necessary protection functions for the specific application:"]
[1,"Substation/Feeder protection: (50/51) Three Phase overcurrent, (CLPU 50/51) Three Phase overcurrent Cold Load Pick-Up, (50N/51N) Ground fault (or neutral) with selectable second harmonic restraint, (CLPU 50N/51N) Ground Fault Cold Load Pick-Up, (46) Unbalance / negative sequence overcurrent, and (79) Recloser (4 steps)."]
[]
["B","Each overcurrent protection device shall have a wide range of time overcurrent protection curve settings, providing a choice of curve types:"]
[1,"IEEE Moderately/Very/Extremely Inverse time."]
[2,"IEC Standard (SIT))/Very (VIT)/Long Time(LTI)/Extremely (EIT) Inverse Time."]
[3,"IAC Inverse(I)/ Very Inverse (VI)/ Extremely Inverse (EI) time."]
[4,"Standard(SIT)/Very(VIT)/Long Time(LTI)/Extremely(EIT) /Rapid (RI) Inverse time."]
[5,"Ultra Inverse Time (UIT) – for better fuse co-ordination."]
[]
["C","Definite time (DT) with time delay settings from Instantaneous (no intentional time delay less than 50 ms) to 300 s.  Overload protection shall use true RMS current value (up to a minimum 13th harmonic).  Alternative overload setting groups will be selectable by logical conditions to adapt operating mode change.  Adjustment of the overload tripping curves will be possible to exactly fit the cable characteristics."]
[]
["D","Overcurrent setting shall be made by the direct input of actual primary current values."]
[]
["E","Phase overcurrent and ground fault protection shall have an adjustable timer hold (time delay reset) to allow recurring faults detection.  The protection shall also allow a current-dependent time reset to emulate e/m relays."]
[]
["F","Ground fault protection shall integrate a second harmonic restraint, which can be activated via software."]
[]
["G","The unit shall have built in firmware specifically and uniquely for zone-selective interlocking ANSI 68 (ZSI) protection via logic I/O and settings.  The ZSI must have a built in breaker failure scheme without the necessity of an additional 50BF element programming or wiring."]
[]
["H","The relay shall allow fast change in protection scheme: 2 groups of 50/51 and 50N/51N settings shall be available with provision for shifting from one group of settings to the other by a digital input, UMI, or communications."]
[]
["1.03 MEASUREMENT"]
[]
["A","Each Protection and Control unit shall perform the measurements needed for operation and commissioning, All metering values shall be available VIA communications. Metering values and their accuracy shall be:"]
[]
[null,"Current Per Phase:  (+/- 1%)"]
[null,"Current Peak Demand:  (+/- 1%)"]
[null,"Current Demand:  (+/- 1%)"]
[null,"Current Residual :  (+/- 1%)"]
[]
["1.04 DIAGNOSTIC"]
[]
["A","An LED and text indicating the cause of the fault shall be located on the front of the device.  Nine signal LEDs shall be available for alarms and status including breaker position (open/close), relay self-test, phase fault and ground fault alarms.  It shall be possible to customize the assignment of the signal LEDs."]
[]
["B","Fault recording within the protective relay shall:"]
[1,"Be triggered automatically on event or manually via communications or from the protective relay front panel."]
[2,"Have each record store data for at least 80 cycles, 12 samples per cycle, with a selectable number of cycles before the event configurable."]
[3,"Include on each record as a minimum, the date, channel characteristics, 4 current channels (I1, I2, I3, I0) and the change of status of the digital inputs."]
[4,"Be capable of recording a minimum of 2 faults."]
[]
["C","The unit shall provide storage of at least 60 events time tagged within an accuracy of 1ms."]
[]
["D","The protective relay shall include:"]
[1,"An internal function self-monitoring mechanism, which activates one fail-safe watchdog changeover contact."]
[2,"An automatic device for switching to the fail-safe mode, disabling output controls when a major internal failure is detected."]
[3,"Indication of self test status of the device by LED and text."]
[]
["1.05 CONTROL"]
[]
["A","The Protective relay shall include the logic inputs and outputs required for control of the interrupting devices (circuit-breaker or contactor) and for interfacing with the monitoring or logic process:"]
["1","CB open close control, whatever the type of 52/42a or 52/42b contact availability."]
["2","ANSI 69 / Block closing."]
["3","Remote tripping."]
["4","As an option, monitoring of the circuit breaker for maintenance statistics purposes:  operating time, charging time, trip circuit supervision (covering power supply, wiring and trip coil) cumulative total of tripping currents for 5 current ranges, operation counter, pressure (for SF6 circuit breakers)."]
["5","Retention of programmed settings (during control power supply outages)."]
[]
["1.06 COMMUNICATION"]
[]
["A","The communications module (Card) shall allow access to metering data, protection settings readouts, and the fault record data.  The unit shall be compatible with PowerLogic System Manager TM Software (SMS), ION Enterprise for central management of the electrical power system and SFT2841 for relay programming and setup."]
[]
["B","The communications module (Card) shall be mounted on the back panel using 35mm DIN Rail. The Communications module shall be connected to the relay base unit using a CAT5 Cable. The power supply to the communications module must be 24-250VDC or 110-240VAC."]
[]
["C","The communications module shall have 2 communications ports which will be 2 wire RS485 with each having a selectable communications rate of 4800, 9600, 19,200 or 38,000 baud. The RS485 ports shall be 1 E-LAN Port which is Modbus RTU compatible and 1 S-LAN Port of user selectable protocols of Modbus RTU, DNP3 or IEC 60870-5-103."]
[]
["D","A RS232 connection port shall be available in the front of the relay, allowing communicating between the relay and a PC with the appropriate software."]
[]
["E","The communications card shall be interchangeable with the relay base unit without having to interrupt or reinitialize the relay base unit power."]
[]
["F","The response time for control commands shall be less than 15 ms (time from order sent to the unit until order acknowledgement)."]
[]
["G","Remote control orders shall be carried out in two modes: Direct mode or \"SBO\" (select before operate)."]
[]
["H","The communications module shall be a Square D SEPAM series ACE969-TP2."]

{"sheet":"Spec_Alt","index":14,"n_rows":90,"n_cols":2,"rows_kept":90,"cut":false,"hidden":true,"merged":[]}
["SUBSTATION CURRENT RELAY"]
[]
["1.01 GENERAL"]
[]
[null,"The protective relay shall include an LCD display unit for User Machine Interface (UMI) that indicates: measurement values, operating messages, and device maintenance messages.  The display indication shall be visible from at least six feet distance. The display unit shall have, as a minimum, 4 lines for clear annunciation of alarm conditions."]
[null,"Current inputs to the relay is 1A / 5A."]
[null,"The protective relay shall include a keypad to select the following operations:  display of metering and operating data, alarm messages, clearing of alarms and resetting, acknowledgement, and access to protection and other relay settings."]
[null,"Access to protection setting mode shall be protected by a personal customized password of at least 4 characters; access to parameter setting mode by a second password of 4 characters."]
[null,"The protective relay should be compact - reduced depth (<4 inches)."]
[null,"The unit shall have screw terminals for connection of wires using ring terminal lugs for all CT (or VT) inputs, control power input, and trip outputs."]
[null,"Appropriate software (using standard Windows 95/98/2000/NT/XP operating system) shall allow the collection of:"]
["1.01.1","All metering and operating data, alarm messages."]
["1.01.2","Fault recording: single or multi-curve display, 2 pointers for differential measurement, zooming, printing."]
["1.01.3","Breaker diagnostics data (cumulative tripping current, operations counter…)."]
["1.01.4","Protection and parameter settings."]
["1.01.5","Logic status of inputs, outputs, and signal LEDs (download to/from the relay)."]
[]
[null,"The protective relay shall have at least four logic outputs.  Expansion of the number of logic inputs and outputs shall be possible up to 10 inputs and 8 outputs."]
[null,"The protective relay shall meet the applicable IEEE/IEC design standards."]
[null,"The operating temperature range shall be at least -25*C to 70*C."]
[null,"The protective relay range shall be designed to accommodate a wide range of control power supply voltages: 24, 48, 125, 250 Vdc, and 110, 240Vac without regard to catalog number or recourse to jumpering."]
[null,"The protective relay shall be UL Recognized (UL) in U.S. and Canada."]
[null,"The design and manufacturing process shall be ISO 9001 certified."]
[null,"The output relays shall be capable of withstanding steady state current of 8A at the rated control voltage.  ANSI C37.90 rated for 30A < 200ms."]
["1.01.6  Warranty"]
[null,"The protective relay shall have a manufacturers warranty of no less than 10 years."]
[]
[null,"The relay shall be Square D Sepam series model SQ1S24A1B1A0A0 or equivalent."]
[]
["1.02 PROTECTION"]
[]
[null,"The Protection and Control Unit shall contain all the necessary protection functions for the specific application:"]
[null,"Substation/Feeder protection: (50/51) Three Phase overcurrent, (CLPU 50/51) Three Phase overcurrent Cold Load Pick-Up, (50N/51N) Ground fault (or neutral) with selectable second harmonic restraint, (CLPU 50N/51N) Ground Fault Cold Load Pick-Up, (46) Unbalance / negative sequence overcurrent, and (79) Recloser (4 steps)."]
[null,"Each overcurrent protection device shall have a wide range of time overcurrent protection curve settings, providing a choice of curve types:"]
["1.02.1","IEEE Moderately/Very/Extremely Inverse time."]
["1.02.2","IEC Standard (SIT))/Very (VIT)/Long Time(LTI)/Extremely (EIT) Inverse Time."]
["1.02.3","IAC Inverse(I)/ Very Inverse (VI)/ Extremely Inverse (EI) time."]
["1.02.4","Standard(SIT)/Very(VIT)/Long Time(LTI)/Extremely(EIT) /Rapid (RI) Inverse time."]
["1.02.5","Ultra Inverse Time (UIT) – for better fuse co-ordination."]
[]
[null,"Definite time (DT) with time delay settings from Instantaneous (no intentional time delay less than 50 ms) to 300 s.  Overload protection shall use true RMS current value (up to a minimum 13th harmonic).  Alternative overload setting groups will be selectable by logical conditions to adapt operating mode change.  Adjustment of the overload tripping curves will be possible to exactly fit the cable characteristics."]
[null,"Overcurrent setting shall be made by the direct input of actual primary current values."]
[null,"Phase overcurrent and ground fault protection shall have an adjustable timer hold (time delay reset) to allow recurring faults detection.  The protection shall also allow a current-dependent time reset to emulate e/m relays."]
[null,"Ground fault protection shall integrate a second harmonic restraint, which can be activated via software."]
[null,"The unit shall have built in firmware specifically and uniquely for zone-selective interlocking ANSI 68 (ZSI) protection via logic I/O and settings.  The ZSI must have a built in breaker failure scheme without the necessity of an additional 50BF element programming or wiring."]
[null,"The relay shall allow fast change in protection scheme: 2 groups of 50/51 and 50N/51N settings shall be available with provision for shifting from one group of settings to the other by a digital input, UMI, or communications."]
[]
["1.03 MEASUREMENT"]
[]
[null,"Each Protection and Control unit shall perform the measurements needed for operation and commissioning, All metering values shall be available VIA communications. Metering values and their accuracy shall be:"]
[]
[null,"Current Per Phase:  (+/- 1%)"]
[null,"Current Peak Demand:  (+/- 1%)"]
[null,"Current Demand:  (+/- 1%)"]
[null,"Current Residual :  (+/- 1%)"]
[]
["1.04 DIAGNOSTIC"]
[]
[null,"An LED and text indicating the cause of the fault shall be located on the front of the device.  Nine signal LEDs shall be available for alarms and status including breaker position (open/close), relay self-test, phase fault and ground fault alarms.  It shall be possible to customize the assignment of the signal LEDs."]
[null,"Fault recording within the protective relay shall:"]
["1.04.1","Be triggered automatically on event or manually via communications or from the protective relay front panel."]
["1.04.2","Have each record store data for at least 80 cycles, 12 samples per cycle, with a selectable number of cycles before the event configurable."]
["1.04.3","Include on each record as a minimum, the date, channel characteristics, 4 current channels (I1, I2, I3, I0) and the change of status of the digital inputs."]
["1.04.4","Be capable of recording a minimum of 2 faults."]
[]
[null,"The unit shall provide storage of at least 60 events time tagged within an accuracy of 1ms."]
[null,"The protective relay shall include:"]
["1.04.5","An internal function self-monitoring mechanism, which activates one fail-safe watchdog changeover contact."]
["1.04.6","An automatic device for switching to the fail-safe mode, disabling output controls when a major internal failure is detected."]
["1.04.7","Indication of self test status of the device by LED and text."]
[]
["1.05 CONTROL"]
[]
[null,"The Protective relay shall include the logic inputs and outputs required for control of the interrupting devices (circuit-breaker or contactor) and for interfacing with the monitoring or logic process:"]
["1.05.1","CB open close control, whatever the type of 52/42a or 52/42b contact availability."]
["1.05.2","ANSI 69 / Block closing."]
["1.05.3","Remote tripping."]
["1.05.4","As an option, monitoring of the circuit breaker for maintenance statistics purposes:  operating time, charging time, trip circuit supervision (covering power supply, wiring and trip coil) cumulative total of tripping currents for 5 current ranges, operation counter, pressure (for SF6 circuit breakers)."]
["1.05.5","Retention of programmed settings (during control power supply outages)."]
[]
["1.06 COMMUNICATION"]
[]
[null,"The communications module (Card) shall allow access to metering data, protection settings readouts, and the fault record data.  The unit shall be compatible with PowerLogic System Manager TM Software (SMS), ION Enterprise for central management of the electrical power system and SFT2841 for relay programming and setup."]
[null,"The communications module (Card) shall be mounted on the back panel using 35mm DIN Rail. The Communications module shall be connected to the relay base unit using a CAT5 Cable. The power supply to the communications module must be 24-250VDC or 110-240VAC."]
[null,"The communications module shall have 2 communications ports which will be 2 wire RS485 with each having a selectable communications rate of 4800, 9600, 19,200 or 38,000 baud. The RS485 ports shall be 1 E-LAN Port which is Modbus RTU compatible and 1 S-LAN Port of user selectable protocols of Modbus RTU, DNP3 or IEC 60870-5-103."]
[null,"A RS232 connection port shall be available in the front of the relay, allowing communicating between the relay and a PC with the appropriate software."]
[null,"The communications card shall be interchangeable with the relay base unit without having to interrupt or reinitialize the relay base unit power."]
[null,"The response time for control commands shall be less than 15 ms (time from order sent to the unit until order acknowledgement)."]
[null,"Remote control orders shall be carried out in two modes: Direct mode or \"SBO\" (select before operate)."]
[null,"The communications module shall be a Square D SEPAM series ACE969-TP2."]

{"sheet":"Spec20_Data","index":15,"n_rows":164,"n_cols":31,"rows_kept":164,"cut":false,"hidden":true,"merged":[[44,31,44,38],[45,32,45,38],[48,32,48,38]]}
[null,null,"Options",null,null,null,null,"The protective relay shall meet the applicable IEEE/IEC design standards.",null,"A",null,null,"A.  ","Each Protection and Control unit shall perform the measurements needed for operation and commissioning, All metering values shall be available VIA communications. Metering values and their accuracy shall be:",null,null,null,null,null,"An LED and text indicating the cause of the fault shall be located on the front of the device.  Nine signal LEDs shall be available for alarms and status including breaker position (open/close), relay self-test, phase fault and ground fault alarms.  It shall be possible to customize the assignment of the signal LEDs.",null,null,null,null,"The Protective relay shall include the logic inputs and outputs required for control of the interrupting devices (circuit-breaker or contactor) and for interfacing with the monitoring or logic process:",null,null,"Protection",null,null,"Protection_Alt"]
[null,"Analog","The Analog Output module (Card) shall be mounted on the back panel using 35mm DIN Rail. It shall be connected to the relay base using the supplied CAT5 cable. The output shall be selectable as 0/10mA, 0/20mA or 4/20mA.  The analog output shall be programmable to be proportional to any value measured by the relay.",null,null,"SERIES 20 CURRENT ONLY RELAY",null,null,null,"B",null,null,null,null,null,null,null,null,null,"Fault recording within the protective relay shall:",null,null,null,"1","CB open close control, whatever the type of 52/42a or 52/42b contact availability.",null,"B21","The Protection and Control Unit shall contain all the necessary protection functions for the specific application:",null,"B21","The Protection and Control Unit shall contain all the necessary protection functions for the specific application:"]
[null,"Display","The protective relay shall include an LCD display unit for User Machine Interface (UMI) that indicates: measurement values, operating messages, and device maintenance messages.  The display indication shall be visible from at least six feet distance. The display unit shall have, as a minimum, 4 lines for clear annunciation of alarm conditions.",null,null,"SERIES 20 VOLTAGE ONLY RELAY",null,"The operating temperature range shall be at least -25*C to 70*C.",null,"C",null,null,null,"Current Per Phase:  (+/- 1%)",null,null,null,null,1,"Be triggered automatically on event or manually via communications or from the protective relay front panel.",null,null,null,"2","ANSI 69 / Block closing.",null,"B21","Voltage network protection (busbar): (27D/47) Positive sequence undervoltage, (27R) Remanent undervoltage, (27) Phase to Phase undervoltage, (27S) Phase to Neutral undervoltage, (59) Phase-to-Phase overvoltage, (59N) neutral voltage displacement, (81H) Overfrequency, (81L) Underfrequency.",null,"B21","Voltage network protection (busbar): (27D/47) Positive sequence undervoltage, (27R) Remanent undervoltage, (27) Phase to Phase undervoltage, (27S) Phase to Neutral undervoltage, (59) Phase-to-Phase overvoltage, (59N) neutral voltage displacement, (81H) Overfrequency, (81L) Underfrequency."]
[null,"Display","The protective relay shall include a Remotely Mounted LCD display unit for User Machine Interface (UMI) that indicates: measurement values, operating messages, and device maintenance messages.  The display indication shall be visible from at least six feet distance. The display unit shall have, as a minimum, 4 lines for clear annunciation of alarm conditions. The Remote Display shall be connected to the relay base unit with a supplied CAT5 cable. The relay base unit will be mounted on the cabinet back panel with the supplied back panel mounting plate.",null,null,"1.01 GENERAL",null,null,null,"D",null,null,null,"Current Peak Demand:  (+/- 1%)",null,null,null,null,2,"Have each record store data for at least 80 cycles, 12 samples per cycle, with a selectable number of cycles before the event configurable.",null,null,null,"3","Remote tripping.",null,"B21",null,null,"B21","Definite time (DT) with time delay settings from Instantaneous (no intentional time delay less than 50 ms) to 300 s.  "]
[null,"Display","The protective relay shall include an Mimicbus graphical display for User Machine Interface (UMI) that indicates: measurement values, operating messages, and device maintenance messages. The display will allow local opening and closing of all devices controlled by the relay and status of any monitored input on an animated graphical display.",null,null,"1.02 PROTECTION",null,"The protective relay range shall be designed to accommodate a wide range of control power supply voltages: 24, 48, 125, 250 Vdc, and 110, 240Vac without regard to catalog number or recourse to jumpering.",null,"E",null,null,null,"Current Demand:  (+/- 1%)",null,null,null,null,3,"Include on each record as a minimum, the date, channel characteristics, 4 current channels (I1, I2, I3, I0) and the change of status of the digital inputs.",null,null,null,"4","As an option, monitoring of the circuit breaker for maintenance statistics purposes:  operating time, charging time, trip circuit supervision (covering power supply, wiring and trip coil) cumulative total of tripping currents for 5 current ranges, operation counter, pressure (for SF6 circuit breakers).",null,"B21","Definite time (DT) with time delay settings from Instantaneous (no intentional time delay less than 50 ms) to 300 s.  "]
[null,"CTs","Current inputs to the relay is 1A / 5A.",null,null,"1.03 MEASUREMENT",null,null,null,"F",null,null,null,"Current Residual :  (+/- 1%)",null,null,null,null,4,"Be capable of recording a minimum of 2 faults.",null,null,null,"5","Retention of programmed settings (during control power supply outages).",null,null,null,null,"B22","The Protection and Control Unit shall contain all the necessary protection functions for the specific application:"]
[null,"CTs","The relay requires input from LPCT (Low Power Current Transformer) sensors.  The LPCT is rated from 25A – 3750A , the range is defined using dip switches on the LPCT input module mounted to the rear of the relay. Connection from the input module to the LPCT shall be using the supplied CAT5 cable.",null,null,"1.04 DIAGNOSTIC",null,"The protective relay shall be UL Recognized (UL) in U.S. and Canada.",null,"G",null,null,null,null,null,null,null,null,null,"The unit shall provide storage of at least 60 events time tagged within an accuracy of 1ms.",null,null,null,null,null,null,"B22","The Protection and Control Unit shall contain all the necessary protection functions for the specific application:",null,"B22","Voltage network protection (busbar): (27D/47) Positive sequence undervoltage, (27R) Remanent undervoltage, (27) Phase to Phase undervoltage, (27S) Phase to Neutral undervoltage, (59) Phase-to-Phase overvoltage, (59N) neutral voltage displacement, (81H) Overfrequency, (81L) Underfrequency."]
[null,"CTs","Voltage measurement input to the relay is from external PTs.",null,null,"1.05 CONTROL",null,null,null,"H",null,null,null,"Each Protection and Control unit shall perform the measurements needed for operation and commissioning, All metering values shall be available VIA communications. Metering values and their accuracy shall be:",null,null,null,null,null,"The protective relay shall include:",null,null,null,null,null,null,"B22","Voltage network protection (busbar): (27D/47) Positive sequence undervoltage, (27R) Remanent undervoltage, (27) Phase to Phase undervoltage, (27S) Phase to Neutral undervoltage, (59) Phase-to-Phase overvoltage, (59N) neutral voltage displacement, (81H) Overfrequency, (81L) Underfrequency.",null,"B22","Loss of mains protection (busbar): same voltage and frequency elements as Voltage network protection (busbar) plus (81R) Rate of Change of frequency."]
[null,"keypad","The protective relay shall include a keypad to select the following operations:  display of metering and operating data, alarm messages, clearing of alarms and resetting, acknowledgement, and access to protection and other relay settings.",null,null,"1.06 COMMUNICATION",null,"The design and manufacturing process shall be ISO 9001 certified.",null,"I",null,null,null,null,null,null,null,null,1,"An internal function self-monitoring mechanism, which activates one fail-safe watchdog changeover contact.",null,null,null,null,null,null,"B22","Loss of mains protection (busbar): same voltage and frequency elements as Voltage network protection (busbar) plus (81R) Rate of Change of frequency.",null,"B22","Definite time (DT) with time delay settings from Instantaneous (no intentional time delay less than 50 ms) to 300 s.  "]
[null,"password","Access to protection setting mode shall be protected by a personal customized password of at least 4 characters; access to parameter setting mode by a second password of 4 characters.",null,null,null,null,null,null,"J",null,null,null,"Voltage  L-N  & L-L :  (+/- 1%)",null,null,null,null,2,"An automatic device for switching to the fail-safe mode, disabling output controls when a major internal failure is detected."]
[null,"size","The protective relay should be compact - reduced depth (<4 inches).",null,null,null,null,"The output relays shall be capable of withstanding steady state current of 8A at the rated control voltage.  ANSI C37.90 rated for 30A < 200ms.",null,"K",null,null,null,"Voltage Residual :  (+/- 1%)",null,null,null,null,3,"Indication of self test status of the device by LED and text.",null,null,null,null,null,null,"B22","Definite time (DT) with time delay settings from Instantaneous (no intentional time delay less than 50 ms) to 300 s.  ",null,"M20","The Protection and Control Unit shall contain all the necessary protection functions for the specific application:"]
[null,"connector","The unit shall have screw terminals for connection of wires using ring terminal lugs for all CT (or VT) inputs, control power input, and trip outputs.",null,null,null,null,null,null,"L",null,null,null,"Voltage Pos. Sequence   1,2,3 :  (+/- 1%)",null,null,null,null,null,null,null,null,null,null,null,null,null,null,null,"M20","Motor protection: (50/51) Three Phase overcurrent, (50N/51N) Ground fault (or neutral) with selectable second harmonic restraint, (46) Unbalance / negative sequence overcurrent, (49 RMS) Thermal overload, (37) Phase undercurrent, (48/51LR) Excessive starting time/ locked rotor, (66) Excessive Starts per hour, and optional (38/49)Temperature (RTD) monitoring."]
[null,"os","Appropriate software (using standard Windows 95/98/2000/NT/XP operating system) shall allow the collection of:",null,null,null,null,null,null,"M",null,null,null,"KWh (Calculated) :  (+/- 1%)",null,null,null,null,null,null,null,null,null,null,null,null,"M20","The Protection and Control Unit shall contain all the necessary protection functions for the specific application:",null,"M20","Each overcurrent protection device shall have a wide range of time overcurrent protection curve settings, providing a choice of curve types:"]
[null,"os","All metering and operating data, alarm messages.",null,null,null,null,"The protective relay shall have a manufacturers warranty of no less than 10 years.",null,"N",null,null,null,"Frequency:  0.01Hz",null,null,null,null,null,null,null,null,null,null,null,null,"M20","Motor protection: (50/51) Three Phase overcurrent, (50N/51N) Ground fault (or neutral) with selectable second harmonic restraint, (46) Unbalance / negative sequence overcurrent, (49 RMS) Thermal overload, (37) Phase undercurrent, (48/51LR) Excessive starting time/ locked rotor, (66) Excessive Starts per hour, and optional (38/49)Temperature (RTD) monitoring.",null,"M20","IEEE Moderately/Very/Extremely Inverse time."]
[null,"os","Fault recording: single or multi-curve display, 2 pointers for differential measurement, zooming, printing.",null,null,null,null,null,null,"O",null,null,null,null,null,null,null,null,null,null,null,null,null,null,null,null,null,null,null,"M20","IEC Standard (SIT))/Very (VIT)/Long Time(LTI)/Extremely (EIT) Inverse Time."]
[null,"os","Breaker diagnostics data (cumulative tripping current, operations counter…).",null,null,null,null,"The protective relay shall meet the applicable IEEE/IEC design standards.",null,"P",null,null,null,null,null,null,null,null,null,null,null,null,null,null,null,null,"M20","Each overcurrent protection device shall have a wide range of time overcurrent protection curve settings, providing a choice of curve types:",null,"M20","IAC Inverse(I)/ Very Inverse (VI)/ Extremely Inverse (EI) time."]
[null,"os","Protection and parameter settings.",null,null,null,null,"The operating temperature range shall be at least -25*C to 70*C.",null,"Q",null,null,null,null,null,null,null,null,null,null,null,null,null,null,null,null,"M20","IEEE Moderately/Very/Extremely Inverse time.",null,"M20","Standard(SIT)/Very(VIT)/Long Time(LTI)/Extremely(EIT) /Rapid (RI) Inverse time."]
[null,"os","Logic status of inputs, outputs, and signal LEDs (download to/from the relay).",null,null,null,null,"The protective relay range shall be designed to accommodate a wide range of control power supply voltages: 24, 48, 125, 250 Vdc, and 110, 240Vac without regard to catalog number or recourse to jumpering.",null,"R",null,null,null,null,null,null,null,null,null,null,null,null,null,null,null,null,"M20","IEC Standard (SIT))/Very (VIT)/Long Time(LTI)/Extremely (EIT) Inverse Time.",null,"M20","Ultra Inverse Time (UIT) – for better fuse co-ordination."]
[null,"i/o","The protective relay shall have at least four logic outputs.  Expansion of the number of logic inputs and outputs shall be possible up to 10 inputs and 8 outputs.",null,null,null,null,"The protective relay shall be UL Recognized (UL) in U.S. and Canada.",null,"S",null,null,null,null,null,null,null,null,null,null,null,null,null,null,null,null,"M20","IAC Inverse(I)/ Very Inverse (VI)/ Extremely Inverse (EI) time."]
[null,"RTD","The protective relay will not require RTD’s but must be field upgradable to a maximum of 16 RTD inputs.",null,null,null,null,"The design and manufacturing process shall be ISO 9001 certified.",null,"T",null,null,null,null,null,null,null,null,null,null,null,null,null,null,null,null,"M20","Standard(SIT)/Very(VIT)/Long Time(LTI)/Extremely(EIT) /Rapid (RI) Inverse time.",null,"M20","Definite time (DT) with time delay settings from Instantaneous (no intentional time delay less than 50 ms) to 300 s.  Overload protection shall use true RMS current value (up to a minimum 13th harmonic) and will compensate for changes in ambient temperature (optional).  Alternative overload setting groups will be selectable by logical conditions to adapt operating mode change.  Adjustment of the overload tripping curves will be possible to exactly fit the motor characteristics."]
[null,"RTD","The protective relay shall have 8 RTD Temperature inputs, capable of measuring from 100 Ohm Platinum or 100/120 Ohm Nickel. The relay must be field upgradable to a maximum of 16 RTD inputs.",null,null,null,null,"The output relays shall be capable of withstanding steady state current of 8A at the rated control voltage.  ANSI C37.90 rated for 30A < 200ms.",null,"U",null,null,null,null,null,null,null,null,null,null,null,null,null,null,null,null,"M20","Ultra Inverse Time (UIT) – for better fuse co-ordination.",null,"M20","Overcurrent setting shall be made by the direct input of actual primary current values."]
[null,"RTD","The protective relay shall have 16 RTD Temperature inputs, capable of measuring 100 Ohm Platinum or 100/120 Ohm Nickel. ",null,null,null,null,null,null,"V",null,null,null,null,null,null,null,null,null,null,null,null,null,null,null,null,null,null,null,"M20","Phase overcurrent and ground fault protection shall have an adjustable timer hold (time delay reset) to allow recurring faults detection.  The protection shall also allow a current-dependent time reset to emulate e/m relays."]
[null,959,"The communications module (Card) shall allow access to metering data, protection settings readouts, and the fault record data.  The unit shall be compatible with PowerLogic System Manager TM Software (SMS), ION Enterprise for central management of the electrical power system and SFT2841 for relay programming and setup.",null,null,null,null,"The protective relay shall have a manufacturers warranty of no less than 10 years.",null,"W",null,null,null,null,null,null,null,null,null,null,null,null,null,null,null,null,"M20","Definite time (DT) with time delay settings from Instantaneous (no intentional time delay less than 50 ms) to 300 s.  Overload protection shall use true RMS current value (up to a minimum 13th harmonic) and will compensate for changes in ambient temperature (optional).  Alternative overload setting groups will be selectable by logical conditions to adapt operating mode change.  Adjustment of the overload tripping curves will be possible to exactly fit the motor characteristics.",null,"M20","Ground fault protection shall integrate a second harmonic restraint, which can be activated via software."]
[null,null,null,null,null,null,null,null,null,"X",null,null,null,null,null,null,null,null,null,null,null,null,null,null,null,null,null,null,null,"M20","The unit shall have built in firmware specifically and uniquely for zone-selective interlocking ANSI 68 (ZSI) protection via logic I/O and settings.  The ZSI must have a built in breaker failure scheme without the necessity of an additional 50BF element programming or wiring."]
[null,959,"The communications module (Card) shall be mounted on the back panel using 35mm DIN Rail. The communications module shall be connected to the relay base unit using a CAT5 Cable. The power supply to the communications module must be 24-48VDC.",null,null,null,null,null,null,"Y",null,null,null,null,null,null,null,null,null,null,null,null,null,null,null,null,"M20","Overcurrent setting shall be made by the direct input of actual primary current values.",null,"M20","The relay shall allow fast change in protection scheme: 2 groups of 50/51 and 50N/51N settings shall be available with provision for shifting from one group of settings to the other by a digital input, UMI, or communications."]
[null,null,null,null,null,null,null,null,null,"Z"]
[null,959,"The communications module shall have a selectable communications rate of 4800, 9600, 19,200 or 38,000 baud. The communications port will be  4 Wire RS485 with Modbus RTU protocol. ",null,null,null,null,null,null,null,null,null,null,null,null,null,null,null,null,null,null,null,null,null,null,null,"M20","Phase overcurrent and ground fault protection shall have an adjustable timer hold (time delay reset) to allow recurring faults detection.  The protection shall also allow a current-dependent time reset to emulate e/m relays.",null,"S24","The Protection and Control Unit shall contain all the necessary protection functions for the specific application:"]
[null,null,null,null,null,null,null,null,null,null,null,null,null,null,null,null,null,null,null,null,null,null,null,null,null,null,null,null,null,"S24","Substation/Feeder protection: (50/51) Three Phase overcurrent, (CLPU 50/51) Three Phase overcurrent Cold Load Pick-Up, (50N/51N) Ground fault (or neutral) with selectable second harmonic restraint, (CLPU 50N/51N) Ground Fault Cold Load Pick-Up, (46) Unbalance / negative sequence overcurrent, and (79) Recloser (4 steps)."]
[null,959,"A RS232 connection port shall be available in the front of the relay, allowing communicating between the relay and a PC with the appropriate software.",null,null,null,null,null,null,null,null,null,null,null,null,null,null,null,null,null,null,null,null,null,null,null,"M20","Ground fault protection shall integrate a second harmonic restraint, which can be activated via software.",null,"S24","Each overcurrent protection device shall have a wide range of time overcurrent protection curve settings, providing a choice of curve types:"]
[null,null,null,null,null,null,null,null,null,null,null,null,null,null,null,null,null,null,null,null,null,null,null,null,null,null,null,null,null,"S24","IEEE Moderately/Very/Extremely Inverse time."]
[null,959,"The communications card shall be interchangeable with the relay base unit without having to interrupt or reinitialize the relay base unit power.",null,null,null,null,null,null,null,null,null,null,null,null,null,null,null,null,null,null,null,null,null,null,null,"M20","The unit shall have built in firmware specifically and uniquely for zone-selective interlocking ANSI 68 (ZSI) protection via logic I/O and settings.  The ZSI must have a built in breaker failure scheme without the necessity of an additional 50BF element programming or wiring.",null,"S24","IEC Standard (SIT))/Very (VIT)/Long Time(LTI)/Extremely (EIT) Inverse Time."]
[null,null,null,null,null,null,null,null,null,null,null,null,null,null,null,null,null,null,null,null,null,null,null,null,null,null,null,null,null,"S24","IAC Inverse(I)/ Very Inverse (VI)/ Extremely Inverse (EI) time."]
[null,959,"The response time for control commands shall be less than 15 ms (time from order sent to the unit until order acknowledgement).",null,null,null,null,null,null,null,null,null,null,null,null,null,null,null,null,null,null,null,null,null,null,null,"M20","The relay shall allow fast change in protection scheme: 2 groups of 50/51 and 50N/51N settings shall be available with provision for shifting from one group of settings to the other by a digital input, UMI, or communications.",null,"S24","Standard(SIT)/Very(VIT)/Long Time(LTI)/Extremely(EIT) /Rapid (RI) Inverse time."]
[null,null,null,null,null,null,null,null,null,null,null,null,null,null,null,null,null,null,null,null,null,null,null,null,null,null,null,null,null,"S24","Ultra Inverse Time (UIT) – for better fuse co-ordination."]
[null,959,"Remote control orders shall be carried out in two modes: Direct mode or \"SBO\" (select before operate) mode.",null,null,null,null,null,null,null,null,null,null,null,null,null,null,null,null,null,null,null,null,null,null,null,"S24","The Protection and Control Unit shall contain all the necessary protection functions for the specific application:",null,"S24"]
[null,null,null,null,null,null,null,null,null,null,null,null,null,null,null,null,null,null,null,null,null,null,null,null,null,null,"S24","Substation/Feeder protection: (50/51) Three Phase overcurrent, (CLPU 50/51) Three Phase overcurrent Cold Load Pick-Up, (50N/51N) Ground fault (or neutral) with selectable second harmonic restraint, (CLPU 50N/51N) Ground Fault Cold Load Pick-Up, (46) Unbalance / negative sequence overcurrent, and (79) Recloser (4 steps).",null,"S24","Definite time (DT) with time delay settings from Instantaneous (no intentional time delay less than 50 ms) to 300 s.  Overload protection shall use true RMS current value (up to a minimum 13th harmonic).  Alternative overload setting groups will be selectable by logical conditions to adapt operating mode change.  Adjustment of the overload tripping curves will be possible to exactly fit the cable characteristics."]
[null,959,"The communications module shall be a Square D SEPAM series ACE959.",null,null,null,null,null,null,null,null,null,null,null,null,null,null,null,null,null,null,null,null,null,null,null,"S24",null,null,"S24","Overcurrent setting shall be made by the direct input of actual primary current values."]
[null,"969FO","The communications module (Card) shall allow access to metering data, protection settings readouts, and the fault record data.  The unit shall be compatible with PowerLogic System Manager TM Software (SMS), ION Enterprise for central management of the electrical power system and SFT2841 for relay programming and setup.",null,null,null,null,null,null,null,null,null,null,null,null,null,null,null,null,null,null,null,null,null,null,null,"S24","Each overcurrent protection device shall have a wide range of time overcurrent protection curve settings, providing a choice of curve types:",null,"S24","Phase overcurrent and ground fault protection shall have an adjustable timer hold (time delay reset) to allow recurring faults detection.  The protection shall also allow a current-dependent time reset to emulate e/m relays."]
[null,null,null,null,null,null,null,null,null,null,null,null,null,null,null,null,null,null,null,null,null,null,null,null,null,null,"S24","IEEE Moderately/Very/Extremely Inverse time.",null,"S24","Ground fault protection shall integrate a second harmonic restraint, which can be activated via software."]
[null,"969FO","The communications module (Card) shall be mounted on the back panel using 35mm DIN Rail. The Communications module shall be connected to the relay base unit using a CAT5 Cable. The power supply to the communications module must be 24-250VDC or 110-240VAC.",null,null,null,null,null,null,null,null,null,null,null,null,null,null,null,null,null,null,null,null,null,null,null,"S24","IEC Standard (SIT))/Very (VIT)/Long Time(LTI)/Extremely (EIT) Inverse Time.",null,"S24","The unit shall have built in firmware specifically and uniquely for zone-selective interlocking ANSI 68 (ZSI) protection via logic I/O and settings.  The ZSI must have a built in breaker failure scheme without the necessity of an additional 50BF element programming or wiring."]
[null,null,null,null,null,null,null,null,null,null,null,null,null,null,null,null,null,null,null,null,null,null,null,null,null,null,"S24","IAC Inverse(I)/ Very Inverse (VI)/ Extremely Inverse (EI) time.",null,"S24","The relay shall allow fast change in protection scheme: 2 groups of 50/51 and 50N/51N settings shall be available with provision for shifting from one group of settings to the other by a digital input, UMI, or communications."]
[null,"969FO","The communications module shall have 2 communications ports which will be have a selectable communications rate of 4800, 9600, 19,200 or 38,000 baud. One communications port will be designated as an E-LAN Port which will be 2 Wire RS485 with Modbus RTU protocol and one communications port will be designated an  S-LAN Port which be Fiber Optic and will have user selectable protocols of Modbus RTU, DNP3 or IEC 60870-5-103.",null,null,null,null,null,null,null,null,null,null,null,null,null,null,null,null,null,null,null,null,null,null,null,"S24","Standard(SIT)/Very(VIT)/Long Time(LTI)/Extremely(EIT) /Rapid (RI) Inverse time."]
[null,null,null,null,null,null,null,null,null,null,null,null,null,null,null,null,null,null,null,null,null,null,null,null,null,null,"S24","Ultra Inverse Time (UIT) – for better fuse co-ordination.",null,"T24","The Protection and Control Unit shall contain all the necessary protection functions for the specific application:"]
[null,"969FO","A RS232 connection port shall be available in the front of the relay, allowing communicating between the relay and a PC with the appropriate software.",null,null,null,null,null,null,null,null,null,null,null,null,null,null,null,null,null,null,null,null,null,null,null,"S24",null,null,"T24","Transformer protection: (50/51) Three Phase overcurrent, (CLPU 50/51) Three Phase overcurrent Cold Load Pick-Up, (50N/51N) Ground fault (or neutral) with selectable second harmonic restraint, (CLPU 50N/51N) Ground Fault Cold Load Pick-Up, (46) Unbalance / negative sequence overcurrent, (49 RMS) thermal overload, (49/63)Thermostat / Buchholz (gas detection/pressure), and optional (49)Temperature (RTD) monitoring."]
[null,null,null,null,null,null,null,null,null,null,null,null,null,null,null,null,null,null,null,null,null,null,null,null,null,null,"S24","Definite time (DT) with time delay settings from Instantaneous (no intentional time delay less than 50 ms) to 300 s.  Overload protection shall use true RMS current value (up to a minimum 13th harmonic).  Alternative overload setting groups will be selectable by logical conditions to adapt operating mode change.  Adjustment of the overload tripping curves will be possible to exactly fit the cable characteristics.",null,"T24","Each overcurrent protection device shall have a wide range of time overcurrent protection curve settings, providing a choice of curve types:"]
[null,"969FO","The communications card shall be interchangeable with the relay base unit without having to interrupt or reinitialize the relay base unit power.",null,null,null,null,null,null,null,null,null,null,null,null,null,null,null,null,null,null,null,null,null,null,null,"S24",null,null,"T24","IEEE Moderately/Very/Extremely Inverse time."]
[null,null,null,null,null,null,null,null,null,null,null,null,null,null,null,null,null,null,null,null,null,null,null,null,null,null,"S24","Overcurrent setting shall be made by the direct input of actual primary current values.",null,"T24","IEC Standard (SIT))/Very (VIT)/Long Time(LTI)/Extremely (EIT) Inverse Time."]
[null,"969FO","The response time for control commands shall be less than 15 ms (time from order sent to the unit until order acknowledgement).",null,null,null,null,null,null,null,null,null,null,null,null,null,null,null,null,null,null,null,null,null,null,null,"S24",null,null,"T24","IAC Inverse(I)/ Very Inverse (VI)/ Extremely Inverse (EI) time."]
[null,null,null,null,null,null,null,null,null,null,null,null,null,null,null,null,null,null,null,null,null,null,null,null,null,null,"S24","Phase overcurrent and ground fault protection shall have an adjustable timer hold (time delay reset) to allow recurring faults detection.  The protection shall also allow a current-dependent time reset to emulate e/m relays.",null,"T24","Standard(SIT)/Very(VIT)/Long Time(LTI)/Extremely(EIT) /Rapid (RI) Inverse time."]
[null,"969FO","Remote control orders shall be carried out in two modes: Direct mode or \"SBO\" (select before operate).",null,null,null,null,null,null,null,null,null,null,null,null,null,null,null,null,null,null,null,null,null,null,null,"S24",null,null,"T24","Ultra Inverse Time (UIT) – for better fuse co-ordination."]
[null,null,null,null,null,null,null,null,null,null,null,null,null,null,null,null,null,null,null,null,null,null,null,null,null,null,"S24","Ground fault protection shall integrate a second harmonic restraint, which can be activated via software.",null,"T24"]
[null,"969FO","The communications module shall be a Square D SEPAM series ACE969-FO2.",null,null,null,null,null,null,null,null,null,null,null,null,null,null,null,null,null,null,null,null,null,null,null,"S24",null,null,"T24","Definite time (DT) with time delay settings from Instantaneous (no intentional time delay less than 50 ms) to 300 s.  Overload protection shall use true RMS current value (up to a minimum 13th harmonic) and will compensate for changes in ambient temperature (optional).  Alternative overload setting groups will be selectable by logical conditions to adapt operating mode change.  Adjustment of the overload tripping curves will be possible to exactly fit the transformer characteristics."]
[null,null,null,null,null,null,null,null,null,null,null,null,null,null,null,null,null,null,null,null,null,null,null,null,null,null,"S24","The unit shall have built in firmware specifically and uniquely for zone-selective interlocking ANSI 68 (ZSI) protection via logic I/O and settings.  The ZSI must have a built in breaker failure scheme without the necessity of an additional 50BF element programming or wiring.",null,"T24","Overcurrent setting shall be made by the direct input of actual primary current values."]
[null,"969TP","The communications module (Card) shall allow access to metering data, protection settings readouts, and the fault record data.  The unit shall be compatible with PowerLogic System Manager TM Software (SMS), ION Enterprise for central management of the electrical power system and SFT2841 for relay programming and setup.",null,null,null,null,null,null,null,null,null,null,null,null,null,null,null,null,null,null,null,null,null,null,null,"S24",null,null,"T24","Phase overcurrent and ground fault protection shall have an adjustable timer hold (time delay reset) to allow recurring faults detection.  The protection shall also allow a current-dependent time reset to emulate e/m relays."]
[null,null,null,null,null,null,null,null,null,null,null,null,null,null,null,null,null,null,null,null,null,null,null,null,null,null,"S24","The relay shall allow fast change in protection scheme: 2 groups of 50/51 and 50N/51N settings shall be available with provision for shifting from one group of settings to the other by a digital input, UMI, or communications.",null,"T24","Ground fault protection shall integrate a second harmonic restraint, which can be activated via software."]
[null,"969TP","The communications module (Card) shall be mounted on the back panel using 35mm DIN Rail. The Communications module shall be connected to the relay base unit using a CAT5 Cable. The power supply to the communications module must be 24-250VDC or 110-240VAC.",null,null,null,null,null,null,null,null,null,null,null,null,null,null,null,null,null,null,null,null,null,null,null,null,null,null,"T24","The unit shall have built in firmware specifically and uniquely for zone-selective interlocking ANSI 68 (ZSI) protection via logic I/O and settings.  The ZSI must have a built in breaker failure scheme without the necessity of an additional 50BF element programming or wiring."]
[null,null,null,null,null,null,null,null,null,null,null,null,null,null,null,null,null,null,null,null,null,null,null,null,null,null,"T24","The Protection and Control Unit shall contain all the necessary protection functions for the specific application:",null,"T24","The relay shall allow fast change in protection scheme: 2 groups of 50/51 and 50N/51N settings shall be available with provision for shifting from one group of settings to the other by a digital input, UMI, or communications."]
[null,"969TP","The communications module shall have 2 communications ports which will be 2 wire RS485 with each having a selectable communications rate of 4800, 9600, 19,200 or 38,000 baud. The RS485 ports shall be 1 E-LAN Port which is Modbus RTU compatible and 1 S-LAN Port of user selectable protocols of Modbus RTU, DNP3 or IEC 60870-5-103.",null,null,null,null,null,null,null,null,null,null,null,null,null,null,null,null,null,null,null,null,null,null,null,"T24","Transformer protection: (50/51) Three Phase overcurrent, (CLPU 50/51) Three Phase overcurrent Cold Load Pick-Up, (50N/51N) Ground fault (or neutral) with selectable second harmonic restraint, (CLPU 50N/51N) Ground Fault Cold Load Pick-Up, (46) Unbalance / negative sequence overcurrent, (49 RMS) thermal overload, (49/63)Thermostat / Buchholz (gas detection/pressure), and optional (49)Temperature (RTD) monitoring."]
[null,null,null,null,null,null,null,null,null,null,null,null,null,null,null,null,null,null,null,null,null,null,null,null,null,null,"T24"]
[null,"969TP","A RS232 connection port shall be available in the front of the relay, allowing communicating between the relay and a PC with the appropriate software.",null,null,null,null,null,null,null,null,null,null,null,null,null,null,null,null,null,null,null,null,null,null,null,"T24","Each overcurrent protection device shall have a wide range of time overcurrent protection curve settings, providing a choice of curve types:"]
[null,null,null,null,null,null,null,null,null,null,null,null,null,null,null,null,null,null,null,null,null,null,null,null,null,null,"T24","IEEE Moderately/Very/Extremely Inverse time."]
[null,"969TP","The communications card shall be interchangeable with the relay base unit without having to interrupt or reinitialize the relay base unit power.",null,null,null,null,null,null,null,null,null,null,null,null,null,null,null,null,null,null,null,null,null,null,null,"T24","IEC Standard (SIT))/Very (VIT)/Long Time(LTI)/Extremely (EIT) Inverse Time."]
[null,null,null,null,null,null,null,null,null,null,null,null,null,null,null,null,null,null,null,null,null,null,null,null,null,null,"T24","IAC Inverse(I)/ Very Inverse (VI)/ Extremely Inverse (EI) time."]
[null,"969TP","The response time for control commands shall be less than 15 ms (time from order sent to the unit until order acknowledgement).",null,null,null,null,null,null,null,null,null,null,null,null,null,null,null,null,null,null,null,null,null,null,null,"T24","Standard(SIT)/Very(VIT)/Long Time(LTI)/Extremely(EIT) /Rapid (RI) Inverse time."]
[null,null,null,null,null,null,null,null,null,null,null,null,null,null,null,null,null,null,null,null,null,null,null,null,null,null,"T24","Ultra Inverse Time (UIT) – for better fuse co-ordination."]
[null,"969TP","Remote control orders shall be carried out in two modes: Direct mode or \"SBO\" (select before operate).",null,null,null,null,null,null,null,null,null,null,null,null,null,null,null,null,null,null,null,null,null,null,null,"T24"]
[null,null,null,null,null,null,null,null,null,null,null,null,null,null,null,null,null,null,null,null,null,null,null,null,null,null,"T24","Definite time (DT) with time delay settings from Instantaneous (no intentional time delay less than 50 ms) to 300 s.  Overload protection shall use true RMS current value (up to a minimum 13th harmonic) and will compensate for changes in ambient temperature (optional).  Alternative overload setting groups will be selectable by logical conditions to adapt operating mode change.  Adjustment of the overload tripping curves will be possible to exactly fit the transformer characteristics."]
[null,"969TP","The communications module shall be a Square D SEPAM series ACE969-TP2.",null,null,null,null,null,null,null,null,null,null,null,null,null,null,null,null,null,null,null,null,null,null,null,"T24"]
[null,"850FO","The communications module (Card) shall allow access to metering data, protection settings readouts, and the fault record data.  The unit shall be compatible with PowerLogic System Manager TM Software (SMS), ION Enterprise for central management of the electrical power system and SFT2841 for relay programming and setup.",null,null,null,null,null,null,null,null,null,null,null,null,null,null,null,null,null,null,null,null,null,null,null,"T24","Overcurrent setting shall be made by the direct input of actual primary current values."]
[null,null,null,null,null,null,null,null,null,null,null,null,null,null,null,null,null,null,null,null,null,null,null,null,null,null,"T24"]
[null,"850FO","The communications module (Card) shall be mounted on the back panel using 35mm DIN Rail. The Communications module shall be connected to the relay base unit using a CAT5 Cable. The power supply to the communications module must be 24-250VDC or 110-240VAC.",null,null,null,null,null,null,null,null,null,null,null,null,null,null,null,null,null,null,null,null,null,null,null,"T24","Phase overcurrent and ground fault protection shall have an adjustable timer hold (time delay reset) to allow recurring faults detection.  The protection shall also allow a current-dependent time reset to emulate e/m relays."]
[null,"850FO",null,null,null,null,null,null,null,null,null,null,null,null,null,null,null,null,null,null,null,null,null,null,null,null,"T24"]
[null,"850FO","The communications module shall have 2 independant 100Base-FX communications ports.  The ports will be capable of use in either a ring or mesh network topography.  The device will be able to communicate with Modbus TCP and/or IEC61850 protocols.",null,null,null,null,null,null,null,null,null,null,null,null,null,null,null,null,null,null,null,null,null,null,null,"T24","Ground fault protection shall integrate a second harmonic restraint, which can be activated via software."]
[null,"850FO",null,null,null,null,null,null,null,null,null,null,null,null,null,null,null,null,null,null,null,null,null,null,null,null,"T24"]
[null,"850FO","An HTTP webpage will be accessible for device configuration.",null,null,null,null,null,null,null,null,null,null,null,null,null,null,null,null,null,null,null,null,null,null,null,"T24","The unit shall have built in firmware specifically and uniquely for zone-selective interlocking ANSI 68 (ZSI) protection via logic I/O and settings.  The ZSI must have a built in breaker failure scheme without the necessity of an additional 50BF element programming or wiring."]
[null,"850FO",null,null,null,null,null,null,null,null,null,null,null,null,null,null,null,null,null,null,null,null,null,null,null,null,"T24"]
[null,"850FO","The communications card shall be interchangeable with the relay base unit without having to interrupt or reinitialize the relay base unit power.",null,null,null,null,null,null,null,null,null,null,null,null,null,null,null,null,null,null,null,null,null,null,null,"T24","The relay shall allow fast change in protection scheme: 2 groups of 50/51 and 50N/51N settings shall be available with provision for shifting from one group of settings to the other by a digital input, UMI, or communications."]
[null,"850FO"]
[null,"850FO","The response time for control commands shall be less than 15 ms (time from order sent to the unit until order acknowledgement)."]
[null,"850FO"]
[null,"850FO","Remote control orders shall be carried out in two modes: Direct mode or \"SBO\" (select before operate)."]
[null,"850FO"]
[null,"850FO","The communications module shall be a Square D SEPAM series ACE850FO."]
[]
[null,"850TP","The communications module (Card) shall allow access to metering data, protection settings readouts, and the fault record data.  The unit shall be compatible with PowerLogic System Manager TM Software (SMS), ION Enterprise for central management of the electrical power system and SFT2841 for relay programming and setup."]
[null,"850TP"]
[null,"850TP","The communications module (Card) shall be mounted on the back panel using 35mm DIN Rail. The Communications module shall be connected to the relay base unit using a CAT5 Cable. The power supply to the communications module must be 24-250VDC or 110-240VAC."]
[null,"850TP"]
[null,"850TP","The communications module shall have 2 independant 10/100Base-TX communications ports.  The ports will be capable of use in either a ring or mesh network topography.  The device will be able to communicate with Modbus TCP and/or IEC61850 protocols."]
[null,"850TP"]
[null,"850TP","An HTTP webpage will be accessible for device configuration."]
[null,"850TP"]
[null,"850TP","The communications card shall be interchangeable with the relay base unit without having to interrupt or reinitialize the relay base unit power."]
[null,"850TP"]
[null,"850TP","The response time for control commands shall be less than 15 ms (time from order sent to the unit until order acknowledgement)."]
[null,"850TP"]
[null,"850TP","Remote control orders shall be carried out in two modes: Direct mode or \"SBO\" (select before operate)."]
[null,"850TP"]
[null,"850TP","The communications module shall be a Square D SEPAM series ACE850TP."]
[null,"ECI850","The communications module (Card) shall allow access to metering data and the fault record data.  The unit shall be compatible with SEPAM RS485 Modbus RTU networks."]
[]
[null,"ECI850","The communications module (Card) shall be mounted on the back panel using 35mm DIN Rail. The Communications module shall be connected to the relay base unit using a CAT5 Cable. The power supply to the communications module must be 24-250VDC or 110-240VAC."]
[]
[null,"ECI850","The communications module shall have a 10/100Base-TX communications port.  The ports will be capable of use in either a ring or mesh network topography.  The device will be able to communicate with Modbus TCP and/or IEC61850 protocols."]
[]
[null,"ECI850","An HTTP webpage will be accessible for device configuration."]
[]
[null,"ECI850","The communications card shall be interchangeable with the relay base unit without having to interrupt or reinitialize the relay base unit power."]
[]
[null,"ECI850","The response time for control commands shall be less than 15 ms (time from order sent to the unit until order acknowledgement)."]
[]
[null,"ECI850","Remote control orders shall be carried out in two modes: Direct mode or \"SBO\" (select before operate)."]
[]
[null,"ECI850","The communications module shall be a Square D SEPAM series ECI850."]
[]
[]
[null,959,"The communications module (Card) shall allow access to metering data, protection settings readouts, and the fault record data.  The unit shall be compatible with PowerLogic System Manager TM Software (SMS), ION Enterprise for central management of the electrical power system and SFT2841 for relay programming and setup."]
[null,959,"The communications module (Card) shall be mounted on the back panel using 35mm DIN Rail. The communications module shall be connected to the relay base unit using a CAT5 Cable. The power supply to the communications module must be 24-48VDC."]
[null,959,"The communications module shall have a selectable communications rate of 4800, 9600, 19,200 or 38,000 baud. The communications port will be  4 Wire RS485 with Modbus RTU protocol. "]
[null,959,"A RS232 connection port shall be available in the front of the relay, allowing communicating between the relay and a PC with the appropriate software."]
[null,959,"The communications card shall be interchangeable with the relay base unit without having to interrupt or reinitialize the relay base unit power."]
[null,959,"The response time for control commands shall be less than 15 ms (time from order sent to the unit until order acknowledgement)."]
[null,959,"Remote control orders shall be carried out in two modes: Direct mode or \"SBO\" (select before operate) mode."]
[null,959,"The communications module shall be a Square D SEPAM series ACE959."]
[null,"969FO","The communications module (Card) shall allow access to metering data, protection settings readouts, and the fault record data.  The unit shall be compatible with PowerLogic System Manager TM Software (SMS), ION Enterprise for central management of the electrical power system and SFT2841 for relay programming and setup."]
[null,"969FO","The communications module (Card) shall be mounted on the back panel using 35mm DIN Rail. The Communications module shall be connected to the relay base unit using a CAT5 Cable. The power supply to the communications module must be 24-250VDC or 110-240VAC."]
[null,"969FO","The communications module shall have 2 communications ports which will be have a selectable communications rate of 4800, 9600, 19,200 or 38,000 baud. One communications port will be designated as an E-LAN Port which will be 2 Wire RS485 with Modbus RTU protocol and one communications port will be designated an  S-LAN Port which be Fiber Optic and will have user selectable protocols of Modbus RTU, DNP3 or IEC 60870-5-103."]
[null,"969FO","A RS232 connection port shall be available in the front of the relay, allowing communicating between the relay and a PC with the appropriate software."]
[null,"969FO","The communications card shall be interchangeable with the relay base unit without having to interrupt or reinitialize the relay base unit power."]
[null,"969FO","The response time for control commands shall be less than 15 ms (time from order sent to the unit until order acknowledgement)."]
[null,"969FO","Remote control orders shall be carried out in two modes: Direct mode or \"SBO\" (select before operate)."]
[null,"969FO","The communications module shall be a Square D SEPAM series ACE969-FO2."]
[null,"969TP","The communications module (Card) shall allow access to metering data, protection settings readouts, and the fault record data.  The unit shall be compatible with PowerLogic System Manager TM Software (SMS), ION Enterprise for central management of the electrical power system and SFT2841 for relay programming and setup."]
[null,"969TP","The communications module (Card) shall be mounted on the back panel using 35mm DIN Rail. The Communications module shall be connected to the relay base unit using a CAT5 Cable. The power supply to the communications module must be 24-250VDC or 110-240VAC."]
[null,"969TP","The communications module shall have 2 communications ports which will be 2 wire RS485 with each having a selectable communications rate of 4800, 9600, 19,200 or 38,000 baud. The RS485 ports shall be 1 E-LAN Port which is Modbus RTU compatible and 1 S-LAN Port of user selectable protocols of Modbus RTU, DNP3 or IEC 60870-5-103."]
[null,"969TP","A RS232 connection port shall be available in the front of the relay, allowing communicating between the relay and a PC with the appropriate software."]
[null,"969TP","The communications card shall be interchangeable with the relay base unit without having to interrupt or reinitialize the relay base unit power."]
[null,"969TP","The response time for control commands shall be less than 15 ms (time from order sent to the unit until order acknowledgement)."]
[null,"969TP","Remote control orders shall be carried out in two modes: Direct mode or \"SBO\" (select before operate)."]
[null,"969TP","The communications module shall be a Square D SEPAM series ACE969-TP2."]
[null,"850FO","The communications module (Card) shall allow access to metering data, protection settings readouts, and the fault record data.  The unit shall be compatible with PowerLogic System Manager TM Software (SMS), ION Enterprise for central management of the electrical power system and SFT2841 for relay programming and setup."]
[null,"850FO","The communications module (Card) shall be mounted on the back panel using 35mm DIN Rail. The Communications module shall be connected to the relay base unit using a CAT5 Cable. The power supply to the communications module must be 24-250VDC or 110-240VAC."]
[null,"850FO","The communications module shall have 2 independant 100Base-FX communications ports.  The ports will be capable of use in either a ring or mesh network topography.  The device will be able to communicate with Modbus TCP and/or IEC61850 protocols."]
[null,"850FO","An HTTP webpage will be accessible for device configuration."]
[null,"850FO","The communications card shall be interchangeable with the relay base unit without having to interrupt or reinitialize the relay base unit power."]
[null,"850FO","The response time for control commands shall be less than 15 ms (time from order sent to the unit until order acknowledgement)."]
[null,"850FO","Remote control orders shall be carried out in two modes: Direct mode or \"SBO\" (select before operate)."]
[null,"850FO","The communications module shall be a Square D SEPAM series ACE850FO."]
[null,"850TP","The communications module (Card) shall allow access to metering data, protection settings readouts, and the fault record data.  The unit shall be compatible with PowerLogic System Manager TM Software (SMS), ION Enterprise for central management of the electrical power system and SFT2841 for relay programming and setup."]
[null,"850TP","The communications module (Card) shall be mounted on the back panel using 35mm DIN Rail. The Communications module shall be connected to the relay base unit using a CAT5 Cable. The power supply to the communications module must be 24-250VDC or 110-240VAC."]
[null,"850TP","The communications module shall have 2 independant 10/100Base-TX communications ports.  The ports will be capable of use in either a ring or mesh network topography.  The device will be able to communicate with Modbus TCP and/or IEC61850 protocols."]
[null,"850TP","An HTTP webpage will be accessible for device configuration."]
[null,"850TP","The communications card shall be interchangeable with the relay base unit without having to interrupt or reinitialize the relay base unit power."]
[null,"850TP","The response time for control commands shall be less than 15 ms (time from order sent to the unit until order acknowledgement)."]
[null,"850TP","Remote control orders shall be carried out in two modes: Direct mode or \"SBO\" (select before operate)."]
[null,"850TP","The communications module shall be a Square D SEPAM series ACE850TP."]
[null,"ECI850","The communications module (Card) shall allow access to metering data and the fault record data.  The unit shall be compatible with SEPAM RS485 Modbus RTU networks."]
[null,"ECI850","The communications module (Card) shall be mounted on the back panel using 35mm DIN Rail. The Communications module shall be connected to the relay base unit using a CAT5 Cable. The power supply to the communications module must be 24-250VDC or 110-240VAC."]
[null,"ECI850","The communications module shall have a 10/100Base-TX communications port.  The ports will be capable of use in either a ring or mesh network topography.  The device will be able to communicate with Modbus TCP and/or IEC61850 protocols."]
[null,"ECI850","An HTTP webpage will be accessible for device configuration."]
[null,"ECI850","The communications card shall be interchangeable with the relay base unit without having to interrupt or reinitialize the relay base unit power."]
[null,"ECI850","The response time for control commands shall be less than 15 ms (time from order sent to the unit until order acknowledgement)."]
[null,"ECI850","Remote control orders shall be carried out in two modes: Direct mode or \"SBO\" (select before operate)."]
[null,"ECI850","The communications module shall be a Square D SEPAM series ECI850."]

{"sheet":"Spec40_Data","index":16,"n_rows":264,"n_cols":17,"rows_kept":264,"cut":false,"hidden":true,"merged":[]}
[null,"SERIES 40 CURRENT AND VOLTAGE RELAY",null,"note:  after analog","It should be possible to remove the relay, under load if necessary, without the use of shorting type terminal block.",null,null,"Each Protection and Control unit shall perform the measurements needed for operation and commissioning, All metering values shall be available VIA communications. Metering values and their accuracy shall be:",null,null,"Diagnostics",null,null,"Protection",null,null,"Protection_Alt"]
[null,"1.01 GENERAL",null,null,null,null,null,null,null,1,"Be triggered automatically on event, or manually via communications or from the Protective relay front panel.",null,"S40","The Protection and Control Unit shall contain all the necessary protection functions for the specific application:",null,"S40","The Protection and Control Unit shall contain all the necessary protection functions for the specific application:"]
[null,"1.02 PROTECTION",null,null,null,null,null,"Current 1,2,3:  (+/- 0.5%)",null,2,"Have configurable record storage of data, 15 records of at least 1 second each or 1 record of 8 seconds, 12 samples per cycle, with a selectable number of  pre-event cycles.",null,"S40","Substation/Feeder protection: (50/51) Three Phase overcurrent, (50N/51N) Ground fault (or neutral) with selectable second harmonic restraint, (50BF) Breaker failure, (46) Unbalance / negative sequence overcurrent, (27) Undervoltage (phase-to-phase or phase-to-neutral), (59) Overvoltage (phase-to-phase or phase-to-neutral), (59N) Neutral voltage displacement, (47) Negative sequence overvoltage, (81H) Overfrequency, (81L) Underfrequency, and (79) Recloser (4 steps).",null,"S40","Substation/Feeder protection: (50/51) Three Phase overcurrent, (50N/51N) Ground fault (or neutral) with selectable second harmonic restraint, (50BF) Breaker failure, (46) Unbalance / negative sequence overcurrent, (27) Undervoltage (phase-to-phase or phase-to-neutral), (59) Overvoltage (phase-to-phase or phase-to-neutral), (59N) Neutral voltage displacement, (47) Negative sequence overvoltage, (81H) Overfrequency, (81L) Underfrequency, and (79) Recloser (4 steps)."]
[null,"1.03 MEASUREMENT",null,null,null,null,null,"Current Peak Demand:  (+/- 0.5%)",null,3,"Include on each record, as a minimum, the date, channel characteristics, 4 current channels (I1, I2, I3, I0), 3 voltage channels, and the change of status of the digital inputs and base digital outputs.",null,"S40",null,null,"S40","Each overcurrent protection device shall have a wide range of time overcurrent protection curve settings, providing a choice of curve types:"]
[null,"1.04 DIAGNOSTIC",null,null,null,null,null,"Current Demand:  (+/- 0.5%)",null,4,"Be capable of recording a minimum of 16 seconds at 60 Hz.",null,"S40","Each overcurrent protection device shall have a wide range of time overcurrent protection curve settings, providing a choice of curve types:",null,"S40","IEEE Moderately/Very/Extremely Inverse time."]
[null,"1.05 CONTROL",null,null,null,null,null,"Current Residual:  (+/- 1%)",null,"C","The unit shall provide storage of at least 200 events time tagged within an accuracy of 1ms.",null,"S40","IEEE Moderately/Very/Extremely Inverse time.",null,"S40","IEC Standard (SIT))/Very (VIT)/Long Time(LTI)/Extremely (EIT) Inverse Time."]
[null,"1.06 COMMUNICATION",null,null,null,null,null,"Voltage  L-N  & L-L:  (+/- 0.5%)",null,"E","The protective relay shall include instrument transformer (VT and LPCT) supervision and trip coil supervision.",null,"S40","IEC Standard (SIT))/Very (VIT)/Long Time(LTI)/Extremely (EIT) Inverse Time.",null,"S40","IAC Inverse(I)/ Very Inverse (VI)/ Extremely Inverse (EI) time."]
[null,null,null,null,null,null,null,"Voltage Residual:  (+/- 1%)",null,null,null,null,"S40","IAC Inverse(I)/ Very Inverse (VI)/ Extremely Inverse (EI) time.",null,"S40","Standard(SIT)/Very(VIT)/Long Time(LTI)/Extremely(EIT) /Rapid (RI) Inverse time."]
[null,null,null,null,null,null,null,"Voltage Neg. Sequence   1,2,3:  (+/- 2%)",null,null,null,null,"S40","Standard(SIT)/Very(VIT)/Long Time(LTI)/Extremely(EIT) /Rapid (RI) Inverse time.",null,"S40","Ultra Inverse Time (UIT) – for better fuse co-ordination."]
[null,null,null,null,null,null,null,"Voltage Pos. Sequence   1,2,3:  (+/- 2%)",null,null,null,null,"S40","Ultra Inverse Time (UIT) – for better fuse co-ordination.",null,"S40"]
[null,null,null,null,null,null,null,"KW:  (+/- 1%)",null,null,null,null,"S40",null,null,"S40","Definite time (DT) with time delay settings from Instantaneous (no intentional time delay less than 50 ms) to 300 s.  Overload protection shall use true RMS current value (up to a minimum 13th harmonic).  Alternative overload setting groups will be selectable by logical conditions to adapt operating mode change.  Adjustment of the overload tripping curves will be possible to exactly fit the cable characteristics."]
[null,null,null,null,null,null,null,"KVA:  (+/- 1%)",null,null,null,null,"S40","Definite time (DT) with time delay settings from Instantaneous (no intentional time delay less than 50 ms) to 300 s.  Overload protection shall use true RMS current value (up to a minimum 13th harmonic).  Alternative overload setting groups will be selectable by logical conditions to adapt operating mode change.  Adjustment of the overload tripping curves will be possible to exactly fit the cable characteristics.",null,"S40","Overcurrent setting shall be made by the direct input of actual primary current values."]
[null,null,null,null,null,null,null,"KVAr:  (+/- 1%)",null,null,null,null,"S40",null,null,"S40","Phase overcurrent and ground fault protection shall have an adjustable timer hold (time delay reset) to allow recurring faults detection.  The protection shall also allow a current-dependent time reset to emulate e/m relays."]
[null,null,null,null,null,null,null,"KWh (Calculated):  (+/- 1%)",null,null,null,null,"S40","Overcurrent setting shall be made by the direct input of actual primary current values.",null,"S40","Ground fault protection shall integrate a second harmonic restraint, which can be activated via software."]
[null,null,null,null,null,null,null,"KVArh (Calculated):  (+/- 1%)",null,null,null,null,"S40",null,null,"S40","The unit shall have built in firmware specifically and uniquely for zone-selective interlocking ANSI 68 (ZSI) protection via logic I/O and settings.  The ZSI must have a built in breaker failure scheme without the necessity of an additional 50BF element programming or wiring."]
[null,null,null,null,null,null,null,"KWh (Pulse Counting):  (+/- 1%)",null,null,null,null,"S40","Phase overcurrent and ground fault protection shall have an adjustable timer hold (time delay reset) to allow recurring faults detection.  The protection shall also allow a current-dependent time reset to emulate e/m relays.",null,"S40","The relay shall allow fast change in protection scheme: 2 groups of 50/51 and 50N/51N settings shall be available with provision for shifting from one group of settings to the other by a digital input, UMI, or communications."]
[null,null,null,null,null,null,null,"KVArh (Pulse Counting):  (+/- 1%)",null,null,null,null,"S40"]
[null,null,null,null,null,null,null,"KVAh:  (+/- 1%)",null,null,null,null,"S40","Ground fault protection shall integrate a second harmonic restraint, which can be activated via software.",null,"S42","The Protection and Control Unit shall contain all the necessary protection functions for the specific application:"]
[null,null,null,null,null,null,null,"Frequency:  .01Hz",null,null,null,null,"S40",null,null,"S42","Substation/Feeder protection: (50/51) Three Phase overcurrent, (50N/51N) Ground fault (or neutral) with selectable second harmonic restraint, (50BF) Breaker failure, (46) Unbalance / negative sequence overcurrent, (67) Directional overcurrent, (67N/67NC) Directional ground fault, (32P) Reverse real power, (27) Undervoltage (phase-to-phase or phase-to-neutral), (59) Overvoltage (phase-to-phase or phase-to-neutral), (59N) Neutral voltage displacement, (47) Negative sequence overvoltage, (81H) Overfrequency, (81L) Underfrequency, and (79) Recloser (4 steps)."]
[null,null,null,null,null,null,null,"Temperature:  (+/- 1%)",null,null,null,null,"S40","The unit shall have built in firmware specifically and uniquely for zone-selective interlocking ANSI 68 (ZSI) protection via logic I/O and settings.  The ZSI must have a built in breaker failure scheme without the necessity of an additional 50BF element programming or wiring.",null,"S42","Each overcurrent protection device shall have a wide range of time overcurrent protection curve settings, providing a choice of curve types:"]
[null,null,null,null,null,null,null,"Harmonic distortion (I THD & V THD):  (+/- 1%)",null,null,null,null,"S40",null,null,"S42","IEEE Moderately/Very/Extremely Inverse time."]
[null,null,null,null,null,null,null,"Peak KW demand:  (+/- 1%)",null,null,null,null,"S40","The relay shall allow fast change in protection scheme: 2 groups of 50/51 and 50N/51N settings shall be available with provision for shifting from one group of settings to the other by a digital input, UMI, or communications.",null,"S42","IEC Standard (SIT))/Very (VIT)/Long Time(LTI)/Extremely (EIT) Inverse Time."]
[null,null,null,null,null,null,null,"Peak KVAr demand:  (+/- 1%)",null,null,null,null,null,null,null,"S42","IAC Inverse(I)/ Very Inverse (VI)/ Extremely Inverse (EI) time."]
[null,null,null,null,null,null,null,"Power Factor   -1 to 0 to +1:  (+/- 1%)",null,null,null,null,"S42","The Protection and Control Unit shall contain all the necessary protection functions for the specific application:",null,"S42","Standard(SIT)/Very(VIT)/Long Time(LTI)/Extremely(EIT) /Rapid (RI) Inverse time."]
[null,null,null,null,null,null,null,null,null,null,null,null,"S42","Substation/Feeder protection: (50/51) Three Phase overcurrent, (50N/51N) Ground fault (or neutral) with selectable second harmonic restraint, (50BF) Breaker failure, (46) Unbalance / negative sequence overcurrent, (67) Directional overcurrent, (67N/67NC) Directional ground fault, (32P) Reverse real power, (27) Undervoltage (phase-to-phase or phase-to-neutral), (59) Overvoltage (phase-to-phase or phase-to-neutral), (59N) Neutral voltage displacement, (47) Negative sequence overvoltage, (81H) Overfrequency, (81L) Underfrequency, and (79) Recloser (4 steps).",null,"S42","Ultra Inverse Time (UIT) – for better fuse co-ordination."]
[null,null,null,null,null,null,null,null,null,null,null,null,"S42",null,null,"S42"]
[null,null,null,null,null,null,null,null,null,null,null,null,"S42","Each overcurrent protection device shall have a wide range of time overcurrent protection curve settings, providing a choice of curve types:",null,"S42","Definite time (DT) with time delay settings from Instantaneous (no intentional time delay less than 50 ms) to 300 s.  Overload protection shall use true RMS current value (up to a minimum 13th harmonic).  Alternative overload setting groups will be selectable by logical conditions to adapt operating mode change.  Adjustment of the overload tripping curves will be possible to exactly fit the cable characteristics."]
[null,null,null,null,null,null,null,null,null,null,null,null,"S42","IEEE Moderately/Very/Extremely Inverse time.",null,"S42","Overcurrent setting shall be made by the direct input of actual primary current values."]
[null,null,null,null,null,null,null,null,null,null,null,null,"S42","IEC Standard (SIT))/Very (VIT)/Long Time(LTI)/Extremely (EIT) Inverse Time.",null,"S42","Phase overcurrent and ground fault protection shall have an adjustable timer hold (time delay reset) to allow recurring faults detection.  The protection shall also allow a current-dependent time reset to emulate e/m relays."]
[null,null,null,null,null,null,null,null,null,null,null,null,"S42","IAC Inverse(I)/ Very Inverse (VI)/ Extremely Inverse (EI) time.",null,"S42","Ground fault protection shall integrate a second harmonic restraint, which can be activated via software."]
[null,null,null,null,null,null,null,null,null,null,null,null,"S42","Standard(SIT)/Very(VIT)/Long Time(LTI)/Extremely(EIT) /Rapid (RI) Inverse time.",null,"S42","The unit shall have built in firmware specifically and uniquely for zone-selective interlocking ANSI 68  (ZSI) protection via logic I/O and settings.  The ZSI must have a built in breaker failure scheme without the necessity of an additional 50BF element programming or wiring."]
[null,null,null,null,null,null,null,null,null,null,null,null,"S42","Ultra Inverse Time (UIT) – for better fuse co-ordination.",null,"S42","The relay shall allow fast change in protection scheme: two groups of 50/51, 50N/51N, 67/67N settings shall be available with provision for shifting from one group of settings to the other by a digital input, UMI, and communications."]
[null,null,null,null,null,null,null,null,null,null,null,null,"S42"]
[null,null,null,null,null,null,null,null,null,null,null,null,"S42","Definite time (DT) with time delay settings from Instantaneous (no intentional time delay less than 50 ms) to 300 s.  Overload protection shall use true RMS current value (up to a minimum 13th harmonic).  Alternative overload setting groups will be selectable by logical conditions to adapt operating mode change.  Adjustment of the overload tripping curves will be possible to exactly fit the cable characteristics.",null,"S43","The Protection and Control Unit shall contain all the necessary protection functions for the specific application:"]
[null,null,null,null,null,null,null,null,null,null,null,null,"S42",null,null,"S43","Substation/Feeder protection: (50/51) Three Phase overcurrent, (50N/51N) Ground fault (or neutral) with selectable second harmonic restraint, (50BF) Breaker failure, (46) Unbalance / negative sequence overcurrent, (67) Directional overcurrent, (67N/67NC) Directional ground fault, (32P) Reverse real power, and (79) Recloser (4 steps)."]
[null,null,null,null,null,null,null,null,null,null,null,null,"S42","Overcurrent setting shall be made by the direct input of actual primary current values.",null,"S43","Each overcurrent protection device shall have a wide range of time overcurrent protection curve settings, providing a choice of curve types:"]
[null,null,null,null,null,null,null,null,null,null,null,null,"S42",null,null,"S43","IEEE Moderately/Very/Extremely Inverse time."]
[null,null,null,null,null,null,null,null,null,null,null,null,"S42","Phase overcurrent and ground fault protection shall have an adjustable timer hold (time delay reset) to allow recurring faults detection.  The protection shall also allow a current-dependent time reset to emulate e/m relays.",null,"S43","IEC Standard (SIT))/Very (VIT)/Long Time(LTI)/Extremely (EIT) Inverse Time."]
[null,null,null,null,null,null,null,null,null,null,null,null,"S42",null,null,"S43","IAC Inverse(I)/ Very Inverse (VI)/ Extremely Inverse (EI) time."]
[null,null,null,null,null,null,null,null,null,null,null,null,"S42","Ground fault protection shall integrate a second harmonic restraint, which can be activated via software.",null,"S43","Standard(SIT)/Very(VIT)/Long Time(LTI)/Extremely(EIT) /Rapid (RI) Inverse time."]
[null,null,null,null,null,null,null,null,null,null,null,null,"S42",null,null,"S43","Ultra Inverse Time (UIT) – for better fuse co-ordination."]
[null,null,null,null,null,null,null,null,null,null,null,null,"S42","The unit shall have built in firmware specifically and uniquely for zone-selective interlocking ANSI 68  (ZSI) protection via logic I/O and settings.  The ZSI must have a built in breaker failure scheme without the necessity of an additional 50BF element programming or wiring.",null,"S43"]
[null,null,null,null,null,null,null,null,null,null,null,null,"S42",null,null,"S43","Definite time (DT) with time delay settings from Instantaneous (no intentional time delay less than 50 ms) to 300 s.  Overload protection shall use true RMS current value (up to a minimum 13th harmonic).  Alternative overload setting groups will be selectable by logical conditions to adapt operating mode change.  Adjustment of the overload tripping curves will be possible to exactly fit the cable characteristics."]
[null,null,null,null,null,null,null,null,null,null,null,null,"S42","The relay shall allow fast change in protection scheme: two groups of 50/51, 50N/51N, 67/67N settings shall be available with provision for shifting from one group of settings to the other by a digital input, UMI, and communications.",null,"S43","Overcurrent setting shall be made by the direct input of actual primary current values."]
[null,null,null,null,null,null,null,null,null,null,null,null,null,null,null,"S43","Phase overcurrent and ground fault protection shall have an adjustable timer hold (time delay reset) to allow recurring faults detection.  The protection shall also allow a current-dependent time reset to emulate e/m relays."]
[null,null,null,null,null,null,null,null,null,null,null,null,"S43","The Protection and Control Unit shall contain all the necessary protection functions for the specific application:",null,"S43","Ground fault protection shall integrate a second harmonic restraint, which can be activated via software."]
[null,null,null,null,null,null,null,null,null,null,null,null,"S43","Substation/Feeder protection: (50/51) Three Phase overcurrent, (50N/51N) Ground fault (or neutral) with selectable second harmonic restraint, (50BF) Breaker failure, (46) Unbalance / negative sequence overcurrent, (67) Directional overcurrent, (67N/67NC) Directional ground fault, (32P) Reverse real power, and (79) Recloser (4 steps).",null,"S43","The unit shall have built in firmware specifically and uniquely for zone-selective interlocking ANSI 68 (ZSI) protection via logic I/O and settings.  The ZSI must have a built in breaker failure scheme without the necessity of an additional 50BF element programming or wiring."]
[null,null,null,null,null,null,null,null,null,null,null,null,"S43",null,null,"S43","The relay shall allow fast change in protection scheme: two groups of 50/51, 50N/51N, 67/67N settings shall be available with provision for shifting from one group of settings to the other by a digital input, UMI, and communications."]
[null,null,null,null,null,null,null,null,null,null,null,null,"S43","Each overcurrent protection device shall have a wide range of time overcurrent protection curve settings, providing a choice of curve types:"]
[null,null,null,null,null,null,null,null,null,null,null,null,"S43","IEEE Moderately/Very/Extremely Inverse time.",null,"M41","The Protection and Control Unit shall contain all the necessary protection functions for the specific application:"]
[null,null,null,null,null,null,null,null,null,null,null,null,"S43","IEC Standard (SIT))/Very (VIT)/Long Time(LTI)/Extremely (EIT) Inverse Time.",null,"M41","Motor protection: (50/51) Three Phase overcurrent, (50N/51N) Ground fault (or neutral) with selectable second harmonic restraint, (50BF) Breaker failure, (46) Unbalance / negative sequence overcurrent, (67N/67NC) Directional ground fault, (49 RMS) thermal overload, (27) Undervoltage (phase-to-phase or phase-to-neutral), (59) Overvoltage (phase-to-phase or phase-to-neutral), (59N) Neutral voltage displacement, (47) Negative sequence overvoltage, (81H) Overfrequency, (81L) Underfrequency, (32P) Reverse real power, (32Q/40) Reverse reactive power/ Loss-of-excitation, (27D) Positive Sequence Undervoltage, (27R) Remanent Undervoltage, (37) Phase undercurrent, (48/51LR) Excessive starting time/ locked rotor, (66) Excessive Starts per hour, and optional (38/49)Temperature (RTD) monitoring."]
[null,null,null,null,null,null,null,null,null,null,null,null,"S43","IAC Inverse(I)/ Very Inverse (VI)/ Extremely Inverse (EI) time.",null,"M41","Each overcurrent protection device shall have a wide range of time overcurrent protection curve settings, providing a choice of curve types:"]
[null,null,null,null,null,null,null,null,null,null,null,null,"S43","Standard(SIT)/Very(VIT)/Long Time(LTI)/Extremely(EIT) /Rapid (RI) Inverse time.",null,"M41","IEEE Moderately/Very/Extremely Inverse time."]
[null,null,null,null,null,null,null,null,null,null,null,null,"S43","Ultra Inverse Time (UIT) – for better fuse co-ordination.",null,"M41","IEC Standard (SIT))/Very (VIT)/Long Time(LTI)/Extremely (EIT) Inverse Time."]
[null,null,null,null,null,null,null,null,null,null,null,null,"S43",null,null,"M41","IAC Inverse(I)/ Very Inverse (VI)/ Extremely Inverse (EI) time."]
[null,null,null,null,null,null,null,null,null,null,null,null,"S43","Definite time (DT) with time delay settings from Instantaneous (no intentional time delay less than 50 ms) to 300 s.  Overload protection shall use true RMS current value (up to a minimum 13th harmonic).  Alternative overload setting groups will be selectable by logical conditions to adapt operating mode change.  Adjustment of the overload tripping curves will be possible to exactly fit the cable characteristics.",null,"M41","Standard(SIT)/Very(VIT)/Long Time(LTI)/Extremely(EIT) /Rapid (RI) Inverse time."]
[null,null,null,null,null,null,null,null,null,null,null,null,"S43",null,null,"M41","Ultra Inverse Time (UIT) – for better fuse co-ordination."]
[null,null,null,null,null,null,null,null,null,null,null,null,"S43","Overcurrent setting shall be made by the direct input of actual primary current values.",null,"M41"]
[null,null,null,null,null,null,null,null,null,null,null,null,"S43",null,null,"M41","Definite time (DT) with time delay settings from Instantaneous (no intentional time delay less than 50 ms) to 300 s.  Overload protection shall use true RMS current value (up to a minimum 13th harmonic) and will compensate for changes in ambient temperature (optional).  Alternative overload setting groups will be selectable by logical conditions to adapt operating mode change.  Adjustment of the overload tripping curves will be possible to exactly fit the motor characteristics."]
[null,null,null,null,null,null,null,null,null,null,null,null,"S43","Phase overcurrent and ground fault protection shall have an adjustable timer hold (time delay reset) to allow recurring faults detection.  The protection shall also allow a current-dependent time reset to emulate e/m relays.",null,"M41","Overcurrent setting shall be made by the direct input of actual primary current values."]
[null,null,null,null,null,null,null,null,null,null,null,null,"S43",null,null,"M41","Phase overcurrent and ground fault protection shall have an adjustable timer hold (time delay reset) to allow recurring faults detection.  The protection shall also allow a current-dependent time reset to emulate e/m relays."]
[null,null,null,null,null,null,null,null,null,null,null,null,"S43","Ground fault protection shall integrate a second harmonic restraint, which can be activated via software.",null,"M41","Ground fault protection shall integrate a second harmonic restraint, which can be activated via software."]
[null,null,null,null,null,null,null,null,null,null,null,null,"S43",null,null,"M41","The unit shall have built in firmware specifically and uniquely for zone-selective interlocking ANSI 68 (ZSI) protection via logic I/O and settings.  The ZSI must have a built in breaker failure scheme without the necessity of an additional 50BF element programming or wiring."]
[null,null,null,null,null,null,null,null,null,null,null,null,"S43","The unit shall have built in firmware specifically and uniquely for zone-selective interlocking ANSI 68 (ZSI) protection via logic I/O and settings.  The ZSI must have a built in breaker failure scheme without the necessity of an additional 50BF element programming or wiring.",null,"M41","The relay shall allow fast change in protection scheme: 2 groups of 50/51 and 50N/51N settings shall be available with provision for shifting from one group of settings to the other by a digital input, UMI, or communications."]
[null,null,null,null,null,null,null,null,null,null,null,null,"S43"]
[null,null,null,null,null,null,null,null,null,null,null,null,"S43","The relay shall allow fast change in protection scheme: two groups of 50/51, 50N/51N, 67/67N settings shall be available with provision for shifting from one group of settings to the other by a digital input, UMI, and communications.",null,"G40","The Protection and Control Unit shall contain all the necessary protection functions for the specific application:"]
[null,null,null,null,null,null,null,null,null,null,null,null,null,null,null,"G40","Generator protection: (50/51) Three Phase overcurrent, (50N/51N) Ground fault (or neutral) with selectable second harmonic restraint, (50BF) Breaker failure, (46) Unbalance / negative sequence overcurrent, (49 RMS) thermal overload, (27) Undervoltage (phase-to-phase or phase-to-neutral), (59) Overvoltage (phase-to-phase or phase-to-neutral), (59N) Neutral voltage displacement, (47) Negative sequence overvoltage, (81H) Overfrequency, (81L) Underfrequency, (32P) Reverse real power, (32Q/40) Reverse reactive power/ Loss-of-excitation, (50V/51V) Voltage-restrained Overcurrent, and optional (38/49)Temperature (RTD) monitoring."]
[null,null,null,null,null,null,null,null,null,null,null,null,"M41","The Protection and Control Unit shall contain all the necessary protection functions for the specific application:",null,"G40","Each overcurrent protection device shall have a wide range of time overcurrent protection curve settings, providing a choice of curve types:"]
[null,null,null,null,null,null,null,null,null,null,null,null,"M41","Motor protection: (50/51) Three Phase overcurrent, (50N/51N) Ground fault (or neutral) with selectable second harmonic restraint, (50BF) Breaker failure, (46) Unbalance / negative sequence overcurrent, (67N/67NC) Directional ground fault, (49 RMS) thermal overload, (27) Undervoltage (phase-to-phase or phase-to-neutral), (59) Overvoltage (phase-to-phase or phase-to-neutral), (59N) Neutral voltage displacement, (47) Negative sequence overvoltage, (81H) Overfrequency, (81L) Underfrequency, (32P) Reverse real power, (32Q/40) Reverse reactive power/ Loss-of-excitation, (27D) Positive Sequence Undervoltage, (27R) Remanent Undervoltage, (37) Phase undercurrent, (48/51LR) Excessive starting time/ locked rotor, (66) Excessive Starts per hour, and optional (38/49)Temperature (RTD) monitoring.",null,"G40","IEEE Moderately/Very/Extremely Inverse time."]
[null,null,null,null,null,null,null,null,null,null,null,null,"M41",null,null,"G40","IEC Standard (SIT))/Very (VIT)/Long Time(LTI)/Extremely (EIT) Inverse Time."]
[null,null,null,null,null,null,null,null,null,null,null,null,"M41","Each overcurrent protection device shall have a wide range of time overcurrent protection curve settings, providing a choice of curve types:",null,"G40","IAC Inverse(I)/ Very Inverse (VI)/ Extremely Inverse (EI) time."]
[null,null,null,null,null,null,null,null,null,null,null,null,"M41","IEEE Moderately/Very/Extremely Inverse time.",null,"G40","Standard(SIT)/Very(VIT)/Long Time(LTI)/Extremely(EIT) /Rapid (RI) Inverse time."]
[null,null,null,null,null,null,null,null,null,null,null,null,"M41","IEC Standard (SIT))/Very (VIT)/Long Time(LTI)/Extremely (EIT) Inverse Time.",null,"G40","Ultra Inverse Time (UIT) – for better fuse co-ordination."]
[null,null,null,null,null,null,null,null,null,null,null,null,"M41","IAC Inverse(I)/ Very Inverse (VI)/ Extremely Inverse (EI) time.",null,"G40"]
[null,null,null,null,null,null,null,null,null,null,null,null,"M41","Standard(SIT)/Very(VIT)/Long Time(LTI)/Extremely(EIT) /Rapid (RI) Inverse time.",null,"G40","Definite time (DT) with time delay settings from Instantaneous (no intentional time delay less than 50 ms) to 300 s.  Overload protection shall use true RMS current value (up to a minimum 13th harmonic).  Alternative overload setting groups will be selectable by logical conditions to adapt operating mode change.  Adjustment of the overload tripping curves will be possible to exactly fit the cable characteristics."]
[null,null,null,null,null,null,null,null,null,null,null,null,"M41","Ultra Inverse Time (UIT) – for better fuse co-ordination.",null,"G40","Overcurrent setting shall be made by the direct input of actual primary current values."]
[null,null,null,null,null,null,null,null,null,null,null,null,"M41",null,null,"G40","Phase overcurrent and ground fault protection shall have an adjustable timer hold (time delay reset) to allow recurring faults detection.  The protection shall also allow a current-dependent time reset to emulate e/m relays."]
[null,null,null,null,null,null,null,null,null,null,null,null,"M41","Definite time (DT) with time delay settings from Instantaneous (no intentional time delay less than 50 ms) to 300 s.  Overload protection shall use true RMS current value (up to a minimum 13th harmonic) and will compensate for changes in ambient temperature (optional).  Alternative overload setting groups will be selectable by logical conditions to adapt operating mode change.  Adjustment of the overload tripping curves will be possible to exactly fit the motor characteristics.",null,"G40","Ground fault protection shall integrate a second harmonic restraint, which can be activated via software."]
[null,null,null,null,null,null,null,null,null,null,null,null,"M41",null,null,"G40","The unit shall have built in firmware specifically and uniquely for zone-selective interlocking ANSI 68 (ZSI) protection via logic I/O and settings.  The ZSI must have a built in breaker failure scheme without the necessity of an additional 50BF element programming or wiring."]
[null,null,null,null,null,null,null,null,null,null,null,null,"M41","Overcurrent setting shall be made by the direct input of actual primary current values.",null,"G40","The relay shall allow fast change in protection scheme: two groups of 50/51, 50N/51N settings shall be available with provision for shifting from one group of settings to the other by a digital input, UMI, and communications."]
[null,null,null,null,null,null,null,null,null,null,null,null,"M41"]
[null,null,null,null,null,null,null,null,null,null,null,null,"M41","Phase overcurrent and ground fault protection shall have an adjustable timer hold (time delay reset) to allow recurring faults detection.  The protection shall also allow a current-dependent time reset to emulate e/m relays.",null,"T40","The Protection and Control Unit shall contain all the necessary protection functions for the specific application:"]
[null,null,null,null,null,null,null,null,null,null,null,null,"M41",null,null,"T40","Transformer protection: (50/51) Three Phase overcurrent, (50N/51N) Ground fault (or neutral) with selectable second harmonic restraint, (50BF) Breaker failure, (46) Unbalance / negative sequence overcurrent, (49 RMS) thermal overload, (27) Undervoltage (phase-to-phase or phase-to-neutral), (59) Overvoltage (phase-to-phase or phase-to-neutral), (59N) Neutral voltage displacement, (47) Negative sequence overvoltage, (81H) Overfrequency, (81L) Underfrequency, (49/63) Thermostat / Buchholz (gas detection/pressure), and optional (49) Temperature (RTD) monitoring."]
[null,null,null,null,null,null,null,null,null,null,null,null,"M41","Ground fault protection shall integrate a second harmonic restraint, which can be activated via software.",null,"T40","Each overcurrent protection device shall have a wide range of time overcurrent protection curve settings, providing a choice of curve types:"]
[null,null,null,null,null,null,null,null,null,null,null,null,"M41",null,null,"T40","IEEE Moderately/Very/Extremely Inverse time."]
[null,null,null,null,null,null,null,null,null,null,null,null,"M41","The unit shall have built in firmware specifically and uniquely for zone-selective interlocking ANSI 68 (ZSI) protection via logic I/O and settings.  The ZSI must have a built in breaker failure scheme without the necessity of an additional 50BF element programming or wiring.",null,"T40","IEC Standard (SIT))/Very (VIT)/Long Time(LTI)/Extremely (EIT) Inverse Time."]
[null,null,null,null,null,null,null,null,null,null,null,null,"M41",null,null,"T40","IAC Inverse(I)/ Very Inverse (VI)/ Extremely Inverse (EI) time."]
[null,null,null,null,null,null,null,null,null,null,null,null,"M41","The relay shall allow fast change in protection scheme: 2 groups of 50/51 and 50N/51N settings shall be available with provision for shifting from one group of settings to the other by a digital input, UMI, or communications.",null,"T40","Standard(SIT)/Very(VIT)/Long Time(LTI)/Extremely(EIT) /Rapid (RI) Inverse time."]
[null,null,null,null,null,null,null,null,null,null,null,null,null,null,null,"T40","Ultra Inverse Time (UIT) – for better fuse co-ordination."]
[null,null,null,null,null,null,null,null,null,null,null,null,"G40","The Protection and Control Unit shall contain all the necessary protection functions for the specific application:",null,"T40"]
[null,null,null,null,null,null,null,null,null,null,null,null,"G40","Generator protection: (50/51) Three Phase overcurrent, (50N/51N) Ground fault (or neutral) with selectable second harmonic restraint, (50BF) Breaker failure, (46) Unbalance / negative sequence overcurrent, (49 RMS) thermal overload, (27) Undervoltage (phase-to-phase or phase-to-neutral), (59) Overvoltage (phase-to-phase or phase-to-neutral), (59N) Neutral voltage displacement, (47) Negative sequence overvoltage, (81H) Overfrequency, (81L) Underfrequency, (32P) Reverse real power, (32Q/40) Reverse reactive power/ Loss-of-excitation, (50V/51V) Voltage-restrained Overcurrent, and optional (38/49)Temperature (RTD) monitoring.",null,"T40","Definite time (DT) with time delay settings from Instantaneous (no intentional time delay less than 50 ms) to 300 s.  Overload protection shall use true RMS current value (up to a minimum 13th harmonic).  Alternative overload setting groups will be selectable by logical conditions to adapt operating mode change.  Adjustment of the overload tripping curves will be possible to exactly fit the cable characteristics."]
[null,null,null,null,null,null,null,null,null,null,null,null,"G40",null,null,"T40","Overcurrent setting shall be made by the direct input of actual primary current values."]
[null,null,null,null,null,null,null,null,null,null,null,null,"G40","Each overcurrent protection device shall have a wide range of time overcurrent protection curve settings, providing a choice of curve types:",null,"T40","Phase overcurrent and ground fault protection shall have an adjustable timer hold (time delay reset) to allow recurring faults detection.  The protection shall also allow a current-dependent time reset to emulate e/m relays."]
[null,null,null,null,null,null,null,null,null,null,null,null,"G40","IEEE Moderately/Very/Extremely Inverse time.",null,"T40","Ground fault protection shall integrate a second harmonic restraint, which can be activated via software."]
[null,null,null,null,null,null,null,null,null,null,null,null,"G40","IEC Standard (SIT))/Very (VIT)/Long Time(LTI)/Extremely (EIT) Inverse Time.",null,"T40","The unit shall have built in firmware specifically and uniquely for zone-selective interlocking ANSI 68 (ZSI) protection via logic I/O and settings.  The ZSI must have a built in breaker failure scheme without the necessity of an additional 50BF element programming or wiring."]
[null,null,null,null,null,null,null,null,null,null,null,null,"G40","IAC Inverse(I)/ Very Inverse (VI)/ Extremely Inverse (EI) time.",null,"T40","The relay shall allow fast change in protection scheme: 2 groups of 50/51 and 50N/51N settings shall be available with provision for shifting from one group of settings to the other by a digital input, UMI, or communications."]
[null,null,null,null,null,null,null,null,null,null,null,null,"G40","Standard(SIT)/Very(VIT)/Long Time(LTI)/Extremely(EIT) /Rapid (RI) Inverse time."]
[null,null,null,null,null,null,null,null,null,null,null,null,"G40","Ultra Inverse Time (UIT) – for better fuse co-ordination.",null,"T42","The Protection and Control Unit shall contain all the necessary protection functions for the specific application:"]
[null,null,null,null,null,null,null,null,null,null,null,null,"G40",null,null,"T42","Transformer protection: (50/51) Three Phase overcurrent, (50N/51N) Ground fault (or neutral) with selectable second harmonic restraint, (50BF) Breaker failure, (46) Unbalance / negative sequence overcurrent, (67) Directional overcurrent, (67N/67NC) Directional ground fault, (49 RMS) thermal overload, (27) Undervoltage (phase-to-phase or phase-to-neutral), (59) Overvoltage (phase-to-phase or phase-to-neutral), (59N) Neutral voltage displacement, (47) Negative sequence overvoltage, (81H) Overfrequency, (81L) Underfrequency, (49/63) Thermostat / Buchholz (gas detection/pressure), and optional (49) Temperature (RTD) monitoring."]
[null,null,null,null,null,null,null,null,null,null,null,null,"G40","Definite time (DT) with time delay settings from Instantaneous (no intentional time delay less than 50 ms) to 300 s.  Overload protection shall use true RMS current value (up to a minimum 13th harmonic).  Alternative overload setting groups will be selectable by logical conditions to adapt operating mode change.  Adjustment of the overload tripping curves will be possible to exactly fit the cable characteristics.",null,"T42","Each overcurrent protection device shall have a wide range of time overcurrent protection curve settings, providing a choice of curve types:"]
[null,null,null,null,null,null,null,null,null,null,null,null,"G40",null,null,"T42","IEEE Moderately/Very/Extremely Inverse time."]
[null,null,null,null,null,null,null,null,null,null,null,null,"G40","Overcurrent setting shall be made by the direct input of actual primary current values.",null,"T42","IEC Standard (SIT))/Very (VIT)/Long Time(LTI)/Extremely (EIT) Inverse Time."]
[null,null,null,null,null,null,null,null,null,null,null,null,"G40",null,null,"T42","IAC Inverse(I)/ Very Inverse (VI)/ Extremely Inverse (EI) time."]
[null,null,null,null,null,null,null,null,null,null,null,null,"G40","Phase overcurrent and ground fault protection shall have an adjustable timer hold (time delay reset) to allow recurring faults detection.  The protection shall also allow a current-dependent time reset to emulate e/m relays.",null,"T42","Standard(SIT)/Very(VIT)/Long Time(LTI)/Extremely(EIT) /Rapid (RI) Inverse time."]
[null,null,null,null,null,null,null,null,null,null,null,null,"G40",null,null,"T42","Ultra Inverse Time (UIT) – for better fuse co-ordination."]
[null,null,null,null,null,null,null,null,null,null,null,null,"G40","Ground fault protection shall integrate a second harmonic restraint, which can be activated via software.",null,"T42"]
[null,null,null,null,null,null,null,null,null,null,null,null,"G40",null,null,"T42","Definite time (DT) with time delay settings from Instantaneous (no intentional time delay less than 50 ms) to 300 s.  Overload protection shall use true RMS current value (up to a minimum 13th harmonic).  Alternative overload setting groups will be selectable by logical conditions to adapt operating mode change.  Adjustment of the overload tripping curves will be possible to exactly fit the cable characteristics."]
[null,null,null,null,null,null,null,null,null,null,null,null,"G40","The unit shall have built in firmware specifically and uniquely for zone-selective interlocking ANSI 68 (ZSI) protection via logic I/O and settings.  The ZSI must have a built in breaker failure scheme without the necessity of an additional 50BF element programming or wiring.",null,"T42","Overcurrent setting shall be made by the direct input of actual primary current values."]
[null,null,null,null,null,null,null,null,null,null,null,null,"G40",null,null,"T42","Phase overcurrent and ground fault protection shall have an adjustable timer hold (time delay reset) to allow recurring faults detection.  The protection shall also allow a current-dependent time reset to emulate e/m relays."]
[null,null,null,null,null,null,null,null,null,null,null,null,"G40","The relay shall allow fast change in protection scheme: two groups of 50/51, 50N/51N settings shall be available with provision for shifting from one group of settings to the other by a digital input, UMI, and communications.",null,"T42","Ground fault protection shall integrate a second harmonic restraint, which can be activated via software."]
[null,null,null,null,null,null,null,null,null,null,null,null,null,null,null,"T42","The unit shall have built in firmware specifically and uniquely for zone-selective interlocking ANSI 68 (ZSI) protection via logic I/O and settings.  The ZSI must have a built in breaker failure scheme without the necessity of an additional 50BF element programming or wiring."]
[null,null,null,null,null,null,null,null,null,null,null,null,"T40","The Protection and Control Unit shall contain all the necessary protection functions for the specific application:",null,"T42","The relay shall allow fast change in protection scheme: two groups of 50/51, 50N/51N, 67/67N settings shall be available with provision for shifting from one group of settings to the other by a digital input, UMI, and communications."]
[null,null,null,null,null,null,null,null,null,null,null,null,"T40","Transformer protection: (50/51) Three Phase overcurrent, (50N/51N) Ground fault (or neutral) with selectable second harmonic restraint, (50BF) Breaker failure, (46) Unbalance / negative sequence overcurrent, (49 RMS) thermal overload, (27) Undervoltage (phase-to-phase or phase-to-neutral), (59) Overvoltage (phase-to-phase or phase-to-neutral), (59N) Neutral voltage displacement, (47) Negative sequence overvoltage, (81H) Overfrequency, (81L) Underfrequency, (49/63) Thermostat / Buchholz (gas detection/pressure), and optional (49) Temperature (RTD) monitoring."]
[null,null,null,null,null,null,null,null,null,null,null,null,"T40",null,null,"S50","The Protection and Control Unit shall contain all the necessary protection functions for the specific application:"]
[null,null,null,null,null,null,null,null,null,null,null,null,"T40","Each overcurrent protection device shall have a wide range of time overcurrent protection curve settings, providing a choice of curve types:",null,"S50","Substation/Feeder protection: (50/51) Three Phase overcurrent, (CLPU 50/51) Phase overcurrent Cold Load Pick-Up, (50N/51N) Ground fault (or neutral) with selectable second harmonic restraint, (CLPU 50N/51N) Ground fault Cold Load Pick-Up, (50BF) Breaker failure, (46) Unbalance / negative sequence overcurrent, (46BC) Broken Conductor, (27) Undervoltage (phase-to-phase or phase-to-neutral), (59) Overvoltage (phase-to-phase or phase-to-neutral), (59N) Neutral voltage displacement, (47) Negative sequence overvoltage, (81H) Overfrequency, (81L) Underfrequency, and (79) Recloser (4 steps)."]
[null,null,null,null,null,null,null,null,null,null,null,null,"T40","IEEE Moderately/Very/Extremely Inverse time.",null,"S50","Each overcurrent protection device shall have a wide range of time overcurrent protection curve settings, providing a choice of curve types:"]
[null,null,null,null,null,null,null,null,null,null,null,null,"T40","IEC Standard (SIT))/Very (VIT)/Long Time(LTI)/Extremely (EIT) Inverse Time.",null,"S50","IEEE Moderately/Very/Extremely Inverse time."]
[null,null,null,null,null,null,null,null,null,null,null,null,"T40","IAC Inverse(I)/ Very Inverse (VI)/ Extremely Inverse (EI) time.",null,"S50","IEC Standard (SIT))/Very (VIT)/Long Time(LTI)/Extremely (EIT) Inverse Time."]
[null,null,null,null,null,null,null,null,null,null,null,null,"T40","Standard(SIT)/Very(VIT)/Long Time(LTI)/Extremely(EIT) /Rapid (RI) Inverse time.",null,"S50","IAC Inverse(I)/ Very Inverse (VI)/ Extremely Inverse (EI) time."]
[null,null,null,null,null,null,null,null,null,null,null,null,"T40","Ultra Inverse Time (UIT) – for better fuse co-ordination.",null,"S50","Standard(SIT)/Very(VIT)/Long Time(LTI)/Extremely(EIT) /Rapid (RI) Inverse time."]
[null,null,null,null,null,null,null,null,null,null,null,null,"T40",null,null,"S50","Ultra Inverse Time (UIT) – for better fuse co-ordination."]
[null,null,null,null,null,null,null,null,null,null,null,null,"T40","Definite time (DT) with time delay settings from Instantaneous (no intentional time delay less than 50 ms) to 300 s.  Overload protection shall use true RMS current value (up to a minimum 13th harmonic).  Alternative overload setting groups will be selectable by logical conditions to adapt operating mode change.  Adjustment of the overload tripping curves will be possible to exactly fit the cable characteristics.",null,"S50"]
[null,null,null,null,null,null,null,null,null,null,null,null,"T40",null,null,"S50","Definite time (DT) with time delay settings from Instantaneous (no intentional time delay less than 50 ms) to 300 s.  Overload protection shall use true RMS current value (up to a minimum 13th harmonic).  Alternative overload setting groups will be selectable by logical conditions to adapt operating mode change.  Adjustment of the overload tripping curves will be possible to exactly fit the cable characteristics."]
[null,null,null,null,null,null,null,null,null,null,null,null,"T40","Overcurrent setting shall be made by the direct input of actual primary current values.",null,"S50","Overcurrent setting shall be made by the direct input of actual primary current values."]
[null,null,null,null,null,null,null,null,null,null,null,null,"T40",null,null,"S50","Phase overcurrent and ground fault protection shall have an adjustable timer hold (time delay reset) to allow recurring faults detection.  The protection shall also allow a current-dependent time reset to emulate e/m relays."]
[null,null,null,null,null,null,null,null,null,null,null,null,"T40","Phase overcurrent and ground fault protection shall have an adjustable timer hold (time delay reset) to allow recurring faults detection.  The protection shall also allow a current-dependent time reset to emulate e/m relays.",null,"S50","Ground fault protection shall integrate a second harmonic restraint, which can be activated via software."]
[null,null,null,null,null,null,null,null,null,null,null,null,"T40",null,null,"S50","The unit shall have built in firmware specifically and uniquely for zone-selective interlocking ANSI 68 (ZSI) protection via logic I/O and settings.  The ZSI must have a built in breaker failure scheme without the necessity of an additional 50BF element programming or wiring."]
[null,null,null,null,null,null,null,null,null,null,null,null,"T40","Ground fault protection shall integrate a second harmonic restraint, which can be activated via software.",null,"S50","The relay shall allow fast change in protection scheme: 2 groups of 50/51 and 50N/51N settings shall be available with provision for shifting from one group of settings to the other by a digital input, UMI, or communications."]
[null,null,null,null,null,null,null,null,null,null,null,null,"T40"]
[null,null,null,null,null,null,null,null,null,null,null,null,"T40","The unit shall have built in firmware specifically and uniquely for zone-selective interlocking ANSI 68 (ZSI) protection via logic I/O and settings.  The ZSI must have a built in breaker failure scheme without the necessity of an additional 50BF element programming or wiring.",null,"S52","The Protection and Control Unit shall contain all the necessary protection functions for the specific application:"]
[null,null,null,null,null,null,null,null,null,null,null,null,"T40",null,null,"S52","Substation/Feeder protection: (50/51) Three Phase overcurrent, (CLPU 50/51) Phase overcurrent Cold Load Pick-Up, (50N/51N) Ground fault (or neutral) with selectable second harmonic restraint, (CLPU 50N/51N) Ground fault Cold Load Pick-Up, (50BF) Breaker failure, (46) Unbalance / negative sequence overcurrent, (46BC) Broken Conductor, (67) Directional overcurrent, (67N/67NC) Directional ground fault, (32P) Reverse real power, (27) Undervoltage (phase-to-phase or phase-to-neutral), (59) Overvoltage (phase-to-phase or phase-to-neutral), (59N) Neutral voltage displacement, (47) Negative sequence overvoltage, (81H) Overfrequency, (81L) Underfrequency, and (79) Recloser (4 steps)."]
[null,null,null,null,null,null,null,null,null,null,null,null,"T40","The relay shall allow fast change in protection scheme: 2 groups of 50/51 and 50N/51N settings shall be available with provision for shifting from one group of settings to the other by a digital input, UMI, or communications.",null,"S52","Each overcurrent protection device shall have a wide range of time overcurrent protection curve settings, providing a choice of curve types:"]
[null,null,null,null,null,null,null,null,null,null,null,null,null,null,null,"S52","IEEE Moderately/Very/Extremely Inverse time."]
[null,null,null,null,null,null,null,null,null,null,null,null,"T42","The Protection and Control Unit shall contain all the necessary protection functions for the specific application:",null,"S52","IEC Standard (SIT))/Very (VIT)/Long Time(LTI)/Extremely (EIT) Inverse Time."]
[null,null,null,null,null,null,null,null,null,null,null,null,"T42","Transformer protection: (50/51) Three Phase overcurrent, (50N/51N) Ground fault (or neutral) with selectable second harmonic restraint, (50BF) Breaker failure, (46) Unbalance / negative sequence overcurrent, (67) Directional overcurrent, (67N/67NC) Directional ground fault, (49 RMS) thermal overload, (27) Undervoltage (phase-to-phase or phase-to-neutral), (59) Overvoltage (phase-to-phase or phase-to-neutral), (59N) Neutral voltage displacement, (47) Negative sequence overvoltage, (81H) Overfrequency, (81L) Underfrequency, (49/63) Thermostat / Buchholz (gas detection/pressure), and optional (49) Temperature (RTD) monitoring.",null,"S52","IAC Inverse(I)/ Very Inverse (VI)/ Extremely Inverse (EI) time."]
[null,null,null,null,null,null,null,null,null,null,null,null,"T42",null,null,"S52","Standard(SIT)/Very(VIT)/Long Time(LTI)/Extremely(EIT) /Rapid (RI) Inverse time."]
[null,null,null,null,null,null,null,null,null,null,null,null,"T42","Each overcurrent protection device shall have a wide range of time overcurrent protection curve settings, providing a choice of curve types:",null,"S52","Ultra Inverse Time (UIT) – for better fuse co-ordination."]
[null,null,null,null,null,null,null,null,null,null,null,null,"T42","IEEE Moderately/Very/Extremely Inverse time.",null,"S52"]
[null,null,null,null,null,null,null,null,null,null,null,null,"T42","IEC Standard (SIT))/Very (VIT)/Long Time(LTI)/Extremely (EIT) Inverse Time.",null,"S52","Definite time (DT) with time delay settings from Instantaneous (no intentional time delay less than 50 ms) to 300 s.  Overload protection shall use true RMS current value (up to a minimum 13th harmonic).  Alternative overload setting groups will be selectable by logical conditions to adapt operating mode change.  Adjustment of the overload tripping curves will be possible to exactly fit the cable characteristics."]
[null,null,null,null,null,null,null,null,null,null,null,null,"T42","IAC Inverse(I)/ Very Inverse (VI)/ Extremely Inverse (EI) time.",null,"S52","Overcurrent setting shall be made by the direct input of actual primary current values."]
[null,null,null,null,null,null,null,null,null,null,null,null,"T42","Standard(SIT)/Very(VIT)/Long Time(LTI)/Extremely(EIT) /Rapid (RI) Inverse time.",null,"S52","Phase overcurrent and ground fault protection shall have an adjustable timer hold (time delay reset) to allow recurring faults detection.  The protection shall also allow a current-dependent time reset to emulate e/m relays."]
[null,null,null,null,null,null,null,null,null,null,null,null,"T42","Ultra Inverse Time (UIT) – for better fuse co-ordination.",null,"S52","Ground fault protection shall integrate a second harmonic restraint, which can be activated via software."]
[null,null,null,null,null,null,null,null,null,null,null,null,"T42",null,null,"S52","The unit shall have built in firmware specifically and uniquely for zone-selective interlocking ANSI 68  (ZSI) protection via logic I/O and settings.  The ZSI must have a built in breaker failure scheme without the necessity of an additional 50BF element programming or wiring."]
[null,null,null,null,null,null,null,null,null,null,null,null,"T42","Definite time (DT) with time delay settings from Instantaneous (no intentional time delay less than 50 ms) to 300 s.  Overload protection shall use true RMS current value (up to a minimum 13th harmonic).  Alternative overload setting groups will be selectable by logical conditions to adapt operating mode change.  Adjustment of the overload tripping curves will be possible to exactly fit the cable characteristics.",null,"S52","The relay shall allow fast change in protection scheme: two groups of 50/51, 50N/51N, 67/67N settings shall be available with provision for shifting from one group of settings to the other by a digital input, UMI, and communications."]
[null,null,null,null,null,null,null,null,null,null,null,null,"T42"]
[null,null,null,null,null,null,null,null,null,null,null,null,"T42","Overcurrent setting shall be made by the direct input of actual primary current values.",null,"S53","The Protection and Control Unit shall contain all the necessary protection functions for the specific application:"]
[null,null,null,null,null,null,null,null,null,null,null,null,"T42",null,null,"S53","Substation/Feeder protection: (50/51) Three Phase overcurrent, (CLPU 50/51) Phase overcurrent Cold Load Pick-Up, (50N/51N) Ground fault (or neutral) with selectable second harmonic restraint, (CLPU 50N/51N) Ground fault Cold Load Pick-Up, (50BF) Breaker failure, (46) Unbalance / negative sequence overcurrent, (46BC) Broken Conductor, (67) Directional overcurrent, (67N/67NC) Directional ground fault, (32P) Reverse real power, and (79) Recloser (4 steps)."]
[null,null,null,null,null,null,null,null,null,null,null,null,"T42","Phase overcurrent and ground fault protection shall have an adjustable timer hold (time delay reset) to allow recurring faults detection.  The protection shall also allow a current-dependent time reset to emulate e/m relays.",null,"S53","Each overcurrent protection device shall have a wide range of time overcurrent protection curve settings, providing a choice of curve types:"]
[null,null,null,null,null,null,null,null,null,null,null,null,"T42",null,null,"S53","IEEE Moderately/Very/Extremely Inverse time."]
[null,null,null,null,null,null,null,null,null,null,null,null,"T42","Ground fault protection shall integrate a second harmonic restraint, which can be activated via software.",null,"S53","IEC Standard (SIT))/Very (VIT)/Long Time(LTI)/Extremely (EIT) Inverse Time."]
[null,null,null,null,null,null,null,null,null,null,null,null,"T42",null,null,"S53","IAC Inverse(I)/ Very Inverse (VI)/ Extremely Inverse (EI) time."]
[null,null,null,null,null,null,null,null,null,null,null,null,"T42","The unit shall have built in firmware specifically and uniquely for zone-selective interlocking ANSI 68 (ZSI) protection via logic I/O and settings.  The ZSI must have a built in breaker failure scheme without the necessity of an additional 50BF element programming or wiring.",null,"S53","Standard(SIT)/Very(VIT)/Long Time(LTI)/Extremely(EIT) /Rapid (RI) Inverse time."]
[null,null,null,null,null,null,null,null,null,null,null,null,"T42",null,null,"S53","Ultra Inverse Time (UIT) – for better fuse co-ordination."]
[null,null,null,null,null,null,null,null,null,null,null,null,"T42","The relay shall allow fast change in protection scheme: two groups of 50/51, 50N/51N, 67/67N settings shall be available with provision for shifting from one group of settings to the other by a digital input, UMI, and communications.",null,"S53"]
[null,null,null,null,null,null,null,null,null,null,null,null,null,null,null,"S53","Definite time (DT) with time delay settings from Instantaneous (no intentional time delay less than 50 ms) to 300 s.  Overload protection shall use true RMS current value (up to a minimum 13th harmonic).  Alternative overload setting groups will be selectable by logical conditions to adapt operating mode change.  Adjustment of the overload tripping curves will be possible to exactly fit the cable characteristics."]
[null,null,null,null,null,null,null,null,null,null,null,null,"S50","The Protection and Control Unit shall contain all the necessary protection functions for the specific application:",null,"S53","Overcurrent setting shall be made by the direct input of actual primary current values."]
[null,null,null,null,null,null,null,null,null,null,null,null,"S50","Substation/Feeder protection: (50/51) Three Phase overcurrent, (CLPU 50/51) Phase overcurrent Cold Load Pick-Up, (50N/51N) Ground fault (or neutral) with selectable second harmonic restraint, (CLPU 50N/51N) Ground fault Cold Load Pick-Up, (50BF) Breaker failure, (46) Unbalance / negative sequence overcurrent, (27) Undervoltage (phase-to-phase or phase-to-neutral), (59) Overvoltage (phase-to-phase or phase-to-neutral), (59N) Neutral voltage displacement, (47) Negative sequence overvoltage, (81H) Overfrequency, (81L) Underfrequency, and (79) Recloser (4 steps).",null,"S53","Phase overcurrent and ground fault protection shall have an adjustable timer hold (time delay reset) to allow recurring faults detection.  The protection shall also allow a current-dependent time reset to emulate e/m relays."]
[null,null,null,null,null,null,null,null,null,null,null,null,"S50",null,null,"S53","Ground fault protection shall integrate a second harmonic restraint, which can be activated via software."]
[null,null,null,null,null,null,null,null,null,null,null,null,"S50","Each overcurrent protection device shall have a wide range of time overcurrent protection curve settings, providing a choice of curve types:",null,"S53","The unit shall have built in firmware specifically and uniquely for zone-selective interlocking ANSI 68 (ZSI) protection via logic I/O and settings.  The ZSI must have a built in breaker failure scheme without the necessity of an additional 50BF element programming or wiring."]
[null,null,null,null,null,null,null,null,null,null,null,null,"S50","IEEE Moderately/Very/Extremely Inverse time.",null,"S53","The relay shall allow fast change in protection scheme: two groups of 50/51, 50N/51N, 67/67N settings shall be available with provision for shifting from one group of settings to the other by a digital input, UMI, and communications."]
[null,null,null,null,null,null,null,null,null,null,null,null,"S50","IEC Standard (SIT))/Very (VIT)/Long Time(LTI)/Extremely (EIT) Inverse Time."]
[null,null,null,null,null,null,null,null,null,null,null,null,"S50","IAC Inverse(I)/ Very Inverse (VI)/ Extremely Inverse (EI) time.",null,"T50","The Protection and Control Unit shall contain all the necessary protection functions for the specific application:"]
[null,null,null,null,null,null,null,null,null,null,null,null,"S50","Standard(SIT)/Very(VIT)/Long Time(LTI)/Extremely(EIT) /Rapid (RI) Inverse time.",null,"T50","Transformer protection: (50/51) Three Phase overcurrent, (CLPU 50/51) Phase overcurrent Cold Load Pick-Up, (50N/51N) Ground fault (or neutral) with selectable second harmonic restraint, (CLPU 50N/51N) Ground fault Cold Load Pick-Up, (50BF) Breaker failure, (46) Unbalance / negative sequence overcurrent, (46BC) Broken Conductor, (49 RMS) thermal overload, (27) Undervoltage (phase-to-phase or phase-to-neutral), (59) Overvoltage (phase-to-phase or phase-to-neutral), (59N) Neutral voltage displacement, (47) Negative sequence overvoltage, (81H) Overfrequency, (81L) Underfrequency, (49/63) Thermostat / Buchholz (gas detection/pressure), and optional (49) Temperature (RTD) monitoring."]
[null,null,null,null,null,null,null,null,null,null,null,null,"S50","Ultra Inverse Time (UIT) – for better fuse co-ordination.",null,"T50","Each overcurrent protection device shall have a wide range of time overcurrent protection curve settings, providing a choice of curve types:"]
[null,null,null,null,null,null,null,null,null,null,null,null,"S50",null,null,"T50","IEEE Moderately/Very/Extremely Inverse time."]
[null,null,null,null,null,null,null,null,null,null,null,null,"S50","Definite time (DT) with time delay settings from Instantaneous (no intentional time delay less than 50 ms) to 300 s.  Overload protection shall use true RMS current value (up to a minimum 13th harmonic).  Alternative overload setting groups will be selectable by logical conditions to adapt operating mode change.  Adjustment of the overload tripping curves will be possible to exactly fit the cable characteristics.",null,"T50","IEC Standard (SIT))/Very (VIT)/Long Time(LTI)/Extremely (EIT) Inverse Time."]
[null,null,null,null,null,null,null,null,null,null,null,null,"S50",null,null,"T50","IAC Inverse(I)/ Very Inverse (VI)/ Extremely Inverse (EI) time."]
[null,null,null,null,null,null,null,null,null,null,null,null,"S50","Overcurrent setting shall be made by the direct input of actual primary current values.",null,"T50","Standard(SIT)/Very(VIT)/Long Time(LTI)/Extremely(EIT) /Rapid (RI) Inverse time."]
[null,null,null,null,null,null,null,null,null,null,null,null,"S50",null,null,"T50","Ultra Inverse Time (UIT) – for better fuse co-ordination."]
[null,null,null,null,null,null,null,null,null,null,null,null,"S50","Phase overcurrent and ground fault protection shall have an adjustable timer hold (time delay reset) to allow recurring faults detection.  The protection shall also allow a current-dependent time reset to emulate e/m relays.",null,"T50"]
[null,null,null,null,null,null,null,null,null,null,null,null,"S50",null,null,"T50","Definite time (DT) with time delay settings from Instantaneous (no intentional time delay less than 50 ms) to 300 s.  Overload protection shall use true RMS current value (up to a minimum 13th harmonic).  Alternative overload setting groups will be selectable by logical conditions to adapt operating mode change.  Adjustment of the overload tripping curves will be possible to exactly fit the cable characteristics."]
[null,null,null,null,null,null,null,null,null,null,null,null,"S50","Ground fault protection shall integrate a second harmonic restraint, which can be activated via software.",null,"T50","Overcurrent setting shall be made by the direct input of actual primary current values."]
[null,null,null,null,null,null,null,null,null,null,null,null,"S50",null,null,"T50","Phase overcurrent and ground fault protection shall have an adjustable timer hold (time delay reset) to allow recurring faults detection.  The protection shall also allow a current-dependent time reset to emulate e/m relays."]
[null,null,null,null,null,null,null,null,null,null,null,null,"S50","The unit shall have built in firmware specifically and uniquely for zone-selective interlocking ANSI 68 (ZSI) protection via logic I/O and settings.  The ZSI must have a built in breaker failure scheme without the necessity of an additional 50BF element programming or wiring.",null,"T50","Ground fault protection shall integrate a second harmonic restraint, which can be activated via software."]
[null,null,null,null,null,null,null,null,null,null,null,null,"S50",null,null,"T50","The unit shall have built in firmware specifically and uniquely for zone-selective interlocking ANSI 68 (ZSI) protection via logic I/O and settings.  The ZSI must have a built in breaker failure scheme without the necessity of an additional 50BF element programming or wiring."]
[null,null,null,null,null,null,null,null,null,null,null,null,"S50","The relay shall allow fast change in protection scheme: 2 groups of 50/51 and 50N/51N settings shall be available with provision for shifting from one group of settings to the other by a digital input, UMI, or communications.",null,"T50","The relay shall allow fast change in protection scheme: 2 groups of 50/51 and 50N/51N settings shall be available with provision for shifting from one group of settings to the other by a digital input, UMI, or communications."]
[]
[null,null,null,null,null,null,null,null,null,null,null,null,"S52","The Protection and Control Unit shall contain all the necessary protection functions for the specific application:",null,"T52","The Protection and Control Unit shall contain all the necessary protection functions for the specific application:"]
[null,null,null,null,null,null,null,null,null,null,null,null,"S52","Substation/Feeder protection: (50/51) Three Phase overcurrent, (CLPU 50/51) Phase overcurrent Cold Load Pick-Up, (50N/51N) Ground fault (or neutral) with selectable second harmonic restraint, (CLPU 50N/51N) Ground fault Cold Load Pick-Up, (50BF) Breaker failure, (46) Unbalance / negative sequence overcurrent, (67) Directional overcurrent, (67N/67NC) Directional ground fault, (32P) Reverse real power, (27) Undervoltage (phase-to-phase or phase-to-neutral), (59) Overvoltage (phase-to-phase or phase-to-neutral), (59N) Neutral voltage displacement, (47) Negative sequence overvoltage, (81H) Overfrequency, (81L) Underfrequency, and (79) Recloser (4 steps).",null,"T52","Transformer protection: (50/51) Three Phase overcurrent, (CLPU 50/51) Phase overcurrent Cold Load Pick-Up, (50N/51N) Ground fault (or neutral) with selectable second harmonic restraint, (CLPU 50N/51N) Ground fault Cold Load Pick-Up, (50BF) Breaker failure, (46) Unbalance / negative sequence overcurrent, (46BC) Broken Conductor, (67) Directional overcurrent, (67N/67NC) Directional ground fault, (49 RMS) thermal overload, (27) Undervoltage (phase-to-phase or phase-to-neutral), (59) Overvoltage (phase-to-phase or phase-to-neutral), (59N) Neutral voltage displacement, (47) Negative sequence overvoltage, (81H) Overfrequency, (81L) Underfrequency, (49/63) Thermostat / Buchholz (gas detection/pressure), and optional (49) Temperature (RTD) monitoring."]
[null,null,null,null,null,null,null,null,null,null,null,null,"S52",null,null,"T52","Each overcurrent protection device shall have a wide range of time overcurrent protection curve settings, providing a choice of curve types:"]
[null,null,null,null,null,null,null,null,null,null,null,null,"S52","Each overcurrent protection device shall have a wide range of time overcurrent protection curve settings, providing a choice of curve types:",null,"T52","IEEE Moderately/Very/Extremely Inverse time."]
[null,null,null,null,null,null,null,null,null,null,null,null,"S52","IEEE Moderately/Very/Extremely Inverse time.",null,"T52","IEC Standard (SIT))/Very (VIT)/Long Time(LTI)/Extremely (EIT) Inverse Time."]
[null,null,null,null,null,null,null,null,null,null,null,null,"S52","IEC Standard (SIT))/Very (VIT)/Long Time(LTI)/Extremely (EIT) Inverse Time.",null,"T52","IAC Inverse(I)/ Very Inverse (VI)/ Extremely Inverse (EI) time."]
[null,null,null,null,null,null,null,null,null,null,null,null,"S52","IAC Inverse(I)/ Very Inverse (VI)/ Extremely Inverse (EI) time.",null,"T52","Standard(SIT)/Very(VIT)/Long Time(LTI)/Extremely(EIT) /Rapid (RI) Inverse time."]
[null,null,null,null,null,null,null,null,null,null,null,null,"S52","Standard(SIT)/Very(VIT)/Long Time(LTI)/Extremely(EIT) /Rapid (RI) Inverse time.",null,"T52","Ultra Inverse Time (UIT) – for better fuse co-ordination."]
[null,null,null,null,null,null,null,null,null,null,null,null,"S52","Ultra Inverse Time (UIT) – for better fuse co-ordination.",null,"T52"]
[null,null,null,null,null,null,null,null,null,null,null,null,"S52",null,null,"T52","Definite time (DT) with time delay settings from Instantaneous (no intentional time delay less than 50 ms) to 300 s.  Overload protection shall use true RMS current value (up to a minimum 13th harmonic).  Alternative overload setting groups will be selectable by logical conditions to adapt operating mode change.  Adjustment of the overload tripping curves will be possible to exactly fit the cable characteristics."]
[null,null,null,null,null,null,null,null,null,null,null,null,"S52","Definite time (DT) with time delay settings from Instantaneous (no intentional time delay less than 50 ms) to 300 s.  Overload protection shall use true RMS current value (up to a minimum 13th harmonic).  Alternative overload setting groups will be selectable by logical conditions to adapt operating mode change.  Adjustment of the overload tripping curves will be possible to exactly fit the cable characteristics.",null,"T52","Overcurrent setting shall be made by the direct input of actual primary current values."]
[null,null,null,null,null,null,null,null,null,null,null,null,"S52",null,null,"T52","Phase overcurrent and ground fault protection shall have an adjustable timer hold (time delay reset) to allow recurring faults detection.  The protection shall also allow a current-dependent time reset to emulate e/m relays."]
[null,null,null,null,null,null,null,null,null,null,null,null,"S52","Overcurrent setting shall be made by the direct input of actual primary current values.",null,"T52","Ground fault protection shall integrate a second harmonic restraint, which can be activated via software."]
[null,null,null,null,null,null,null,null,null,null,null,null,"S52",null,null,"T52","The unit shall have built in firmware specifically and uniquely for zone-selective interlocking ANSI 68 (ZSI) protection via logic I/O and settings.  The ZSI must have a built in breaker failure scheme without the necessity of an additional 50BF element programming or wiring."]
[null,null,null,null,null,null,null,null,null,null,null,null,"S52","Phase overcurrent and ground fault protection shall have an adjustable timer hold (time delay reset) to allow recurring faults detection.  The protection shall also allow a current-dependent time reset to emulate e/m relays.",null,"T52","The relay shall allow fast change in protection scheme: two groups of 50/51, 50N/51N, 67/67N settings shall be available with provision for shifting from one group of settings to the other by a digital input, UMI, and communications."]
[null,null,null,null,null,null,null,null,null,null,null,null,"S52"]
[null,null,null,null,null,null,null,null,null,null,null,null,"S52","Ground fault protection shall integrate a second harmonic restraint, which can be activated via software."]
[null,null,null,null,null,null,null,null,null,null,null,null,"S52"]
[null,null,null,null,null,null,null,null,null,null,null,null,"S52","The unit shall have built in firmware specifically and uniquely for zone-selective interlocking ANSI 68  (ZSI) protection via logic I/O and settings.  The ZSI must have a built in breaker failure scheme without the necessity of an additional 50BF element programming or wiring."]
[null,null,null,null,null,null,null,null,null,null,null,null,"S52"]
[null,null,null,null,null,null,null,null,null,null,null,null,"S52","The relay shall allow fast change in protection scheme: two groups of 50/51, 50N/51N, 67/67N settings shall be available with provision for shifting from one group of settings to the other by a digital input, UMI, and communications."]
[]
[null,null,null,null,null,null,null,null,null,null,null,null,"S53","The Protection and Control Unit shall contain all the necessary protection functions for the specific application:"]
[null,null,null,null,null,null,null,null,null,null,null,null,"S53","Substation/Feeder protection: (50/51) Three Phase overcurrent, (CLPU 50/51) Phase overcurrent Cold Load Pick-Up, (50N/51N) Ground fault (or neutral) with selectable second harmonic restraint, (CLPU 50N/51N) Ground fault Cold Load Pick-Up, (50BF) Breaker failure, (46) Unbalance / negative sequence overcurrent, (67) Directional overcurrent, (67N/67NC) Directional ground fault, (32P) Reverse real power, and (79) Recloser (4 steps)."]
[null,null,null,null,null,null,null,null,null,null,null,null,"S53"]
[null,null,null,null,null,null,null,null,null,null,null,null,"S53","Each overcurrent protection device shall have a wide range of time overcurrent protection curve settings, providing a choice of curve types:"]
[null,null,null,null,null,null,null,null,null,null,null,null,"S53","IEEE Moderately/Very/Extremely Inverse time."]
[null,null,null,null,null,null,null,null,null,null,null,null,"S53","IEC Standard (SIT))/Very (VIT)/Long Time(LTI)/Extremely (EIT) Inverse Time."]
[null,null,null,null,null,null,null,null,null,null,null,null,"S53","IAC Inverse(I)/ Very Inverse (VI)/ Extremely Inverse (EI) time."]
[null,null,null,null,null,null,null,null,null,null,null,null,"S53","Standard(SIT)/Very(VIT)/Long Time(LTI)/Extremely(EIT) /Rapid (RI) Inverse time."]
[null,null,null,null,null,null,null,null,null,null,null,null,"S53","Ultra Inverse Time (UIT) – for better fuse co-ordination."]
[null,null,null,null,null,null,null,null,null,null,null,null,"S53"]
[null,null,null,null,null,null,null,null,null,null,null,null,"S53","Definite time (DT) with time delay settings from Instantaneous (no intentional time delay less than 50 ms) to 300 s.  Overload protection shall use true RMS current value (up to a minimum 13th harmonic).  Alternative overload setting groups will be selectable by logical conditions to adapt operating mode change.  Adjustment of the overload tripping curves will be possible to exactly fit the cable characteristics."]
[null,null,null,null,null,null,null,null,null,null,null,null,"S53"]
[null,null,null,null,null,null,null,null,null,null,null,null,"S53","Overcurrent setting shall be made by the direct input of actual primary current values."]
[null,null,null,null,null,null,null,null,null,null,null,null,"S53"]
[null,null,null,null,null,null,null,null,null,null,null,null,"S53","Phase overcurrent and ground fault protection shall have an adjustable timer hold (time delay reset) to allow recurring faults detection.  The protection shall also allow a current-dependent time reset to emulate e/m relays."]
[null,null,null,null,null,null,null,null,null,null,null,null,"S53"]
[null,null,null,null,null,null,null,null,null,null,null,null,"S53","Ground fault protection shall integrate a second harmonic restraint, which can be activated via software."]
[null,null,null,null,null,null,null,null,null,null,null,null,"S53"]
[null,null,null,null,null,null,null,null,null,null,null,null,"S53","The unit shall have built in firmware specifically and uniquely for zone-selective interlocking ANSI 68 (ZSI) protection via logic I/O and settings.  The ZSI must have a built in breaker failure scheme without the necessity of an additional 50BF element programming or wiring."]
[null,null,null,null,null,null,null,null,null,null,null,null,"S53"]
[null,null,null,null,null,null,null,null,null,null,null,null,"S53","The relay shall allow fast change in protection scheme: two groups of 50/51, 50N/51N, 67/67N settings shall be available with provision for shifting from one group of settings to the other by a digital input, UMI, and communications."]
[]
[null,null,null,null,null,null,null,null,null,null,null,null,"T50","The Protection and Control Unit shall contain all the necessary protection functions for the specific application:"]
[null,null,null,null,null,null,null,null,null,null,null,null,"T50","Transformer protection: (50/51) Three Phase overcurrent, (CLPU 50/51) Phase overcurrent Cold Load Pick-Up, (50N/51N) Ground fault (or neutral) with selectable second harmonic restraint, (CLPU 50N/51N) Ground fault Cold Load Pick-Up, (50BF) Breaker failure, (46) Unbalance / negative sequence overcurrent, (49 RMS) thermal overload, (27) Undervoltage (phase-to-phase or phase-to-neutral), (59) Overvoltage (phase-to-phase or phase-to-neutral), (59N) Neutral voltage displacement, (47) Negative sequence overvoltage, (81H) Overfrequency, (81L) Underfrequency, (49/63) Thermostat / Buchholz (gas detection/pressure), and optional (49) Temperature (RTD) monitoring."]
[null,null,null,null,null,null,null,null,null,null,null,null,"T50"]
[null,null,null,null,null,null,null,null,null,null,null,null,"T50","Each overcurrent protection device shall have a wide range of time overcurrent protection curve settings, providing a choice of curve types:"]
[null,null,null,null,null,null,null,null,null,null,null,null,"T50","IEEE Moderately/Very/Extremely Inverse time."]
[null,null,null,null,null,null,null,null,null,null,null,null,"T50","IEC Standard (SIT))/Very (VIT)/Long Time(LTI)/Extremely (EIT) Inverse Time."]
[null,null,null,null,null,null,null,null,null,null,null,null,"T50","IAC Inverse(I)/ Very Inverse (VI)/ Extremely Inverse (EI) time."]
[null,null,null,null,null,null,null,null,null,null,null,null,"T50","Standard(SIT)/Very(VIT)/Long Time(LTI)/Extremely(EIT) /Rapid (RI) Inverse time."]
[null,null,null,null,null,null,null,null,null,null,null,null,"T50","Ultra Inverse Time (UIT) – for better fuse co-ordination."]
[null,null,null,null,null,null,null,null,null,null,null,null,"T50"]
[null,null,null,null,null,null,null,null,null,null,null,null,"T50","Definite time (DT) with time delay settings from Instantaneous (no intentional time delay less than 50 ms) to 300 s.  Overload protection shall use true RMS current value (up to a minimum 13th harmonic).  Alternative overload setting groups will be selectable by logical conditions to adapt operating mode change.  Adjustment of the overload tripping curves will be possible to exactly fit the cable characteristics."]
[null,null,null,null,null,null,null,null,null,null,null,null,"T50"]
[null,null,null,null,null,null,null,null,null,null,null,null,"T50","Overcurrent setting shall be made by the direct input of actual primary current values."]
[null,null,null,null,null,null,null,null,null,null,null,null,"T50"]
[null,null,null,null,null,null,null,null,null,null,null,null,"T50","Phase overcurrent and ground fault protection shall have an adjustable timer hold (time delay reset) to allow recurring faults detection.  The protection shall also allow a current-dependent time reset to emulate e/m relays."]
[null,null,null,null,null,null,null,null,null,null,null,null,"T50"]
[null,null,null,null,null,null,null,null,null,null,null,null,"T50","Ground fault protection shall integrate a second harmonic restraint, which can be activated via software."]
[null,null,null,null,null,null,null,null,null,null,null,null,"T50"]
[null,null,null,null,null,null,null,null,null,null,null,null,"T50","The unit shall have built in firmware specifically and uniquely for zone-selective interlocking ANSI 68 (ZSI) protection via logic I/O and settings.  The ZSI must have a built in breaker failure scheme without the necessity of an additional 50BF element programming or wiring."]
[null,null,null,null,null,null,null,null,null,null,null,null,"T50"]
[null,null,null,null,null,null,null,null,null,null,null,null,"T50","The relay shall allow fast change in protection scheme: 2 groups of 50/51 and 50N/51N settings shall be available with provision for shifting from one group of settings to the other by a digital input, UMI, or communications."]
[]
[null,null,null,null,null,null,null,null,null,null,null,null,"T52","The Protection and Control Unit shall contain all the necessary protection functions for the specific application:"]
[null,null,null,null,null,null,null,null,null,null,null,null,"T52","Transformer protection: (50/51) Three Phase overcurrent, (CLPU 50/51) Phase overcurrent Cold Load Pick-Up, (50N/51N) Ground fault (or neutral) with selectable second harmonic restraint, (CLPU 50N/51N) Ground fault Cold Load Pick-Up, (50BF) Breaker failure, (46) Unbalance / negative sequence overcurrent, (67) Directional overcurrent, (67N/67NC) Directional ground fault, (49 RMS) thermal overload, (27) Undervoltage (phase-to-phase or phase-to-neutral), (59) Overvoltage (phase-to-phase or phase-to-neutral), (59N) Neutral voltage displacement, (47) Negative sequence overvoltage, (81H) Overfrequency, (81L) Underfrequency, (49/63) Thermostat / Buchholz (gas detection/pressure), and optional (49) Temperature (RTD) monitoring."]
[null,null,null,null,null,null,null,null,null,null,null,null,"T52"]
[null,null,null,null,null,null,null,null,null,null,null,null,"T52","Each overcurrent protection device shall have a wide range of time overcurrent protection curve settings, providing a choice of curve types:"]
[null,null,null,null,null,null,null,null,null,null,null,null,"T52","IEEE Moderately/Very/Extremely Inverse time."]
[null,null,null,null,null,null,null,null,null,null,null,null,"T52","IEC Standard (SIT))/Very (VIT)/Long Time(LTI)/Extremely (EIT) Inverse Time."]
[null,null,null,null,null,null,null,null,null,null,null,null,"T52","IAC Inverse(I)/ Very Inverse (VI)/ Extremely Inverse (EI) time."]
[null,null,null,null,null,null,null,null,null,null,null,null,"T52","Standard(SIT)/Very(VIT)/Long Time(LTI)/Extremely(EIT) /Rapid (RI) Inverse time."]
[null,null,null,null,null,null,null,null,null,null,null,null,"T52","Ultra Inverse Time (UIT) – for better fuse co-ordination."]
[null,null,null,null,null,null,null,null,null,null,null,null,"T52"]
[null,null,null,null,null,null,null,null,null,null,null,null,"T52","Definite time (DT) with time delay settings from Instantaneous (no intentional time delay less than 50 ms) to 300 s.  Overload protection shall use true RMS current value (up to a minimum 13th harmonic).  Alternative overload setting groups will be selectable by logical conditions to adapt operating mode change.  Adjustment of the overload tripping curves will be possible to exactly fit the cable characteristics."]
[null,null,null,null,null,null,null,null,null,null,null,null,"T52"]
[null,null,null,null,null,null,null,null,null,null,null,null,"T52","Overcurrent setting shall be made by the direct input of actual primary current values."]
[null,null,null,null,null,null,null,null,null,null,null,null,"T52"]
[null,null,null,null,null,null,null,null,null,null,null,null,"T52","Phase overcurrent and ground fault protection shall have an adjustable timer hold (time delay reset) to allow recurring faults detection.  The protection shall also allow a current-dependent time reset to emulate e/m relays."]
[null,null,null,null,null,null,null,null,null,null,null,null,"T52"]
[null,null,null,null,null,null,null,null,null,null,null,null,"T52","Ground fault protection shall integrate a second harmonic restraint, which can be activated via software."]
[null,null,null,null,null,null,null,null,null,null,null,null,"T52"]
[null,null,null,null,null,null,null,null,null,null,null,null,"T52","The unit shall have built in firmware specifically and uniquely for zone-selective interlocking ANSI 68 (ZSI) protection via logic I/O and settings.  The ZSI must have a built in breaker failure scheme without the necessity of an additional 50BF element programming or wiring."]
[null,null,null,null,null,null,null,null,null,null,null,null,"T52"]
[null,null,null,null,null,null,null,null,null,null,null,null,"T52","The relay shall allow fast change in protection scheme: two groups of 50/51, 50N/51N, 67/67N settings shall be available with provision for shifting from one group of settings to the other by a digital input, UMI, and communications."]

{"sheet":"Spec80_Data","index":17,"n_rows":331,"n_cols":8,"rows_kept":331,"cut":false,"hidden":true,"merged":[]}
[null,"SERIES 80 ADVANCED PROTECTION AND CONTROL RELAY",null,"Protection",null,null,null,"Protection Alt"]
[]
[null,"The Protective relay should be compact - reduced depth (<8.5 inches) - and easy to install using removable pre-wired connectors.","S80","The Protection and Control Unit shall contain all the necessary protection functions for the specific application:",null,null,"S80","The Protection and Control Unit shall contain all the necessary protection functions for the specific application:"]
[null,null,null,"Substation/Feeder protection: (50/51) Three Phase overcurrent, (50N/51N) Ground fault (or neutral) with selectable second harmonic restraint, (50BF) Breaker failure, (46) Unbalance / negative sequence overcurrent, (49 RMS) thermal overload, (25) Synch-check, (27) Undervoltage (phase-to-phase or phase-to-neutral), (27D) Positive sequence undervoltage , (27R) remanent undervoltage, (59) Overvoltage (phase-to-phase or phase-to-neutral), (59N) Neutral voltage displacement, (47) Negative sequence overvoltage, (81H) Overfrequency, (81L) Underfrequency, and (79) Recloser (4 steps).",null,null,null,"Substation/Feeder protection: (50/51) Three Phase overcurrent, (50N/51N) Ground fault (or neutral) with selectable second harmonic restraint, (50BF) Breaker failure, (46) Unbalance / negative sequence overcurrent, (49 RMS) thermal overload, (25) Synch-check, (27) Undervoltage (phase-to-phase or phase-to-neutral), (27D) Positive sequence undervoltage , (27R) remanent undervoltage, (59) Overvoltage (phase-to-phase or phase-to-neutral), (59N) Neutral voltage displacement, (47) Negative sequence overvoltage, (81H) Overfrequency, (81L) Underfrequency, and (79) Recloser (4 steps)."]
["I/O","The Protective relay shall have at least five onboard logic outputs.  Additional 14 inputs and 6 outputs rated 24-48 VDC shall be mounted on the rear of the relay base unit. The relay must be field expandable capable of an additional 28 inputs and 12 additional outputs.",null,null,null,null,null,"Each overcurrent protection device shall have a wide range of time overcurrent protection curve settings, providing a choice of curve types:"]
["I/O","The Protective relay shall have at least five onboard logic outputs.  Additional 28 inputs and 12 outputs rated 24-48 VDC shall be mounted on the rear of the relay base unit. The relay must be field expandable capable of an additional 14 inputs and 6 additional outputs.",null,"Each overcurrent protection device shall have a wide range of time overcurrent protection curve settings, providing a choice of curve types:",null,null,null,"IEEE Moderately/Very/Extremely Inverse time."]
["I/O","The Protective relay shall have at least five onboard logic outputs.  Additional 42 inputs and 18 outputs rated 24-48 VDC shall be mounted on the rear of the relay base unit.",null,"IEEE Moderately/Very/Extremely Inverse time.",null,null,null,"IEC Standard (SIT))/Very (VIT)/Long Time(LTI)/Extremely (EIT) Inverse Time."]
["I/O","The Protective relay shall have at least five onboard logic outputs.  Additional 14 inputs and 6 outputs rated 220-250 VDC shall be mounted on the rear of the relay base unit. The relay must be field expandable capable of an additional 28 inputs and 12 additional outputs.",null,"IEC Standard (SIT))/Very (VIT)/Long Time(LTI)/Extremely (EIT) Inverse Time.",null,null,null,"IAC Inverse(I)/ Very Inverse (VI)/ Extremely Inverse (EI) time."]
["I/O","The Protective relay shall have at least five onboard logic outputs.  Additional 28 inputs and 12 outputs rated 220-250 VDC shall be mounted on the rear of the relay base unit. The relay must be field expandable capable of an additional 14 inputs and 6 additional outputs.",null,"IAC Inverse(I)/ Very Inverse (VI)/ Extremely Inverse (EI) time.",null,null,null,"Standard(SIT)/Very(VIT)/Long Time(LTI)/Extremely(EIT) /Rapid (RI) Inverse time."]
["I/O","The Protective relay shall have at least five onboard logic outputs.  Additional 42 inputs and 18 outputs rated 220-250 VDC shall be mounted on the rear of the relay base unit.",null,"Standard(SIT)/Very(VIT)/Long Time(LTI)/Extremely(EIT) /Rapid (RI) Inverse time.",null,null,null,"Ultra Inverse Time (UIT) – for better fuse co-ordination."]
["I/O","The Protective relay shall have at least five onboard logic outputs.  Additional 14 inputs and 6 outputs rated 110-125 VDC shall be mounted on the rear of the relay base unit. The relay must be field expandable capable of an additional 28 inputs and 12 additional outputs.",null,"Ultra Inverse Time (UIT) – for better fuse co-ordination."]
["I/O","The Protective relay shall have at least five onboard logic outputs.  Additional 28 inputs and 12 outputs rated 110-125 VDC shall be mounted on the rear of the relay base unit. The relay must be field expandable capable of an additional 14 inputs and 6 additional outputs.",null,null,null,null,null,"Definite time (DT) with time delay settings from Instantaneous (no intentional time delay less than 50 ms) to 300 s.  Overload protection shall use true RMS current value (up to a minimum 13th harmonic).  Alternative overload setting groups will be selectable by logical conditions to adapt operating mode change.  Adjustment of the overload tripping curves will be possible to exactly fit the cable characteristics."]
["I/O","The Protective relay shall have at least five onboard logic outputs.  Additional 42 inputs and 18 outputs rated 110-125 VDC shall be mounted on the rear of the relay base unit.",null,"Definite time (DT) with time delay settings from Instantaneous (no intentional time delay less than 50 ms) to 300 s.  Overload protection shall use true RMS current value (up to a minimum 13th harmonic).  Alternative overload setting groups will be selectable by logical conditions to adapt operating mode change.  Adjustment of the overload tripping curves will be possible to exactly fit the cable characteristics.",null,null,null,"Overcurrent setting shall be made by the direct input of actual primary current values."]
[null,null,null,null,null,null,null,"Phase overcurrent and ground fault protection shall have an adjustable timer hold (time delay reset) to allow recurring faults detection.  The protection shall also allow a current-dependent time reset to emulate e/m relays."]
["diag","Be triggered automatically on event, or manually via communications or from the Protective relay front panel.",null,"Overcurrent setting shall be made by the direct input of actual primary current values.",null,null,null,"Ground fault protection shall integrate a second harmonic restraint, which can be activated via software."]
["diag","Have configurable record storage of data from 17 records of at least 1 second each or 1 record of 9 seconds, 12 samples per cycle, with a selectable number of  pre-event cycles.",null,null,null,null,null,"The unit shall have built in firmware specifically and uniquely for zone-selective interlocking ANSI 68 (ZSI) protection via logic I/O and settings.  The ZSI must have a built in breaker failure scheme without the necessity of an additional 50BF element programming or wiring."]
["diag","Include on each record, as a minimum, the date, channel characteristics, 4 current channels (I1, I2, I3, I0), 3 voltage channels, and the change of status of the digital inputs and base digital outputs.",null,"Phase overcurrent and ground fault protection shall have an adjustable timer hold (time delay reset) to allow recurring faults detection.  The protection shall also allow a current-dependent time reset to emulate e/m relays.",null,null,null,"The relay shall allow fast change in protection scheme: two groups of 50/51, 50N/51N settings shall be available with provision for shifting from one group of settings to the other by a digital input, UMI, and communications."]
["diag","Be capable of recording a minimum of 18 seconds at 60 Hz."]
[null,null,null,"Ground fault protection shall integrate a second harmonic restraint, which can be activated via software.",null,null,"S82","The Protection and Control Unit shall contain all the necessary protection functions for the specific application:"]
["cont","Predefined control and monitoring functions shall be adapted by using a boolean editor including timers, counters.  ",null,null,null,null,null,"Substation/Feeder protection: (50/51) Three Phase overcurrent, (50N/51N) Ground fault (or neutral) with selectable second harmonic restraint, (50BF) Breaker failure, (46) Unbalance / negative sequence overcurrent, (49 RMS) thermal overload, (67) Directional overcurrent, (67N/67NC) Directional ground fault, (32P) Reverse real power, (25) Synch-check, (27) Undervoltage (phase-to-phase or phase-to-neutral), (27D) Positive sequence undervoltage , (27R) remanent undervoltage, (59) Overvoltage (phase-to-phase or phase-to-neutral), (59N) Neutral voltage displacement, (47) Negative sequence overvoltage, (81H) Overfrequency, (81L) Underfrequency, and (79) Recloser (4 steps)."]
["cont",null,null,"The unit shall have built in firmware specifically and uniquely for zone-selective interlocking ANSI 68 (ZSI) protection via logic I/O and settings.  The ZSI must have a built in breaker failure scheme without the necessity of an additional 50BF element programming or wiring.",null,null,null,"Each overcurrent protection device shall have a wide range of time overcurrent protection curve settings, providing a choice of curve types:"]
["cont","The relay should have the means of being programmed with a ladder logic software program which shall be used to program control and monitoring functions.",null,null,null,null,null,"IEEE Moderately/Very/Extremely Inverse time."]
[null,null,null,"The relay shall allow fast change in protection scheme: two groups of 50/51, 50N/51N settings shall be available with provision for shifting from one group of settings to the other by a digital input, UMI, and communications.",null,null,null,"IEC Standard (SIT))/Very (VIT)/Long Time(LTI)/Extremely (EIT) Inverse Time."]
[null,null,null,null,null,null,null,"IAC Inverse(I)/ Very Inverse (VI)/ Extremely Inverse (EI) time."]
["cont_Alt","Predefined control and monitoring functions shall be adapted by using a boolean editor including timers, counters.  ","S82","The Protection and Control Unit shall contain all the necessary protection functions for the specific application:",null,null,null,"Standard(SIT)/Very(VIT)/Long Time(LTI)/Extremely(EIT) /Rapid (RI) Inverse time."]
["Cont_Alt","The relay should have the means of being programmed with a ladder logic software program which shall be used to program control and monitoring functions.",null,"Substation/Feeder protection: (50/51) Three Phase overcurrent, (50N/51N) Ground fault (or neutral) with selectable second harmonic restraint, (50BF) Breaker failure, (46) Unbalance / negative sequence overcurrent, (49 RMS) thermal overload, (67) Directional overcurrent, (67N/67NC) Directional ground fault, (32P) Reverse real power, (25) Synch-check, (27) Undervoltage (phase-to-phase or phase-to-neutral), (27D) Positive sequence undervoltage , (27R) remanent undervoltage, (59) Overvoltage (phase-to-phase or phase-to-neutral), (59N) Neutral voltage displacement, (47) Negative sequence overvoltage, (81H) Overfrequency, (81L) Underfrequency, and (79) Recloser (4 steps).",null,null,null,"Ultra Inverse Time (UIT) – for better fuse co-ordination."]
[]
[null,null,null,"Each overcurrent protection device shall have a wide range of time overcurrent protection curve settings, providing a choice of curve types:",null,null,null,"Definite time (DT) with time delay settings from Instantaneous (no intentional time delay less than 50 ms) to 300 s.  Overload protection shall use true RMS current value (up to a minimum 13th harmonic).  Alternative overload setting groups will be selectable by logical conditions to adapt operating mode change.  Adjustment of the overload tripping curves will be possible to exactly fit the cable characteristics."]
[null,null,null,"IEEE Moderately/Very/Extremely Inverse time.",null,null,null,"Overcurrent setting shall be made by the direct input of actual primary current values."]
[null,null,null,"IEC Standard (SIT))/Very (VIT)/Long Time(LTI)/Extremely (EIT) Inverse Time.",null,null,null,"Phase overcurrent and ground fault protection shall have an adjustable timer hold (time delay reset) to allow recurring faults detection.  The protection shall also allow a current-dependent time reset to emulate e/m relays."]
[null,null,null,"IAC Inverse(I)/ Very Inverse (VI)/ Extremely Inverse (EI) time.",null,null,null,"Ground fault protection shall integrate a second harmonic restraint, which can be activated via software."]
[null,null,null,"Standard(SIT)/Very(VIT)/Long Time(LTI)/Extremely(EIT) /Rapid (RI) Inverse time.",null,null,null,"The unit shall have built in firmware specifically and uniquely for zone-selective interlocking ANSI 68 (ZSI) protection via logic I/O and settings.  The ZSI must have a built in breaker failure scheme without the necessity of an additional 50BF element programming or wiring."]
[null,null,null,"Ultra Inverse Time (UIT) – for better fuse co-ordination.",null,null,null,"The relay shall allow fast change in protection scheme: two groups of 50/51, 50N/51N and 67/67N settings shall be available with provision for shifting from one group of settings to the other by a digital input, UMI, and communications."]
[]
[null,null,null,"Definite time (DT) with time delay settings from Instantaneous (no intentional time delay less than 50 ms) to 300 s.  Overload protection shall use true RMS current value (up to a minimum 13th harmonic).  Alternative overload setting groups will be selectable by logical conditions to adapt operating mode change.  Adjustment of the overload tripping curves will be possible to exactly fit the cable characteristics.",null,null,"S84","The Protection and Control Unit shall contain all the necessary protection functions for the specific application:"]
[null,null,null,null,null,null,null,"Substation/Feeder protection: (50/51) Three Phase overcurrent, (50N/51N) Ground fault (or neutral) with selectable second harmonic restraint, (50BF) Breaker failure, (46) Unbalance / negative sequence overcurrent, (49 RMS) thermal overload, (67) Directional overcurrent, (67N/67NC) Directional ground fault, (32P) Reverse real power, (37P) Directional active underpower, (25) Synch-check, (27) Undervoltage (phase-to-phase or phase-to-neutral), (27D) Positive sequence undervoltage , (27R) remanent undervoltage, (59) Overvoltage (phase-to-phase or phase-to-neutral), (59N) Neutral voltage displacement, (47) Negative sequence overvoltage, (81H) Overfrequency, (81L) Underfrequency, (81R) Rate of change of frequency (df/dt), and (79) Recloser (4 steps)."]
[null,null,null,"Overcurrent setting shall be made by the direct input of actual primary current values.",null,null,null,"Each overcurrent protection device shall have a wide range of time overcurrent protection curve settings, providing a choice of curve types:"]
[null,null,null,null,null,null,null,"IEEE Moderately/Very/Extremely Inverse time."]
[null,null,null,"Phase overcurrent and ground fault protection shall have an adjustable timer hold (time delay reset) to allow recurring faults detection.  The protection shall also allow a current-dependent time reset to emulate e/m relays.",null,null,null,"IEC Standard (SIT))/Very (VIT)/Long Time(LTI)/Extremely (EIT) Inverse Time."]
[null,null,null,null,null,null,null,"IAC Inverse(I)/ Very Inverse (VI)/ Extremely Inverse (EI) time."]
[null,null,null,"Ground fault protection shall integrate a second harmonic restraint, which can be activated via software.",null,null,null,"Standard(SIT)/Very(VIT)/Long Time(LTI)/Extremely(EIT) /Rapid (RI) Inverse time."]
[null,null,null,null,null,null,null,"Ultra Inverse Time (UIT) – for better fuse co-ordination."]
[null,null,null,"The unit shall have built in firmware specifically and uniquely for zone-selective interlocking ANSI 68 (ZSI) protection via logic I/O and settings.  The ZSI must have a built in breaker failure scheme without the necessity of an additional 50BF element programming or wiring."]
[null,null,null,null,null,null,null,"Definite time (DT) with time delay settings from Instantaneous (no intentional time delay less than 50 ms) to 300 s.  Overload protection shall use true RMS current value (up to a minimum 13th harmonic).  Alternative overload setting groups will be selectable by logical conditions to adapt operating mode change.  Adjustment of the overload tripping curves will be possible to exactly fit the cable characteristics."]
[null,null,null,"The relay shall allow fast change in protection scheme: two groups of 50/51, 50N/51N and 67/67N settings shall be available with provision for shifting from one group of settings to the other by a digital input, UMI, and communications.",null,null,null,"Overcurrent setting shall be made by the direct input of actual primary current values."]
[null,null,null,null,null,null,null,"Phase overcurrent and ground fault protection shall have an adjustable timer hold (time delay reset) to allow recurring faults detection.  The protection shall also allow a current-dependent time reset to emulate e/m relays."]
[null,null,"S84","The Protection and Control Unit shall contain all the necessary protection functions for the specific application:",null,null,null,"Ground fault protection shall integrate a second harmonic restraint, which can be activated via software."]
[null,null,null,"Substation/Feeder protection: (50/51) Three Phase overcurrent, (50N/51N) Ground fault (or neutral) with selectable second harmonic restraint, (50BF) Breaker failure, (46) Unbalance / negative sequence overcurrent, (49 RMS) thermal overload, (67) Directional overcurrent, (67N/67NC) Directional ground fault, (32P) Reverse real power, (37P) Directional active underpower, (25) Synch-check, (27) Undervoltage (phase-to-phase or phase-to-neutral), (27D) Positive sequence undervoltage , (27R) remanent undervoltage, (59) Overvoltage (phase-to-phase or phase-to-neutral), (59N) Neutral voltage displacement, (47) Negative sequence overvoltage, (81H) Overfrequency, (81L) Underfrequency, (81R) Rate of change of frequency (df/dt), and (79) Recloser (4 steps).",null,null,null,"The unit shall have built in firmware specifically and uniquely for zone-selective interlocking ANSI 68 (ZSI) protection via logic I/O and settings.  The ZSI must have a built in breaker failure scheme without the necessity of an additional 50BF element programming or wiring."]
[null,null,null,null,null,null,null,"The relay shall allow fast change in protection scheme: two groups of 50/51, 50N/51N and 67/67N settings shall be available with provision for shifting from one group of settings to the other by a digital input, UMI, and communications."]
[null,null,null,"Each overcurrent protection device shall have a wide range of time overcurrent protection curve settings, providing a choice of curve types:"]
[null,null,null,"IEEE Moderately/Very/Extremely Inverse time.",null,null,"B80","The Protection and Control Unit shall contain all the necessary protection functions for the specific application:"]
[null,null,null,"IEC Standard (SIT))/Very (VIT)/Long Time(LTI)/Extremely (EIT) Inverse Time.",null,null,null,"Bus protection: Three Phase PT’s on one side of a circuit breaker and a single phase PT on the other side.  (50/51) Three Phase overcurrent, (50N/51N) Ground fault (or neutral) with selectable second harmonic restraint, (50BF) Breaker failure, (46) Unbalance / negative sequence overcurrent, (25) Synch-check, (27) Undervoltage (phase-to-phase or phase-to-neutral), (27D) Positive sequence undervoltage , (27R) remanent undervoltage, (59) Overvoltage (phase-to-phase or phase-to-neutral), (59N) Neutral voltage displacement, (47) Negative sequence overvoltage, (81H) Overfrequency, (81L) Underfrequency."]
[null,null,null,"IAC Inverse(I)/ Very Inverse (VI)/ Extremely Inverse (EI) time.",null,null,null,"Each overcurrent protection device shall have a wide range of time overcurrent protection curve settings, providing a choice of curve types:"]
[null,null,null,"Standard(SIT)/Very(VIT)/Long Time(LTI)/Extremely(EIT) /Rapid (RI) Inverse time.",null,null,null,"IEEE Moderately/Very/Extremely Inverse time."]
[null,null,null,"Ultra Inverse Time (UIT) – for better fuse co-ordination.",null,null,null,"IEC Standard (SIT))/Very (VIT)/Long Time(LTI)/Extremely (EIT) Inverse Time."]
[null,null,null,null,null,null,null,"IAC Inverse(I)/ Very Inverse (VI)/ Extremely Inverse (EI) time."]
[null,null,null,"Definite time (DT) with time delay settings from Instantaneous (no intentional time delay less than 50 ms) to 300 s.  Overload protection shall use true RMS current value (up to a minimum 13th harmonic).  Alternative overload setting groups will be selectable by logical conditions to adapt operating mode change.  Adjustment of the overload tripping curves will be possible to exactly fit the cable characteristics.",null,null,null,"Standard(SIT)/Very(VIT)/Long Time(LTI)/Extremely(EIT) /Rapid (RI) Inverse time."]
[null,null,null,null,null,null,null,"Ultra Inverse Time (UIT) – for better fuse co-ordination."]
[null,null,null,"Overcurrent setting shall be made by the direct input of actual primary current values."]
[null,null,null,null,null,null,null,"Definite time (DT) with time delay settings from Instantaneous (no intentional time delay less than 50 ms) to 300 s.  Overload protection shall use true RMS current value (up to a minimum 13th harmonic).  Alternative overload setting groups will be selectable by logical conditions to adapt operating mode change.  Adjustment of the overload tripping curves will be possible to exactly fit the cable characteristics."]
[null,null,null,"Phase overcurrent and ground fault protection shall have an adjustable timer hold (time delay reset) to allow recurring faults detection.  The protection shall also allow a current-dependent time reset to emulate e/m relays.",null,null,null,"Overcurrent setting shall be made by the direct input of actual primary current values."]
[null,null,null,null,null,null,null,"Phase overcurrent and ground fault protection shall have an adjustable timer hold (time delay reset) to allow recurring faults detection.  The protection shall also allow a current-dependent time reset to emulate e/m relays."]
[null,null,null,"Ground fault protection shall integrate a second harmonic restraint, which can be activated via software.",null,null,null,"Ground fault protection shall integrate a second harmonic restraint, which can be activated via software."]
[null,null,null,null,null,null,null,"The unit shall have built in firmware specifically and uniquely for zone-selective interlocking ANSI 68 (ZSI) protection via logic I/O and settings.  The ZSI must have a built in breaker failure scheme without the necessity of an additional 50BF element programming or wiring."]
[null,null,null,"The unit shall have built in firmware specifically and uniquely for zone-selective interlocking ANSI 68 (ZSI) protection via logic I/O and settings.  The ZSI must have a built in breaker failure scheme without the necessity of an additional 50BF element programming or wiring.",null,null,null,"The relay shall allow fast change in protection scheme: two groups of 50/51, and 50N/51N settings shall be available with provision for shifting from one group of settings to the other by a digital input, UMI, and communications."]
[]
[null,null,null,"The relay shall allow fast change in protection scheme: two groups of 50/51, 50N/51N and 67/67N settings shall be available with provision for shifting from one group of settings to the other by a digital input, UMI, and communications.",null,null,"B83","The Protection and Control Unit shall contain all the necessary protection functions for the specific application:"]
[null,null,null,null,null,null,null,"Bus protection: Three Phase PT’s on either side of the circuit breaker.  (50/51) Three Phase overcurrent, (50N/51N) Ground fault (or neutral) with selectable second harmonic restraint, (50BF) Breaker failure, (46) Unbalance / negative sequence overcurrent, (25) Synch-check, (27) Undervoltage (phase-to-phase or phase-to-neutral), (27D) Positive sequence undervoltage , (27R) remanent undervoltage, (59) Overvoltage (phase-to-phase or phase-to-neutral), (59N) Neutral voltage displacement, (47) Negative sequence overvoltage, (81H) Overfrequency, (81L) Underfrequency."]
[null,null,"B80","The Protection and Control Unit shall contain all the necessary protection functions for the specific application:",null,null,null,"Each overcurrent protection device shall have a wide range of time overcurrent protection curve settings, providing a choice of curve types:"]
[null,null,null,"Bus protection: Three Phase PT’s on one side of a circuit breaker and a single phase PT on the other side.  (50/51) Three Phase overcurrent, (50N/51N) Ground fault (or neutral) with selectable second harmonic restraint, (50BF) Breaker failure, (46) Unbalance / negative sequence overcurrent, (25) Synch-check, (27) Undervoltage (phase-to-phase or phase-to-neutral), (27D) Positive sequence undervoltage , (27R) remanent undervoltage, (59) Overvoltage (phase-to-phase or phase-to-neutral), (59N) Neutral voltage displacement, (47) Negative sequence overvoltage, (81H) Overfrequency, (81L) Underfrequency.",null,null,null,"IEEE Moderately/Very/Extremely Inverse time."]
[null,null,null,null,null,null,null,"IEC Standard (SIT))/Very (VIT)/Long Time(LTI)/Extremely (EIT) Inverse Time."]
[null,null,null,"Each overcurrent protection device shall have a wide range of time overcurrent protection curve settings, providing a choice of curve types:",null,null,null,"IAC Inverse(I)/ Very Inverse (VI)/ Extremely Inverse (EI) time."]
[null,null,null,"IEEE Moderately/Very/Extremely Inverse time.",null,null,null,"Standard(SIT)/Very(VIT)/Long Time(LTI)/Extremely(EIT) /Rapid (RI) Inverse time."]
[null,null,null,"IEC Standard (SIT))/Very (VIT)/Long Time(LTI)/Extremely (EIT) Inverse Time.",null,null,null,"Ultra Inverse Time (UIT) – for better fuse co-ordination."]
[null,null,null,"IAC Inverse(I)/ Very Inverse (VI)/ Extremely Inverse (EI) time."]
[null,null,null,"Standard(SIT)/Very(VIT)/Long Time(LTI)/Extremely(EIT) /Rapid (RI) Inverse time.",null,null,null,"Definite time (DT) with time delay settings from Instantaneous (no intentional time delay less than 50 ms) to 300 s.  Overload protection shall use true RMS current value (up to a minimum 13th harmonic).  Alternative overload setting groups will be selectable by logical conditions to adapt operating mode change.  Adjustment of the overload tripping curves will be possible to exactly fit the cable characteristics."]
[null,null,null,"Ultra Inverse Time (UIT) – for better fuse co-ordination.",null,null,null,"Overcurrent setting shall be made by the direct input of actual primary current values."]
[null,null,null,null,null,null,null,"Phase overcurrent and ground fault protection shall have an adjustable timer hold (time delay reset) to allow recurring faults detection.  The protection shall also allow a current-dependent time reset to emulate e/m relays."]
[null,null,null,"Definite time (DT) with time delay settings from Instantaneous (no intentional time delay less than 50 ms) to 300 s.  Overload protection shall use true RMS current value (up to a minimum 13th harmonic).  Alternative overload setting groups will be selectable by logical conditions to adapt operating mode change.  Adjustment of the overload tripping curves will be possible to exactly fit the cable characteristics.",null,null,null,"Ground fault protection shall integrate a second harmonic restraint, which can be activated via software."]
[null,null,null,null,null,null,null,"The unit shall have built in firmware specifically and uniquely for zone-selective interlocking ANSI 68 (ZSI) protection via logic I/O and settings.  The ZSI must have a built in breaker failure scheme without the necessity of an additional 50BF element programming or wiring."]
[null,null,null,"Overcurrent setting shall be made by the direct input of actual primary current values.",null,null,null,"The relay shall allow fast change in protection scheme: two groups of 50/51, and 50N/51N settings shall be available with provision for shifting from one group of settings to the other by a digital input, UMI, and communications."]
[]
[null,null,null,"Phase overcurrent and ground fault protection shall have an adjustable timer hold (time delay reset) to allow recurring faults detection.  The protection shall also allow a current-dependent time reset to emulate e/m relays.",null,null,"M81","The Protection and Control Unit shall contain all the necessary protection functions for the specific application:"]
[null,null,null,null,null,null,null,"Motor protection: (50/51) Three Phase overcurrent, (50N/51N) Ground fault (or neutral) with selectable second harmonic restraint, (50BF) Breaker failure, (46) Unbalance / negative sequence overcurrent, (67N/67NC) Directional ground fault, (49 RMS) thermal overload, (27) Undervoltage (phase-to-phase or phase-to-neutral), (59) Overvoltage (phase-to-phase or phase-to-neutral), (59N) Neutral voltage displacement, (47) Negative sequence overvoltage, (81H) Overfrequency, (81L) Underfrequency, (32P) Reverse real power, (32Q/40) Reverse reactive power/ Loss-of-excitation, (40) Field Loss (underimpedance), (27D) Positive Sequence Undervoltage, (27R) Remanent Undervoltage, (37) Phase undercurrent, (48/51LR) Excessive starting time/ locked rotor, (66) Excessive Starts per hour, (12/14) Over/Under Speed, (78) Pole Slip, and optional (38/49)Temperature (RTD) monitoring."]
[null,null,null,"Ground fault protection shall integrate a second harmonic restraint, which can be activated via software.",null,null,null,"Each overcurrent protection device shall have a wide range of time overcurrent protection curve settings, providing a choice of curve types:"]
[null,null,null,null,null,null,null,"IEEE Moderately/Very/Extremely Inverse time."]
[null,null,null,"The unit shall have built in firmware specifically and uniquely for zone-selective interlocking ANSI 68 (ZSI) protection via logic I/O and settings.  The ZSI must have a built in breaker failure scheme without the necessity of an additional 50BF element programming or wiring.",null,null,null,"IEC Standard (SIT))/Very (VIT)/Long Time(LTI)/Extremely (EIT) Inverse Time."]
[null,null,null,null,null,null,null,"IAC Inverse(I)/ Very Inverse (VI)/ Extremely Inverse (EI) time."]
[null,null,null,"The relay shall allow fast change in protection scheme: two groups of 50/51, and 50N/51N settings shall be available with provision for shifting from one group of settings to the other by a digital input, UMI, and communications.",null,null,null,"Standard(SIT)/Very(VIT)/Long Time(LTI)/Extremely(EIT) /Rapid (RI) Inverse time."]
[null,null,null,null,null,null,null,"Ultra Inverse Time (UIT) – for better fuse co-ordination."]
[null,null,"B83","The Protection and Control Unit shall contain all the necessary protection functions for the specific application:"]
[null,null,null,"Bus protection: Three Phase PT’s on either side of the circuit breaker.  (50/51) Three Phase overcurrent, (50N/51N) Ground fault (or neutral) with selectable second harmonic restraint, (50BF) Breaker failure, (46) Unbalance / negative sequence overcurrent, (25) Synch-check, (27) Undervoltage (phase-to-phase or phase-to-neutral), (27D) Positive sequence undervoltage , (27R) remanent undervoltage, (59) Overvoltage (phase-to-phase or phase-to-neutral), (59N) Neutral voltage displacement, (47) Negative sequence overvoltage, (81H) Overfrequency, (81L) Underfrequency.",null,null,null,"Definite time (DT) with time delay settings from Instantaneous (no intentional time delay less than 50 ms) to 300 s.  Overload protection shall use true RMS current value (up to a minimum 13th harmonic).  Alternative overload setting groups will be selectable by logical conditions to adapt operating mode change.  Adjustment of the overload tripping curves will be possible to exactly fit the cable characteristics."]
[null,null,null,null,null,null,null,"Overcurrent setting shall be made by the direct input of actual primary current values."]
[null,null,null,"Each overcurrent protection device shall have a wide range of time overcurrent protection curve settings, providing a choice of curve types:",null,null,null,"Phase overcurrent and ground fault protection shall have an adjustable timer hold (time delay reset) to allow recurring faults detection.  The protection shall also allow a current-dependent time reset to emulate e/m relays."]
[null,null,null,"IEEE Moderately/Very/Extremely Inverse time.",null,null,null,"Ground fault protection shall integrate a second harmonic restraint, which can be activated via software."]
[null,null,null,"IEC Standard (SIT))/Very (VIT)/Long Time(LTI)/Extremely (EIT) Inverse Time.",null,null,null,"The unit shall have built in firmware specifically and uniquely for zone-selective interlocking ANSI 68 (ZSI) protection via logic I/O and settings.  The ZSI must have a built in breaker failure scheme without the necessity of an additional 50BF element programming or wiring."]
[null,null,null,"IAC Inverse(I)/ Very Inverse (VI)/ Extremely Inverse (EI) time.",null,null,null,"The relay shall allow fast change in protection scheme: two groups of 50/51, and 50N/51N settings shall be available with provision for shifting from one group of settings to the other by a digital input, UMI, and communications."]
[null,null,null,"Standard(SIT)/Very(VIT)/Long Time(LTI)/Extremely(EIT) /Rapid (RI) Inverse time."]
[null,null,null,"Ultra Inverse Time (UIT) – for better fuse co-ordination.",null,null,"M87","The Protection and Control Unit shall contain all the necessary protection functions for the specific application:"]
[null,null,null,null,null,null,null,"Motor protection: (50/51) Three Phase overcurrent, (50N/51N) Ground fault (or neutral) with selectable second harmonic restraint, (50BF) Breaker failure, (46) Unbalance / negative sequence overcurrent, (67N/67NC) Directional ground fault, (49 RMS) thermal overload, (27) Undervoltage (phase-to-phase or phase-to-neutral), (59) Overvoltage (phase-to-phase or phase-to-neutral), (59N) Neutral voltage displacement, (47) Negative sequence overvoltage, (81H) Overfrequency, (81L) Underfrequency, (32P) Reverse real power, (32Q/40) Reverse reactive power/ Loss-of-excitation, (40) Field Loss (underimpedance), (27D) Positive Sequence Undervoltage, (27R) Remanent Undervoltage, (37) Phase undercurrent, (48/51LR) Excessive starting time/ locked rotor, (66) Excessive Starts per hour, (12/14) Over/Under Speed, (78) Pole Slip, (87M) current differential and optional (38/49)Temperature (RTD) monitoring."]
[null,null,null,"Definite time (DT) with time delay settings from Instantaneous (no intentional time delay less than 50 ms) to 300 s.  Overload protection shall use true RMS current value (up to a minimum 13th harmonic).  Alternative overload setting groups will be selectable by logical conditions to adapt operating mode change.  Adjustment of the overload tripping curves will be possible to exactly fit the cable characteristics.",null,null,null,"Each overcurrent protection device shall have a wide range of time overcurrent protection curve settings, providing a choice of curve types:"]
[null,null,null,null,null,null,null,"IEEE Moderately/Very/Extremely Inverse time."]
[null,null,null,"Overcurrent setting shall be made by the direct input of actual primary current values.",null,null,null,"IEC Standard (SIT))/Very (VIT)/Long Time(LTI)/Extremely (EIT) Inverse Time."]
[null,null,null,null,null,null,null,"IAC Inverse(I)/ Very Inverse (VI)/ Extremely Inverse (EI) time."]
[null,null,null,"Phase overcurrent and ground fault protection shall have an adjustable timer hold (time delay reset) to allow recurring faults detection.  The protection shall also allow a current-dependent time reset to emulate e/m relays.",null,null,null,"Standard(SIT)/Very(VIT)/Long Time(LTI)/Extremely(EIT) /Rapid (RI) Inverse time."]
[null,null,null,null,null,null,null,"Ultra Inverse Time (UIT) – for better fuse co-ordination."]
[null,null,null,"Ground fault protection shall integrate a second harmonic restraint, which can be activated via software."]
[null,null,null,null,null,null,null,"Definite time (DT) with time delay settings from Instantaneous (no intentional time delay less than 50 ms) to 300 s.  Overload protection shall use true RMS current value (up to a minimum 13th harmonic).  Alternative overload setting groups will be selectable by logical conditions to adapt operating mode change.  Adjustment of the overload tripping curves will be possible to exactly fit the cable characteristics."]
[null,null,null,"The unit shall have built in firmware specifically and uniquely for zone-selective interlocking ANSI 68 (ZSI) protection via logic I/O and settings.  The ZSI must have a built in breaker failure scheme without the necessity of an additional 50BF element programming or wiring.",null,null,null,"Overcurrent setting shall be made by the direct input of actual primary current values."]
[null,null,null,null,null,null,null,"Phase overcurrent and ground fault protection shall have an adjustable timer hold (time delay reset) to allow recurring faults detection.  The protection shall also allow a current-dependent time reset to emulate e/m relays."]
[null,null,null,"The relay shall allow fast change in protection scheme: two groups of 50/51, and 50N/51N settings shall be available with provision for shifting from one group of settings to the other by a digital input, UMI, and communications.",null,null,null,"Ground fault protection shall integrate a second harmonic restraint, which can be activated via software."]
[null,null,null,null,null,null,null,"The unit shall have built in firmware specifically and uniquely for zone-selective interlocking ANSI 68 (ZSI) protection via logic I/O and settings.  The ZSI must have a built in breaker failure scheme without the necessity of an additional 50BF element programming or wiring."]
[null,null,"M81","The Protection and Control Unit shall contain all the necessary protection functions for the specific application:",null,null,null,"The relay shall allow fast change in protection scheme: two groups of 50/51, and 50N/51N settings shall be available with provision for shifting from one group of settings to the other by a digital input, UMI, and communications."]
[null,null,null,"Motor protection: (50/51) Three Phase overcurrent, (50N/51N) Ground fault (or neutral) with selectable second harmonic restraint, (50BF) Breaker failure, (46) Unbalance / negative sequence overcurrent, (67N/67NC) Directional ground fault, (49 RMS) thermal overload, (27) Undervoltage (phase-to-phase or phase-to-neutral), (59) Overvoltage (phase-to-phase or phase-to-neutral), (59N) Neutral voltage displacement, (47) Negative sequence overvoltage, (81H) Overfrequency, (81L) Underfrequency, (32P) Reverse real power, (32Q/40) Reverse reactive power/ Loss-of-excitation, (40) Field Loss (underimpedance), (27D) Positive Sequence Undervoltage, (27R) Remanent Undervoltage, (37) Phase undercurrent, (48/51LR) Excessive starting time/ locked rotor, (66) Excessive Starts per hour, (12/14) Over/Under Speed, (78) Pole Slip, and optional (38/49)Temperature (RTD) monitoring."]
[null,null,null,null,null,null,"M88","The Protection and Control Unit shall contain all the necessary protection functions for the specific application:"]
[null,null,null,"Each overcurrent protection device shall have a wide range of time overcurrent protection curve settings, providing a choice of curve types:",null,null,null,"Motor protection: (50/51) Three Phase overcurrent, (50N/51N) Ground fault (or neutral) with selectable second harmonic restraint, (50BF) Breaker failure, (46) Unbalance / negative sequence overcurrent, (67N/67NC) Directional ground fault, (49 RMS) thermal overload, (27) Undervoltage (phase-to-phase or phase-to-neutral), (59) Overvoltage (phase-to-phase or phase-to-neutral), (59N) Neutral voltage displacement, (47) Negative sequence overvoltage, (81H) Overfrequency, (81L) Underfrequency, (32P) Reverse real power, (32Q/40) Reverse reactive power/ Loss-of-excitation, (40) Field Loss (underimpedance), (27D) Positive Sequence Undervoltage, (27R) Remanent Undervoltage, (37) Phase undercurrent, (48/51LR) Excessive starting time/ locked rotor, (66) Excessive Starts per hour, (12/14) Over/Under Speed, (78) Pole Slip, (87M and T combined) current differential and optional (38/49)Temperature (RTD) monitoring."]
[null,null,null,"IEEE Moderately/Very/Extremely Inverse time.",null,null,null,"Each overcurrent protection device shall have a wide range of time overcurrent protection curve settings, providing a choice of curve types:"]
[null,null,null,"IEC Standard (SIT))/Very (VIT)/Long Time(LTI)/Extremely (EIT) Inverse Time.",null,null,null,"IEEE Moderately/Very/Extremely Inverse time."]
[null,null,null,"IAC Inverse(I)/ Very Inverse (VI)/ Extremely Inverse (EI) time.",null,null,null,"IEC Standard (SIT))/Very (VIT)/Long Time(LTI)/Extremely (EIT) Inverse Time."]
[null,null,null,"Standard(SIT)/Very(VIT)/Long Time(LTI)/Extremely(EIT) /Rapid (RI) Inverse time.",null,null,null,"IAC Inverse(I)/ Very Inverse (VI)/ Extremely Inverse (EI) time."]
[null,null,null,"Ultra Inverse Time (UIT) – for better fuse co-ordination.",null,null,null,"Standard(SIT)/Very(VIT)/Long Time(LTI)/Extremely(EIT) /Rapid (RI) Inverse time."]
[null,null,null,null,null,null,null,"Ultra Inverse Time (UIT) – for better fuse co-ordination."]
[null,null,null,"Definite time (DT) with time delay settings from Instantaneous (no intentional time delay less than 50 ms) to 300 s.  Overload protection shall use true RMS current value (up to a minimum 13th harmonic).  Alternative overload setting groups will be selectable by logical conditions to adapt operating mode change.  Adjustment of the overload tripping curves will be possible to exactly fit the cable characteristics."]
[null,null,null,null,null,null,null,"Definite time (DT) with time delay settings from Instantaneous (no intentional time delay less than 50 ms) to 300 s.  Overload protection shall use true RMS current value (up to a minimum 13th harmonic).  Alternative overload setting groups will be selectable by logical conditions to adapt operating mode change.  Adjustment of the overload tripping curves will be possible to exactly fit the cable characteristics."]
[null,null,null,"Overcurrent setting shall be made by the direct input of actual primary current values.",null,null,null,"Overcurrent setting shall be made by the direct input of actual primary current values."]
[null,null,null,null,null,null,null,"Phase overcurrent and ground fault protection shall have an adjustable timer hold (time delay reset) to allow recurring faults detection.  The protection shall also allow a current-dependent time reset to emulate e/m relays."]
[null,null,null,"Phase overcurrent and ground fault protection shall have an adjustable timer hold (time delay reset) to allow recurring faults detection.  The protection shall also allow a current-dependent time reset to emulate e/m relays.",null,null,null,"Ground fault protection shall integrate a second harmonic restraint, which can be activated via software."]
[null,null,null,null,null,null,null,"The unit shall have built in firmware specifically and uniquely for zone-selective interlocking ANSI 68 (ZSI) protection via logic I/O and settings.  The ZSI must have a built in breaker failure scheme without the necessity of an additional 50BF element programming or wiring."]
[null,null,null,"Ground fault protection shall integrate a second harmonic restraint, which can be activated via software.",null,null,null,"The relay shall allow fast change in protection scheme: two groups of 50/51, and 50N/51N settings shall be available with provision for shifting from one group of settings to the other by a digital input, UMI, and communications."]
[]
[null,null,null,"The unit shall have built in firmware specifically and uniquely for zone-selective interlocking ANSI 68 (ZSI) protection via logic I/O and settings.  The ZSI must have a built in breaker failure scheme without the necessity of an additional 50BF element programming or wiring.",null,null,"G82","The Protection and Control Unit shall contain all the necessary protection functions for the specific application:"]
[null,null,null,null,null,null,null,"Generator protection: (50/51) Three Phase overcurrent, (50N/51N) Ground fault (or neutral) with selectable second harmonic restraint, (50BF) Breaker failure, (46) Unbalance / negative sequence overcurrent, (67) Directional overcurrent, (67N/67NC) Directional ground fault, (49 RMS) thermal overload, (40) Field Loss (underimpedance) , (24) Volts/Hertz, (25) Synch-check, (27) Undervoltage (phase-to-phase or phase-to-neutral), (59) Overvoltage (phase-to-phase or phase-to-neutral), (59N) Neutral voltage displacement, (27D) Positive sequence undervoltage , (27R) remanent undervoltage, (47) Negative sequence overvoltage, (81H) Overfrequency, (81L) Underfrequency, (32P) Reverse real power, (32Q/40) Reverse reactive power/ Loss-of-excitation, (37P) Directional Active Underpower, (21) Backup underimpedance, (50V/51V) Voltage-restrained Overcurrent, (12/14) Over/Under Speed, (50/27) Inadvertent energization, (64G /27TN )100% stator ground fault, (78) Pole Slip, (64 REF) restricted ground fault, and optional (38/49)Temperature (RTD) monitoring."]
[null,null,null,"The relay shall allow fast change in protection scheme: two groups of 50/51, and 50N/51N settings shall be available with provision for shifting from one group of settings to the other by a digital input, UMI, and communications.",null,null,null,"Each overcurrent protection device shall have a wide range of time overcurrent protection curve settings, providing a choice of curve types:"]
[null,null,null,null,null,null,null,"IEEE Moderately/Very/Extremely Inverse time."]
[null,null,"M87","The Protection and Control Unit shall contain all the necessary protection functions for the specific application:",null,null,null,"IEC Standard (SIT))/Very (VIT)/Long Time(LTI)/Extremely (EIT) Inverse Time."]
[null,null,null,"Motor protection: (50/51) Three Phase overcurrent, (50N/51N) Ground fault (or neutral) with selectable second harmonic restraint, (50BF) Breaker failure, (46) Unbalance / negative sequence overcurrent, (67N/67NC) Directional ground fault, (49 RMS) thermal overload, (27) Undervoltage (phase-to-phase or phase-to-neutral), (59) Overvoltage (phase-to-phase or phase-to-neutral), (59N) Neutral voltage displacement, (47) Negative sequence overvoltage, (81H) Overfrequency, (81L) Underfrequency, (32P) Reverse real power, (32Q/40) Reverse reactive power/ Loss-of-excitation, (40) Field Loss (underimpedance), (27D) Positive Sequence Undervoltage, (27R) Remanent Undervoltage, (37) Phase undercurrent, (48/51LR) Excessive starting time/ locked rotor, (66) Excessive Starts per hour, (12/14) Over/Under Speed, (78) Pole Slip, (87M) current differential and optional (38/49)Temperature (RTD) monitoring.",null,null,null,"IAC Inverse(I)/ Very Inverse (VI)/ Extremely Inverse (EI) time."]
[null,null,null,null,null,null,null,"Standard(SIT)/Very(VIT)/Long Time(LTI)/Extremely(EIT) /Rapid (RI) Inverse time."]
[null,null,null,"Each overcurrent protection device shall have a wide range of time overcurrent protection curve settings, providing a choice of curve types:",null,null,null,"Ultra Inverse Time (UIT) – for better fuse co-ordination."]
[null,null,null,"IEEE Moderately/Very/Extremely Inverse time."]
[null,null,null,"IEC Standard (SIT))/Very (VIT)/Long Time(LTI)/Extremely (EIT) Inverse Time.",null,null,null,"Definite time (DT) with time delay settings from Instantaneous (no intentional time delay less than 50 ms) to 300 s.  Overload protection shall use true RMS current value (up to a minimum 13th harmonic).  Alternative overload setting groups will be selectable by logical conditions to adapt operating mode change.  Adjustment of the overload tripping curves will be possible to exactly fit the cable characteristics."]
[null,null,null,"IAC Inverse(I)/ Very Inverse (VI)/ Extremely Inverse (EI) time.",null,null,null,"Overcurrent setting shall be made by the direct input of actual primary current values."]
[null,null,null,"Standard(SIT)/Very(VIT)/Long Time(LTI)/Extremely(EIT) /Rapid (RI) Inverse time.",null,null,null,"Phase overcurrent and ground fault protection shall have an adjustable timer hold (time delay reset) to allow recurring faults detection.  The protection shall also allow a current-dependent time reset to emulate e/m relays."]
[null,null,null,"Ultra Inverse Time (UIT) – for better fuse co-ordination.",null,null,null,"Ground fault protection shall integrate a second harmonic restraint, which can be activated via software."]
[null,null,null,null,null,null,null,"The unit shall have built in firmware specifically and uniquely for zone-selective interlocking ANSI 68 (ZSI) protection via logic I/O and settings.  The ZSI must have a built in breaker failure scheme without the necessity of an additional 50BF element programming or wiring."]
[null,null,null,"Definite time (DT) with time delay settings from Instantaneous (no intentional time delay less than 50 ms) to 300 s.  Overload protection shall use true RMS current value (up to a minimum 13th harmonic).  Alternative overload setting groups will be selectable by logical conditions to adapt operating mode change.  Adjustment of the overload tripping curves will be possible to exactly fit the cable characteristics.",null,null,null,"The relay shall allow fast change in protection scheme: two groups of 50/51, 50N/51N and 67/67N settings shall be available with provision for shifting from one group of settings to the other by a digital input, UMI, and communications."]
[]
[null,null,null,"Overcurrent setting shall be made by the direct input of actual primary current values.",null,null,"G87","S80_G87_Alt"]
[null,null,null,null,null,null,null,"Generator protection: (50/51) Three Phase overcurrent, (50N/51N) Ground fault (or neutral) with selectable second harmonic restraint, (50BF) Breaker failure, (46) Unbalance / negative sequence overcurrent, (67) Directional overcurrent, (67N/67NC) Directional ground fault, (49 RMS) thermal overload, (40) Field Loss (underimpedance) , (24) Volts/Hertz, (25) Synch-check, (27) Undervoltage (phase-to-phase or phase-to-neutral), (59) Overvoltage (phase-to-phase or phase-to-neutral), (59N) Neutral voltage displacement, (27D) Positive sequence undervoltage , (27R) remanent undervoltage, (47) Negative sequence overvoltage, (81H) Overfrequency, (81L) Underfrequency, (32P) Reverse real power, (32Q/40) Reverse reactive power/ Loss-of-excitation, (21) Backup underimpedance, (50V/51V) Voltage-restrained Overcurrent, (12/14) Over/Under Speed, (64G/27TN) 100% stator ground fault, (78) Pole Slip, (87) current differential, and optional (38/49)Temperature (RTD) monitoring."]
[null,null,null,"Phase overcurrent and ground fault protection shall have an adjustable timer hold (time delay reset) to allow recurring faults detection.  The protection shall also allow a current-dependent time reset to emulate e/m relays.",null,null,null,"Each overcurrent protection device shall have a wide range of time overcurrent protection curve settings, providing a choice of curve types:"]
[null,null,null,null,null,null,null,"IEEE Moderately/Very/Extremely Inverse time."]
[null,null,null,"Ground fault protection shall integrate a second harmonic restraint, which can be activated via software.",null,null,null,"IEC Standard (SIT))/Very (VIT)/Long Time(LTI)/Extremely (EIT) Inverse Time."]
[null,null,null,null,null,null,null,"IAC Inverse(I)/ Very Inverse (VI)/ Extremely Inverse (EI) time."]
[null,null,null,"The unit shall have built in firmware specifically and uniquely for zone-selective interlocking ANSI 68 (ZSI) protection via logic I/O and settings.  The ZSI must have a built in breaker failure scheme without the necessity of an additional 50BF element programming or wiring.",null,null,null,"Standard(SIT)/Very(VIT)/Long Time(LTI)/Extremely(EIT) /Rapid (RI) Inverse time."]
[null,null,null,null,null,null,null,"Ultra Inverse Time (UIT) – for better fuse co-ordination."]
[null,null,null,"The relay shall allow fast change in protection scheme: two groups of 50/51, and 50N/51N settings shall be available with provision for shifting from one group of settings to the other by a digital input, UMI, and communications."]
[null,null,null,null,null,null,null,"Definite time (DT) with time delay settings from Instantaneous (no intentional time delay less than 50 ms) to 300 s.  Overload protection shall use true RMS current value (up to a minimum 13th harmonic).  Alternative overload setting groups will be selectable by logical conditions to adapt operating mode change.  Adjustment of the overload tripping curves will be possible to exactly fit the cable characteristics."]
[null,null,"M88","The Protection and Control Unit shall contain all the necessary protection functions for the specific application:",null,null,null,"Overcurrent setting shall be made by the direct input of actual primary current values."]
[null,null,null,"Motor protection: (50/51) Three Phase overcurrent, (50N/51N) Ground fault (or neutral) with selectable second harmonic restraint, (50BF) Breaker failure, (46) Unbalance / negative sequence overcurrent, (67N/67NC) Directional ground fault, (49 RMS) thermal overload, (27) Undervoltage (phase-to-phase or phase-to-neutral), (59) Overvoltage (phase-to-phase or phase-to-neutral), (59N) Neutral voltage displacement, (47) Negative sequence overvoltage, (81H) Overfrequency, (81L) Underfrequency, (32P) Reverse real power, (32Q/40) Reverse reactive power/ Loss-of-excitation, (40) Field Loss (underimpedance), (27D) Positive Sequence Undervoltage, (27R) Remanent Undervoltage, (37) Phase undercurrent, (48/51LR) Excessive starting time/ locked rotor, (66) Excessive Starts per hour, (12/14) Over/Under Speed, (78) Pole Slip, (87M and T combined) current differential and optional (38/49)Temperature (RTD) monitoring.",null,null,null,"Phase overcurrent and ground fault protection shall have an adjustable timer hold (time delay reset) to allow recurring faults detection.  The protection shall also allow a current-dependent time reset to emulate e/m relays."]
[null,null,null,null,null,null,null,"Ground fault protection shall integrate a second harmonic restraint, which can be activated via software."]
[null,null,null,"Each overcurrent protection device shall have a wide range of time overcurrent protection curve settings, providing a choice of curve types:",null,null,null,"The unit shall have built in firmware specifically and uniquely for zone-selective interlocking ANSI 68 (ZSI) protection via logic I/O and settings.  The ZSI must have a built in breaker failure scheme without the necessity of an additional 50BF element programming or wiring."]
[null,null,null,"IEEE Moderately/Very/Extremely Inverse time.",null,null,null,"The relay shall allow fast change in protection scheme: two groups of 50/51, 50N/51N and 67/67N settings shall be available with provision for shifting from one group of settings to the other by a digital input, UMI, and communications."]
[null,null,null,"IEC Standard (SIT))/Very (VIT)/Long Time(LTI)/Extremely (EIT) Inverse Time."]
[null,null,null,"IAC Inverse(I)/ Very Inverse (VI)/ Extremely Inverse (EI) time.",null,null,"G88","The Protection and Control Unit shall contain all the necessary protection functions for the specific application:"]
[null,null,null,"Standard(SIT)/Very(VIT)/Long Time(LTI)/Extremely(EIT) /Rapid (RI) Inverse time.",null,null,null,"Generator protection: (50/51) Three Phase overcurrent, (50N/51N) Ground fault (or neutral) with selectable second harmonic restraint, (50BF) Breaker failure, (46) Unbalance / negative sequence overcurrent, (67) Directional overcurrent, (67N/67NC) Directional ground fault, (49 RMS) thermal overload, (40) Field Loss (underimpedance) , (24) Volts/Hertz, (25) Synch-check, (27) Undervoltage (phase-to-phase or phase-to-neutral), (59) Overvoltage (phase-to-phase or phase-to-neutral), (59N) Neutral voltage displacement, (27D) Positive sequence undervoltage , (27R) remanent undervoltage, (47) Negative sequence overvoltage, (81H) Overfrequency, (81L) Underfrequency, (32P) Reverse real power, (32Q/40) Reverse reactive power/ Loss-of-excitation, (21) Backup underimpedance, (50V/51V) Voltage-restrained Overcurrent, (12/14) Over/Under Speed, (50/27) Inadvertent energization, (64G/27TN) 100% stator ground fault, (78) Pole Slip, (64 REF) restricted ground fault, (87) current differential, and optional (38/49)Temperature (RTD) monitoring."]
[null,null,null,"Ultra Inverse Time (UIT) – for better fuse co-ordination.",null,null,null,"Each overcurrent protection device shall have a wide range of time overcurrent protection curve settings, providing a choice of curve types:"]
[null,null,null,null,null,null,null,"IEEE Moderately/Very/Extremely Inverse time."]
[null,null,null,"Definite time (DT) with time delay settings from Instantaneous (no intentional time delay less than 50 ms) to 300 s.  Overload protection shall use true RMS current value (up to a minimum 13th harmonic).  Alternative overload setting groups will be selectable by logical conditions to adapt operating mode change.  Adjustment of the overload tripping curves will be possible to exactly fit the cable characteristics.",null,null,null,"IEC Standard (SIT))/Very (VIT)/Long Time(LTI)/Extremely (EIT) Inverse Time."]
[null,null,null,null,null,null,null,"IAC Inverse(I)/ Very Inverse (VI)/ Extremely Inverse (EI) time."]
[null,null,null,"Overcurrent setting shall be made by the direct input of actual primary current values.",null,null,null,"Standard(SIT)/Very(VIT)/Long Time(LTI)/Extremely(EIT) /Rapid (RI) Inverse time."]
[null,null,null,null,null,null,null,"Ultra Inverse Time (UIT) – for better fuse co-ordination."]
[null,null,null,"Phase overcurrent and ground fault protection shall have an adjustable timer hold (time delay reset) to allow recurring faults detection.  The protection shall also allow a current-dependent time reset to emulate e/m relays."]
[null,null,null,null,null,null,null,"Definite time (DT) with time delay settings from Instantaneous (no intentional time delay less than 50 ms) to 300 s.  Overload protection shall use true RMS current value (up to a minimum 13th harmonic).  Alternative overload setting groups will be selectable by logical conditions to adapt operating mode change.  Adjustment of the overload tripping curves will be possible to exactly fit the cable characteristics."]
[null,null,null,"Ground fault protection shall integrate a second harmonic restraint, which can be activated via software.",null,null,null,"Overcurrent setting shall be made by the direct input of actual primary current values."]
[null,null,null,null,null,null,null,"Phase overcurrent and ground fault protection shall have an adjustable timer hold (time delay reset) to allow recurring faults detection.  The protection shall also allow a current-dependent time reset to emulate e/m relays."]
[null,null,null,"The unit shall have built in firmware specifically and uniquely for zone-selective interlocking ANSI 68 (ZSI) protection via logic I/O and settings.  The ZSI must have a built in breaker failure scheme without the necessity of an additional 50BF element programming or wiring.",null,null,null,"Ground fault protection shall integrate a second harmonic restraint, which can be activated via software."]
[null,null,null,null,null,null,null,"The unit shall have built in firmware specifically and uniquely for zone-selective interlocking ANSI 68 (ZSI) protection via logic I/O and settings.  The ZSI must have a built in breaker failure scheme without the necessity of an additional 50BF element programming or wiring."]
[null,null,null,"The relay shall allow fast change in protection scheme: two groups of 50/51, and 50N/51N settings shall be available with provision for shifting from one group of settings to the other by a digital input, UMI, and communications.",null,null,null,"The relay shall allow fast change in protection scheme: two groups of 50/51, 50N/51N and 67/67N settings shall be available with provision for shifting from one group of settings to the other by a digital input, UMI, and communications."]
[]
[null,null,"G82","The Protection and Control Unit shall contain all the necessary protection functions for the specific application:",null,null,"T81","The Protection and Control Unit shall contain all the necessary protection functions for the specific application:"]
[null,null,null,"Generator protection: (50/51) Three Phase overcurrent, (50N/51N) Ground fault (or neutral) with selectable second harmonic restraint, (50BF) Breaker failure, (46) Unbalance / negative sequence overcurrent, (67) Directional overcurrent, (67N/67NC) Directional ground fault, (49 RMS) thermal overload, (40) Field Loss (underimpedance) , (24) Volts/Hertz, (25) Synch-check, (27) Undervoltage (phase-to-phase or phase-to-neutral), (59) Overvoltage (phase-to-phase or phase-to-neutral), (59N) Neutral voltage displacement, (27D) Positive sequence undervoltage , (27R) remanent undervoltage, (47) Negative sequence overvoltage, (81H) Overfrequency, (81L) Underfrequency, (32P) Reverse real power, (32Q/40) Reverse reactive power/ Loss-of-excitation, (37P) Directional Active Underpower, (21) Backup underimpedance, (50V/51V) Voltage-restrained Overcurrent, (12/14) Over/Under Speed, (50/27) Inadvertent energization, (64G /27TN )100% stator ground fault, (78) Pole Slip, (64 REF) restricted ground fault, and optional (38/49)Temperature (RTD) monitoring.",null,null,null,"Transformer protection: (50/51) Three Phase overcurrent, (50N/51N) Ground fault (or neutral) with selectable second harmonic restraint, (50BF) Breaker failure, (46) Unbalance / negative sequence overcurrent, (67N/67NC) Directional ground fault, (32P) Reverse real power (49 RMS) thermal overload, (24) Volts/Hertz, (25) Synch –check, (27) Undervoltage (phase-to-phase or phase-to-neutral), (27D) Positive sequence undervoltage , (27R) remanent undervoltage, (59) Overvoltage (phase-to-phase or phase-to-neutral), (59N) Neutral voltage displacement, (47) Negative sequence overvoltage, (81H) Overfrequency, (81L) Underfrequency, (64 REF) restricted ground fault, and optional (38/49T) Temperature (RTD) monitoring."]
[null,null,null,null,null,null,null,"Each overcurrent protection device shall have a wide range of time overcurrent protection curve settings, providing a choice of curve types:"]
[null,null,null,"Each overcurrent protection device shall have a wide range of time overcurrent protection curve settings, providing a choice of curve types:",null,null,null,"IEEE Moderately/Very/Extremely Inverse time."]
[null,null,null,"IEEE Moderately/Very/Extremely Inverse time.",null,null,null,"IEC Standard (SIT))/Very (VIT)/Long Time(LTI)/Extremely (EIT) Inverse Time."]
[null,null,null,"IEC Standard (SIT))/Very (VIT)/Long Time(LTI)/Extremely (EIT) Inverse Time.",null,null,null,"IAC Inverse(I)/ Very Inverse (VI)/ Extremely Inverse (EI) time."]
[null,null,null,"IAC Inverse(I)/ Very Inverse (VI)/ Extremely Inverse (EI) time.",null,null,null,"Standard(SIT)/Very(VIT)/Long Time(LTI)/Extremely(EIT) /Rapid (RI) Inverse time."]
[null,null,null,"Standard(SIT)/Very(VIT)/Long Time(LTI)/Extremely(EIT) /Rapid (RI) Inverse time.",null,null,null,"Ultra Inverse Time (UIT) – for better fuse co-ordination."]
[null,null,null,"Ultra Inverse Time (UIT) – for better fuse co-ordination."]
[null,null,null,null,null,null,null,"Definite time (DT) with time delay settings from Instantaneous (no intentional time delay less than 50 ms) to 300 s.  Overload protection shall use true RMS current value (up to a minimum 13th harmonic).  Alternative overload setting groups will be selectable by logical conditions to adapt operating mode change.  Adjustment of the overload tripping curves will be possible to exactly fit the cable characteristics."]
[null,null,null,"Definite time (DT) with time delay settings from Instantaneous (no intentional time delay less than 50 ms) to 300 s.  Overload protection shall use true RMS current value (up to a minimum 13th harmonic).  Alternative overload setting groups will be selectable by logical conditions to adapt operating mode change.  Adjustment of the overload tripping curves will be possible to exactly fit the cable characteristics.",null,null,null,"Overcurrent setting shall be made by the direct input of actual primary current values."]
[null,null,null,null,null,null,null,"Phase overcurrent and ground fault protection shall have an adjustable timer hold (time delay reset) to allow recurring faults detection.  The protection shall also allow a current-dependent time reset to emulate e/m relays."]
[null,null,null,"Overcurrent setting shall be made by the direct input of actual primary current values.",null,null,null,"Ground fault protection shall integrate a second harmonic restraint, which can be activated via software."]
[null,null,null,null,null,null,null,"The unit shall have built in firmware specifically and uniquely for zone-selective interlocking ANSI 68 (ZSI) protection via logic I/O and settings.  The ZSI must have a built in breaker failure scheme without the necessity of an additional 50BF element programming or wiring."]
[null,null,null,"Phase overcurrent and ground fault protection shall have an adjustable timer hold (time delay reset) to allow recurring faults detection.  The protection shall also allow a current-dependent time reset to emulate e/m relays.",null,null,null,"The relay shall allow fast change in protection scheme: two groups of 50/51, 50N/51N and 67N settings shall be available with provision for shifting from one group of settings to the other by a digital input, UMI, and communications."]
[]
[null,null,null,"Ground fault protection shall integrate a second harmonic restraint, which can be activated via software.",null,null,"T82","The Protection and Control Unit shall contain all the necessary protection functions for the specific application:"]
[null,null,null,null,null,null,null,"Transformer protection: (50/51) Three Phase overcurrent, (50N/51N) Ground fault (or neutral) with selectable second harmonic restraint, (50BF) Breaker failure, (46) Unbalance / negative sequence overcurrent, (67) Directional overcurrent, (67N/67NC) Directional ground fault, (32P) Reverse real power (49 RMS) thermal overload, (24) Volts/Hertz, (25) Synch –check, (27) Undervoltage (phase-to-phase or phase-to-neutral), (27D) Positive sequence undervoltage , (27R) remanent undervoltage, (59) Overvoltage (phase-to-phase or phase-to-neutral), (59N) Neutral voltage displacement, (47) Negative sequence overvoltage, (81H) Overfrequency, (81L) Underfrequency, (64 REF) restricted earth fault (87T) 2 windings current differential, and optional (38/49T) Temperature (RTD) monitoring."]
[null,null,null,"The unit shall have built in firmware specifically and uniquely for zone-selective interlocking ANSI 68 (ZSI) protection via logic I/O and settings.  The ZSI must have a built in breaker failure scheme without the necessity of an additional 50BF element programming or wiring.",null,null,null,"Each overcurrent protection device shall have a wide range of time overcurrent protection curve settings, providing a choice of curve types:"]
[null,null,null,null,null,null,null,"IEEE Moderately/Very/Extremely Inverse time."]
[null,null,null,"The relay shall allow fast change in protection scheme: two groups of 50/51, 50N/51N and 67/67N settings shall be available with provision for shifting from one group of settings to the other by a digital input, UMI, and communications.",null,null,null,"IEC Standard (SIT))/Very (VIT)/Long Time(LTI)/Extremely (EIT) Inverse Time."]
[null,null,null,null,null,null,null,"IAC Inverse(I)/ Very Inverse (VI)/ Extremely Inverse (EI) time."]
[null,null,"G87","The Protection and Control Unit shall contain all the necessary protection functions for the specific application:",null,null,null,"Standard(SIT)/Very(VIT)/Long Time(LTI)/Extremely(EIT) /Rapid (RI) Inverse time."]
[null,null,null,"Generator protection: (50/51) Three Phase overcurrent, (50N/51N) Ground fault (or neutral) with selectable second harmonic restraint, (50BF) Breaker failure, (46) Unbalance / negative sequence overcurrent, (67) Directional overcurrent, (67N/67NC) Directional ground fault, (49 RMS) thermal overload, (40) Field Loss (underimpedance) , (24) Volts/Hertz, (25) Synch-check, (27) Undervoltage (phase-to-phase or phase-to-neutral), (59) Overvoltage (phase-to-phase or phase-to-neutral), (59N) Neutral voltage displacement, (27D) Positive sequence undervoltage , (27R) remanent undervoltage, (47) Negative sequence overvoltage, (81H) Overfrequency, (81L) Underfrequency, (32P) Reverse real power, (32Q/40) Reverse reactive power/ Loss-of-excitation, (21) Backup underimpedance, (50V/51V) Voltage-restrained Overcurrent, (12/14) Over/Under Speed, (64G/27TN) 100% stator ground fault, (78) Pole Slip, (87) current differential, and optional (38/49)Temperature (RTD) monitoring.",null,null,null,"Ultra Inverse Time (UIT) – for better fuse co-ordination."]
[]
[null,null,null,"Each overcurrent protection device shall have a wide range of time overcurrent protection curve settings, providing a choice of curve types:",null,null,null,"Definite time (DT) with time delay settings from Instantaneous (no intentional time delay less than 50 ms) to 300 s.  Overload protection shall use true RMS current value (up to a minimum 13th harmonic).  Alternative overload setting groups will be selectable by logical conditions to adapt operating mode change.  Adjustment of the overload tripping curves will be possible to exactly fit the cable characteristics."]
[null,null,null,"IEEE Moderately/Very/Extremely Inverse time.",null,null,null,"Overcurrent setting shall be made by the direct input of actual primary current values."]
[null,null,null,"IEC Standard (SIT))/Very (VIT)/Long Time(LTI)/Extremely (EIT) Inverse Time.",null,null,null,"Phase overcurrent and ground fault protection shall have an adjustable timer hold (time delay reset) to allow recurring faults detection.  The protection shall also allow a current-dependent time reset to emulate e/m relays."]
[null,null,null,"IAC Inverse(I)/ Very Inverse (VI)/ Extremely Inverse (EI) time.",null,null,null,"Ground fault protection shall integrate a second harmonic restraint, which can be activated via software."]
[null,null,null,"Standard(SIT)/Very(VIT)/Long Time(LTI)/Extremely(EIT) /Rapid (RI) Inverse time.",null,null,null,"The unit shall have built in firmware specifically and uniquely for zone-selective interlocking ANSI 68 (ZSI) protection via logic I/O and settings.  The ZSI must have a built in breaker failure scheme without the necessity of an additional 50BF element programming or wiring."]
[null,null,null,"Ultra Inverse Time (UIT) – for better fuse co-ordination.",null,null,null,"The relay shall allow fast change in protection scheme: two groups of 50/51, 50N/51N and 67/67N settings shall be available with provision for shifting from one group of settings to the other by a digital input, UMI, and communications."]
[]
[null,null,null,"Definite time (DT) with time delay settings from Instantaneous (no intentional time delay less than 50 ms) to 300 s.  Overload protection shall use true RMS current value (up to a minimum 13th harmonic).  Alternative overload setting groups will be selectable by logical conditions to adapt operating mode change.  Adjustment of the overload tripping curves will be possible to exactly fit the cable characteristics.",null,null,"T87","The Protection and Control Unit shall contain all the necessary protection functions for the specific application:"]
[null,null,null,null,null,null,null,"Transformer protection: (50/51) Three Phase overcurrent, (50N/51N) Ground fault (or neutral) with selectable second harmonic restraint, (50BF) Breaker failure, (46) Unbalance / negative sequence overcurrent, (67) Directional overcurrent, (67N/67NC) Directional ground fault, (32P) Reverse real power (49 RMS) thermal overload, (24) Volts/Hertz, (25) Synch –check, (27) Undervoltage (phase-to-phase or phase-to-neutral), (27D) Positive sequence undervoltage , (27R) remanent undervoltage, (59) Overvoltage (phase-to-phase or phase-to-neutral), (59N) Neutral voltage displacement, (47) Negative sequence overvoltage, (81H) Overfrequency, (81L) Underfrequency, (64 REF) restricted ground fault, (87T) 2 windings current differential, and optional (38/49T) Temperature (RTD) monitoring."]
[null,null,null,"Overcurrent setting shall be made by the direct input of actual primary current values.",null,null,null,"Each overcurrent protection device shall have a wide range of time overcurrent protection curve settings, providing a choice of curve types:"]
[null,null,null,null,null,null,null,"IEEE Moderately/Very/Extremely Inverse time."]
[null,null,null,"Phase overcurrent and ground fault protection shall have an adjustable timer hold (time delay reset) to allow recurring faults detection.  The protection shall also allow a current-dependent time reset to emulate e/m relays.",null,null,null,"IEC Standard (SIT))/Very (VIT)/Long Time(LTI)/Extremely (EIT) Inverse Time."]
[null,null,null,null,null,null,null,"IAC Inverse(I)/ Very Inverse (VI)/ Extremely Inverse (EI) time."]
[null,null,null,"Ground fault protection shall integrate a second harmonic restraint, which can be activated via software.",null,null,null,"Standard(SIT)/Very(VIT)/Long Time(LTI)/Extremely(EIT) /Rapid (RI) Inverse time."]
[null,null,null,null,null,null,null,"Ultra Inverse Time (UIT) – for better fuse co-ordination."]
[null,null,null,"The unit shall have built in firmware specifically and uniquely for zone-selective interlocking ANSI 68 (ZSI) protection via logic I/O and settings.  The ZSI must have a built in breaker failure scheme without the necessity of an additional 50BF element programming or wiring."]
[null,null,null,null,null,null,null,"Definite time (DT) with time delay settings from Instantaneous (no intentional time delay less than 50 ms) to 300 s.  Overload protection shall use true RMS current value (up to a minimum 13th harmonic).  Alternative overload setting groups will be selectable by logical conditions to adapt operating mode change.  Adjustment of the overload tripping curves will be possible to exactly fit the cable characteristics."]
[null,null,null,"The relay shall allow fast change in protection scheme: two groups of 50/51, 50N/51N and 67/67N settings shall be available with provision for shifting from one group of settings to the other by a digital input, UMI, and communications.",null,null,null,"Overcurrent setting shall be made by the direct input of actual primary current values."]
[null,null,null,null,null,null,null,"Phase overcurrent and ground fault protection shall have an adjustable timer hold (time delay reset) to allow recurring faults detection.  The protection shall also allow a current-dependent time reset to emulate e/m relays."]
[null,null,"G88","The Protection and Control Unit shall contain all the necessary protection functions for the specific application:",null,null,null,"Ground fault protection shall integrate a second harmonic restraint, which can be activated via software."]
[null,null,null,"Generator protection: (50/51) Three Phase overcurrent, (50N/51N) Ground fault (or neutral) with selectable second harmonic restraint, (50BF) Breaker failure, (46) Unbalance / negative sequence overcurrent, (67) Directional overcurrent, (67N/67NC) Directional ground fault, (49 RMS) thermal overload, (40) Field Loss (underimpedance) , (24) Volts/Hertz, (25) Synch-check, (27) Undervoltage (phase-to-phase or phase-to-neutral), (59) Overvoltage (phase-to-phase or phase-to-neutral), (59N) Neutral voltage displacement, (27D) Positive sequence undervoltage , (27R) remanent undervoltage, (47) Negative sequence overvoltage, (81H) Overfrequency, (81L) Underfrequency, (32P) Reverse real power, (32Q/40) Reverse reactive power/ Loss-of-excitation, (21) Backup underimpedance, (50V/51V) Voltage-restrained Overcurrent, (12/14) Over/Under Speed, (50/27) Inadvertent energization, (64G/27TN) 100% stator ground fault, (78) Pole Slip, (64 REF) restricted ground fault, (87) current differential, and optional (38/49)Temperature (RTD) monitoring.",null,null,null,"The unit shall have built in firmware specifically and uniquely for zone-selective interlocking ANSI 68 (ZSI) protection via logic I/O and settings.  The ZSI must have a built in breaker failure scheme without the necessity of an additional 50BF element programming or wiring."]
[null,null,null,null,null,null,null,"The relay shall allow fast change in protection scheme: two groups of 50/51, 50N/51N and 67/67N settings shall be available with provision for shifting from one group of settings to the other by a digital input, UMI, and communications."]
[null,null,null,"Each overcurrent protection device shall have a wide range of time overcurrent protection curve settings, providing a choice of curve types:"]
[null,null,null,"IEEE Moderately/Very/Extremely Inverse time.",null,null,"C86","The Protection and Control Unit shall contain all the necessary protection functions for the specific application:"]
[null,null,null,"IEC Standard (SIT))/Very (VIT)/Long Time(LTI)/Extremely (EIT) Inverse Time.",null,null,null,"Capacitor bank protection: (50/51) Three Phase overcurrent, (50N/51N) Ground fault (or neutral) with selectable second harmonic restraint, (50BF) Breaker failure, (51C) Capacitor bank unbalance, (46) Unbalance / negative sequence overcurrent, (49RMS) Thermal overload for capacitors,  (25) Synch-check, (27) Undervoltage (phase-to-phase or phase-to-neutral), (27D) Positive sequence undervoltage , (27R) remanent undervoltage, (59) Overvoltage (phase-to-phase or phase-to-neutral), (59N) Neutral voltage displacement, (47) Negative sequence overvoltage, (81H) Overfrequency, (81L) Underfrequency and optional (38/49)Temperature (RTD) monitoring."]
[null,null,null,"IAC Inverse(I)/ Very Inverse (VI)/ Extremely Inverse (EI) time.",null,null,null,"Each overcurrent protection device shall have a wide range of time overcurrent protection curve settings, providing a choice of curve types:"]
[null,null,null,"Standard(SIT)/Very(VIT)/Long Time(LTI)/Extremely(EIT) /Rapid (RI) Inverse time.",null,null,null,"IEEE Moderately/Very/Extremely Inverse time."]
[null,null,null,"Ultra Inverse Time (UIT) – for better fuse co-ordination.",null,null,null,"IEC Standard (SIT))/Very (VIT)/Long Time(LTI)/Extremely (EIT) Inverse Time."]
[null,null,null,null,null,null,null,"IAC Inverse(I)/ Very Inverse (VI)/ Extremely Inverse (EI) time."]
[null,null,null,"Definite time (DT) with time delay settings from Instantaneous (no intentional time delay less than 50 ms) to 300 s.  Overload protection shall use true RMS current value (up to a minimum 13th harmonic).  Alternative overload setting groups will be selectable by logical conditions to adapt operating mode change.  Adjustment of the overload tripping curves will be possible to exactly fit the cable characteristics.",null,null,null,"Standard(SIT)/Very(VIT)/Long Time(LTI)/Extremely(EIT) /Rapid (RI) Inverse time."]
[null,null,null,null,null,null,null,"Ultra Inverse Time (UIT) – for better fuse co-ordination."]
[null,null,null,"Overcurrent setting shall be made by the direct input of actual primary current values."]
[null,null,null,null,null,null,null,"Definite time (DT) with time delay settings from Instantaneous (no intentional time delay less than 50 ms) to 300 s.  Overload protection shall use true RMS current value (up to a minimum 13th harmonic).  Alternative overload setting groups will be selectable by logical conditions to adapt operating mode change.  Adjustment of the overload tripping curves will be possible to exactly fit the cable characteristics."]
[null,null,null,"Phase overcurrent and ground fault protection shall have an adjustable timer hold (time delay reset) to allow recurring faults detection.  The protection shall also allow a current-dependent time reset to emulate e/m relays.",null,null,null,"Overcurrent setting shall be made by the direct input of actual primary current values."]
[null,null,null,null,null,null,null,"Phase overcurrent and ground fault protection shall have an adjustable timer hold (time delay reset) to allow recurring faults detection.  The protection shall also allow a current-dependent time reset to emulate e/m relays."]
[null,null,null,"Ground fault protection shall integrate a second harmonic restraint, which can be activated via software.",null,null,null,"Ground fault protection shall integrate a second harmonic restraint, which can be activated via software."]
[null,null,null,null,null,null,null,"The unit shall have built in firmware specifically and uniquely for zone-selective interlocking ANSI 68 (ZSI) protection via logic I/O and settings.  The ZSI must have a built in breaker failure scheme without the necessity of an additional 50BF element programming or wiring."]
[null,null,null,"The unit shall have built in firmware specifically and uniquely for zone-selective interlocking ANSI 68 (ZSI) protection via logic I/O and settings.  The ZSI must have a built in breaker failure scheme without the necessity of an additional 50BF element programming or wiring.",null,null,null,"The relay shall allow fast change in protection scheme: two groups of 50/51, and 50N/51N settings shall be available with provision for shifting from one group of settings to the other by a digital input, UMI, and communications."]
[]
[null,null,null,"The relay shall allow fast change in protection scheme: two groups of 50/51, 50N/51N and 67/67N settings shall be available with provision for shifting from one group of settings to the other by a digital input, UMI, and communications."]
[]
[null,null,"T81","The Protection and Control Unit shall contain all the necessary protection functions for the specific application:"]
[null,null,null,"Transformer protection: (50/51) Three Phase overcurrent, (50N/51N) Ground fault (or neutral) with selectable second harmonic restraint, (50BF) Breaker failure, (46) Unbalance / negative sequence overcurrent, (67N/67NC) Directional ground fault, (32P) Reverse real power (49 RMS) thermal overload, (24) Volts/Hertz, (25) Synch –check, (27) Undervoltage (phase-to-phase or phase-to-neutral), (27D) Positive sequence undervoltage , (27R) remanent undervoltage, (59) Overvoltage (phase-to-phase or phase-to-neutral), (59N) Neutral voltage displacement, (47) Negative sequence overvoltage, (81H) Overfrequency, (81L) Underfrequency, (64 REF) restricted ground fault, and optional (38/49T) Temperature (RTD) monitoring."]
[]
[null,null,null,"Each overcurrent protection device shall have a wide range of time overcurrent protection curve settings, providing a choice of curve types:"]
[null,null,null,"IEEE Moderately/Very/Extremely Inverse time."]
[null,null,null,"IEC Standard (SIT))/Very (VIT)/Long Time(LTI)/Extremely (EIT) Inverse Time."]
[null,null,null,"IAC Inverse(I)/ Very Inverse (VI)/ Extremely Inverse (EI) time."]
[null,null,null,"Standard(SIT)/Very(VIT)/Long Time(LTI)/Extremely(EIT) /Rapid (RI) Inverse time."]
[null,null,null,"Ultra Inverse Time (UIT) – for better fuse co-ordination."]
[]
[null,null,null,"Definite time (DT) with time delay settings from Instantaneous (no intentional time delay less than 50 ms) to 300 s.  Overload protection shall use true RMS current value (up to a minimum 13th harmonic).  Alternative overload setting groups will be selectable by logical conditions to adapt operating mode change.  Adjustment of the overload tripping curves will be possible to exactly fit the cable characteristics."]
[]
[null,null,null,"Overcurrent setting shall be made by the direct input of actual primary current values."]
[]
[null,null,null,"Phase overcurrent and ground fault protection shall have an adjustable timer hold (time delay reset) to allow recurring faults detection.  The protection shall also allow a current-dependent time reset to emulate e/m relays."]
[]
[null,null,null,"Ground fault protection shall integrate a second harmonic restraint, which can be activated via software."]
[]
[null,null,null,"The unit shall have built in firmware specifically and uniquely for zone-selective interlocking ANSI 68 (ZSI) protection via logic I/O and settings.  The ZSI must have a built in breaker failure scheme without the necessity of an additional 50BF element programming or wiring."]
[]
[null,null,null,"The relay shall allow fast change in protection scheme: two groups of 50/51, 50N/51N and 67N settings shall be available with provision for shifting from one group of settings to the other by a digital input, UMI, and communications."]
[]
[null,null,"T82","The Protection and Control Unit shall contain all the necessary protection functions for the specific application:"]
[null,null,null,"Transformer protection: (50/51) Three Phase overcurrent, (50N/51N) Ground fault (or neutral) with selectable second harmonic restraint, (50BF) Breaker failure, (46) Unbalance / negative sequence overcurrent, (67) Directional overcurrent, (67N/67NC) Directional ground fault, (32P) Reverse real power (49 RMS) thermal overload, (24) Volts/Hertz, (25) Synch –check, (27) Undervoltage (phase-to-phase or phase-to-neutral), (27D) Positive sequence undervoltage , (27R) remanent undervoltage, (59) Overvoltage (phase-to-phase or phase-to-neutral), (59N) Neutral voltage displacement, (47) Negative sequence overvoltage, (81H) Overfrequency, (81L) Underfrequency, (64 REF) restricted earth fault (87T) 2 windings current differential, and optional (38/49T) Temperature (RTD) monitoring."]
[]
[null,null,null,"Each overcurrent protection device shall have a wide range of time overcurrent protection curve settings, providing a choice of curve types:"]
[null,null,null,"IEEE Moderately/Very/Extremely Inverse time."]
[null,null,null,"IEC Standard (SIT))/Very (VIT)/Long Time(LTI)/Extremely (EIT) Inverse Time."]
[null,null,null,"IAC Inverse(I)/ Very Inverse (VI)/ Extremely Inverse (EI) time."]
[null,null,null,"Standard(SIT)/Very(VIT)/Long Time(LTI)/Extremely(EIT) /Rapid (RI) Inverse time."]
[null,null,null,"Ultra Inverse Time (UIT) – for better fuse co-ordination."]
[]
[null,null,null,"Definite time (DT) with time delay settings from Instantaneous (no intentional time delay less than 50 ms) to 300 s.  Overload protection shall use true RMS current value (up to a minimum 13th harmonic).  Alternative overload setting groups will be selectable by logical conditions to adapt operating mode change.  Adjustment of the overload tripping curves will be possible to exactly fit the cable characteristics."]
[]
[null,null,null,"Overcurrent setting shall be made by the direct input of actual primary current values."]
[]
[null,null,null,"Phase overcurrent and ground fault protection shall have an adjustable timer hold (time delay reset) to allow recurring faults detection.  The protection shall also allow a current-dependent time reset to emulate e/m relays."]
[]
[null,null,null,"Ground fault protection shall integrate a second harmonic restraint, which can be activated via software."]
[]
[null,null,null,"The unit shall have built in firmware specifically and uniquely for zone-selective interlocking ANSI 68 (ZSI) protection via logic I/O and settings.  The ZSI must have a built in breaker failure scheme without the necessity of an additional 50BF element programming or wiring."]
[]
[null,null,null,"The relay shall allow fast change in protection scheme: two groups of 50/51, 50N/51N and 67/67N settings shall be available with provision for shifting from one group of settings to the other by a digital input, UMI, and communications."]
[]
[null,null,"T87","The Protection and Control Unit shall contain all the necessary protection functions for the specific application:"]
[null,null,null,"Transformer protection: (50/51) Three Phase overcurrent, (50N/51N) Ground fault (or neutral) with selectable second harmonic restraint, (50BF) Breaker failure, (46) Unbalance / negative sequence overcurrent, (67) Directional overcurrent, (67N/67NC) Directional ground fault, (32P) Reverse real power (49 RMS) thermal overload, (24) Volts/Hertz, (25) Synch –check, (27) Undervoltage (phase-to-phase or phase-to-neutral), (27D) Positive sequence undervoltage , (27R) remanent undervoltage, (59) Overvoltage (phase-to-phase or phase-to-neutral), (59N) Neutral voltage displacement, (47) Negative sequence overvoltage, (81H) Overfrequency, (81L) Underfrequency, (64 REF) restricted ground fault, (87T) 2 windings current differential, and optional (38/49T) Temperature (RTD) monitoring."]
[]
[null,null,null,"Each overcurrent protection device shall have a wide range of time overcurrent protection curve settings, providing a choice of curve types:"]
[null,null,null,"IEEE Moderately/Very/Extremely Inverse time."]
[null,null,null,"IEC Standard (SIT))/Very (VIT)/Long Time(LTI)/Extremely (EIT) Inverse Time."]
[null,null,null,"IAC Inverse(I)/ Very Inverse (VI)/ Extremely Inverse (EI) time."]
[null,null,null,"Standard(SIT)/Very(VIT)/Long Time(LTI)/Extremely(EIT) /Rapid (RI) Inverse time."]
[null,null,null,"Ultra Inverse Time (UIT) – for better fuse co-ordination."]
[]
[null,null,null,"Definite time (DT) with time delay settings from Instantaneous (no intentional time delay less than 50 ms) to 300 s.  Overload protection shall use true RMS current value (up to a minimum 13th harmonic).  Alternative overload setting groups will be selectable by logical conditions to adapt operating mode change.  Adjustment of the overload tripping curves will be possible to exactly fit the cable characteristics."]
[]
[null,null,null,"Overcurrent setting shall be made by the direct input of actual primary current values."]
[]
[null,null,null,"Phase overcurrent and ground fault protection shall have an adjustable timer hold (time delay reset) to allow recurring faults detection.  The protection shall also allow a current-dependent time reset to emulate e/m relays."]
[]
[null,null,null,"Ground fault protection shall integrate a second harmonic restraint, which can be activated via software."]
[]
[null,null,null,"The unit shall have built in firmware specifically and uniquely for zone-selective interlocking ANSI 68 (ZSI) protection via logic I/O and settings.  The ZSI must have a built in breaker failure scheme without the necessity of an additional 50BF element programming or wiring."]
[]
[null,null,null,"The relay shall allow fast change in protection scheme: two groups of 50/51, 50N/51N and 67/67N settings shall be available with provision for shifting from one group of settings to the other by a digital input, UMI, and communications."]
[]
[null,null,"C86","The Protection and Control Unit shall contain all the necessary protection functions for the specific application:"]
[null,null,null,"Capacitor bank protection: (50/51) Three Phase overcurrent, (50N/51N) Ground fault (or neutral) with selectable second harmonic restraint, (50BF) Breaker failure, (51C) Capacitor bank unbalance, (46) Unbalance / negative sequence overcurrent, (49RMS) Thermal overload for capacitors,  (25) Synch-check, (27) Undervoltage (phase-to-phase or phase-to-neutral), (27D) Positive sequence undervoltage , (27R) remanent undervoltage, (59) Overvoltage (phase-to-phase or phase-to-neutral), (59N) Neutral voltage displacement, (47) Negative sequence overvoltage, (81H) Overfrequency, (81L) Underfrequency and optional (38/49)Temperature (RTD) monitoring."]
[]
[null,null,null,"Each overcurrent protection device shall have a wide range of time overcurrent protection curve settings, providing a choice of curve types:"]
[null,null,null,"IEEE Moderately/Very/Extremely Inverse time."]
[null,null,null,"IEC Standard (SIT))/Very (VIT)/Long Time(LTI)/Extremely (EIT) Inverse Time."]
[null,null,null,"IAC Inverse(I)/ Very Inverse (VI)/ Extremely Inverse (EI) time."]
[null,null,null,"Standard(SIT)/Very(VIT)/Long Time(LTI)/Extremely(EIT) /Rapid (RI) Inverse time."]
[null,null,null,"Ultra Inverse Time (UIT) – for better fuse co-ordination."]
[]
[null,null,null,"Definite time (DT) with time delay settings from Instantaneous (no intentional time delay less than 50 ms) to 300 s.  Overload protection shall use true RMS current value (up to a minimum 13th harmonic).  Alternative overload setting groups will be selectable by logical conditions to adapt operating mode change.  Adjustment of the overload tripping curves will be possible to exactly fit the cable characteristics."]
[]
[null,null,null,"Overcurrent setting shall be made by the direct input of actual primary current values."]
[]
[null,null,null,"Phase overcurrent and ground fault protection shall have an adjustable timer hold (time delay reset) to allow recurring faults detection.  The protection shall also allow a current-dependent time reset to emulate e/m relays."]
[]
[null,null,null,"Ground fault protection shall integrate a second harmonic restraint, which can be activated via software."]
[]
[null,null,null,"The unit shall have built in firmware specifically and uniquely for zone-selective interlocking ANSI 68 (ZSI) protection via logic I/O and settings.  The ZSI must have a built in breaker failure scheme without the necessity of an additional 50BF element programming or wiring."]
[]
[null,null,null,"The relay shall allow fast change in protection scheme: two groups of 50/51, and 50N/51N settings shall be available with provision for shifting from one group of settings to the other by a digital input, UMI, and communications."]

{"sheet":"Selection Guide","index":18,"n_rows":28,"n_cols":8,"rows_kept":28,"cut":false,"hidden":true,"merged":[[6,0,7,0],[11,0,13,0],[17,0,20,0],[24,0,25,0]]}
["General Selection Guide"]
["Protection Functions",null,"Applications"]
["Base","Specific","Substation","Bus","Transformer","Motor","Generator","Capacitor"]
[]
["Current Protections",null,null,null,null,"M20"]
[null,"Breaker Failure & Cold Load Pickup","S24",null,"T24"]
["Voltage and Frequency Protection",null,null,"B21"]
[null,"disconnection by \"rate of change of frequency\"",null,"B22"]
[]
["Base","Specific","Substation","Bus","Transformer","Motor","Generator","Capacitor"]
[]
["Current, Voltage and Frequency Protection",null,"S40\nS50 (1)",null,"T40\nT50 (1)",null,"G40"]
[null,"directional ground fault","S43\nS53 (1)",null,null,"M41"]
[null,"directional ground fault and phase overcurrent","S42\nS52 (1)",null,"T42\nT52 (1)"]
[]
["Base","Specific","Substation","Bus","Transformer","Motor","Generator","Capacitor"]
[]
["Current, Voltage and Frequency Protection",null,"S80","B80"]
[null,"directional ground fault",null,null,"T81","M81"]
[null,"directional ground fault and phase overcurrent","S82",null,"T82",null,"G82"]
[null,"disconnection by \"rate of change of frequency\"","S84"]
["Current, Voltage and Frequency Protection","Transformer and transformer-machine unit differential",null,null,"T87","M88","G88"]
[null,"Machine Differential",null,null,null,"M87","G87"]
["Current, Voltage and Frequency Protection","Voltage and frequentcy protection for two sets of bus",null,"B83"]
["Current, Voltage and Frequency Protection","Capacitor bank unbalance",null,null,null,null,null,"C86"]
[]
[]
["(1)  Include Cold Load Pickup and Broken Wire Detection."]

{"sheet":"Recommended SEPAM Model #","index":19,"n_rows":36,"n_cols":15,"rows_kept":36,"cut":false,"hidden":true,"merged":[[0,7,0,8],[1,7,1,11],[3,7,3,13],[7,1,7,5],[7,7,7,11],[7,13,7,17],[8,1,8,5],[8,7,8,11],[8,13,8,17],[9,1,9,5],[10,2,10,5],[10,8,10,11],[10,14,10,17],[18,2,18,5],[18,8,18,11],[18,14,18,17],[11,1,11,5],[12,2,12,5],[12,8,12,11],[12,14,12,17],[13,1,13,5],[14,2,14,5],[14,8,14,11],[14,14,14,17],[15,1,15,5],[16,2,16,5],[16,8,16,11],[16,14,16,17],[17,1,17,5],[20,8,20,11],[20,14,20,17],[22,8,22,11],[22,14,22,17],[24,8,24,11],[24,14,24,17],[32,8,32,11],[32,14,32,17],[34,14,34,17],[26,8,26,11],[26,14,26,17],[28,8,28,11],[28,14,28,17],[30,8,30,11],[30,14,30,17]]}
[null,null,null,null,null,null,null,"SEPAM Links:"]
[null,null,null,null,null,null,null,"SEPAM Software downloads"]
[]
[null,null,null,null,null,null,null,"SEPAM Tech Library; docs, curves and specifications"]
[]
[null,null,null,null,null,null,null,"SEPAM Knowledgebase and FAQ's"]
[]
[null,"Series 20 control voltage\n24-250V DC, or 110-220V AC (for AC use RTM #3090RTM317)",null,null,null,null,null,"Series 40 control voltage\n24-250V DC, or 110-220V AC (for AC use RTM #3090RTM317)",null,null,null,null,null,"Series 80 control voltage\n24-250V DC, for 110-220V AC (use RTM #3090RTM317)"]
[null,"SEPAM Relays Series 20",null,null,null,null,null,"SEPAM Relays Series 40",null,null,null,null,null,"SEPAM Relays Series 80"]
[null,"Voltage/Frq Protection Only"]
[null,"SQ1B21A","Bus - Voltage and Frequency protection and ATS",null,null,null,null,"SQ1G40A","Generator - Current, Voltage and Frequency Protection of a separate generator. For Gen-self-balance Diff \"87M\" add Basler BE3-50/51.",null,null,null,null,"SQ1B80A","Busbar - Voltage protection with current monitoring."]
[null,"Voltage/Frq Protection Only"]
[null,"SQ1B22A","Bus - Voltage and Frequency protection and ATS",null,null,null,null,"SQ1M41A","Motor, FVNR, RVAT, FVR, FV2S, FR \n500- 5000HP  - Current protection with voltage monitoring. For motor self-balance Diff \"87M\" add Basler BE3-50/51. ",null,null,null,null,"SQ1B83A","Busbar - Two sets of Voltage inputs & one set of Current inputs.  Provides line and bus voltage monitoring."]
[null,"Current Protection Only"]
[null,"SQ1M20A","Motor, FVNR, FVR 100-1500HP- Current protection without voltage monitoring",null,null,null,null,"SQ1S40A","Substation - Current & Voltage, protection of low-capacitance Feeders / Mains in impedance grounded or solidly grounded neutral systems. Capacitor bank (delta connection)",null,null,null,null,"SQ1C86A","Generator Protection coupled to other generators or to a network "]
[null,"Current Protection Only",null,null,null,null,null,null,null,null,null,null,null,"SQ1G82A"]
[null,"SQ1S24A","Substation - Current, protection of low-capacitance Feeders / Mains\nin impedance grounded or solidly grounded neutral systems. Capacitor feeder bank (delta connection)",null,null,null,null,"SQ1S42A","Substation - (S40A + Directional 67, 67N) protection.  Parallel main protection, ZSI and ATS",null,null,null,null,null,"Generator - Current protection with voltage monitoring and gen self-balance Diff \"87M\" or full percentage diff "]
[null,"Current Protection Only",null,null,null,null,null,null,null,null,null,null,null,"SQ1G87A"]
[null,"SQ1T24A","Transformer - Current protection without voltage monitoring",null,null,null,null,"SQ1S43A","Substation - (S40A + Directional 67, 67N) protection.  Parallel main protection, ZSI and ATS",null,null,null,null,null,"Generator-transformer unit differential protection"]
[null,null,null,null,null,null,null,null,null,null,null,null,null,"SQ1G88A"]
[null,null,null,null,null,null,null,"SQ1T40A","Transformer - Current and voltage protection. ",null,null,null,null,null,"Motor feeder - Current protection with voltage monitoring. For motor self balance Diff \"87M\" add Basler BE3-50/51."]
[null,null,null,null,null,null,null,null,null,null,null,null,null,"SQ1M81A"]
[null,null,null,null,null,null,null,"SQ1T42A","Transformer - (T40A + Directional 67, 67N). Current and voltage + Directional. Parallel transformer main protection",null,null,null,null,null,"Motor - (M81 + 87M)Current protection with voltage monitoring and motor self balance Diff \"87M\" or full percentage diff "]
[null,null,null,null,null,null,null,null,null,null,null,null,null,"SQ1M87A"]
[null,null,null,null,null,null,null,"SQ1S50A","Substation - Current & Voltage protection.  Same features as SQ1S40A plus 50/51 Cold Load Pickup, 50N/51N Cold Load Pickup and 46BC Broken Conductor.",null,null,null,null,null,"Motor-transformer unit differential protection"]
[null,null,null,null,null,null,null,null,null,null,null,null,null,"SQ1M88A"]
[null,null,null,null,null,null,null,"SQ1S52A","Substation - (S50A + Directional 67, 67N) protection.  Same features as SQ1S42A plus 50/51 Cold Load Pickup, 50N/51N Cold Load Pickup and 46BC Broken Conductor.",null,null,null,null,null,"Substation - Current & Voltage, protection of low-capacitance Feeders / Mains in impedance grounded or solidly grounded neutral systems "]
[null,null,null,null,null,null,null,null,null,null,null,null,null,"SQ1S80A"]
[null,null,null,null,null,null,null,"SQ1S53A","Substation - (S50A + Directional 67, 67N) protection.  Same features as SQ1S43A plus 50/51 Cold Load Pickup, 50N/51N Cold Load Pickup and 46BC Broken Conductor.",null,null,null,null,null,"Substation - (S80A + Directional 67, 67N).  Protection of main or tie CB with load shedding, ZSI & ATS"]
[null,null,null,null,null,null,null,null,null,null,null,null,null,"SQ1S82A"]
[null,null,null,null,null,null,null,"SQ1T50A","Transformer - Current and voltage protection.   Same features as SQ1T40A plus 50/51 Cold Load Pickup, 50N/51N Cold Load Pickup and 46BC Broken Conductor.",null,null,null,null,null,"Substation - (S80A + Directional 67, 67N, 27,59, 59N, 81L, 81R, 32P, 37P). Protection of main or tie CB with load shedding, ZSI & ATS"]
[null,null,null,null,null,null,null,null,null,null,null,null,null,"SQ1S84A"]
[null,null,null,null,null,null,null,"SQ1T52A","Transformer - (T40A + Directional 67, 67N). Same features as SQ1T42A plus 50/51 Cold Load Pickup, 50N/51N Cold Load Pickup and 46BC Broken Conductor.",null,null,null,null,null,"Transformer - Current and voltage + Directional. Parallel transformer main protection"]
[null,null,null,null,null,null,null,null,null,null,null,null,null,"SQ1T82A"]
[null,null,null,null,null,null,null,null,null,null,null,null,null,null,"Transformer - (T82 + 87T). Current and voltage + Directional. Parallel transformer main & differential protection"]
[null,null,null,null,null,null,null,null,null,null,null,null,null,"SQ1T87A"]

{"sheet":"Substation Protection","index":20,"n_rows":41,"n_cols":25,"rows_kept":41,"cut":false,"hidden":true,"merged":[[18,11,19,11],[34,1,34,9],[0,13,0,25],[18,0,19,0],[18,1,19,1],[18,2,19,2],[18,3,19,3],[18,4,19,4],[18,5,19,5],[18,6,19,6],[18,9,19,9],[18,10,19,10]]}
["Comparison of ANSI features on Substation Protection Relays",null,null,null,null,null,null,null,null,null,null,null,null,"Metering Parameters"]
[]
["ANSI","Protection Functions","S24","S40","S50","S42","S52","S43","S53","S80","S82","S84",null,"Metering Values","Acc.","S24","S40","S50","S42","S52","S43","S53","S80","S82","S84"]
[25,"Synch-check",null,null,null,null,null,null,null,null,null,null,null,"Current 1,2,3","+ - .5%",null,"X","X","X","X","X","X","X","X","X"]
[27,"Undervoltage (L-L)",null,null,null,null,null,null,null,4,null,null,null,null,"+-1%","X"]
["27/27S ","Undervoltage (L-L or L-N)",null,2,2,2,2,null,null,null,4,4,null,"Current peak demand","+ - .5%",null,"X","X","X","X","X","X","X","X","X"]
["27D","Positive sequence undervoltage",null,null,null,null,null,null,null,2,2,2,null,null,"+-1%","X"]
["27R","Remanent undervoltage",null,null,null,null,null,null,null,2,2,2,null,"Current demand","+ - .5%",null,"X","X","X","X","X","X","X","X","X"]
[30,"Annunciation","Y","Y","Y","Y","Y","Y","Y","Y","Y","Y",null,null,"+-1%","X"]
["32P","Directional active overpower",null,null,null,1,1,1,1,null,2,2,null,"Current residual","+-1%","X","X","X","X","X","X","X","X","X","X"]
["37P","Directional active underpower",null,null,null,null,null,null,null,null,null,2,null,"Voltage  L-N  & L-L","+ - .5%",null,"X","X","X","X","X","X","X","X","X"]
[46,"Negative sequence unbalance",1,2,2,2,2,2,2,2,2,2,null,"Voltage residual","+-1%",null,"X","X","X","X","X","X","X","X","X"]
["46 BC","Broken conductor",null,null,1,null,1,null,1,null,null,null,null,"Neutral point voltage","+-1%",null,null,null,null,null,null,null,"X","X","X"]
[47,"Negative sequence overvoltage",null,1,1,1,1,null,null,2,2,2,null,"Voltage neg. sequence   1,2,3","+ - 2%",null,"X","X","X","X","X","X","X","X","X"]
["49RMS","Thermal overload",null,null,null,null,null,null,null,null,1,1,null,"Voltage pos. sequence   1,2,3","+ - 2%",null,"X","X","X","X","X","X","X","X","X"]
["50/51","Phase overcurrent",4,4,4,4,4,4,4,8,8,8,null,"KW","+-1%",null,"X","X","X","X","X","X","X","X","X"]
["50/51 CLPU","Phase overcurrent cold load pickup/blocking",1,null,1,null,1,null,1,null,null,null,null,"KVA","+-1%",null,"X","X","X","X","X","X","X","X","X"]
["50BF","Breaker failure",1,1,1,1,1,1,1,1,1,1,null,"KVAr ","+-1%",null,"X","X","X","X","X","X","X","X","X"]
["50N/51N 50G/51G ","Ground fault / Sensitive ground fault",4,4,4,4,4,null,null,8,8,8,null,"KWh (calculated)","+-1%",null,"X","X","X","X","X","X","X","X","X"]
[null,null,null,null,null,null,null,4,4,null,null,null,null,"KVArh (calculated)","+-1%",null,"X","X","X","X","X","X","X","X","X"]
["50N/51N CLPU","Ground fault / Sensitive ground fault cold load pickup/blocking",1,null,1,null,1,null,1,null,null,null,null,"KWh (pulse counting)","+-1%",null,"X","X","X","X","X","X"]
[59,"Overvoltage (L-L or L-N)",null,2,2,2,2,null,null,4,4,4,null,"KVArh (pulse counting)","+-1%",null,"X","X","X","X","X","X"]
["59N","Neutral voltage displacement",null,2,2,2,2,null,null,2,2,2,null,"Frequency",".01Hz",null,"X","X","X","X","X","X","X","X","X"]
["60/60FL ","CT/VT supervision",null,"Y","Y","Y","Y","Y","Y","Y","Y","Y",null,"Temperature","+ - 1 Deg",null,null,null,null,null,null,null,"+- 1 Deg C","+- 1 Deg C","+- 1 Deg C"]
[67,"Directional phase overcurrent",null,null,null,2,2,null,null,null,2,2,null,"Harmonic distortion (I THD & V THD)","+-1%",null,null,null,null,null,null,null,"X","X","X"]
["67N/67NC","Directional ground fault",null,null,null,2,2,2,2,null,2,2,null,"Peak KW demand","+-1%",null,"X","X","X","X","X","X","X","X","X"]
[68,"Zone selective interlock (ZSI)",2,2,2,2,2,2,2,2,2,2,null,"Peak KVAr demand","+-1%",null,"X","X","X","X","X","X","X","X","X"]
[74,"Trip circuit supervision",null,null,null,null,null,null,null,"Y","Y","Y",null,"Power factor     -1 - 0 - +1",0.01,null,"X","X","X","X","X","X","X","X","X"]
[79,"Recloser ( 4 shots )"]
["81H","Overfrequency",null,2,2,2,2,null,null,2,2,2]
["81L","Underfrequency",null,4,4,4,4,null,null,4,4,4]
["81R","Rate of change of frequency",null,null,null,null,null,null,null,null,null,2]
[86,"Latching, lockout","Y","Y","Y","Y","Y","Y","Y","Y","Y","Y"]
["94/69 ","CB control logic","Y","Y","Y","Y","Y","Y","Y","Y","Y","Y"]
["Note:","The numbers in the matrix denote the number of trip points that can be configured for this ANSI code."]
[]
[null,"Optional Modules"]
["(1) Protection functions with 2 groups of settings"]
["(2) According to parameter setting and optional input/output modules"]
["(3) With optional MET1482 temperature input modules"]
["(4) With optional MCS025 synchro-check module"]

{"sheet":"Busbar Protection","index":21,"n_rows":31,"n_cols":18,"rows_kept":31,"cut":false,"hidden":true,"merged":[[0,1,0,6],[0,12,0,17],[24,2,25,6]]}
[null,"Comparison of ANSI features on Busbar Protection Relays",null,null,null,null,null,null,null,null,null,null,"Metering Parameters"]
[]
[null,"ANSI","Protection Functions","B21","B22","B80","B83",null,null,null,null,null,"Metering Values","Acc.","B21","B22","B80","B83"]
[null,25,"Synch-check",null,null,null,null,null,null,null,null,null,"Current 1,2,3","+ - .5%",null,null,"X","X"]
[null,27,"Undervoltage (L-L)","2/1 (3)","2/1 (3)",4,4,null,null,null,null,null,"Current peak demand","+ - .5%",null,null,"X","X"]
[null,"27D","Positive sequence undervoltage",2,2,2,2,null,null,null,null,null,"Current demand","+ - .5%",null,null,"X","X"]
[null,"27R","Remanent undervoltage",1,1,2,2,null,null,null,null,null,"Current residual","+-1%",null,null,"X","X"]
[null,"27S","Undervoltage (L-N)","Y","Y","Y","Y",null,null,null,null,null,"Voltage  L-N  & L-L","+ - .5%",null,null,"X","X"]
[null,30,"Annunciation","Y","Y","Y","Y",null,null,null,null,null,null,"+-1%","X","X"]
[null,46,"Negative sequence / unbalance",null,null,2,2,null,null,null,null,null,"Voltage residual","+-1%","X","X","X","X"]
[null,47,"Negative sequence overvoltage",2,2,2,2,null,null,null,null,null,"Neutral point voltage","+-1%",null,null,"X","X"]
[null,"50/51","Phase overcurrent",null,null,8,8,null,null,null,null,null,"Voltage neg. sequence   1,2,3","+ - 2%",null,null,"X","X"]
[null,"50BF","Breaker failure",null,null,1,1,null,null,null,null,null,"Voltage pos. sequence   1,2,3","+ - 2%","X","X","X","X"]
[null,"50N/51N","Ground fault",null,null,8,8,null,null,null,null,null,"KW","+-1%",null,null,"X","X"]
[null,"50G/51G","Sensitive ground fault",null,null,8,8,null,null,null,null,null,"KVA","+-1%",null,null,"X","X"]
[null,59,"Overvoltage (L-L or L-N)",2,2,4,4,null,null,null,null,null,"KVAr ","+-1%",null,null,"X","X"]
[null,"59N","Neutral voltage displacement",2,2,2,2,null,null,null,null,null,"KWh (calculated)","+-1%","X","X","X","X"]
[null,"60/60FL","CT/VT supervision",null,null,"Y","Y",null,null,null,null,null,"KVArh (calculated)","+-1%",null,null,"X","X"]
[null,68,"Zone selective interlock (ZSI)",null,null,2,2,null,null,null,null,null,"Frequency",".01Hz","X","X","X","X"]
[null,"81H","Overfrequency",1,1,2,2,null,null,null,null,null,"Temperature","+ - 1 Deg",null,null,"+- 1 Deg C","+- 1 Deg C"]
[null,"81L","Underfrequency",2,2,4,4,null,null,null,null,null,"Harmonic distortion (I THD & V THD)","+-1%",null,null,"X","X"]
[null,"81R","Rate of change of frequency (df/dt) _ (SQ1B22A only_use with Gen application)",null,1,null,null,null,null,null,null,null,"Peak KW demand","+-1%",null,null,"X","X"]
[null,86,"Latching, lockout","Y","Y","Y","Y",null,null,null,null,null,"Peak KVAr demand","+-1%",null,null,"X","X"]
[null,"94/69","CB control logic","Y","Y","Y","Y",null,null,null,null,null,"Power factor     -1 - 0 - +1",0.01,null,null,"X","X"]
[null,"Note:","The numbers in the matrix denote the number of trip points that can be configured for this ANSI code."]
[]
[]
["         Optional "]
["(1) Protection functions with 2 groups of settings",null,null,"The Difference between B80 and B83?"]
["(2) With optional MSC025 Synch Check Module",null,null,"B83: monitors Line and Bus voltage"]
["(3) 2 Undervoltage (L-L) and 1 undervoltage (L-N)",null,null,"(2 sets of VT's)"]

{"sheet":"Generator Protection","index":22,"n_rows":53,"n_cols":13,"rows_kept":53,"cut":false,"hidden":true,"merged":[[45,1,46,5],[0,7,0,12],[26,0,27,0],[26,1,27,1],[26,2,27,2],[26,3,27,3],[26,4,27,4],[26,5,27,5]]}
["Comparison of ANSI features on Generator Protection Relays",null,null,null,null,null,null,"Metering Parameters"]
[]
["ANSI","Protection Functions","G40","G82","G87","G88",null,"Metering Values","Accuracy","G40","G82","G87","G88"]
[12,"Overspeed (2 set points)",null,null,null,null,null,"Current 1,2,3","+ - .5%","X","X","X","X"]
[14,"Underspeed (2 set points)",null,null,null,null,null,"Current peak demand","+ - .5%","X","X","X","X"]
["21B","Underimpedance",null,1,1,1,null,"Current demand","+ - .5%","X","X","X","X"]
[24,"Flux control (V/Hz)",null,2,2,2,null,"Current residual","+-1%","X","X","X","X"]
[25,"Synch-check",null,null,null,null,null,"Voltage  L-N  & L-L","+ - .5%","X","X","X","X"]
["26/63","Thermostat / Buchholz",null,null,null,null,null,"Voltage residual","+-1%","X","X","X","X"]
["27/27S ","Undervoltage (L-L or L-N)",2,4,4,4,null,"Neutral point voltage","+-1%",null,"X","X","X"]
["27D","Positive sequence undervoltage",null,2,2,2,null,"Voltage neg. sequence   1,2,3","+ - 2%","X","X","X","X"]
["27R","Remanent undervoltage",null,2,2,2,null,"Voltage pos. sequence   1,2,3","+ - 2%","X","X","X","X"]
["27TN/64G2 64G","Third harmonic undervoltage & 100% stator ground fault",null,2,2,2,null,"KW","+-1%","X","X","X","X"]
[30,"Annunciation","Y","Y","Y","Y",null,"KVA","+-1%","X","X","X","X"]
["32P","Directional active overpower",1,2,2,2,null,"KVAr ","+-1%","X","X","X","X"]
["32Q","Directional reactive overpower",null,1,1,1,null,"KWh (calculated)","+-1%","Op","X","X","X"]
["32Q/40/55","Directional reactive overpower",1,null,null,null,null,"KVArh (calculated)","+-1%","Op","X","X","X"]
["37P","Directional active underpower",null,2,null,null,null,"KWh (pulse counting)","+-1%","Op"]
["38/49T","Temperature monitoring","8 RTD's","16 RTD's","16 RTD's","16 RTD's",null,"KVArh (pulse counting)","+-1%","Op"]
[40,"Field loss underimpedance",null,1,1,1,null,"Frequency",".01Hz","X","X","X","X"]
[46,"Negative sequence unbalance",2,2,2,2,null,"Temperature","+ - 1 Deg","Op","+- 1 Deg C","+- 1 Deg C","+- 1 Deg C"]
[47,"Negative sequence overvoltage",1,2,2,2,null,"Harmonic distortion (I THD & V THD)","+-1%","X","X","X","X"]
["49RMS","Thermal overload",2,2,2,2,null,"Peak KW demand","+-1%","X","X","X","X"]
["50/27 ","Inadvertant energization",null,1,1,1,null,"Peak KVAr demand","+-1%","X","X","X","X"]
["50/51","Phase overcurrent",4,8,8,8,null,"Power factor     -1 - 0 - +1",0.01,"X","X","X","X"]
["50BF","Breaker failure",1,1,1,1]
["50N/51N 50G/51G ","Ground fault / Sensitive ground fault",4,8,8,8]
[]
["50V/51V ","Voltage restrained phase overcurrent",1,2,2,2]
[59,"Overvoltage (L-L or L-N)",2,4,4,4]
["59N","Neutral voltage displacement",2,2,2,2]
["60/60FL ","CT/VT supervision","Y","Y","Y","Y"]
["64G","100% stator ground fault",null,2,2,2]
["64REF ","Restricted ground fault",null,2,null,2]
[67,"Directional phase overcurrent",null,2,2,2]
["67N/67NC","Directional ground fault",null,2,2,2]
[68,"Zone selective interlock (ZSI)",2,2,2,2]
[74,"Trip circuit supervision",null,null,null,"Y"]
["78PS","Pole slip (loss of synch)",null,1,1,1]
["81H","Overfrequency",2,2,2,2]
["81L","Underfrequency",4,4,4,4]
[86,"Latching, lockout","Y","Y","Y","Y"]
["87M","Machine differential",null,null,1]
["87T ","Transformer differential",null,null,null,1]
["94/69 ","CB control logic","Y","Y","Y","Y"]
["Note:","The numbers in the matrix denote the number of trip points that can be configured for this ANSI code."]
[]
[]
[null,"Optional Modules"]
["(1) Protection functions with 2 groups of settings"]
["(2) According to parameter setting and optional input/output modules"]
["(3) With optional MET1482 temperature input modules"]
["(4) With optional MCS025 synchro-check module"]

{"sheet":"Motor Protection","index":23,"n_rows":47,"n_cols":15,"rows_kept":47,"cut":false,"hidden":true,"merged":[[39,1,40,6],[0,8,0,12],[22,0,23,0],[22,1,23,1],[22,2,23,2],[22,3,23,3],[22,4,23,4],[22,5,23,5],[22,6,23,6]]}
["Comparison of ANSI features on Motor Protection Relays",null,null,null,null,null,null,null,"Metering Parameters"]
[]
["ANSI","Protection Functions","M20","M41","M81","M87","M88",null,"Metering Values","Acc.","M20","M41","M81","M87","M88"]
[12,"Overspeed (2 set points)",null,null,null,null,null,null,"Current 1,2,3","+ - .5%",null,"X","X","X","X"]
[14,"Underspeed (2 set points)",null,null,null,null,null,null,null,"+ -1%","X"]
["26/63","Thermostat / Buchholz",null,null,null,null,null,null,"Current peak demand","+ - .5%",null,"X","X","X","X"]
["27/27S ","Undervoltage (L-L or L-N)",null,2,4,4,4,null,null,"+ -1%","X"]
["27D","Positive sequence undervoltage",null,2,2,2,2,null,"Current demand","+ - .5%",null,"X","X","X","X"]
["27R","Remanent undervoltage",null,1,2,2,2,null,null,"+ -1%","X"]
[30,"Annunciation","Y","Y","Y","Y","Y",null,"Current residual","+ -1%","X","X","X","X","X"]
["32P","Directional active overpower",null,1,2,2,2,null,"Voltage  L-N  & L-L","+ - .5%",null,"X","X","X","X"]
["32Q","Directional reactive overpower",null,null,1,1,1,null,"Voltage residual","+-1%",null,"X","X","X","X"]
["32Q/40/55","Directional reactive overpower",null,1,null,null,null,null,"Neutral point voltage","+-1%",null,null,"X","X","X"]
[37,"Phase undercurrent",1,1,1,1,1,null,"Voltage neg. sequence   1,2,3","+ - 2%",null,"X","X","X","X"]
["38/49T","Temperature monitoring","8 RTD's","16 RTD's","16 RTD's","16 RTD's","16 RTD's",null,"Voltage pos. sequence   1,2,3","+ - 2%",null,"X","X","X","X"]
[40,"Field loss underimpedance",null,null,1,1,1,null,"KW","+-1%",null,"X","X","X","X"]
[46,"Negative sequence unbalance",1,2,2,2,2,null,"KVA","+-1%",null,"X","X","X","X"]
[47,"Negative sequence overvoltage",null,1,2,2,2,null,"KVAr ","+-1%",null,"X","X","X","X"]
[48,"Excessive starting time",1,1,1,1,1,null,"KWh (calculated)","+-1%",null,"X","X","X","X"]
["49RMS","Thermal overload",2,2,2,2,2,null,"KVArh (calculated)","+-1%",null,"X","X","X","X"]
["50/51","Phase overcurrent",4,4,8,8,8,null,"KWh (pulse counting)","+-1%",null,"X"]
["50BF","Breaker failure",null,1,1,1,1,null,"KVArh (pulse counting)","+-1%",null,"X"]
["50N/51N 50G/51G ","Ground fault / Sensitive ground fault",4,4,8,8,8,null,"Frequency",".01Hz",null,"X","X","X","X"]
[null,null,null,null,null,null,null,null,"Temperature","+ - 1 Deg",null,null,"+- 1 Deg C","+- 1 Deg C","+- 1 Deg C"]
["51LR","Lock rotor",1,1,1,1,1,null,"Harmonic distortion (I THD & V THD)","+-1%",null,null,"X","X","X"]
[59,"Overvoltage (L-L or L-N)",null,2,4,4,4,null,"Peak KW demand","+-1%",null,"X","X","X","X"]
["59N","Neutral voltage displacement",null,2,2,2,2,null,"Peak KVAr demand","+-1%",null,"X","X","X","X"]
["60/60FL ","CT/VT supervision",null,"Y","Y","Y","Y",null,"Power factor     -1 - 0 - +1",0.01,null,"X","X","X","X"]
[66,"Starts per hour",1,1,1,1,1]
["67N/67NC","Directional ground fault",null,2,2,2,2]
[68,"Zone selective interlock (ZSI)",2,2,2,2,2]
[74,"Trip circuit supervision",null,null,"Y","Y","Y"]
["78PS","Pole slip (loss of synch)",null,null,1,1,1]
["81H","Overfrequency",null,2,2,2,2]
["81L","Underfrequency",null,4,4,4,4]
[86,"Latching, lockout","Y","Y","Y","Y","Y"]
["87M","Machine differential",null,null,null,1]
["87T ","Transformer differential",null,null,null,null,1]
["94/69 ","CB control logic","Y","Y","Y","Y","Y"]
["Note:","The numbers in the matrix denote the number of trip points that can be configured for this ANSI code."]
[]
[]
[null,"Optional Modules"]
["(1) Protection functions with 2 groups of settings"]
["(2) According to parameter setting and optional input/output modules"]
["(3) With optional MET1482 temperature input modules"]
["(4) With optional MCS025 synchro-check module"]

{"sheet":"Transformer Protection","index":24,"n_rows":42,"n_cols":21,"rows_kept":42,"cut":false,"hidden":true,"merged":[[19,9,20,9],[35,1,35,7],[0,9,0,15],[19,0,20,0],[19,1,20,1],[19,2,20,2],[19,3,20,3],[19,4,20,4],[19,5,20,5],[19,6,20,6],[19,7,20,7],[19,8,20,8]]}
["Comparison of ANSI features on Transformer Protection Relays",null,null,null,null,null,null,null,null,"Metering Parameters"]
[]
["ANSI","Protection Functions","T24","T40","T50","T42","T52","T81","T82","T87",null,"Metering Values","Acc.","T24","T40","T50","T42","T52","T81","T82","T87"]
[24,"Flux control",null,null,null,null,null,null,null,2,null,"Current 1,2,3","+ - .5%",null,"X","X","X","X","X","X","X"]
[25,"Synch-check",null,null,null,null,null,null,null,null,null,null,"+-1%","X"]
["26/63","Thermostat / Buchholz",null,null,null,null,null,null,null,null,null,"Current peak demand","+ - .5%",null,"X","X","X","X","X","X","X"]
["27/27S ","Undervoltage (L-L or L-N)",null,2,2,2,2,4,4,4,null,null,"+-1%","X"]
["27D","Positive sequence undervoltage",null,null,null,null,null,2,2,2,null,"Current demand","+ - .5%",null,"X","X","X","X","X","X","X"]
["27R","Remanent undervoltage",null,null,null,null,null,2,2,2,null,null,"+-1%","X"]
[30,"Annunciation","Y","Y","Y","Y","Y","Y","Y","Y",null,"Current residual","+-1%","X","X","X","X","X","X","X","X"]
["32P","Directional active overpower",null,null,null,null,null,2,2,2,null,"Voltage  L-N  & L-L","+ - .5%",null,"X","X","X","X","X","X","X"]
["38/49T","Temperature monitoring","8 RTD's","16 RTD's","16 RTD's","16 RTD's","16 RTD's","16 RTD's","16 RTD's","16 RTD's",null,"Voltage residual","+-1%",null,"X","X","X","X","X","X","X"]
[46,"Negative sequence unbalance",1,2,2,2,2,2,2,2,null,"Neutral point voltage","+-1%",null,null,null,null,null,"X","X","X"]
[47,"Negative sequence overvoltage",null,1,1,1,1,2,2,2,null,"Voltage neg. sequence   1,2,3","+ - 2%",null,"X","X","X","X","X","X","X"]
["49RMS","Thermal overload",2,2,2,2,2,2,2,2,null,"Voltage pos. sequence   1,2,3","+ - 2%",null,"X","X","X","X","X","X","X"]
["50/27 ","Inadvertant energization",null,null,null,null,null,null,null,null,null,"KW","+-1%",null,"X","X","X","X","X","X","X"]
["50/51","Phase overcurrent",4,4,4,4,4,8,8,8,null,"KVA","+-1%",null,"X","X","X","X","X","X","X"]
["50/51 CLPU","Phase overcurrent cold load pickup/blocking",1,null,1,null,1,null,null,null,null,"KVAr ","+-1%",null,"X","X","X","X","X","X","X"]
["50BF","Breaker failure",1,1,1,1,1,1,1,1,null,"KWh (calculated)","+-1%",null,"X","X","X","X","X","X","X"]
["50N/51N 50G/51G ","Ground fault / Sensitive ground fault",4,4,4,4,4,8,8,8,null,"KVArh (calculated)","+-1%",null,"X","X","X","X","X","X","X"]
[null,null,null,null,null,null,null,null,null,null,null,"KWh (pulse counting)","+-1%",null,"X","X","X","X"]
["50N/51N CLPU","Ground fault / Sensitive ground fault cold load pickup/blocking",1,null,1,null,1,null,null,null,null,"KVArh (pulse counting)","+-1%",null,"X","X","X","X"]
[59,"Overvoltage (L-L or L-N)",null,2,2,2,2,4,4,4,null,"Frequency",".01Hz",null,"X","X","X","X","X","X","X"]
["59N","Neutral voltage displacement",null,2,2,2,2,2,2,2,null,"Temperature","+ - 1 Deg",null,null,null,null,null,"+- 1 Deg C","+- 1 Deg C","+- 1 Deg C"]
["60/60FL","CT/VT supervision",null,"Y","Y","Y","Y","Y","Y","Y",null,"Harmonic distortion (I THD & V THD)","+-1%",null,null,null,null,null,"X","X","X"]
["64REF ","Restricted ground fault",null,null,null,null,null,2,2,2,null,"Peak KW demand","+-1%",null,"X","X","X","X","X","X","X"]
[67,"Directional phase overcurrent",null,null,null,2,2,null,2,2,null,"Peak KVAr demand","+-1%",null,"X","X","X","X","X","X","X"]
["67N/67NC","Directional ground fault",null,null,null,2,2,2,2,2,null,"Power factor     -1 - 0 - +1",0.01,null,"X","X","X","X","X","X","X"]
[68,"Zone selective interlock (ZSI)",2,2,2,2,2,2,2,2]
[74,"Trip circuit supervision",null,null,null,null,null,null,"Y","Y"]
["81H","Overfrequency",null,2,2,2,2,2,2,2]
["81L","Underfrequency",null,4,4,4,4,4,4,4]
[86,"Latching, lockout","Y","Y","Y","Y","Y","Y","Y","Y"]
["87T ","Transformer differential",null,null,null,null,null,null,null,1]
["94/69 ","CB control logic","Y","Y","Y","Y","Y","Y","Y","Y"]
["Note:","The numbers in the matrix denote the number of trip points that can be configured for this ANSI code."]
[]
[null,"Optional Modules"]
["(1) Protection functions with 2 groups of settings"]
["(2) According to parameter setting and optional input/output modules"]
["(3) With optional MET1482 temperature input modules"]
["(4) With optional MCS025 synchro-check module"]